Workbook

Sheet Arkusz1 (hidden)

Sheet Arkusz6 (hidden)
A1: F072102006011300 | B1: =LEFT(A1,14) -> F0721020060113 | C1: Część nr katalogowego | D1: Nazwa | E1: Group | F1: Type | G1: Height | H1: H1 | I1: Lenght | J1: L1 | K1: Delta 50 | L1: Delta 30 | M1: k | N1: n | O1: Max Pressure | P1: Pressure Tightness | Q1: Resistance To Pressure | R1: 7 | S1: NB | T1: Temp | U1: Packeging Code | V1: 99 | W1: 77
B2: =CONCATENATE(VLOOKUP(B1,C:D,2,0),VLOOKUP(B1,C:F,4,0)," H=",B5,"mm L=",B6,"mm") -> Plint 21s H=200mm L=600mm | C2: F0610030040001 | E2: =LEFT(C2,3) -> F06 | F2: =IF(AND(RIGHT(LEFT(C2,5),2)="21",LEFT(C2,2)="F0"),_xlfn.CONCAT(RIGHT(LEFT(C2,5),2),"s"),RIGHT(LEFT(C2,5),2)) -> 10 | G2: =RIGHT(LEFT(C2,8),3) -> 030 | H2: =G2*10 -> 300 | I2: =RIGHT(LEFT(C2,11),3) -> 040 | J2: =I2*10 -> 400 | K2: 139 | L2: 70 | M2: 0.729 | N2: 1.3425 | O2: 10 | P2: 13 | Q2: 16.9 | S2: 626 | T2: 110 | U2: =RIGHT(C2,1) -> 1 | V2: =RIGHT(LEFT(C2,13),1) -> 0 | W2: =RIGHT(LEFT(C2,13),2) -> 00
B3: =VLOOKUP(B1,C:D,2,0) -> Plint | C3: F0610030040002 | E3: F06 | F3: =IF(AND(RIGHT(LEFT(C3,5),2)="21",LEFT(C3,2)="F0"),_xlfn.CONCAT(RIGHT(LEFT(C3,5),2),"s"),RIGHT(LEFT(C3,5),2)) -> 10 | G3: 030 | H3: =G3*10 -> 300 | I3: 040 | J3: =I3*10 -> 400 | K3: 139 | L3: 70 | M3: 0.729 | N3: 1.3425 | O3: 10 | P3: 13 | Q3: 16.9 | S3: 626 | T3: 110 | U3: =RIGHT(C3,1) -> 2 | V3: =RIGHT(LEFT(C3,13),1) -> 0 | W3: =RIGHT(LEFT(C3,13),2) -> 00
B4: =VLOOKUP(B1,C:F,4,0) -> 21s | C4: F0610030040003 | D4: Hygiene H | E4: F06 | F4: 10 | G4: 030 | H4: 300 | I4: 040 | J4: 400 | K4: 139 | L4: 70 | M4: 0.729 | N4: 1.3425 | O4: 10 | P4: 13 | Q4: 16.9 | S4: 626 | T4: 110 | U4: 3 | V4: 0 | W4: 00
B5: =VLOOKUP(B1,C:J,6,0) -> 200 | C5: F061003004000D | E5: F06 | F5: 10 | G5: 030 | H5: 300 | I5: 040 | J5: 400 | K5: 139 | L5: 70 | M5: 0.729 | N5: 1.3425 | O5: 10 | P5: 13 | Q5: 16.9 | S5: 626 | T5: 110 | U5: D | V5: 0 | W5: 00
B6: =VLOOKUP(B1,C:J,8,0) -> 600 | C6: F061003004000Q | E6: F06 | F6: 10 | G6: 030 | H6: 300 | I6: 040 | J6: 400 | K6: 139 | L6: 70 | M6: 0.729 | N6: 1.3425 | O6: 10 | P6: 13 | Q6: 16.9 | S6: 626 | T6: 110 | U6: Q | V6: 0 | W6: 00
B7: =VLOOKUP(B1,C:K,9,0) -> 329 | C7: F061003004000U | E7: F06 | F7: 10 | G7: 030 | H7: 300 | I7: 040 | J7: 400 | K7: 139 | L7: 70 | M7: 0.729 | N7: 1.3425 | O7: 10 | P7: 13 | Q7: 16.9 | S7: 626 | T7: 110 | U7: U | V7: 0 | W7: 00
B8: =VLOOKUP(B1,C:L,10,0) -> 167 | C8: F0610030050001 | E8: F06 | F8: 10 | G8: 030 | H8: 300 | I8: 050 | J8: 500 | K8: 174 | L8: 88 | M8: 0.911 | N8: 1.3425 | O8: 10 | P8: 13 | Q8: 16.9 | S8: 626 | T8: 110 | U8: 1 | V8: 0 | W8: 00
B9: =VLOOKUP(B1,C:M,11,0) -> 1.789 | C9: F0610030050002 | E9: F06 | F9: 10 | G9: 030 | H9: 300 | I9: 050 | J9: 500 | K9: 174 | L9: 88 | M9: 0.911 | N9: 1.3425 | O9: 10 | P9: 13 | Q9: 16.9 | S9: 626 | T9: 110 | U9: 2 | V9: 0 | W9: 00
B10: =VLOOKUP(B1,C:N,12,0) -> 1.3332 | C10: F0610030050003 | D10: Hygiene H | E10: F06 | F10: 10 | G10: 030 | H10: 300 | I10: 050 | J10: 500 | K10: 174 | L10: 88 | M10: 0.911 | N10: 1.3425 | O10: 10 | P10: 13 | Q10: 16.9 | S10: 626 | T10: 110 | U10: 3 | V10: 0 | W10: 00
B11: =VLOOKUP(B1,C:O,13,0) -> 10 | C11: F061003005000D | E11: F06 | F11: 10 | G11: 030 | H11: 300 | I11: 050 | J11: 500 | K11: 174 | L11: 88 | M11: 0.911 | N11: 1.3425 | O11: 10 | P11: 13 | Q11: 16.9 | S11: 626 | T11: 110 | U11: D | V11: 0 | W11: 00
B12: =VLOOKUP(B1,C:P,14,0) -> 13 | C12: F061003005000Q | E12: F06 | F12: 10 | G12: 030 | H12: 300 | I12: 050 | J12: 500 | K12: 174 | L12: 88 | M12: 0.911 | N12: 1.3425 | O12: 10 | P12: 13 | Q12: 16.9 | S12: 626 | T12: 110 | U12: Q | V12: 0 | W12: 00
B13: =VLOOKUP(B1,C:Q,15,0) -> 16.9 | C13: F061003005000U | E13: F06 | F13: 10 | G13: 030 | H13: 300 | I13: 050 | J13: 500 | K13: 174 | L13: 88 | M13: 0.911 | N13: 1.3425 | O13: 10 | P13: 13 | Q13: 16.9 | S13: 626 | T13: 110 | U13: U | V13: 0 | W13: 00
B14: =VLOOKUP(B1,C:S,17,0) -> 626 | C14: F0610030060001 | E14: F06 | F14: 10 | G14: 030 | H14: 300 | I14: 060 | J14: 600 | K14: 209 | L14: 105 | M14: 1.094 | N14: 1.3425 | O14: 10 | P14: 13 | Q14: 16.9 | S14: 626 | T14: 110 | U14: 1 | V14: 0 | W14: 00
B15: =VLOOKUP(B1,C:T,18,0) -> 110 | C15: F0610030060002 | E15: F06 | F15: 10 | G15: 030 | H15: 300 | I15: 060 | J15: 600 | K15: 209 | L15: 105 | M15: 1.094 | N15: 1.3425 | O15: 10 | P15: 13 | Q15: 16.9 | S15: 626 | T15: 110 | U15: 2 | V15: 0 | W15: 00
C16: F0610030060003 | D16: Hygiene H | E16: F06 | F16: 10 | G16: 030 | H16: 300 | I16: 060 | J16: 600 | K16: 209 | L16: 105 | M16: 1.094 | N16: 1.3425 | O16: 10 | P16: 13 | Q16: 16.9 | S16: 626 | T16: 110 | U16: 3 | V16: 0 | W16: 00
C17: F061003006000D | E17: F06 | F17: 10 | G17: 030 | H17: 300 | I17: 060 | J17: 600 | K17: 209 | L17: 105 | M17: 1.094 | N17: 1.3425 | O17: 10 | P17: 13 | Q17: 16.9 | S17: 626 | T17: 110 | U17: D | V17: 0 | W17: 00
C18: F061003006000Q | E18: F06 | F18: 10 | G18: 030 | H18: 300 | I18: 060 | J18: 600 | K18: 209 | L18: 105 | M18: 1.094 | N18: 1.3425 | O18: 10 | P18: 13 | Q18: 16.9 | S18: 626 | T18: 110 | U18: Q | V18: 0 | W18: 00
C19: F061003006000U | E19: F06 | F19: 10 | G19: 030 | H19: 300 | I19: 060 | J19: 600 | K19: 209 | L19: 105 | M19: 1.094 | N19: 1.3425 | O19: 10 | P19: 13 | Q19: 16.9 | S19: 626 | T19: 110 | U19: U | V19: 0 | W19: 00
C20: F0610030070001 | E20: F06 | F20: 10 | G20: 030 | H20: 300 | I20: 070 | J20: 700 | K20: 244 | L20: 123 | M20: 1.276 | N20: 1.3425 | O20: 10 | P20: 13 | Q20: 16.9 | S20: 626 | T20: 110 | U20: 1 | V20: 0 | W20: 00
C21: F0610030070002 | E21: F06 | F21: 10 | G21: 030 | H21: 300 | I21: 070 | J21: 700 | K21: 244 | L21: 123 | M21: 1.276 | N21: 1.3425 | O21: 10 | P21: 13 | Q21: 16.9 | S21: 626 | T21: 110 | U21: 2 | V21: 0 | W21: 00
C22: F0610030070003 | D22: Hygiene H | E22: F06 | F22: 10 | G22: 030 | H22: 300 | I22: 070 | J22: 700 | K22: 244 | L22: 123 | M22: 1.276 | N22: 1.3425 | O22: 10 | P22: 13 | Q22: 16.9 | S22: 626 | T22: 110 | U22: 3 | V22: 0 | W22: 00
C23: F061003007000D | E23: F06 | F23: 10 | G23: 030 | H23: 300 | I23: 070 | J23: 700 | K23: 244 | L23: 123 | M23: 1.276 | N23: 1.3425 | O23: 10 | P23: 13 | Q23: 16.9 | S23: 626 | T23: 110 | U23: D | V23: 0 | W23: 00
C24: F061003007000Q | E24: F06 | F24: 10 | G24: 030 | H24: 300 | I24: 070 | J24: 700 | K24: 244 | L24: 123 | M24: 1.276 | N24: 1.3425 | O24: 10 | P24: 13 | Q24: 16.9 | S24: 626 | T24: 110 | U24: Q | V24: 0 | W24: 00
C25: F061003007000U | E25: F06 | F25: 10 | G25: 030 | H25: 300 | I25: 070 | J25: 700 | K25: 244 | L25: 123 | M25: 1.276 | N25: 1.3425 | O25: 10 | P25: 13 | Q25: 16.9 | S25: 626 | T25: 110 | U25: U | V25: 0 | W25: 00
C26: F0610030080001 | E26: F06 | F26: 10 | G26: 030 | H26: 300 | I26: 080 | J26: 800 | K26: 278 | L26: 140 | M26: 1.458 | N26: 1.3425 | O26: 10 | P26: 13 | Q26: 16.9 | S26: 626 | T26: 110 | U26: 1 | V26: 0 | W26: 00
C27: F0610030080002 | E27: F06 | F27: 10 | G27: 030 | H27: 300 | I27: 080 | J27: 800 | K27: 278 | L27: 140 | M27: 1.458 | N27: 1.3425 | O27: 10 | P27: 13 | Q27: 16.9 | S27: 626 | T27: 110 | U27: 2 | V27: 0 | W27: 00
C28: F0610030080003 | D28: Hygiene H | E28: F06 | F28: 10 | G28: 030 | H28: 300 | I28: 080 | J28: 800 | K28: 278 | L28: 140 | M28: 1.458 | N28: 1.3425 | O28: 10 | P28: 13 | Q28: 16.9 | S28: 626 | T28: 110 | U28: 3 | V28: 0 | W28: 00
C29: F061003008000D | E29: F06 | F29: 10 | G29: 030 | H29: 300 | I29: 080 | J29: 800 | K29: 278 | L29: 140 | M29: 1.458 | N29: 1.3425 | O29: 10 | P29: 13 | Q29: 16.9 | S29: 626 | T29: 110 | U29: D | V29: 0 | W29: 00
C30: F061003008000Q | E30: F06 | F30: 10 | G30: 030 | H30: 300 | I30: 080 | J30: 800 | K30: 278 | L30: 140 | M30: 1.458 | N30: 1.3425 | O30: 10 | P30: 13 | Q30: 16.9 | S30: 626 | T30: 110 | U30: Q | V30: 0 | W30: 00
C31: F061003008000U | E31: F06 | F31: 10 | G31: 030 | H31: 300 | I31: 080 | J31: 800 | K31: 278 | L31: 140 | M31: 1.458 | N31: 1.3425 | O31: 10 | P31: 13 | Q31: 16.9 | S31: 626 | T31: 110 | U31: U | V31: 0 | W31: 00
C32: F0610030090001 | E32: F06 | F32: 10 | G32: 030 | H32: 300 | I32: 090 | J32: 900 | K32: 313 | L32: 158 | M32: 1.64 | N32: 1.3425 | O32: 10 | P32: 13 | Q32: 16.9 | S32: 626 | T32: 110 | U32: 1 | V32: 0 | W32: 00
C33: F0610030090002 | E33: F06 | F33: 10 | G33: 030 | H33: 300 | I33: 090 | J33: 900 | K33: 313 | L33: 158 | M33: 1.64 | N33: 1.3425 | O33: 10 | P33: 13 | Q33: 16.9 | S33: 626 | T33: 110 | U33: 2 | V33: 0 | W33: 00
C34: F0610030090003 | D34: Hygiene H | E34: F06 | F34: 10 | G34: 030 | H34: 300 | I34: 090 | J34: 900 | K34: 313 | L34: 158 | M34: 1.64 | N34: 1.3425 | O34: 10 | P34: 13 | Q34: 16.9 | S34: 626 | T34: 110 | U34: 3 | V34: 0 | W34: 00
C35: F061003009000D | E35: F06 | F35: 10 | G35: 030 | H35: 300 | I35: 090 | J35: 900 | K35: 313 | L35: 158 | M35: 1.64 | N35: 1.3425 | O35: 10 | P35: 13 | Q35: 16.9 | S35: 626 | T35: 110 | U35: D | V35: 0 | W35: 00
C36: F061003009000H | E36: F06 | F36: 10 | G36: 030 | H36: 300 | I36: 090 | J36: 900 | K36: 313 | L36: 158 | M36: 1.64 | N36: 1.3425 | O36: 10 | P36: 13 | Q36: 16.9 | S36: 626 | T36: 110 | U36: H | V36: 0 | W36: 00
C37: F061003009000Q | E37: F06 | F37: 10 | G37: 030 | H37: 300 | I37: 090 | J37: 900 | K37: 313 | L37: 158 | M37: 1.64 | N37: 1.3425 | O37: 10 | P37: 13 | Q37: 16.9 | S37: 626 | T37: 110 | U37: Q | V37: 0 | W37: 00
C38: F061003009000U | E38: F06 | F38: 10 | G38: 030 | H38: 300 | I38: 090 | J38: 900 | K38: 313 | L38: 158 | M38: 1.64 | N38: 1.3425 | O38: 10 | P38: 13 | Q38: 16.9 | S38: 626 | T38: 110 | U38: U | V38: 0 | W38: 00
C39: F0610030100001 | E39: F06 | F39: 10 | G39: 030 | H39: 300 | I39: 100 | J39: 1000 | K39: 348 | L39: 175 | M39: 1.823 | N39: 1.3425 | O39: 10 | P39: 13 | Q39: 16.9 | S39: 626 | T39: 110 | U39: 1 | V39: 0 | W39: 00
C40: F0610030100002 | E40: F06 | F40: 10 | G40: 030 | H40: 300 | I40: 100 | J40: 1000 | K40: 348 | L40: 175 | M40: 1.823 | N40: 1.3425 | O40: 10 | P40: 13 | Q40: 16.9 | S40: 626 | T40: 110 | U40: 2 | V40: 0 | W40: 00
C41: F0610030100003 | D41: Hygiene H | E41: F06 | F41: 10 | G41: 030 | H41: 300 | I41: 100 | J41: 1000 | K41: 348 | L41: 175 | M41: 1.823 | N41: 1.3425 | O41: 10 | P41: 13 | Q41: 16.9 | S41: 626 | T41: 110 | U41: 3 | V41: 0 | W41: 00
C42: F061003010000D | E42: F06 | F42: 10 | G42: 030 | H42: 300 | I42: 100 | J42: 1000 | K42: 348 | L42: 175 | M42: 1.823 | N42: 1.3425 | O42: 10 | P42: 13 | Q42: 16.9 | S42: 626 | T42: 110 | U42: D | V42: 0 | W42: 00
C43: F061003010000Q | E43: F06 | F43: 10 | G43: 030 | H43: 300 | I43: 100 | J43: 1000 | K43: 348 | L43: 175 | M43: 1.823 | N43: 1.3425 | O43: 10 | P43: 13 | Q43: 16.9 | S43: 626 | T43: 110 | U43: Q | V43: 0 | W43: 00
C44: F061003010000U | E44: F06 | F44: 10 | G44: 030 | H44: 300 | I44: 100 | J44: 1000 | K44: 348 | L44: 175 | M44: 1.823 | N44: 1.3425 | O44: 10 | P44: 13 | Q44: 16.9 | S44: 626 | T44: 110 | U44: U | V44: 0 | W44: 00
C45: F0610030110001 | E45: F06 | F45: 10 | G45: 030 | H45: 300 | I45: 110 | J45: 1100 | K45: 383 | L45: 193 | M45: 2.005 | N45: 1.3425 | O45: 10 | P45: 13 | Q45: 16.9 | S45: 626 | T45: 110 | U45: 1 | V45: 0 | W45: 00
C46: F0610030110002 | E46: F06 | F46: 10 | G46: 030 | H46: 300 | I46: 110 | J46: 1100 | K46: 383 | L46: 193 | M46: 2.005 | N46: 1.3425 | O46: 10 | P46: 13 | Q46: 16.9 | S46: 626 | T46: 110 | U46: 2 | V46: 0 | W46: 00
C47: F0610030110003 | D47: Hygiene H | E47: F06 | F47: 10 | G47: 030 | H47: 300 | I47: 110 | J47: 1100 | K47: 383 | L47: 193 | M47: 2.005 | N47: 1.3425 | O47: 10 | P47: 13 | Q47: 16.9 | S47: 626 | T47: 110 | U47: 3 | V47: 0 | W47: 00
C48: F061003011000D | E48: F06 | F48: 10 | G48: 030 | H48: 300 | I48: 110 | J48: 1100 | K48: 383 | L48: 193 | M48: 2.005 | N48: 1.3425 | O48: 10 | P48: 13 | Q48: 16.9 | S48: 626 | T48: 110 | U48: D | V48: 0 | W48: 00
C49: F061003011000Q | E49: F06 | F49: 10 | G49: 030 | H49: 300 | I49: 110 | J49: 1100 | K49: 383 | L49: 193 | M49: 2.005 | N49: 1.3425 | O49: 10 | P49: 13 | Q49: 16.9 | S49: 626 | T49: 110 | U49: Q | V49: 0 | W49: 00
C50: F061003011000U | E50: F06 | F50: 10 | G50: 030 | H50: 300 | I50: 110 | J50: 1100 | K50: 383 | L50: 193 | M50: 2.005 | N50: 1.3425 | O50: 10 | P50: 13 | Q50: 16.9 | S50: 626 | T50: 110 | U50: U | V50: 0 | W50: 00
C51: F0610030120001 | E51: F06 | F51: 10 | G51: 030 | H51: 300 | I51: 120 | J51: 1200 | K51: 418 | L51: 210 | M51: 2.187 | N51: 1.3425 | O51: 10 | P51: 13 | Q51: 16.9 | S51: 626 | T51: 110 | U51: 1 | V51: 0 | W51: 00
C52: F0610030120002 | E52: F06 | F52: 10 | G52: 030 | H52: 300 | I52: 120 | J52: 1200 | K52: 418 | L52: 210 | M52: 2.187 | N52: 1.3425 | O52: 10 | P52: 13 | Q52: 16.9 | S52: 626 | T52: 110 | U52: 2 | V52: 0 | W52: 00
C53: F0610030120003 | D53: Hygiene H | E53: F06 | F53: 10 | G53: 030 | H53: 300 | I53: 120 | J53: 1200 | K53: 418 | L53: 210 | M53: 2.187 | N53: 1.3425 | O53: 10 | P53: 13 | Q53: 16.9 | S53: 626 | T53: 110 | U53: 3 | V53: 0 | W53: 00
C54: F061003012000D | E54: F06 | F54: 10 | G54: 030 | H54: 300 | I54: 120 | J54: 1200 | K54: 418 | L54: 210 | M54: 2.187 | N54: 1.3425 | O54: 10 | P54: 13 | Q54: 16.9 | S54: 626 | T54: 110 | U54: D | V54: 0 | W54: 00
C55: F061003012000Q | E55: F06 | F55: 10 | G55: 030 | H55: 300 | I55: 120 | J55: 1200 | K55: 418 | L55: 210 | M55: 2.187 | N55: 1.3425 | O55: 10 | P55: 13 | Q55: 16.9 | S55: 626 | T55: 110 | U55: Q | V55: 0 | W55: 00
C56: F061003012000U | E56: F06 | F56: 10 | G56: 030 | H56: 300 | I56: 120 | J56: 1200 | K56: 418 | L56: 210 | M56: 2.187 | N56: 1.3425 | O56: 10 | P56: 13 | Q56: 16.9 | S56: 626 | T56: 110 | U56: U | V56: 0 | W56: 00
C57: F0610030130001 | E57: F06 | F57: 10 | G57: 030 | H57: 300 | I57: 130 | J57: 1300 | K57: 452 | L57: 228 | M57: 2.369 | N57: 1.3425 | O57: 10 | P57: 13 | Q57: 16.9 | S57: 626 | T57: 110 | U57: 1 | V57: 0 | W57: 00
C58: F0610030130003 | D58: Hygiene H | E58: F06 | F58: 10 | G58: 030 | H58: 300 | I58: 130 | J58: 1300 | K58: 452 | L58: 228 | M58: 2.369 | N58: 1.3425 | O58: 10 | P58: 13 | Q58: 16.9 | S58: 626 | T58: 110 | U58: 3 | V58: 0 | W58: 00
C59: F061003013000D | E59: F06 | F59: 10 | G59: 030 | H59: 300 | I59: 130 | J59: 1300 | K59: 452 | L59: 228 | M59: 2.369 | N59: 1.3425 | O59: 10 | P59: 13 | Q59: 16.9 | S59: 626 | T59: 110 | U59: D | V59: 0 | W59: 00
C60: F0610030140001 | E60: F06 | F60: 10 | G60: 030 | H60: 300 | I60: 140 | J60: 1400 | K60: 487 | L60: 245 | M60: 2.552 | N60: 1.3425 | O60: 10 | P60: 13 | Q60: 16.9 | S60: 626 | T60: 110 | U60: 1 | V60: 0 | W60: 00
C61: F0610030140002 | E61: F06 | F61: 10 | G61: 030 | H61: 300 | I61: 140 | J61: 1400 | K61: 487 | L61: 245 | M61: 2.552 | N61: 1.3425 | O61: 10 | P61: 13 | Q61: 16.9 | S61: 626 | T61: 110 | U61: 2 | V61: 0 | W61: 00
C62: F0610030140003 | D62: Hygiene H | E62: F06 | F62: 10 | G62: 030 | H62: 300 | I62: 140 | J62: 1400 | K62: 487 | L62: 245 | M62: 2.552 | N62: 1.3425 | O62: 10 | P62: 13 | Q62: 16.9 | S62: 626 | T62: 110 | U62: 3 | V62: 0 | W62: 00
C63: F061003014000D | E63: F06 | F63: 10 | G63: 030 | H63: 300 | I63: 140 | J63: 1400 | K63: 487 | L63: 245 | M63: 2.552 | N63: 1.3425 | O63: 10 | P63: 13 | Q63: 16.9 | S63: 626 | T63: 110 | U63: D | V63: 0 | W63: 00
C64: F061003014000Q | E64: F06 | F64: 10 | G64: 030 | H64: 300 | I64: 140 | J64: 1400 | K64: 487 | L64: 245 | M64: 2.552 | N64: 1.3425 | O64: 10 | P64: 13 | Q64: 16.9 | S64: 626 | T64: 110 | U64: Q | V64: 0 | W64: 00
C65: F061003014000U | E65: F06 | F65: 10 | G65: 030 | H65: 300 | I65: 140 | J65: 1400 | K65: 487 | L65: 245 | M65: 2.552 | N65: 1.3425 | O65: 10 | P65: 13 | Q65: 16.9 | S65: 626 | T65: 110 | U65: U | V65: 0 | W65: 00
C66: F0610030160001 | E66: =LEFT(C66,3) -> F06 | F66: 10 | G66: =RIGHT(LEFT(C66,8),3) -> 030 | H66: 300 | I66: =RIGHT(LEFT(C66,11),3) -> 160 | J66: 1600 | K66: 557 | L66: 280 | M66: 2.916 | N66: 1.3425 | O66: 10 | P66: 13 | Q66: 16.9 | S66: 626 | T66: 110 | U66: 1 | V66: 0 | W66: 00
C67: F0610030160002 | E67: F06 | F67: =IF(AND(RIGHT(LEFT(C67,5),2)="21",LEFT(C67,2)="F0"),_xlfn.CONCAT(RIGHT(LEFT(C67,5),2),"s"),RIGHT(LEFT(C67,5),2)) -> 10 | G67: 030 | H67: =G67*10 -> 300 | I67: 160 | J67: =I67*10 -> 1600 | K67: 557 | L67: 280 | M67: 2.916 | N67: 1.3425 | O67: 10 | P67: 13 | Q67: 16.9 | S67: 626 | T67: 110 | U67: =RIGHT(C67,1) -> 2 | V67: =RIGHT(LEFT(C67,13),1) -> 0 | W67: =RIGHT(LEFT(C67,13),2) -> 00
C68: F0610030160003 | D68: Hygiene H | E68: F06 | F68: 10 | G68: 030 | H68: 300 | I68: 160 | J68: 1600 | K68: 557 | L68: 280 | M68: 2.916 | N68: 1.3425 | O68: 10 | P68: 13 | Q68: 16.9 | S68: 626 | T68: 110 | U68: 3 | V68: 0 | W68: 00
C69: F061003016000D | E69: F06 | F69: 10 | G69: 030 | H69: 300 | I69: 160 | J69: 1600 | K69: 557 | L69: 280 | M69: 2.916 | N69: 1.3425 | O69: 10 | P69: 13 | Q69: 16.9 | S69: 626 | T69: 110 | U69: D | V69: 0 | W69: 00
C70: F061003016000Q | E70: F06 | F70: 10 | G70: 030 | H70: 300 | I70: 160 | J70: 1600 | K70: 557 | L70: 280 | M70: 2.916 | N70: 1.3425 | O70: 10 | P70: 13 | Q70: 16.9 | S70: 626 | T70: 110 | U70: Q | V70: 0 | W70: 00
C71: F061003016000U | E71: F06 | F71: 10 | G71: 030 | H71: 300 | I71: 160 | J71: 1600 | K71: 557 | L71: 280 | M71: 2.916 | N71: 1.3425 | O71: 10 | P71: 13 | Q71: 16.9 | S71: 626 | T71: 110 | U71: U | V71: 0 | W71: 00
C72: F0610030180001 | E72: F06 | F72: 10 | G72: 030 | H72: 300 | I72: 180 | J72: 1800 | K72: 626 | L72: 316 | M72: 3.281 | N72: 1.3425 | O72: 10 | P72: 13 | Q72: 16.9 | S72: 626 | T72: 110 | U72: 1 | V72: 0 | W72: 00
C73: F0610030180002 | E73: F06 | F73: 10 | G73: 030 | H73: 300 | I73: 180 | J73: 1800 | K73: 626 | L73: 316 | M73: 3.281 | N73: 1.3425 | O73: 10 | P73: 13 | Q73: 16.9 | S73: 626 | T73: 110 | U73: 2 | V73: 0 | W73: 00
C74: F0610030180003 | D74: Hygiene H | E74: F06 | F74: 10 | G74: 030 | H74: 300 | I74: 180 | J74: 1800 | K74: 626 | L74: 316 | M74: 3.281 | N74: 1.3425 | O74: 10 | P74: 13 | Q74: 16.9 | S74: 626 | T74: 110 | U74: 3 | V74: 0 | W74: 00
C75: F061003018000D | E75: F06 | F75: 10 | G75: 030 | H75: 300 | I75: 180 | J75: 1800 | K75: 626 | L75: 316 | M75: 3.281 | N75: 1.3425 | O75: 10 | P75: 13 | Q75: 16.9 | S75: 626 | T75: 110 | U75: D | V75: 0 | W75: 00
C76: F061003018000Q | E76: F06 | F76: 10 | G76: 030 | H76: 300 | I76: 180 | J76: 1800 | K76: 626 | L76: 316 | M76: 3.281 | N76: 1.3425 | O76: 10 | P76: 13 | Q76: 16.9 | S76: 626 | T76: 110 | U76: Q | V76: 0 | W76: 00
C77: F061003018000U | E77: F06 | F77: 10 | G77: 030 | H77: 300 | I77: 180 | J77: 1800 | K77: 626 | L77: 316 | M77: 3.281 | N77: 1.3425 | O77: 10 | P77: 13 | Q77: 16.9 | S77: 626 | T77: 110 | U77: U | V77: 0 | W77: 00
C78: F0610030200001 | E78: F06 | F78: 10 | G78: 030 | H78: 300 | I78: 200 | J78: 2000 | K78: 696 | L78: 351 | M78: 3.645 | N78: 1.3425 | O78: 10 | P78: 13 | Q78: 16.9 | S78: 626 | T78: 110 | U78: 1 | V78: 0 | W78: 00
C79: F0610030200003 | D79: Hygiene H | E79: F06 | F79: 10 | G79: 030 | H79: 300 | I79: 200 | J79: 2000 | K79: 696 | L79: 351 | M79: 3.645 | N79: 1.3425 | O79: 10 | P79: 13 | Q79: 16.9 | S79: 626 | T79: 110 | U79: 3 | V79: 0 | W79: 00
C80: F061003020000D | E80: F06 | F80: 10 | G80: 030 | H80: 300 | I80: 200 | J80: 2000 | K80: 696 | L80: 351 | M80: 3.645 | N80: 1.3425 | O80: 10 | P80: 13 | Q80: 16.9 | S80: 626 | T80: 110 | U80: D | V80: 0 | W80: 00
C81: F061003020000Q | E81: F06 | F81: 10 | G81: 030 | H81: 300 | I81: 200 | J81: 2000 | K81: 696 | L81: 351 | M81: 3.645 | N81: 1.3425 | O81: 10 | P81: 13 | Q81: 16.9 | S81: 626 | T81: 110 | U81: Q | V81: 0 | W81: 00
C82: F061003020000U | E82: F06 | F82: 10 | G82: 030 | H82: 300 | I82: 200 | J82: 2000 | K82: 696 | L82: 351 | M82: 3.645 | N82: 1.3425 | O82: 10 | P82: 13 | Q82: 16.9 | S82: 626 | T82: 110 | U82: U | V82: 0 | W82: 00
C83: F0610030230001 | E83: F06 | F83: 10 | G83: 030 | H83: 300 | I83: 230 | J83: 2300 | K83: 800 | L83: 403 | M83: 4.192 | N83: 1.3425 | O83: 10 | P83: 13 | Q83: 16.9 | S83: 626 | T83: 110 | U83: 1 | V83: 0 | W83: 00
C84: F0610030230003 | D84: Hygiene H | E84: F06 | F84: 10 | G84: 030 | H84: 300 | I84: 230 | J84: 2300 | K84: 800 | L84: 403 | M84: 4.192 | N84: 1.3425 | O84: 10 | P84: 13 | Q84: 16.9 | S84: 626 | T84: 110 | U84: 3 | V84: 0 | W84: 00
C85: F061003023000D | E85: F06 | F85: 10 | G85: 030 | H85: 300 | I85: 230 | J85: 2300 | K85: 800 | L85: 403 | M85: 4.192 | N85: 1.3425 | O85: 10 | P85: 13 | Q85: 16.9 | S85: 626 | T85: 110 | U85: D | V85: 0 | W85: 00
C86: F061003023000Q | E86: F06 | F86: 10 | G86: 030 | H86: 300 | I86: 230 | J86: 2300 | K86: 800 | L86: 403 | M86: 4.192 | N86: 1.3425 | O86: 10 | P86: 13 | Q86: 16.9 | S86: 626 | T86: 110 | U86: Q | V86: 0 | W86: 00
C87: F061003023000U | E87: F06 | F87: 10 | G87: 030 | H87: 300 | I87: 230 | J87: 2300 | K87: 800 | L87: 403 | M87: 4.192 | N87: 1.3425 | O87: 10 | P87: 13 | Q87: 16.9 | S87: 626 | T87: 110 | U87: U | V87: 0 | W87: 00
C88: F0610030260001 | E88: F06 | F88: 10 | G88: 030 | H88: 300 | I88: 260 | J88: 2600 | K88: 905 | L88: 456 | M88: 4.739 | N88: 1.3425 | O88: 10 | P88: 13 | Q88: 16.9 | S88: 626 | T88: 110 | U88: 1 | V88: 0 | W88: 00
C89: F0610030260003 | D89: Hygiene H | E89: F06 | F89: 10 | G89: 030 | H89: 300 | I89: 260 | J89: 2600 | K89: 905 | L89: 456 | M89: 4.739 | N89: 1.3425 | O89: 10 | P89: 13 | Q89: 16.9 | S89: 626 | T89: 110 | U89: 3 | V89: 0 | W89: 00
C90: F061003026000D | E90: F06 | F90: 10 | G90: 030 | H90: 300 | I90: 260 | J90: 2600 | K90: 905 | L90: 456 | M90: 4.739 | N90: 1.3425 | O90: 10 | P90: 13 | Q90: 16.9 | S90: 626 | T90: 110 | U90: D | V90: 0 | W90: 00
C91: F061003026000Q | E91: F06 | F91: 10 | G91: 030 | H91: 300 | I91: 260 | J91: 2600 | K91: 905 | L91: 456 | M91: 4.739 | N91: 1.3425 | O91: 10 | P91: 13 | Q91: 16.9 | S91: 626 | T91: 110 | U91: Q | V91: 0 | W91: 00
C92: F061003026000U | E92: F06 | F92: 10 | G92: 030 | H92: 300 | I92: 260 | J92: 2600 | K92: 905 | L92: 456 | M92: 4.739 | N92: 1.3425 | O92: 10 | P92: 13 | Q92: 16.9 | S92: 626 | T92: 110 | U92: U | V92: 0 | W92: 00
C93: F0610030300001 | E93: F06 | F93: 10 | G93: 030 | H93: 300 | I93: 300 | J93: 3000 | K93: 1044 | L93: 526 | M93: 5.468 | N93: 1.3425 | O93: 10 | P93: 13 | Q93: 16.9 | S93: 626 | T93: 110 | U93: 1 | V93: 0 | W93: 00
C94: F0610030300003 | D94: Hygiene H | E94: F06 | F94: 10 | G94: 030 | H94: 300 | I94: 300 | J94: 3000 | K94: 1044 | L94: 526 | M94: 5.468 | N94: 1.3425 | O94: 10 | P94: 13 | Q94: 16.9 | S94: 626 | T94: 110 | U94: 3 | V94: 0 | W94: 00
C95: F061003030000D | E95: F06 | F95: 10 | G95: 030 | H95: 300 | I95: 300 | J95: 3000 | K95: 1044 | L95: 526 | M95: 5.468 | N95: 1.3425 | O95: 10 | P95: 13 | Q95: 16.9 | S95: 626 | T95: 110 | U95: D | V95: 0 | W95: 00
C96: F061003030000Q | E96: F06 | F96: 10 | G96: 030 | H96: 300 | I96: 300 | J96: 3000 | K96: 1044 | L96: 526 | M96: 5.468 | N96: 1.3425 | O96: 10 | P96: 13 | Q96: 16.9 | S96: 626 | T96: 110 | U96: Q | V96: 0 | W96: 00
C97: F061003030000U | E97: F06 | F97: 10 | G97: 030 | H97: 300 | I97: 300 | J97: 3000 | K97: 1044 | L97: 526 | M97: 5.468 | N97: 1.3425 | O97: 10 | P97: 13 | Q97: 16.9 | S97: 626 | T97: 110 | U97: U | V97: 0 | W97: 00
C98: F0610040040001 | E98: F06 | F98: 10 | G98: 040 | H98: 400 | I98: 040 | J98: 400 | K98: 180 | L98: 91 | M98: 1.005 | N98: 1.3255 | O98: 10 | P98: 13 | Q98: 16.9 | S98: 626 | T98: 110 | U98: 1 | V98: 0 | W98: 00
C99: F0610040040002 | E99: F06 | F99: 10 | G99: 040 | H99: 400 | I99: 040 | J99: 400 | K99: 180 | L99: 91 | M99: 1.005 | N99: 1.3255 | O99: 10 | P99: 13 | Q99: 16.9 | S99: 626 | T99: 110 | U99: 2 | V99: 0 | W99: 00
C100: F0610040040003 | D100: Hygiene H | E100: F06 | F100: 10 | G100: 040 | H100: 400 | I100: 040 | J100: 400 | K100: 180 | L100: 91 | M100: 1.005 | N100: 1.3255 | O100: 10 | P100: 13 | Q100: 16.9 | S100: 626 | T100: 110 | U100: 3 | V100: 0 | W100: 00
C101: F061004004000D | E101: F06 | F101: 10 | G101: 040 | H101: 400 | I101: 040 | J101: 400 | K101: 180 | L101: 91 | M101: 1.005 | N101: 1.3255 | O101: 10 | P101: 13 | Q101: 16.9 | S101: 626 | T101: 110 | U101: D | V101: 0 | W101: 00
C102: F061004004000Q | E102: F06 | F102: 10 | G102: 040 | H102: 400 | I102: 040 | J102: 400 | K102: 180 | L102: 91 | M102: 1.005 | N102: 1.3255 | O102: 10 | P102: 13 | Q102: 16.9 | S102: 626 | T102: 110 | U102: Q | V102: 0 | W102: 00
C103: F061004004000U | E103: F06 | F103: 10 | G103: 040 | H103: 400 | I103: 040 | J103: 400 | K103: 180 | L103: 91 | M103: 1.005 | N103: 1.3255 | O103: 10 | P103: 13 | Q103: 16.9 | S103: 626 | T103: 110 | U103: U | V103: 0 | W103: 00
C104: F0610040050001 | E104: F06 | F104: 10 | G104: 040 | H104: 400 | I104: 050 | J104: 500 | K104: 225 | L104: 114 | M104: 1.257 | N104: 1.3255 | O104: 10 | P104: 13 | Q104: 16.9 | S104: 626 | T104: 110 | U104: 1 | V104: 0 | W104: 00
C105: F0610040050002 | E105: F06 | F105: 10 | G105: 040 | H105: 400 | I105: 050 | J105: 500 | K105: 225 | L105: 114 | M105: 1.257 | N105: 1.3255 | O105: 10 | P105: 13 | Q105: 16.9 | S105: 626 | T105: 110 | U105: 2 | V105: 0 | W105: 00
C106: F0610040050003 | D106: Hygiene H | E106: F06 | F106: 10 | G106: 040 | H106: 400 | I106: 050 | J106: 500 | K106: 225 | L106: 114 | M106: 1.257 | N106: 1.3255 | O106: 10 | P106: 13 | Q106: 16.9 | S106: 626 | T106: 110 | U106: 3 | V106: 0 | W106: 00
C107: F061004005000D | E107: F06 | F107: 10 | G107: 040 | H107: 400 | I107: 050 | J107: 500 | K107: 225 | L107: 114 | M107: 1.257 | N107: 1.3255 | O107: 10 | P107: 13 | Q107: 16.9 | S107: 626 | T107: 110 | U107: D | V107: 0 | W107: 00
C108: F061004005000Q | E108: F06 | F108: 10 | G108: 040 | H108: 400 | I108: 050 | J108: 500 | K108: 225 | L108: 114 | M108: 1.257 | N108: 1.3255 | O108: 10 | P108: 13 | Q108: 16.9 | S108: 626 | T108: 110 | U108: Q | V108: 0 | W108: 00
C109: F061004005000U | E109: F06 | F109: 10 | G109: 040 | H109: 400 | I109: 050 | J109: 500 | K109: 225 | L109: 114 | M109: 1.257 | N109: 1.3255 | O109: 10 | P109: 13 | Q109: 16.9 | S109: 626 | T109: 110 | U109: U | V109: 0 | W109: 00
C110: F0610040060001 | E110: F06 | F110: 10 | G110: 040 | H110: 400 | I110: 060 | J110: 600 | K110: 269 | L110: 137 | M110: 1.508 | N110: 1.3255 | O110: 10 | P110: 13 | Q110: 16.9 | S110: 626 | T110: 110 | U110: 1 | V110: 0 | W110: 00
C111: F0610040060002 | E111: F06 | F111: 10 | G111: 040 | H111: 400 | I111: 060 | J111: 600 | K111: 269 | L111: 137 | M111: 1.508 | N111: 1.3255 | O111: 10 | P111: 13 | Q111: 16.9 | S111: 626 | T111: 110 | U111: 2 | V111: 0 | W111: 00
C112: F0610040060003 | D112: Hygiene H | E112: F06 | F112: 10 | G112: 040 | H112: 400 | I112: 060 | J112: 600 | K112: 269 | L112: 137 | M112: 1.508 | N112: 1.3255 | O112: 10 | P112: 13 | Q112: 16.9 | S112: 626 | T112: 110 | U112: 3 | V112: 0 | W112: 00
C113: F061004006000D | E113: F06 | F113: 10 | G113: 040 | H113: 400 | I113: 060 | J113: 600 | K113: 269 | L113: 137 | M113: 1.508 | N113: 1.3255 | O113: 10 | P113: 13 | Q113: 16.9 | S113: 626 | T113: 110 | U113: D | V113: 0 | W113: 00
C114: F061004006000Q | E114: F06 | F114: 10 | G114: 040 | H114: 400 | I114: 060 | J114: 600 | K114: 269 | L114: 137 | M114: 1.508 | N114: 1.3255 | O114: 10 | P114: 13 | Q114: 16.9 | S114: 626 | T114: 110 | U114: Q | V114: 0 | W114: 00
C115: F061004006000U | E115: F06 | F115: 10 | G115: 040 | H115: 400 | I115: 060 | J115: 600 | K115: 269 | L115: 137 | M115: 1.508 | N115: 1.3255 | O115: 10 | P115: 13 | Q115: 16.9 | S115: 626 | T115: 110 | U115: U | V115: 0 | W115: 00
C116: F0610040070001 | E116: F06 | F116: 10 | G116: 040 | H116: 400 | I116: 070 | J116: 700 | K116: 314 | L116: 160 | M116: 1.759 | N116: 1.3255 | O116: 10 | P116: 13 | Q116: 16.9 | S116: 626 | T116: 110 | U116: 1 | V116: 0 | W116: 00
C117: F0610040070002 | E117: F06 | F117: 10 | G117: 040 | H117: 400 | I117: 070 | J117: 700 | K117: 314 | L117: 160 | M117: 1.759 | N117: 1.3255 | O117: 10 | P117: 13 | Q117: 16.9 | S117: 626 | T117: 110 | U117: 2 | V117: 0 | W117: 00
C118: F0610040070003 | D118: Hygiene H | E118: F06 | F118: 10 | G118: 040 | H118: 400 | I118: 070 | J118: 700 | K118: 314 | L118: 160 | M118: 1.759 | N118: 1.3255 | O118: 10 | P118: 13 | Q118: 16.9 | S118: 626 | T118: 110 | U118: 3 | V118: 0 | W118: 00
C119: F061004007000D | E119: F06 | F119: 10 | G119: 040 | H119: 400 | I119: 070 | J119: 700 | K119: 314 | L119: 160 | M119: 1.759 | N119: 1.3255 | O119: 10 | P119: 13 | Q119: 16.9 | S119: 626 | T119: 110 | U119: D | V119: 0 | W119: 00
C120: F061004007000Q | E120: F06 | F120: 10 | G120: 040 | H120: 400 | I120: 070 | J120: 700 | K120: 314 | L120: 160 | M120: 1.759 | N120: 1.3255 | O120: 10 | P120: 13 | Q120: 16.9 | S120: 626 | T120: 110 | U120: Q | V120: 0 | W120: 00
C121: F061004007000U | E121: F06 | F121: 10 | G121: 040 | H121: 400 | I121: 070 | J121: 700 | K121: 314 | L121: 160 | M121: 1.759 | N121: 1.3255 | O121: 10 | P121: 13 | Q121: 16.9 | S121: 626 | T121: 110 | U121: U | V121: 0 | W121: 00
C122: F0610040080001 | E122: F06 | F122: 10 | G122: 040 | H122: 400 | I122: 080 | J122: 800 | K122: 359 | L122: 183 | M122: 2.011 | N122: 1.3255 | O122: 10 | P122: 13 | Q122: 16.9 | S122: 626 | T122: 110 | U122: 1 | V122: 0 | W122: 00
C123: F0610040080002 | E123: F06 | F123: 10 | G123: 040 | H123: 400 | I123: 080 | J123: 800 | K123: 359 | L123: 183 | M123: 2.011 | N123: 1.3255 | O123: 10 | P123: 13 | Q123: 16.9 | S123: 626 | T123: 110 | U123: 2 | V123: 0 | W123: 00
C124: F0610040080003 | D124: Hygiene H | E124: F06 | F124: 10 | G124: 040 | H124: 400 | I124: 080 | J124: 800 | K124: 359 | L124: 183 | M124: 2.011 | N124: 1.3255 | O124: 10 | P124: 13 | Q124: 16.9 | S124: 626 | T124: 110 | U124: 3 | V124: 0 | W124: 00
C125: F061004008000D | E125: F06 | F125: 10 | G125: 040 | H125: 400 | I125: 080 | J125: 800 | K125: 359 | L125: 183 | M125: 2.011 | N125: 1.3255 | O125: 10 | P125: 13 | Q125: 16.9 | S125: 626 | T125: 110 | U125: D | V125: 0 | W125: 00
C126: F061004008000Q | E126: F06 | F126: 10 | G126: 040 | H126: 400 | I126: 080 | J126: 800 | K126: 359 | L126: 183 | M126: 2.011 | N126: 1.3255 | O126: 10 | P126: 13 | Q126: 16.9 | S126: 626 | T126: 110 | U126: Q | V126: 0 | W126: 00
C127: F061004008000U | E127: F06 | F127: 10 | G127: 040 | H127: 400 | I127: 080 | J127: 800 | K127: 359 | L127: 183 | M127: 2.011 | N127: 1.3255 | O127: 10 | P127: 13 | Q127: 16.9 | S127: 626 | T127: 110 | U127: U | V127: 0 | W127: 00
C128: F0610040090001 | E128: F06 | F128: 10 | G128: 040 | H128: 400 | I128: 090 | J128: 900 | K128: 404 | L128: 205 | M128: 2.262 | N128: 1.3255 | O128: 10 | P128: 13 | Q128: 16.9 | S128: 626 | T128: 110 | U128: 1 | V128: 0 | W128: 00
C129: F0610040090002 | E129: F06 | F129: 10 | G129: 040 | H129: 400 | I129: 090 | J129: 900 | K129: 404 | L129: 205 | M129: 2.262 | N129: 1.3255 | O129: 10 | P129: 13 | Q129: 16.9 | S129: 626 | T129: 110 | U129: 2 | V129: 0 | W129: 00
C130: F0610040090003 | D130: Hygiene H | E130: =LEFT(C130,3) -> F06 | F130: 10 | G130: =RIGHT(LEFT(C130,8),3) -> 040 | H130: 400 | I130: =RIGHT(LEFT(C130,11),3) -> 090 | J130: 900 | K130: 404 | L130: 205 | M130: 2.262 | N130: 1.3255 | O130: 10 | P130: 13 | Q130: 16.9 | S130: 626 | T130: 110 | U130: 3 | V130: 0 | W130: 00
C131: F061004009000D | E131: F06 | F131: =IF(AND(RIGHT(LEFT(C131,5),2)="21",LEFT(C131,2)="F0"),_xlfn.CONCAT(RIGHT(LEFT(C131,5),2),"s"),RIGHT(LEFT(C131,5),2)) -> 10 | G131: 040 | H131: =G131*10 -> 400 | I131: 090 | J131: =I131*10 -> 900 | K131: 404 | L131: 205 | M131: 2.262 | N131: 1.3255 | O131: 10 | P131: 13 | Q131: 16.9 | S131: 626 | T131: 110 | U131: =RIGHT(C131,1) -> D | V131: =RIGHT(LEFT(C131,13),1) -> 0 | W131: =RIGHT(LEFT(C131,13),2) -> 00
C132: F061004009000Q | E132: F06 | F132: 10 | G132: 040 | H132: 400 | I132: 090 | J132: 900 | K132: 404 | L132: 205 | M132: 2.262 | N132: 1.3255 | O132: 10 | P132: 13 | Q132: 16.9 | S132: 626 | T132: 110 | U132: Q | V132: 0 | W132: 00
C133: F061004009000U | E133: F06 | F133: 10 | G133: 040 | H133: 400 | I133: 090 | J133: 900 | K133: 404 | L133: 205 | M133: 2.262 | N133: 1.3255 | O133: 10 | P133: 13 | Q133: 16.9 | S133: 626 | T133: 110 | U133: U | V133: 0 | W133: 00
C134: F0610040100001 | E134: F06 | F134: 10 | G134: 040 | H134: 400 | I134: 100 | J134: 1000 | K134: 449 | L134: 228 | M134: 2.513 | N134: 1.3255 | O134: 10 | P134: 13 | Q134: 16.9 | S134: 626 | T134: 110 | U134: 1 | V134: 0 | W134: 00
C135: F0610040100002 | E135: F06 | F135: 10 | G135: 040 | H135: 400 | I135: 100 | J135: 1000 | K135: 449 | L135: 228 | M135: 2.513 | N135: 1.3255 | O135: 10 | P135: 13 | Q135: 16.9 | S135: 626 | T135: 110 | U135: 2 | V135: 0 | W135: 00
C136: F0610040100003 | D136: Hygiene H | E136: F06 | F136: 10 | G136: 040 | H136: 400 | I136: 100 | J136: 1000 | K136: 449 | L136: 228 | M136: 2.513 | N136: 1.3255 | O136: 10 | P136: 13 | Q136: 16.9 | S136: 626 | T136: 110 | U136: 3 | V136: 0 | W136: 00
C137: F061004010000D | E137: F06 | F137: 10 | G137: 040 | H137: 400 | I137: 100 | J137: 1000 | K137: 449 | L137: 228 | M137: 2.513 | N137: 1.3255 | O137: 10 | P137: 13 | Q137: 16.9 | S137: 626 | T137: 110 | U137: D | V137: 0 | W137: 00
C138: F061004010000Q | E138: F06 | F138: 10 | G138: 040 | H138: 400 | I138: 100 | J138: 1000 | K138: 449 | L138: 228 | M138: 2.513 | N138: 1.3255 | O138: 10 | P138: 13 | Q138: 16.9 | S138: 626 | T138: 110 | U138: Q | V138: 0 | W138: 00
C139: F061004010000U | E139: F06 | F139: 10 | G139: 040 | H139: 400 | I139: 100 | J139: 1000 | K139: 449 | L139: 228 | M139: 2.513 | N139: 1.3255 | O139: 10 | P139: 13 | Q139: 16.9 | S139: 626 | T139: 110 | U139: U | V139: 0 | W139: 00
C140: F0610040110001 | E140: F06 | F140: 10 | G140: 040 | H140: 400 | I140: 110 | J140: 1100 | K140: 494 | L140: 251 | M140: 2.765 | N140: 1.3255 | O140: 10 | P140: 13 | Q140: 16.9 | S140: 626 | T140: 110 | U140: 1 | V140: 0 | W140: 00
C141: F0610040110002 | E141: F06 | F141: 10 | G141: 040 | H141: 400 | I141: 110 | J141: 1100 | K141: 494 | L141: 251 | M141: 2.765 | N141: 1.3255 | O141: 10 | P141: 13 | Q141: 16.9 | S141: 626 | T141: 110 | U141: 2 | V141: 0 | W141: 00
C142: F0610040110003 | D142: Hygiene H | E142: F06 | F142: 10 | G142: 040 | H142: 400 | I142: 110 | J142: 1100 | K142: 494 | L142: 251 | M142: 2.765 | N142: 1.3255 | O142: 10 | P142: 13 | Q142: 16.9 | S142: 626 | T142: 110 | U142: 3 | V142: 0 | W142: 00
C143: F061004011000D | E143: F06 | F143: 10 | G143: 040 | H143: 400 | I143: 110 | J143: 1100 | K143: 494 | L143: 251 | M143: 2.765 | N143: 1.3255 | O143: 10 | P143: 13 | Q143: 16.9 | S143: 626 | T143: 110 | U143: D | V143: 0 | W143: 00
C144: F061004011000Q | E144: F06 | F144: 10 | G144: 040 | H144: 400 | I144: 110 | J144: 1100 | K144: 494 | L144: 251 | M144: 2.765 | N144: 1.3255 | O144: 10 | P144: 13 | Q144: 16.9 | S144: 626 | T144: 110 | U144: Q | V144: 0 | W144: 00
C145: F061004011000U | E145: F06 | F145: 10 | G145: 040 | H145: 400 | I145: 110 | J145: 1100 | K145: 494 | L145: 251 | M145: 2.765 | N145: 1.3255 | O145: 10 | P145: 13 | Q145: 16.9 | S145: 626 | T145: 110 | U145: U | V145: 0 | W145: 00
C146: F0610040120001 | E146: F06 | F146: 10 | G146: 040 | H146: 400 | I146: 120 | J146: 1200 | K146: 539 | L146: 274 | M146: 3.016 | N146: 1.3255 | O146: 10 | P146: 13 | Q146: 16.9 | S146: 626 | T146: 110 | U146: 1 | V146: 0 | W146: 00
C147: F0610040120002 | E147: F06 | F147: 10 | G147: 040 | H147: 400 | I147: 120 | J147: 1200 | K147: 539 | L147: 274 | M147: 3.016 | N147: 1.3255 | O147: 10 | P147: 13 | Q147: 16.9 | S147: 626 | T147: 110 | U147: 2 | V147: 0 | W147: 00
C148: F0610040120003 | D148: Hygiene H | E148: F06 | F148: 10 | G148: 040 | H148: 400 | I148: 120 | J148: 1200 | K148: 539 | L148: 274 | M148: 3.016 | N148: 1.3255 | O148: 10 | P148: 13 | Q148: 16.9 | S148: 626 | T148: 110 | U148: 3 | V148: 0 | W148: 00
C149: F061004012000D | E149: F06 | F149: 10 | G149: 040 | H149: 400 | I149: 120 | J149: 1200 | K149: 539 | L149: 274 | M149: 3.016 | N149: 1.3255 | O149: 10 | P149: 13 | Q149: 16.9 | S149: 626 | T149: 110 | U149: D | V149: 0 | W149: 00
C150: F061004012000Q | E150: F06 | F150: 10 | G150: 040 | H150: 400 | I150: 120 | J150: 1200 | K150: 539 | L150: 274 | M150: 3.016 | N150: 1.3255 | O150: 10 | P150: 13 | Q150: 16.9 | S150: 626 | T150: 110 | U150: Q | V150: 0 | W150: 00
C151: F061004012000U | E151: F06 | F151: 10 | G151: 040 | H151: 400 | I151: 120 | J151: 1200 | K151: 539 | L151: 274 | M151: 3.016 | N151: 1.3255 | O151: 10 | P151: 13 | Q151: 16.9 | S151: 626 | T151: 110 | U151: U | V151: 0 | W151: 00
C152: F0610040130001 | E152: F06 | F152: 10 | G152: 040 | H152: 400 | I152: 130 | J152: 1300 | K152: 584 | L152: 297 | M152: 3.267 | N152: 1.3255 | O152: 10 | P152: 13 | Q152: 16.9 | S152: 626 | T152: 110 | U152: 1 | V152: 0 | W152: 00
C153: F0610040130003 | D153: Hygiene H | E153: F06 | F153: 10 | G153: 040 | H153: 400 | I153: 130 | J153: 1300 | K153: 584 | L153: 297 | M153: 3.267 | N153: 1.3255 | O153: 10 | P153: 13 | Q153: 16.9 | S153: 626 | T153: 110 | U153: 3 | V153: 0 | W153: 00
C154: F061004013000D | E154: F06 | F154: 10 | G154: 040 | H154: 400 | I154: 130 | J154: 1300 | K154: 584 | L154: 297 | M154: 3.267 | N154: 1.3255 | O154: 10 | P154: 13 | Q154: 16.9 | S154: 626 | T154: 110 | U154: D | V154: 0 | W154: 00
C155: F0610040140001 | E155: F06 | F155: 10 | G155: 040 | H155: 400 | I155: 140 | J155: 1400 | K155: 629 | L155: 319 | M155: 3.519 | N155: 1.3255 | O155: 10 | P155: 13 | Q155: 16.9 | S155: 626 | T155: 110 | U155: 1 | V155: 0 | W155: 00
C156: F0610040140002 | E156: F06 | F156: 10 | G156: 040 | H156: 400 | I156: 140 | J156: 1400 | K156: 629 | L156: 319 | M156: 3.519 | N156: 1.3255 | O156: 10 | P156: 13 | Q156: 16.9 | S156: 626 | T156: 110 | U156: 2 | V156: 0 | W156: 00
C157: F0610040140003 | D157: Hygiene H | E157: F06 | F157: 10 | G157: 040 | H157: 400 | I157: 140 | J157: 1400 | K157: 629 | L157: 319 | M157: 3.519 | N157: 1.3255 | O157: 10 | P157: 13 | Q157: 16.9 | S157: 626 | T157: 110 | U157: 3 | V157: 0 | W157: 00
C158: F061004014000D | E158: F06 | F158: 10 | G158: 040 | H158: 400 | I158: 140 | J158: 1400 | K158: 629 | L158: 319 | M158: 3.519 | N158: 1.3255 | O158: 10 | P158: 13 | Q158: 16.9 | S158: 626 | T158: 110 | U158: D | V158: 0 | W158: 00
C159: F061004014000Q | E159: F06 | F159: 10 | G159: 040 | H159: 400 | I159: 140 | J159: 1400 | K159: 629 | L159: 319 | M159: 3.519 | N159: 1.3255 | O159: 10 | P159: 13 | Q159: 16.9 | S159: 626 | T159: 110 | U159: Q | V159: 0 | W159: 00
C160: F061004014000U | E160: F06 | F160: 10 | G160: 040 | H160: 400 | I160: 140 | J160: 1400 | K160: 629 | L160: 319 | M160: 3.519 | N160: 1.3255 | O160: 10 | P160: 13 | Q160: 16.9 | S160: 626 | T160: 110 | U160: U | V160: 0 | W160: 00
C161: F0610040160001 | E161: F06 | F161: 10 | G161: 040 | H161: 400 | I161: 160 | J161: 1600 | K161: 718 | L161: 365 | M161: 4.021 | N161: 1.3255 | O161: 10 | P161: 13 | Q161: 16.9 | S161: 626 | T161: 110 | U161: 1 | V161: 0 | W161: 00
C162: F0610040160002 | E162: F06 | F162: 10 | G162: 040 | H162: 400 | I162: 160 | J162: 1600 | K162: 718 | L162: 365 | M162: 4.021 | N162: 1.3255 | O162: 10 | P162: 13 | Q162: 16.9 | S162: 626 | T162: 110 | U162: 2 | V162: 0 | W162: 00
C163: F0610040160003 | D163: Hygiene H | E163: F06 | F163: 10 | G163: 040 | H163: 400 | I163: 160 | J163: 1600 | K163: 718 | L163: 365 | M163: 4.021 | N163: 1.3255 | O163: 10 | P163: 13 | Q163: 16.9 | S163: 626 | T163: 110 | U163: 3 | V163: 0 | W163: 00
C164: F061004016000D | E164: F06 | F164: 10 | G164: 040 | H164: 400 | I164: 160 | J164: 1600 | K164: 718 | L164: 365 | M164: 4.021 | N164: 1.3255 | O164: 10 | P164: 13 | Q164: 16.9 | S164: 626 | T164: 110 | U164: D | V164: 0 | W164: 00
C165: F061004016000Q | E165: F06 | F165: 10 | G165: 040 | H165: 400 | I165: 160 | J165: 1600 | K165: 718 | L165: 365 | M165: 4.021 | N165: 1.3255 | O165: 10 | P165: 13 | Q165: 16.9 | S165: 626 | T165: 110 | U165: Q | V165: 0 | W165: 00
C166: F061004016000U | E166: F06 | F166: 10 | G166: 040 | H166: 400 | I166: 160 | J166: 1600 | K166: 718 | L166: 365 | M166: 4.021 | N166: 1.3255 | O166: 10 | P166: 13 | Q166: 16.9 | S166: 626 | T166: 110 | U166: U | V166: 0 | W166: 00
C167: F0610040180001 | E167: F06 | F167: 10 | G167: 040 | H167: 400 | I167: 180 | J167: 1800 | K167: 808 | L167: 411 | M167: 4.524 | N167: 1.3255 | O167: 10 | P167: 13 | Q167: 16.9 | S167: 626 | T167: 110 | U167: 1 | V167: 0 | W167: 00
C168: F0610040180002 | E168: F06 | F168: 10 | G168: 040 | H168: 400 | I168: 180 | J168: 1800 | K168: 808 | L168: 411 | M168: 4.524 | N168: 1.3255 | O168: 10 | P168: 13 | Q168: 16.9 | S168: 626 | T168: 110 | U168: 2 | V168: 0 | W168: 00
C169: F0610040180003 | D169: Hygiene H | E169: F06 | F169: 10 | G169: 040 | H169: 400 | I169: 180 | J169: 1800 | K169: 808 | L169: 411 | M169: 4.524 | N169: 1.3255 | O169: 10 | P169: 13 | Q169: 16.9 | S169: 626 | T169: 110 | U169: 3 | V169: 0 | W169: 00
C170: F061004018000D | E170: F06 | F170: 10 | G170: 040 | H170: 400 | I170: 180 | J170: 1800 | K170: 808 | L170: 411 | M170: 4.524 | N170: 1.3255 | O170: 10 | P170: 13 | Q170: 16.9 | S170: 626 | T170: 110 | U170: D | V170: 0 | W170: 00
C171: F061004018000Q | E171: F06 | F171: 10 | G171: 040 | H171: 400 | I171: 180 | J171: 1800 | K171: 808 | L171: 411 | M171: 4.524 | N171: 1.3255 | O171: 10 | P171: 13 | Q171: 16.9 | S171: 626 | T171: 110 | U171: Q | V171: 0 | W171: 00
C172: F061004018000U | E172: F06 | F172: 10 | G172: 040 | H172: 400 | I172: 180 | J172: 1800 | K172: 808 | L172: 411 | M172: 4.524 | N172: 1.3255 | O172: 10 | P172: 13 | Q172: 16.9 | S172: 626 | T172: 110 | U172: U | V172: 0 | W172: 00
C173: F0610040200001 | E173: F06 | F173: 10 | G173: 040 | H173: 400 | I173: 200 | J173: 2000 | K173: 898 | L173: 456 | M173: 5.027 | N173: 1.3255 | O173: 10 | P173: 13 | Q173: 16.9 | S173: 626 | T173: 110 | U173: 1 | V173: 0 | W173: 00
C174: F0610040200003 | D174: Hygiene H | E174: F06 | F174: 10 | G174: 040 | H174: 400 | I174: 200 | J174: 2000 | K174: 898 | L174: 456 | M174: 5.027 | N174: 1.3255 | O174: 10 | P174: 13 | Q174: 16.9 | S174: 626 | T174: 110 | U174: 3 | V174: 0 | W174: 00
C175: F061004020000D | E175: F06 | F175: 10 | G175: 040 | H175: 400 | I175: 200 | J175: 2000 | K175: 898 | L175: 456 | M175: 5.027 | N175: 1.3255 | O175: 10 | P175: 13 | Q175: 16.9 | S175: 626 | T175: 110 | U175: D | V175: 0 | W175: 00
C176: F061004020000Q | E176: F06 | F176: 10 | G176: 040 | H176: 400 | I176: 200 | J176: 2000 | K176: 898 | L176: 456 | M176: 5.027 | N176: 1.3255 | O176: 10 | P176: 13 | Q176: 16.9 | S176: 626 | T176: 110 | U176: Q | V176: 0 | W176: 00
C177: F061004020000U | E177: F06 | F177: 10 | G177: 040 | H177: 400 | I177: 200 | J177: 2000 | K177: 898 | L177: 456 | M177: 5.027 | N177: 1.3255 | O177: 10 | P177: 13 | Q177: 16.9 | S177: 626 | T177: 110 | U177: U | V177: 0 | W177: 00
C178: F0610040230001 | E178: F06 | F178: 10 | G178: 040 | H178: 400 | I178: 230 | J178: 2300 | K178: 1033 | L178: 525 | M178: 5.781 | N178: 1.3255 | O178: 10 | P178: 13 | Q178: 16.9 | S178: 626 | T178: 110 | U178: 1 | V178: 0 | W178: 00
C179: F0610040230003 | D179: Hygiene H | E179: F06 | F179: 10 | G179: 040 | H179: 400 | I179: 230 | J179: 2300 | K179: 1033 | L179: 525 | M179: 5.781 | N179: 1.3255 | O179: 10 | P179: 13 | Q179: 16.9 | S179: 626 | T179: 110 | U179: 3 | V179: 0 | W179: 00
C180: F061004023000D | E180: F06 | F180: 10 | G180: 040 | H180: 400 | I180: 230 | J180: 2300 | K180: 1033 | L180: 525 | M180: 5.781 | N180: 1.3255 | O180: 10 | P180: 13 | Q180: 16.9 | S180: 626 | T180: 110 | U180: D | V180: 0 | W180: 00
C181: F061004023000Q | E181: F06 | F181: 10 | G181: 040 | H181: 400 | I181: 230 | J181: 2300 | K181: 1033 | L181: 525 | M181: 5.781 | N181: 1.3255 | O181: 10 | P181: 13 | Q181: 16.9 | S181: 626 | T181: 110 | U181: Q | V181: 0 | W181: 00
C182: F061004023000U | E182: F06 | F182: 10 | G182: 040 | H182: 400 | I182: 230 | J182: 2300 | K182: 1033 | L182: 525 | M182: 5.781 | N182: 1.3255 | O182: 10 | P182: 13 | Q182: 16.9 | S182: 626 | T182: 110 | U182: U | V182: 0 | W182: 00
C183: F0610040260001 | E183: F06 | F183: 10 | G183: 040 | H183: 400 | I183: 260 | J183: 2600 | K183: 1167 | L183: 593 | M183: 6.535 | N183: 1.3255 | O183: 10 | P183: 13 | Q183: 16.9 | S183: 626 | T183: 110 | U183: 1 | V183: 0 | W183: 00
C184: F0610040260003 | D184: Hygiene H | E184: F06 | F184: 10 | G184: 040 | H184: 400 | I184: 260 | J184: 2600 | K184: 1167 | L184: 593 | M184: 6.535 | N184: 1.3255 | O184: 10 | P184: 13 | Q184: 16.9 | S184: 626 | T184: 110 | U184: 3 | V184: 0 | W184: 00
C185: F061004026000D | E185: F06 | F185: 10 | G185: 040 | H185: 400 | I185: 260 | J185: 2600 | K185: 1167 | L185: 593 | M185: 6.535 | N185: 1.3255 | O185: 10 | P185: 13 | Q185: 16.9 | S185: 626 | T185: 110 | U185: D | V185: 0 | W185: 00
C186: F061004026000Q | E186: F06 | F186: 10 | G186: 040 | H186: 400 | I186: 260 | J186: 2600 | K186: 1167 | L186: 593 | M186: 6.535 | N186: 1.3255 | O186: 10 | P186: 13 | Q186: 16.9 | S186: 626 | T186: 110 | U186: Q | V186: 0 | W186: 00
C187: F061004026000U | E187: F06 | F187: 10 | G187: 040 | H187: 400 | I187: 260 | J187: 2600 | K187: 1167 | L187: 593 | M187: 6.535 | N187: 1.3255 | O187: 10 | P187: 13 | Q187: 16.9 | S187: 626 | T187: 110 | U187: U | V187: 0 | W187: 00
C188: F0610040300001 | E188: F06 | F188: 10 | G188: 040 | H188: 400 | I188: 300 | J188: 3000 | K188: 1347 | L188: 684 | M188: 7.54 | N188: 1.3255 | O188: 10 | P188: 13 | Q188: 16.9 | S188: 626 | T188: 110 | U188: 1 | V188: 0 | W188: 00
C189: F0610040300003 | D189: Hygiene H | E189: F06 | F189: 10 | G189: 040 | H189: 400 | I189: 300 | J189: 3000 | K189: 1347 | L189: 684 | M189: 7.54 | N189: 1.3255 | O189: 10 | P189: 13 | Q189: 16.9 | S189: 626 | T189: 110 | U189: 3 | V189: 0 | W189: 00
C190: F061004030000D | E190: F06 | F190: 10 | G190: 040 | H190: 400 | I190: 300 | J190: 3000 | K190: 1347 | L190: 684 | M190: 7.54 | N190: 1.3255 | O190: 10 | P190: 13 | Q190: 16.9 | S190: 626 | T190: 110 | U190: D | V190: 0 | W190: 00
C191: F061004030000Q | E191: F06 | F191: 10 | G191: 040 | H191: 400 | I191: 300 | J191: 3000 | K191: 1347 | L191: 684 | M191: 7.54 | N191: 1.3255 | O191: 10 | P191: 13 | Q191: 16.9 | S191: 626 | T191: 110 | U191: Q | V191: 0 | W191: 00
C192: F061004030000U | E192: F06 | F192: 10 | G192: 040 | H192: 400 | I192: 300 | J192: 3000 | K192: 1347 | L192: 684 | M192: 7.54 | N192: 1.3255 | O192: 10 | P192: 13 | Q192: 16.9 | S192: 626 | T192: 110 | U192: U | V192: 0 | W192: 00
C193: F0610045040001 | E193: F06 | F193: 10 | G193: 045 | H193: 450 | I193: 040 | J193: 400 | K193: 199 | L193: 102 | M193: 1.152 | N193: 1.3171 | O193: 10 | P193: 13 | Q193: 16.9 | S193: 626 | T193: 110 | U193: 1 | V193: 0 | W193: 00
C194: F0610045040003 | D194: Hygiene H | E194: =LEFT(C194,3) -> F06 | F194: 10 | G194: =RIGHT(LEFT(C194,8),3) -> 045 | H194: 450 | I194: =RIGHT(LEFT(C194,11),3) -> 040 | J194: 400 | K194: 199 | L194: 102 | M194: 1.152 | N194: 1.3171 | O194: 10 | P194: 13 | Q194: 16.9 | S194: 626 | T194: 110 | U194: 3 | V194: 0 | W194: 00
C195: F061004504000D | E195: F06 | F195: =IF(AND(RIGHT(LEFT(C195,5),2)="21",LEFT(C195,2)="F0"),_xlfn.CONCAT(RIGHT(LEFT(C195,5),2),"s"),RIGHT(LEFT(C195,5),2)) -> 10 | G195: 045 | H195: =G195*10 -> 450 | I195: 040 | J195: =I195*10 -> 400 | K195: 199 | L195: 102 | M195: 1.152 | N195: 1.3171 | O195: 10 | P195: 13 | Q195: 16.9 | S195: 626 | T195: 110 | U195: =RIGHT(C195,1) -> D | V195: =RIGHT(LEFT(C195,13),1) -> 0 | W195: =RIGHT(LEFT(C195,13),2) -> 00
C196: F061004504000Q | E196: F06 | F196: 10 | G196: 045 | H196: 450 | I196: 040 | J196: 400 | K196: 199 | L196: 102 | M196: 1.152 | N196: 1.3171 | O196: 10 | P196: 13 | Q196: 16.9 | S196: 626 | T196: 110 | U196: Q | V196: 0 | W196: 00
C197: F0610045050001 | E197: F06 | F197: 10 | G197: 045 | H197: 450 | I197: 050 | J197: 500 | K197: 249 | L197: 127 | M197: 1.44 | N197: 1.3171 | O197: 10 | P197: 13 | Q197: 16.9 | S197: 626 | T197: 110 | U197: 1 | V197: 0 | W197: 00
C198: F0610045050003 | D198: Hygiene H | E198: F06 | F198: 10 | G198: 045 | H198: 450 | I198: 050 | J198: 500 | K198: 249 | L198: 127 | M198: 1.44 | N198: 1.3171 | O198: 10 | P198: 13 | Q198: 16.9 | S198: 626 | T198: 110 | U198: 3 | V198: 0 | W198: 00
C199: F061004505000D | E199: F06 | F199: 10 | G199: 045 | H199: 450 | I199: 050 | J199: 500 | K199: 249 | L199: 127 | M199: 1.44 | N199: 1.3171 | O199: 10 | P199: 13 | Q199: 16.9 | S199: 626 | T199: 110 | U199: D | V199: 0 | W199: 00
C200: F061004505000Q | E200: F06 | F200: 10 | G200: 045 | H200: 450 | I200: 050 | J200: 500 | K200: 249 | L200: 127 | M200: 1.44 | N200: 1.3171 | O200: 10 | P200: 13 | Q200: 16.9 | S200: 626 | T200: 110 | U200: Q | V200: 0 | W200: 00
... 2050 more rows

Sheet Arkusz2
A1: 01_03_2024
A5: INWESTYCJA :
A7: ADRES :
A8: Kod pocztowy / Miasto :
A9: Ilość grz. płytowych : | C9: =SUMIF(B27:B999,"=F0*",E27:E999)+SUMIF(B27:B999,"=FM*",E27:E999)+SUMIF(B27:B999,"=F9T*",E27:E999)+SUMIF(B27:B999,"=F25*",E27:E999) -> 0 | E9: Nr oferty : | G9: =G11 -> 45332
A10: Ilość grz. płytowych 200mm: | C10: =SUMIF(B27:B999,"=F0????20*",E27:E999) -> 0 | E10: Nr inwestycji : | G10: =IF(G14="Arkadiusz Raczyński","ARA / ","")&IF(G14="Bogusław Kwiecień","BKW / ","")&IF(G14="Dariusz Prochota","DPR / ","")&IF(G14="Jacek Matys","JMA / ","")&IF(G14="Sebastian Kamiński","SKA / ","")&IF(G14="Maciej Sadowski","MSA / ","")&IF(G14="Jan Witkowski","JWI / ","")&IF(G14="Gracjan Rudnicki","GRU / ","")&IF(G14="Wojciech Strzępka","WST / ","")&IF(G14="Grzegorz Błochowicz","GBL / ","") -> JMA / | I10: =" / " & RIGHT(YEAR(TODAY()),2) -> / 24
A11: Ilość grz. kolumnowych : | C11: =SUMIF(B27:B999,"=F90*",E27:E999)+SUMIF(B27:B999,"=F91*",E27:E999)+SUMIF(B27:B999,"=F92*",E27:E999)+SUMIF(B27:B999,"=F94*",E27:E999)+SUMIF(B27:B999,"=F95*",E27:E999) -> 0 | E11: Data : | G11: =TODAY() -> 2024-02-10
A12: Ilość grz. dekoracyjnych : | C12: =SUMIF(B27:B999,"=F83*",E27:E999)+SUMIF(B27:B999,"=F86*",E27:E999)+SUMIF(B27:B999,"=F88*",E27:E999)+SUMIF(B27:B999,"=F85*",E27:E999)+SUMIF(B27:B999,"=F87*",E27:E999)+SUMIF(B27:B999,"=F89*",E27:E999)+SUMIF(B27:B999,"=F29*",E27:E999)+SUMIF(B27:B999,"=F28*",E27:E999)+SUMIF(B27:B999,"=F2U*",E27:E999)+SUMIF(B27:B999,"=F2V*",E27:E999)+SUMIF(B27:B999,"=F26*",E27:E999)+SUMIF(B27:B999,"=F27*",E27:E999)+SUMIF(B27:B999,"=F17*",E27:E999) -> 0
A13: Ilość grz. pion. dekoracyj. : | C13: =SUMIF(B27:B999,"=F25*",E27:E999)+SUMIF(B27:B999,"=F29*",E27:E999)+SUMIF(B27:B999,"=F28*",E27:E999)+SUMIF(B27:B999,"=F2U*",E27:E999)+SUMIF(B27:B999,"=F2V*",E27:E999) -> 0 | E13: Nazwa firmy : | G13: Inny
A14: Ilość grz. poz. dekoracyjnych : | C14: =SUMIF(B27:B999,"=F26*",E27:E999)+SUMIF(B27:B999,"=F27*",E27:E999) -> 0 | E14: ASM: | G14: Jacek Matys
A15: Ilość grz. kanałowych : | C15: =SUMIF(B27:B999,"=F9WFMK*",E27:E999)+SUMIF(B27:B999,"=F9WF1T*",E27:E999)+SUMIF(B27:B999,"=F9WF1P*",E27:E999)+SUMIF(B27:B999,"=F9WF2C*",E27:E999)+SUMIF(B27:B999,"=F9WF4C*",E27:E999)+SUMIF(B27:B999,"=FHQFMS*",E27:E999)+SUMIF(B27:B999,"=FHRF1S*",E27:E999)+SUMIF(B27:B999,"=FHRF2C*",E27:E999)+SUMIF(B27:B999,"=FHRF2V*",E27:E999)+SUMIF(B27:B999,"=FHRF4C*",E27:E999)+SUMIF(B27:B999,"=FHRF4V*",E27:E999) -> 0 | E15: Przygotował : | G15: Tomasz Podleś
A16: Ilość grz. łazienkowych : | C16: =SUMIF(B27:B999,"=F3*",E27:E999)+SUMIF(B27:B999,"=F4*",E27:E999)+SUMIF(B27:B999,"=F8G*",E27:E999)+SUMIF(B27:B999,"=F8F*",E27:E999)+SUMIF(B27:B999,"=F8M*",E27:E999)+SUMIF(B27:B999,"=F8J*",E27:E999)+SUMIF(B27:B999,"=F5YA*",E27:E999)+SUMIF(B27:B999,"=F96*",E27:E999)+SUMIF(B27:B999,"=F5TA*",E27:E999)+SUMIF(B27:B999,"=F5TE*",E27:E999)+SUMIF(B27:B999,"=F5UA*",E27:E999)+SUMIF(B27:B999,"=F5UE*",E27:E999) -> 0
A17: Ilość grz. elektrycznych : | C17: =SUMIF(B27:B999,"=FE*",E27:E999)+SUMIF(B27:B999,"=FAK*",E27:E999)+SUMIF(B27:B999,"=FAL*",E27:E999) -> 0 | E17: E-mail:
A18: Ilość grz. klimakonwekt. : | C18: =SUMIF(B27:B999,"=F9P*",E27:E999) -> 0 | E18: Termin ważności oferty : | H18: =TODAY()+60 -> 2024-04-10
A19: Ilość grz. konwektorowych : | C19: =SUMIF(B27:B999,"=F9WWKF*",E27:E999)+SUMIF(B27:B999,"=F9WWKH*",E27:E999)+SUMIF(B27:B999,"=F9WWBF*",E27:E999)+SUMIF(B27:B999,"=F9WWBH*",E27:E999)+SUMIF(B27:B999,"=F9WWDF*",E27:E999)+SUMIF(B27:B999,"=F9WWKE*",E27:E999)+SUMIF(B27:B999,"=F9WWBE*",E27:E999) -> 0
A20: Ilość grzejników : | C20: =SUMIF(B27:B999,"=F*",E27:E999)-SUMIF(B27:B999,"=FAW*",E27:E999)-SUMIF(B27:B999,"=FAZ*",E27:E999)-SUMIF(B27:B999,"=FI*",E27:E999)-SUMIF(B27:B999,"=FD*",E27:E999) -> 0
A21: Wart. całk.netto : | C21: =SUMIF(B27:B999,"<>""",K26:K999) -> 0
A22: Wart. całk.netto po rabacie : | C22: =SUMIF(B27:B999,"<>""",I27:I999) -> 0 | F22: Przelicznik waluty: | H22: 1 | I22: PLN / EUR
A23: =_xlfn.CONCAT("Wersja kreatora kodów: ",A1," - "," ceny grzejników 03_2024") -> Wersja kreatora kodów: 01_03_2024 - ceny grzejników 03_2024
A26: L.p. | B26: Kod zamówienia | C26: Opis | D26: Wydajność cieplna 75/65/20 | E26: Ilość | F26: Jedn. | G26: =IF(H22=1,"Cena jedn. netto (PLN)","Cena jedn. netto (EUR)") -> Cena jedn. netto (PLN) | H26: Rabat w % | I26: =IF(H22=1,"Wartość netto (PLN)","Wartość netto (EUR)") -> Wartość netto (PLN) | J26: EAN | K26: Wartość netto katalog (PLN)
I27: =IF(B27<>"",G27*E27-((G27*E27)*(H27/100)),"") ->  | J27: =IF(B27<>"",VLOOKUP(B27,EAN!A:B,2,0),"") ->  | K27: =IF(B27<>"",E27*G27,"") -> 
I28: =IF(B28<>"",G28*E28-((G28*E28)*(H28/100)),"") ->  | J28: =IF(B28<>"",VLOOKUP(B28,EAN!A:B,2,0),"") ->  | K28: =IF(B28<>"",E28*G28,"") -> 
J29: =IF(B29<>"",VLOOKUP(B29,EAN!A:B,2,0),"") -> 
J30: =IF(B30<>"",VLOOKUP(B30,EAN!A:B,2,0),"") -> 
J31: =IF(B31<>"",VLOOKUP(B31,EAN!A:B,2,0),"") -> 
J32: =IF(B32<>"",VLOOKUP(B32,EAN!A:B,2,0),"") -> 
J33: =IF(B33<>"",VLOOKUP(B33,EAN!A:B,2,0),"") -> 
J34: =IF(B34<>"",VLOOKUP(B34,EAN!A:B,2,0),"") -> 
J35: =IF(B35<>"",VLOOKUP(B35,EAN!A:B,2,0),"") -> 
J36: =IF(B36<>"",VLOOKUP(B36,EAN!A:B,2,0),"") -> 
J37: =IF(B37<>"",VLOOKUP(B37,EAN!A:B,2,0),"") -> 
J38: =IF(B38<>"",VLOOKUP(B38,EAN!A:B,2,0),"") -> 
J39: =IF(B39<>"",VLOOKUP(B39,EAN!A:B,2,0),"") -> 
J40: =IF(B40<>"",VLOOKUP(B40,EAN!A:B,2,0),"") -> 
J41: =IF(B41<>"",VLOOKUP(B41,EAN!A:B,2,0),"") -> 
J42: =IF(B42<>"",VLOOKUP(B42,EAN!A:B,2,0),"") -> 
J43: =IF(B43<>"",VLOOKUP(B43,EAN!A:B,2,0),"") -> 
J44: =IF(B44<>"",VLOOKUP(B44,EAN!A:B,2,0),"") -> 
J45: =IF(B45<>"",VLOOKUP(B45,EAN!A:B,2,0),"") -> 
J46: =IF(B46<>"",VLOOKUP(B46,EAN!A:B,2,0),"") -> 
J47: =IF(B47<>"",VLOOKUP(B47,EAN!A:B,2,0),"") -> 
J48: =IF(B48<>"",VLOOKUP(B48,EAN!A:B,2,0),"") -> 
J49: =IF(B49<>"",VLOOKUP(B49,EAN!A:B,2,0),"") -> 
J50: =IF(B50<>"",VLOOKUP(B50,EAN!A:B,2,0),"") -> 
J51: =IF(B51<>"",VLOOKUP(B51,EAN!A:B,2,0),"") -> 
J52: =IF(B52<>"",VLOOKUP(B52,EAN!A:B,2,0),"") -> 
J53: =IF(B53<>"",VLOOKUP(B53,EAN!A:B,2,0),"") -> 
J54: =IF(B54<>"",VLOOKUP(B54,EAN!A:B,2,0),"") -> 
J55: =IF(B55<>"",VLOOKUP(B55,EAN!A:B,2,0),"") -> 
J56: =IF(B56<>"",VLOOKUP(B56,EAN!A:B,2,0),"") -> 
J57: =IF(B57<>"",VLOOKUP(B57,EAN!A:B,2,0),"") -> 
J58: =IF(B58<>"",VLOOKUP(B58,EAN!A:B,2,0),"") -> 
J59: =IF(B59<>"",VLOOKUP(B59,EAN!A:B,2,0),"") -> 
J60: =IF(B60<>"",VLOOKUP(B60,EAN!A:B,2,0),"") -> 
J61: =IF(B61<>"",VLOOKUP(B61,EAN!A:B,2,0),"") -> 
J62: =IF(B62<>"",VLOOKUP(B62,EAN!A:B,2,0),"") -> 
J63: =IF(B63<>"",VLOOKUP(B63,EAN!A:B,2,0),"") -> 
J64: =IF(B64<>"",VLOOKUP(B64,EAN!A:B,2,0),"") -> 
J65: =IF(B65<>"",VLOOKUP(B65,EAN!A:B,2,0),"") -> 
J66: =IF(B66<>"",VLOOKUP(B66,EAN!A:B,2,0),"") -> 
J67: =IF(B67<>"",VLOOKUP(B67,EAN!A:B,2,0),"") -> 
J68: =IF(B68<>"",VLOOKUP(B68,EAN!A:B,2,0),"") -> 
J69: =IF(B69<>"",VLOOKUP(B69,EAN!A:B,2,0),"") -> 
J70: =IF(B70<>"",VLOOKUP(B70,EAN!A:B,2,0),"") -> 
J71: =IF(B71<>"",VLOOKUP(B71,EAN!A:B,2,0),"") -> 
J72: =IF(B72<>"",VLOOKUP(B72,EAN!A:B,2,0),"") -> 
J73: =IF(B73<>"",VLOOKUP(B73,EAN!A:B,2,0),"") -> 
J74: =IF(B74<>"",VLOOKUP(B74,EAN!A:B,2,0),"") -> 
J75: =IF(B75<>"",VLOOKUP(B75,EAN!A:B,2,0),"") -> 
J76: =IF(B76<>"",VLOOKUP(B76,EAN!A:B,2,0),"") -> 
J77: =IF(B77<>"",VLOOKUP(B77,EAN!A:B,2,0),"") -> 
J78: =IF(B78<>"",VLOOKUP(B78,EAN!A:B,2,0),"") -> 
J79: =IF(B79<>"",VLOOKUP(B79,EAN!A:B,2,0),"") -> 
J80: =IF(B80<>"",VLOOKUP(B80,EAN!A:B,2,0),"") -> 
J81: =IF(B81<>"",VLOOKUP(B81,EAN!A:B,2,0),"") -> 
J82: =IF(B82<>"",VLOOKUP(B82,EAN!A:B,2,0),"") -> 
J83: =IF(B83<>"",VLOOKUP(B83,EAN!A:B,2,0),"") -> 
J84: =IF(B84<>"",VLOOKUP(B84,EAN!A:B,2,0),"") -> 
J85: =IF(B85<>"",VLOOKUP(B85,EAN!A:B,2,0),"") -> 
J86: =IF(B86<>"",VLOOKUP(B86,EAN!A:B,2,0),"") -> 
J87: =IF(B87<>"",VLOOKUP(B87,EAN!A:B,2,0),"") -> 
J88: =IF(B88<>"",VLOOKUP(B88,EAN!A:B,2,0),"") -> 
J89: =IF(B89<>"",VLOOKUP(B89,EAN!A:B,2,0),"") -> 
J90: =IF(B90<>"",VLOOKUP(B90,EAN!A:B,2,0),"") -> 
J91: =IF(B91<>"",VLOOKUP(B91,EAN!A:B,2,0),"") -> 
I92: =IF(B92<>"",G92*E92-((G92*E92)*(H92/100)),"") ->  | J92: =IF(B92<>"",VLOOKUP(B92,EAN!A:B,2,0),"") ->  | K92: =IF(B92<>"",E92*G92,"") -> 
J93: =IF(B93<>"",VLOOKUP(B93,EAN!A:B,2,0),"") -> 
J94: =IF(B94<>"",VLOOKUP(B94,EAN!A:B,2,0),"") -> 
J95: =IF(B95<>"",VLOOKUP(B95,EAN!A:B,2,0),"") -> 
J96: =IF(B96<>"",VLOOKUP(B96,EAN!A:B,2,0),"") -> 
J97: =IF(B97<>"",VLOOKUP(B97,EAN!A:B,2,0),"") -> 
J98: =IF(B98<>"",VLOOKUP(B98,EAN!A:B,2,0),"") -> 
J99: =IF(B99<>"",VLOOKUP(B99,EAN!A:B,2,0),"") -> 
J100: =IF(B100<>"",VLOOKUP(B100,EAN!A:B,2,0),"") -> 
J101: =IF(B101<>"",VLOOKUP(B101,EAN!A:B,2,0),"") -> 
J102: =IF(B102<>"",VLOOKUP(B102,EAN!A:B,2,0),"") -> 
J103: =IF(B103<>"",VLOOKUP(B103,EAN!A:B,2,0),"") -> 
J104: =IF(B104<>"",VLOOKUP(B104,EAN!A:B,2,0),"") -> 
J105: =IF(B105<>"",VLOOKUP(B105,EAN!A:B,2,0),"") -> 
J106: =IF(B106<>"",VLOOKUP(B106,EAN!A:B,2,0),"") -> 
J107: =IF(B107<>"",VLOOKUP(B107,EAN!A:B,2,0),"") -> 
J108: =IF(B108<>"",VLOOKUP(B108,EAN!A:B,2,0),"") -> 
J109: =IF(B109<>"",VLOOKUP(B109,EAN!A:B,2,0),"") -> 
J110: =IF(B110<>"",VLOOKUP(B110,EAN!A:B,2,0),"") -> 
J111: =IF(B111<>"",VLOOKUP(B111,EAN!A:B,2,0),"") -> 
J112: =IF(B112<>"",VLOOKUP(B112,EAN!A:B,2,0),"") -> 
J113: =IF(B113<>"",VLOOKUP(B113,EAN!A:B,2,0),"") -> 
J114: =IF(B114<>"",VLOOKUP(B114,EAN!A:B,2,0),"") -> 
J115: =IF(B115<>"",VLOOKUP(B115,EAN!A:B,2,0),"") -> 
J116: =IF(B116<>"",VLOOKUP(B116,EAN!A:B,2,0),"") -> 
J117: =IF(B117<>"",VLOOKUP(B117,EAN!A:B,2,0),"") -> 
J118: =IF(B118<>"",VLOOKUP(B118,EAN!A:B,2,0),"") -> 
J119: =IF(B119<>"",VLOOKUP(B119,EAN!A:B,2,0),"") -> 
J120: =IF(B120<>"",VLOOKUP(B120,EAN!A:B,2,0),"") -> 
J121: =IF(B121<>"",VLOOKUP(B121,EAN!A:B,2,0),"") -> 
J122: =IF(B122<>"",VLOOKUP(B122,EAN!A:B,2,0),"") -> 
J123: =IF(B123<>"",VLOOKUP(B123,EAN!A:B,2,0),"") -> 
J124: =IF(B124<>"",VLOOKUP(B124,EAN!A:B,2,0),"") -> 
J125: =IF(B125<>"",VLOOKUP(B125,EAN!A:B,2,0),"") -> 
J126: =IF(B126<>"",VLOOKUP(B126,EAN!A:B,2,0),"") -> 
J127: =IF(B127<>"",VLOOKUP(B127,EAN!A:B,2,0),"") -> 
J128: =IF(B128<>"",VLOOKUP(B128,EAN!A:B,2,0),"") -> 
J129: =IF(B129<>"",VLOOKUP(B129,EAN!A:B,2,0),"") -> 
J130: =IF(B130<>"",VLOOKUP(B130,EAN!A:B,2,0),"") -> 
J131: =IF(B131<>"",VLOOKUP(B131,EAN!A:B,2,0),"") -> 
J132: =IF(B132<>"",VLOOKUP(B132,EAN!A:B,2,0),"") -> 
J133: =IF(B133<>"",VLOOKUP(B133,EAN!A:B,2,0),"") -> 
J134: =IF(B134<>"",VLOOKUP(B134,EAN!A:B,2,0),"") -> 
J135: =IF(B135<>"",VLOOKUP(B135,EAN!A:B,2,0),"") -> 
J136: =IF(B136<>"",VLOOKUP(B136,EAN!A:B,2,0),"") -> 
J137: =IF(B137<>"",VLOOKUP(B137,EAN!A:B,2,0),"") -> 
J138: =IF(B138<>"",VLOOKUP(B138,EAN!A:B,2,0),"") -> 
J139: =IF(B139<>"",VLOOKUP(B139,EAN!A:B,2,0),"") -> 
J140: =IF(B140<>"",VLOOKUP(B140,EAN!A:B,2,0),"") -> 
J141: =IF(B141<>"",VLOOKUP(B141,EAN!A:B,2,0),"") -> 
J142: =IF(B142<>"",VLOOKUP(B142,EAN!A:B,2,0),"") -> 
J143: =IF(B143<>"",VLOOKUP(B143,EAN!A:B,2,0),"") -> 
J144: =IF(B144<>"",VLOOKUP(B144,EAN!A:B,2,0),"") -> 
J145: =IF(B145<>"",VLOOKUP(B145,EAN!A:B,2,0),"") -> 
J146: =IF(B146<>"",VLOOKUP(B146,EAN!A:B,2,0),"") -> 
J147: =IF(B147<>"",VLOOKUP(B147,EAN!A:B,2,0),"") -> 
J148: =IF(B148<>"",VLOOKUP(B148,EAN!A:B,2,0),"") -> 
J149: =IF(B149<>"",VLOOKUP(B149,EAN!A:B,2,0),"") -> 
J150: =IF(B150<>"",VLOOKUP(B150,EAN!A:B,2,0),"") -> 
J151: =IF(B151<>"",VLOOKUP(B151,EAN!A:B,2,0),"") -> 
J152: =IF(B152<>"",VLOOKUP(B152,EAN!A:B,2,0),"") -> 
J153: =IF(B153<>"",VLOOKUP(B153,EAN!A:B,2,0),"") -> 
J154: =IF(B154<>"",VLOOKUP(B154,EAN!A:B,2,0),"") -> 
J155: =IF(B155<>"",VLOOKUP(B155,EAN!A:B,2,0),"") -> 
I156: =IF(B156<>"",G156*E156-((G156*E156)*(H156/100)),"") ->  | J156: =IF(B156<>"",VLOOKUP(B156,EAN!A:B,2,0),"") ->  | K156: =IF(B156<>"",E156*G156,"") -> 
J157: =IF(B157<>"",VLOOKUP(B157,EAN!A:B,2,0),"") -> 
J158: =IF(B158<>"",VLOOKUP(B158,EAN!A:B,2,0),"") -> 
J159: =IF(B159<>"",VLOOKUP(B159,EAN!A:B,2,0),"") -> 
J160: =IF(B160<>"",VLOOKUP(B160,EAN!A:B,2,0),"") -> 
J161: =IF(B161<>"",VLOOKUP(B161,EAN!A:B,2,0),"") -> 
J162: =IF(B162<>"",VLOOKUP(B162,EAN!A:B,2,0),"") -> 
J163: =IF(B163<>"",VLOOKUP(B163,EAN!A:B,2,0),"") -> 
J164: =IF(B164<>"",VLOOKUP(B164,EAN!A:B,2,0),"") -> 
J165: =IF(B165<>"",VLOOKUP(B165,EAN!A:B,2,0),"") -> 
J166: =IF(B166<>"",VLOOKUP(B166,EAN!A:B,2,0),"") -> 
J167: =IF(B167<>"",VLOOKUP(B167,EAN!A:B,2,0),"") -> 
J168: =IF(B168<>"",VLOOKUP(B168,EAN!A:B,2,0),"") -> 
J169: =IF(B169<>"",VLOOKUP(B169,EAN!A:B,2,0),"") -> 
J170: =IF(B170<>"",VLOOKUP(B170,EAN!A:B,2,0),"") -> 
J171: =IF(B171<>"",VLOOKUP(B171,EAN!A:B,2,0),"") -> 
J172: =IF(B172<>"",VLOOKUP(B172,EAN!A:B,2,0),"") -> 
J173: =IF(B173<>"",VLOOKUP(B173,EAN!A:B,2,0),"") -> 
J174: =IF(B174<>"",VLOOKUP(B174,EAN!A:B,2,0),"") -> 
J175: =IF(B175<>"",VLOOKUP(B175,EAN!A:B,2,0),"") -> 
J176: =IF(B176<>"",VLOOKUP(B176,EAN!A:B,2,0),"") -> 
J177: =IF(B177<>"",VLOOKUP(B177,EAN!A:B,2,0),"") -> 
J178: =IF(B178<>"",VLOOKUP(B178,EAN!A:B,2,0),"") -> 
J179: =IF(B179<>"",VLOOKUP(B179,EAN!A:B,2,0),"") -> 
J180: =IF(B180<>"",VLOOKUP(B180,EAN!A:B,2,0),"") -> 
J181: =IF(B181<>"",VLOOKUP(B181,EAN!A:B,2,0),"") -> 
J182: =IF(B182<>"",VLOOKUP(B182,EAN!A:B,2,0),"") -> 
J183: =IF(B183<>"",VLOOKUP(B183,EAN!A:B,2,0),"") -> 
J184: =IF(B184<>"",VLOOKUP(B184,EAN!A:B,2,0),"") -> 
J185: =IF(B185<>"",VLOOKUP(B185,EAN!A:B,2,0),"") -> 
J186: =IF(B186<>"",VLOOKUP(B186,EAN!A:B,2,0),"") -> 
J187: =IF(B187<>"",VLOOKUP(B187,EAN!A:B,2,0),"") -> 
J188: =IF(B188<>"",VLOOKUP(B188,EAN!A:B,2,0),"") -> 
J189: =IF(B189<>"",VLOOKUP(B189,EAN!A:B,2,0),"") -> 
J190: =IF(B190<>"",VLOOKUP(B190,EAN!A:B,2,0),"") -> 
J191: =IF(B191<>"",VLOOKUP(B191,EAN!A:B,2,0),"") -> 
J192: =IF(B192<>"",VLOOKUP(B192,EAN!A:B,2,0),"") -> 
J193: =IF(B193<>"",VLOOKUP(B193,EAN!A:B,2,0),"") -> 
J194: =IF(B194<>"",VLOOKUP(B194,EAN!A:B,2,0),"") -> 
J195: =IF(B195<>"",VLOOKUP(B195,EAN!A:B,2,0),"") -> 
J196: =IF(B196<>"",VLOOKUP(B196,EAN!A:B,2,0),"") -> 
J197: =IF(B197<>"",VLOOKUP(B197,EAN!A:B,2,0),"") -> 
J198: =IF(B198<>"",VLOOKUP(B198,EAN!A:B,2,0),"") -> 
J199: =IF(B199<>"",VLOOKUP(B199,EAN!A:B,2,0),"") -> 
J200: =IF(B200<>"",VLOOKUP(B200,EAN!A:B,2,0),"") -> 
J201: =IF(B201<>"",VLOOKUP(B201,EAN!A:B,2,0),"") -> 
J202: =IF(B202<>"",VLOOKUP(B202,EAN!A:B,2,0),"") -> 
J203: =IF(B203<>"",VLOOKUP(B203,EAN!A:B,2,0),"") -> 
J204: =IF(B204<>"",VLOOKUP(B204,EAN!A:B,2,0),"") -> 
J205: =IF(B205<>"",VLOOKUP(B205,EAN!A:B,2,0),"") -> 
J206: =IF(B206<>"",VLOOKUP(B206,EAN!A:B,2,0),"") -> 
... 793 more rows

Sheet Banga (hidden)
A1: F5UE018007500300 | C1: THOP | E1: Numer katalogowy | F1: Cena netto | G1: THOP | H1: Numer katalogowy | I1: Cena netto | J1: THOP | K1: Numer katalogowy | L1: Cena netto | M1: THOP | N1: Numer katalogowy | O1: Cena netto | P1: THOP
A2: =IF(Arkusz2!$H$22=1,ROUND(ROUND(ROUND(ROUND(ROUND(ROUND(ROUND(ROUND(ROUND(ROUND(ROUND(ROUND(ROUND(ROUND(VLOOKUP(A1,E:F,2,0)*$B$21,0)*$B$22,0)*$B$23,0)*$B$24,0)*$B$25,0)*$B$26,0)*$B$27,0)*$B$28,0)*$B$29,0)*$B$30,0)*$B$31,0)*$B$32,0)*$B$33,0)*$B$34,0)/Arkusz2!$H$22,ROUND(ROUND(ROUND(ROUND(ROUND(ROUND(ROUND(ROUND(ROUND(ROUND(ROUND(ROUND(ROUND(ROUND(VLOOKUP(A1,E:F,2,0)*$B$21,0)*$B$22,0)*$B$23,0)*$B$24,0)*$B$25,0)*$B$26,0)*$B$27,0)*$B$28,0)*$B$29,0)*$B$30,0)*$B$31,0)*$B$32,0)*$B$33,0)*$B$34,0)/Arkusz2!$H$22) -> 1310 | C2: =VLOOKUP(A1,E:G,3,0) -> 1056 | E2: F5TA008004000300 | F2: 450 | G2: 310
E3: F5TA008005000300 | F3: 498 | G3: 370
E4: F5TA008006000300 | F4: 538 | G4: 427
E5: F5TA008007500300 | F5: 649 | G5: 509
E6: F5TA012004000300 | F6: 585 | G6: 429
E7: F5TA012005000300 | F7: 638 | G7: 511
E8: F5TA012006000300 | F8: 702 | G8: 590
E9: F5TA012007500300 | F9: 847 | G9: 703
E10: F5TA015004000300 | F10: 714 | G10: 540
A11: F5TE018007500300 | E11: F5TA015005000300 | F11: 782 | G11: 644
E12: F5TA015006000300 | F12: 853 | G12: 744
E13: F5TA015007500300 | F13: 1029 | G13: 887
E14: F5TA018004000300 | F14: 823 | G14: 641
E15: F5TA018005000300 | F15: 905 | G15: 768
E16: F5TA018006000300 | F16: 993 | G16: 886
E17: F5TA018007500300 | F17: 1200 | G17: 1056
E19: F5TE008004000300 | F19: 524 | G19: 310
A20: Podwyżki | E20: F5TE008005000300 | F20: 573 | G20: 370
A21: 1.09.2023 | B21: 1 | E21: F5TE008006000300 | F21: 613 | G21: 427
A22: x | B22: 1 | E22: F5TE008007500300 | F22: 723 | G22: 509
A23: x | B23: 1 | E23: F5TE012004000300 | F23: 668 | G23: 429
A24: x | B24: 1 | E24: F5TE012005000300 | F24: 721 | G24: 511
A25: x | B25: 1 | E25: F5TE012006000300 | F25: 785 | G25: 590
A26: x | B26: 1 | E26: F5TE012007500300 | F26: 930 | G26: 703
A27: x | B27: 1 | E27: F5TE015004000300 | F27: 799 | G27: 540
A28: x | B28: 1 | E28: F5TE015005000300 | F28: 867 | G28: 644
A29: x | B29: 1 | E29: F5TE015006000300 | F29: 939 | G29: 744
A30: x | B30: 1 | E30: F5TE015007500300 | F30: 1115 | G30: 887
A31: x | B31: 1 | E31: F5TE018004000300 | F31: 917 | G31: 641
A32: x | B32: 1 | E32: F5TE018005000300 | F32: 999 | G32: 768
A33: x | B33: 1 | E33: F5TE018006000300 | F33: 1086 | G33: 886
A34: x | B34: 1 | E34: F5TE018007500300 | F34: 1288 | G34: 1056
A35: Dopłaty
A36: 1.03.2014 | E36: F5UA008004000300 | F36: 468 | G36: 310
A37: Specjalne | B37: 1 | E37: F5UA008005000300 | F37: 519 | G37: 370
A38: Metaliczne | B38: 1 | E38: F5UA008006000300 | F38: 560 | G38: 427
A39: Zwykłe | B39: 1 | E39: F5UA008007500300 | F39: 675 | G39: 509
E40: F5UA012004000300 | F40: 604 | G40: 429
E41: F5UA012005000300 | F41: 659 | G41: 511
E42: F5UA012006000300 | F42: 725 | G42: 590
E43: F5UA012007500300 | F43: 874 | G43: 703
E44: F5UA015004000300 | F44: 733 | G44: 540
E45: F5UA015005000300 | F45: 803 | G45: 644
E46: F5UA015006000300 | F46: 876 | G46: 744
E47: F5UA015007500300 | F47: 1056 | G47: 887
E48: F5UA018004000300 | F48: 841 | G48: 641
E49: F5UA018005000300 | F49: 925 | G49: 768
E50: F5UA018006000300 | F50: 1014 | G50: 886
E51: F5UA018007500300 | F51: 1225 | G51: 1056
E53: F5UE008004000300 | F53: 543 | G53: 310
E54: F5UE008005000300 | F54: 593 | G54: 370
E55: F5UE008006000300 | F55: 634 | G55: 427
E56: F5UE008007500300 | F56: 749 | G56: 509
E57: F5UE012004000300 | F57: 687 | G57: 429
E58: F5UE012005000300 | F58: 741 | G58: 511
E59: F5UE012006000300 | F59: 808 | G59: 590
E60: F5UE012007500300 | F60: 957 | G60: 703
E61: F5UE015004000300 | F61: 819 | G61: 540
E62: F5UE015005000300 | F62: 888 | G62: 644
E63: F5UE015006000300 | F63: 962 | G63: 744
E64: F5UE015007500300 | F64: 1142 | G64: 887
E65: F5UE018004000300 | F65: 935 | G65: 641
E66: F5UE018005000300 | F66: 1018 | G66: 768
E67: F5UE018006000300 | F67: 1108 | G67: 886
E68: F5UE018007500300 | F68: 1310 | G68: 1056

Sheet EAN (hidden)
A1: Item | B1: Eancode
A2: FK6-LSWFG6506512SNORLEC | B2: ~
A3: F1E210602401000S0005 | B3: 6438149495403
A4: F811002320001B20 | B4: 3323931276786
A5: F1K2005018010F00 | B5: 6438371856942
A6: F863402120014200 | B6: 6438149126239
A7: F90120300281B1000090160000000805 | B7: 6438257775510
A8: F081005007010D00 | B8: 6438149873478
A9: F80S4060122011U0 | B9: 9007822203115
A10: YCVY000TLVMR | B10: ~
A11: F2U1121006010G0R3000 | B11: 6438371337854
A12: F90130965161050000 | B12: 6438149628368
A13: F1E1104018000100 | B13: 9006892304425
A14: F90140450181010S00 | B14: 6438149649707
A15: F90M305001910W00SS0142 | B15: 6438461661197
A16: YCVM000T8REC | B16: ~
A17: F8NA0173060GSB40 | B17: 6438371593977
A18: F833402818014310 | B18: 6438371529716
A19: YCA0000R6V1A | B19: ~
A20: F812802316002B10 | B20: 6438461115522
A21: F812802307005B10 | B21: 6438371682312
A22: F8910180028B00M0 | B22: 6438371451284
A23: F112003018021B00 | B23: 6438257065314
A24: F1A2206005210D00 | B24: 6438149975059
A25: Y0RL000S32GA | B25: ~
A26: F1E2009005210100 | B26: 9007657929273
A27: F8Z2107521030310 | B27: 6438371151375
A28: F902409001500A2S00 | B28: 6438537081355
A29: F811104512001B20 | B29: 6438371706018
A30: F90130800201010000 | B30: 6438257456655
A31: F30A008005000300 | B31: 6438149299049
A32: F862202116010340 | B32: 6438149702808
A33: F8Z220601051031S0141 | B33: 6438371390989
A34: F812207514005B3R9001 | B34: 6438257724723
A35: F0A1004011000100 | B35: 5907814723734
A36: F20220600901030R1023 | B36: 6438257722415
A37: F90160350365013000 | B37: 6438461128942
A38: F8Z220601801030R7044 | B38: 6438371354134
A39: A1I220002001TG0R9001 | B39: 6438257237520
A40: YCVQ000S3IMR | B40: ~
A41: F832206518010R10 | B41: 6438149546860
A42: F8911090079100M0 | B42: 6438149192968
A43: F1E2005008000B00 | B43: 6438461082374
A44: AZ1-D881-2125-04 | B44: 4028496353383
A45: F834602805011RF0 | B45: 6438257163096
A46: F90-D131000161010014 | B46: ~
A47: Y0RS000S7S1C | B47: ~
A48: F90-D25036530H2030A4 | B48: ~
A49: F8510120086100VR7035 | B49: 6438461814821
A50: F20210601803030R9006 | B50: 5413571348610
A51: F2V1119506010G0S0104 | B51: 6438461997678
A52: F90130820061010000 | B52: 6438461672780
A53: F1H330901201000R7037 | B53: 6438149793356
A54: YCH0000S59AP | B54: ~
A55: F0A3005018010300 | B55: 6438149902918
A56: F062204020000200 | B56: 5900801123074
A57: F24210751203031S0142 | B57: 6438257917897
A58: F8711180050B0010 | B58: 6438149269745
A59: F081109018010390 | B59: ~
A60: F8311007400113F0 | B60: 6438149243745
A61: F072204020011380 | B61: ~
A62: F8510180086103W0 | B62: 6438149458712
A63: Y0KP000AGY0A | B63: ~
A64: FKU-H210723080F-BDAC | B64: ~
A65: F85111600571A000 | B65: 6438257903999
A66: F9T3304010010300 | B66: 6438461953674
A67: F90160425261010000 | B67: 6438537067748
A68: F98M0111060DFB00 | B68: 6438257678392
A69: F062205011010100 | B69: 5907814739766
A70: F082205004011390 | B70: ~
A71: Y0KR000AG50A | B71: ~
A72: F8322014120113F0 | B72: 6438149252105
A73: YCVM000E2AMR | B73: ~
A74: F9SAB10004300B00 | B74: 9007822442958
A75: F0Z1004018000300 | B75: 6438371766487
A76: F1J2206026011010 | B76: 9007657918468
A77: F812009806001B20 | B77: 6438257864993
A78: YCVR000E2GMA | B78: ~
A79: F1E2006026000100 | B79: 6438149400995
A80: F831103614010RU0 | B80: 6438149564635
A81: F072009004001300 | B81: 5907814706645
A82: YXSP000S3CGA | B82: ~
A83: F1J3304011210000 | B83: 9007657825582
A84: F0V1109014010B00 | B84: 6438461103390
A85: F864701440014200 | B85: 6438149126512
A86: F901305652710Z0000 | B86: 6438149661051
A87: F86460282201B300 | B87: 6438149577130
A88: F1G2005007200000 | B88: 9006892129721
A89: FKU-H110650080R-BDAC | B89: ~
A90: FCP330600921001R9006 | B90: 6438461763709
A91: F31A018005000D209016619 | B91: 6438371335317
A92: F92-D361800060000AA4 | B92: ~
A93: F1J330900721000R8017 | B93: 6438149574498
A94: F90-D1318002130700A4 | B94: ~
A95: F8A330142301B00R7043 | B95: 6438257378605
A96: F90120450101060000 | B96: 6438149671180
A97: F062009509010300 | B97: 6438149729454
A98: YXSC21400P24CA | B98: ~
A99: F97G0165060DSB2YI9IA | B99: 6438371859943
A100: F8322065140100S0 | B100: 9007657921611
A101: F062005004010600 | B101: 6438461173003
A102: F092002004000300 | B102: 6438149878190
A103: F1H2003028000000 | B103: 6438149013607
A104: F1H1109011210F00 | B104: 6438257854437
A105: E0E1106508000V00 | B105: ~
A106: Y0KC000P1BAA | B106: ~
A107: F902305001600C2000 | B107: 6438149995620
A108: F06210303001030R9005 | B108: 6438461661586
A109: YCGQ000S5NAA | B109: ~
A110: F90-D26056514H2090A4 | B110: ~
A111: YCH0000S6D1R | B111: ~
A112: F833402130010010 | B112: 6438149647291
A113: F90130750281610S00 | B113: 6438149680595
A114: Y0KR000S721A | B114: ~
A115: F0J220601001130R9007 | B115: 6438257458246
A116: YCVQ000PDGCR | B116: ~
A117: Y0KI000YT5AC | B117: ~
A118: F8510200014103W0 | B118: 6438149458859
A119: F0B1106020010310 | B119: 5907814758446
A120: F90-D120665341010014 | B120: ~
A121: YCH0000PK9QC | B121: ~
A122: FKX-QV2013R7004 | B122: ~
A123: F812006012001100 | B123: 9007657853646
A124: FLB-MCD50802046PP | B124: ~
A125: F1E110500401000R8017 | B125: 6438149048647
A126: F83220142201100R7016 | B126: 6438257774704
A127: F902406003200A2100 | B127: 6438371515603
A128: F24210401053030R9001 | B128: 5413571311706
A129: AZ1TR060C000100S0006 | B129: 6438257463677
A130: F29211950751130R7021 | B130: 5413571289371
A131: YCVQ000S7H1T | B131: ~
A132: F862301411011R00 | B132: 6438257211339
A133: F90160750271010000 | B133: 6438461133311
A134: F0A2206008011301 | B134: 6438461034021
A135: F9012075019101000R7030 | B135: 6438461142009
A136: F0A220201101530R7035 | B136: 6438371613262
A137: F4BA00800600001R3000 | B137: 6438149194245
A138: FCM3306009211010 | B138: 6438461774125
A139: F24110300751031R9005 | B139: 6438461499653
A140: YCVR000D93AA | B140: ~
A141: F8Q21200050100MY9006 | B141: 6438149371141
A142: Y0KP000AGU0C | B142: ~
A143: F87201200651A360 | B143: 6438461695598
A144: FDE2104010010U00 | B144: 6438371804080
A145: YCSP000PDEBA | B145: ~
A146: F9013030032521300R7024 | B146: 6438461037435
A147: F90M320000911W00B0 | B147: 9004465960078
A148: F073306018011L10 | B148: 6438537024789
A149: A29221800000SP0S0104 | B149: 6438371933384
A150: Y0RS000S5SMC | B150: ~
A151: F90M305001410W10SR7021 | B151: 6438461041968
A152: F9012200008501100S0147 | B152: 6438461752062
A153: F8MG0143060DFF20 | B153: 7392518040115
A154: YCGY000PDEAC | B154: ~
A155: F8821065080110M0 | B155: 6438149178948
A156: F071105009010D10 | B156: 6438257612662
A157: F1E2004010000B00 | B157: 6438461082206
A158: F90-D1306000215100A4 | B158: 6438149512308
A159: F07330900901130S0123 | B159: 6438461473349
A160: F0G110601001030R7016 | B160: 6438257237537
A161: FCR2203026010000 | B161: 6438371486675
A162: F8A330212001B00R7024 | B162: 6438149709562
A163: F1G3309004010040 | B163: 6438149416484
A164: F90150600251B3000R90020000003275 | B164: 6438461279828
A165: F80S42000420110R7024 | B165: 6438257868687
A166: F24330303001130R9010 | B166: 5413571259893
A167: YCC0000P1EBP | B167: ~
A168: F811002309001B00 | B168: 6438537010317
A169: F862206509010R0R7021 | B169: 6438461142221
A170: F8347021100B1000 | B170: 6438149583087
A171: F29212100751100R1023 | B171: 6438371774048
A172: F1N3009206010000 | B172: 9007657858856
A173: F092003023000D00 | B173: 6438149878985
A174: AZ13DZ952172300R9011 | B174: 6438461135308
A175: F87102000651030R7037 | B175: 6438149524974
A176: F20220601201030R1013 | B176: 5413571234487
A177: F90120800121010S00 | B177: 6438371640428
A178: FK3-LC040770130103 | B178: ~
A179: F0I2104020010300 | B179: 5900801001525
A180: F092203026010100 | B180: 6438149883453
A181: Y0RL000S737A | B181: ~
A182: AZ41VVQIP60165S0 | B182: 7331161000374
A183: F07110600601030R7030 | B183: 6438371887984
A184: F863401422014000 | B184: 9007822472795
A185: F3IA007005000000 | B185: 9006892628194
A186: F1G330301601100R9006 | B186: 6438149147685
A187: F09210550401030R7037 | B187: 6438371843218
A188: F34A01800500035R1013 | B188: 6438257279117
A189: F071106018010U00 | B189: 6438371096133
A190: YCSP000S777A | B190: ~
A191: Y0KI000S7M1A | B191: ~
A192: FKU-V201600360-EFABCD | B192: 6438461224699
A193: YCVM000TLUMA | B193: ~
A194: F071105004010D10 | B194: 4028496041914
A195: E1K1105008010V00 | B195: 6438461427656
A196: F902206001800C300R7030 | B196: 6438371620772
A197: F1K3305026011000 | B197: 6438257910294
A198: F8X220501501031S0149 | B198: 6438461724823
A199: YCS0000S7F7R | B199: ~
A200: F1P1103020000000 | B200: 6438149044205
... 4300 more rows

Sheet Converter
A1: Konwerter starych modeli grzejników kanałowych Aquilo na nowe modele
AL2: FMS | AM2: FMS | AN2: F1S | AO2: F2C | AP2: F2V | AQ2: F4C | AR2: F4V | AS2: FMS_ | AT2: F1S_ | AU2: F2C_ | AV2: F2V_ | AW2: F4C_ | AX2: F4V_ | AY2: L
B3: Ilość grz. FMK : | C3: =SUMIF(B15:B989,"=F9WFMK*",E15:E989) -> 0 | F3: Data: | G3: =TODAY() -> 2024-02-10 | M3: Sumaryczna wydajność cieplna starych modeli | N3: Sumaryczna wydajność cieplna nowych modeli | P3: Różnica w W | S3: Różnica w % | AA3: Ilość grz. FMS : | AB3: =SUMIF(AA15:AA989,"=FHQFMS*",AC15:AC989) -> 0 | AL3: F1S | AM3: 20 | AN3: 17 | AO3: 23 | AP3: 34 | AQ3: 34 | AR3: 34 | AS3: 9 | AT3: 7.5 | AU3: 11 | AV3: 17 | AW3: 17 | AX3: 17
B4: Ilość grz. F1T: | C4: =SUMIF(B15:B989,"=F9WF1T*",E15:E989) -> 0 | AA4: Ilość grz. F1S: | AB4: =SUMIF(AA15:AA989,"=FHRF1S*",AC15:AC989) -> 0 | AL4: F2C | AM4: 25 | AN4: 20 | AO4: 34 | AS4: 11 | AT4: 11 | AU4: 17 | AY4: 070
B5: Ilość grz. F1P : | C5: =SUMIF(B15:B989,"=F9WF1P*",E15:E989) -> 0 | AA5: Ilość grz. F2C : | AB5: =SUMIF(AA14:AA988,"=FHRF2C*",AC14:AC988) -> 0 | AL5: F2V | AM5: 30 | AN5: 23 | AS5: 14 | AY5: 080
B6: Ilość grz. F2C : | C6: =SUMIF(B15:B989,"=F9WF2C*",E15:E989) -> 0 | AA6: Ilość grz. F2V : | AB6: =SUMIF(AA14:AA988,"=FHRF2V*",AC14:AC988) -> 0 | AL6: F4C | AM6: 34 | AN6: 25 | AS6: 19 | AY6: 085
B7: Ilość grz. F4C : | C7: =SUMIF(B15:B989,"=F9WF4C*",E15:E989) -> 0 | AA7: Ilość grz. F4C : | AB7: =SUMIF(AA14:AA988,"=FHRF4C*",AC14:AC988) -> 0 | AL7: F4V | AM7: 42 | AY7: 090
AA8: Ilość grz. F4V : | AB8: =SUMIF(AA14:AA988,"=FHRF4V*",AC14:AC988) -> 0 | AY8: 100
B9: Ilość grzejników : | C9: =SUMIF(B15:B988,"=F9W*",E15:E988) -> 0 | AA9: Ilość grzejników : | AB9: =SUMIF(AA15:AA988,"=FHR*",AC15:AC988)+SUMIF(AA15:AA988,"=FHQ*",AC15:AC988) -> 0 | AY9: 110
B10: Wart. całk.netto : | C10: =SUMIF(B15:B988,"<>""",J15:J988) -> 0 | M10: =SUMPRODUCT(D15:D999,E15:E999) -> 0 | N10: =SUMPRODUCT(AC15:AC999,AH15:AH999) -> 0 | P10: =N10-M10 -> 0 | S10: =ROUND(P10/M10,2) ->  | AA10: Wart. całk.netto : | AB10: =SUMIF(AA15:AA988,"<>""",AK15:AK988) -> 0 | AG10: Wszelkie prawa do konwertera są zastrzeżone. | AY10: 120
B11: Wart. całk.netto po rabacie : | C11: =SUMIF(B15:B988,"<>""",I15:I988) -> 0 | AA11: Wart. całk.netto po rabacie : | AB11: =SUMIF(AA15:AA988,"<>""",AG15:AG988) -> 0 | AY11: 130
AY12: 140
A13: Stare modele Aquilo - FMK, F1T, F1P, F2C i F4C | K13: Ustawienia domyślne | S13: Ustawienia użytkownika | AA13: Nowe modele Aquilo - FMS, F1S, F2C, F2V, F4C i F4V | AY13: 150
A14: L.p. | B14: Kod zamówienia | C14: Opis | D14: Wydajność cieplna 75/65/20 | E14: Ilość | F14: Jedn. | G14: Cena jednostkowa netto (PLN) | H14: Rabat w % | I14: Wartość netto (PLN) | K14: L.p. | L14: Typ | M14: B [cm] | N14: L [cm] | P14: H [cm] | S14: Typ | T14: B [cm] | U14: L [cm] wynik | V14: L [cm] korekta | X14: H [cm] | AA14: Kod zamówienia | AB14: Opis | AC14: Ilość | AD14: Jedn. | AE14: Cena jednostkowa netto (PLN) | AF14: Rabat w % | AG14: Wartość netto (PLN) | AH14: Wydajność cieplna 75/65/20 | AI14: Różnica wydajności cieplnej [W] | AJ14: Różnica wydajności cieplnej [%] | AY14: 160
I15: =IF(B15<>"",G15*E15-((G15*E15)*(H15/100)),"") ->  | J15: =IF(B15<>"",E15*G15,"") ->  | K15: =IF(B15<>"",A15,"") ->  | L15: =IF(RIGHT(LEFT(B15,6),3)="FMK","FMS",)&IF(RIGHT(LEFT(B15,6),3)="F1T","F1S",)&IF(RIGHT(LEFT(B15,6),3)="F1P","F1S",)&IF(RIGHT(LEFT(B15,6),3)="F2C","F2C",)&IF(RIGHT(LEFT(B15,6),3)="F4C","F4C",) ->  | M15: =IF(AND(RIGHT(LEFT(B15,6),3)="FMK",RIGHT(LEFT(B15,9),2)="18"),"20","")&IF(AND(RIGHT(LEFT(B15,6),3)="FMK",RIGHT(LEFT(B15,9),2)="26"),"25","")&IF(AND(RIGHT(LEFT(B15,6),3)="FMK",RIGHT(LEFT(B15,9),2)="29"),"30","")&IF(AND(RIGHT(LEFT(B15,6),3)="FMK",RIGHT(LEFT(B15,9),2)="34"),"34","")&IF(AND(RIGHT(LEFT(B15,6),3)="FMK",RIGHT(LEFT(B15,9),2)="42"),"42","")&IF(AND(RIGHT(LEFT(B15,6),3)="F1T",RIGHT(LEFT(B15,9),2)="26"),"23","")&IF(AND(RIGHT(LEFT(B15,6),3)="F1T",RIGHT(LEFT(B15,9),2)="29"),"25","")&IF(AND(RIGHT(LEFT(B15,6),3)="F1T",RIGHT(LEFT(B15,9),2)="34"),"25","")&IF(AND(RIGHT(LEFT(B15,6),3)="F1P",RIGHT(LEFT(B15,9),2)="18"),"20","")&IF(AND(RIGHT(LEFT(B15,6),3)="F1P",RIGHT(LEFT(B15,9),2)="26"),"23","")&IF(AND(RIGHT(LEFT(B15,6),3)="F2C",RIGHT(LEFT(B15,9),2)="24"),"23","")&IF(AND(RIGHT(LEFT(B15,6),3)="F4C",RIGHT(LEFT(B15,9),2)="34"),"34","") ->  | N15: =IF(AND(B15<>"",R15="FMS209"),INDEX(Arkusz7!$U$2:$U$24,MATCH(Converter!D15,Arkusz7!$A$2:$A$24,-1)),"")&IF(AND(B15<>"",R15="FMS2011"),INDEX(Arkusz7!$U$2:$U$24,MATCH(Converter!D15,Arkusz7!$B$2:$B$24,-1)),"")&IF(AND(B15<>"",R15="FMS2014"),INDEX(Arkusz7!$U$2:$U$24,MATCH(Converter!D15,Arkusz7!$C$2:$C$24,-1)),"")&IF(AND(B15<>"",R15="FMS2019"),INDEX(Arkusz7!$U$2:$U$24,MATCH(Converter!D15,Arkusz7!$D$2:$D$24,-1)),"")&IF(AND(B15<>"",R15="FMS259"),INDEX(Arkusz7!$U$2:$U$24,MATCH(Converter!D15,Arkusz7!$E$2:$E$24,-1)),"")&IF(AND(B15<>"",R15="FMS2511"),INDEX(Arkusz7!$U$2:$U$24,MATCH(Converter!D15,Arkusz7!$F$2:$F$24,-1)),"")&IF(AND(B15<>"",R15="FMS2514"),INDEX(Arkusz7!$U$2:$U$24,MATCH(Converter!D15,Arkusz7!$G$2:$G$24,-1)),"")&IF(AND(B15<>"",R15="FMS2519"),INDEX(Arkusz7!$U$2:$U$24,MATCH(Converter!D15,Arkusz7!$H$2:$H$24,-1)),"")&IF(AND(B15<>"",R15="FMS309"),INDEX(Arkusz7!$U$2:$U$24,MATCH(Converter!D15,Arkusz7!$I$2:$I$24,-1)),"")&IF(AND(B15<>"",R15="FMS3011"),INDEX(Arkusz7!$U$2:$U$24,MATCH(Converter!D15,Arkusz7!$J$2:$J$24,-1)),"")&IF(AND(B15<>"",R15="FMS3014"),INDEX(Arkusz7!$U$2:$U$24,MATCH(Converter!D15,Arkusz7!$K$2:$K$24,-1)),"")&IF(AND(B15<>"",R15="FMS3019"),INDEX(Arkusz7!$U$2:$U$24,MATCH(Converter!D15,Arkusz7!$L$2:$L$24,-1)),"")&IF(AND(B15<>"",R15="FMS349"),INDEX(Arkusz7!$U$2:$U$24,MATCH(Converter!D15,Arkusz7!$M$2:$M$24,-1)),"")&IF(AND(B15<>"",R15="FMS3411"),INDEX(Arkusz7!$U$2:$U$24,MATCH(Converter!D15,Arkusz7!$N$2:$N$24,-1)),"")&IF(AND(B15<>"",R15="FMS3414"),INDEX(Arkusz7!$U$2:$U$24,MATCH(Converter!D15,Arkusz7!$O$2:$O$24,-1)),"")&IF(AND(B15<>"",R15="FMS3419"),INDEX(Arkusz7!$U$2:$U$24,MATCH(Converter!D15,Arkusz7!$P$2:$P$24,-1)),"")&IF(AND(B15<>"",R15="FMS429"),INDEX(Arkusz7!$U$2:$U$24,MATCH(Converter!D15,Arkusz7!$Q$2:$Q$24,-1)),"")&IF(AND(B15<>"",R15="FMS4211"),INDEX(Arkusz7!$U$2:$U$24,MATCH(Converter!D15,Arkusz7!$R$2:$R$24,-1)),"")&IF(AND(B15<>"",R15="FMS4214"),INDEX(Arkusz7!$U$2:$U$24,MATCH(Converter!D15,Arkusz7!$S$2:$S$24,-1)),"")&IF(AND(B15<>"",R15="FMS4219"),INDEX(Arkusz7!$U$2:$U$24,MATCH(Converter!D15,Arkusz7!$T$2:$T$24,-1)),"")&IF(AND(B15<>"",R15="F1S177,5"),INDEX(Arkusz7!$AB$2:$AB$19,MATCH(Converter!D15,Arkusz7!$W$2:$W$19,-1)),"")&IF(AND(B15<>"",R15="F1S207,5"),INDEX(Arkusz7!$AB$2:$AB$19,MATCH(Converter!D15,Arkusz7!$X$2:$X$19,-1)),"")&IF(AND(B15<>"",R15="F1S237,5"),INDEX(Arkusz7!$AB$2:$AB$19,MATCH(Converter!D15,Arkusz7!$Y$2:$Y$19,-1)),"")&IF(AND(B15<>"",R15="F1S2311"),INDEX(Arkusz7!$AB$2:$AB$19,MATCH(Converter!D15,Arkusz7!$Z$2:$Z$19,-1)),"")&IF(AND(B15<>"",R15="F1S2511"),INDEX(Arkusz7!$AB$2:$AB$19,MATCH(Converter!D15,Arkusz7!$AA$2:$AA$19,-1)),"")&IF(AND(B15<>"",R15="F2C2311"),INDEX(Arkusz7!$AI$2:$AI$7,MATCH(Converter!D15,Arkusz7!$AD$2:$AD$7,-1)),"")&IF(AND(B15<>"",R15="F2C3417"),INDEX(Arkusz7!$AI$2:$AI$7,MATCH(Converter!D15,Arkusz7!$AE$2:$AE$7,-1)),"")&IF(AND(B15<>"",R15="F2V3417"),INDEX(Arkusz7!$AI$2:$AI$7,MATCH(Converter!D15,Arkusz7!$AF$2:$AF$7,-1)),"")&IF(AND(B15<>"",R15="F4C3417"),INDEX(Arkusz7!$AI$2:$AI$7,MATCH(Converter!D15,Arkusz7!$AG$2:$AG$7,-1)),"")&IF(AND(B15<>"",R15="F4V3417"),INDEX(Arkusz7!$AI$2:$AI$7,MATCH(Converter!D15,Arkusz7!$AH$2:$AH$7,-1)),"") ->  | O15: =IF(B15<>"",CONCATENATE(L15,"_"),"") ->  | P15: =IF(AND(RIGHT(LEFT(B15,6),3)="FMK",RIGHT(LEFT(B15,14),2)="09"),"9","")&IF(AND(RIGHT(LEFT(B15,6),3)="FMK",RIGHT(LEFT(B15,14),2)="11"),"11","")&IF(AND(RIGHT(LEFT(B15,6),3)="FMK",RIGHT(LEFT(B15,14),2)="14"),"14","")&IF(AND(RIGHT(LEFT(B15,6),3)="F1T",RIGHT(LEFT(B15,14),2)="09"),"7,5","")&IF(AND(RIGHT(LEFT(B15,6),3)="F1T",RIGHT(LEFT(B15,14),2)="14"),"11","")&IF(AND(RIGHT(LEFT(B15,6),3)="F1P",RIGHT(LEFT(B15,14),2)="09"),"7,5","")&IF(AND(RIGHT(LEFT(B15,6),3)="F2C",RIGHT(LEFT(B15,14),2)="11"),"11","")&IF(AND(RIGHT(LEFT(B15,6),3)="F4C",RIGHT(LEFT(B15,14),2)="14"),"17","") ->  | Q15: =IF(AND(B15<>"",P15="7,5"),"08",)&IF(AND(B15<>"",P15="9"),"09",)&IF(AND(B15<>"",P15="11"),"11",)&IF(AND(B15<>"",P15="14"),"14",)&IF(AND(B15<>"",P15="17"),"17",)&IF(AND(B15<>"",P15="19"),"19",) ->  | R15: =CONCATENATE(L15,M15,P15) ->  | U15: =IF(AND(B15<>"",Z15="FMS209"),INDEX(Arkusz7!$U$2:$U$24,MATCH(Converter!D15,Arkusz7!$A$2:$A$24,-1)),"")&IF(AND(B15<>"",Z15="FMS2011"),INDEX(Arkusz7!$U$2:$U$24,MATCH(Converter!D15,Arkusz7!$B$2:$B$24,-1)),"")&IF(AND(B15<>"",Z15="FMS2014"),INDEX(Arkusz7!$U$2:$U$24,MATCH(Converter!D15,Arkusz7!$C$2:$C$24,-1)),"")&IF(AND(B15<>"",Z15="FMS2019"),INDEX(Arkusz7!$U$2:$U$24,MATCH(Converter!D15,Arkusz7!$D$2:$D$24,-1)),"")&IF(AND(B15<>"",Z15="FMS259"),INDEX(Arkusz7!$U$2:$U$24,MATCH(Converter!D15,Arkusz7!$E$2:$E$24,-1)),"")&IF(AND(B15<>"",Z15="FMS2511"),INDEX(Arkusz7!$U$2:$U$24,MATCH(Converter!D15,Arkusz7!$F$2:$F$24,-1)),"")&IF(AND(B15<>"",Z15="FMS2514"),INDEX(Arkusz7!$U$2:$U$24,MATCH(Converter!D15,Arkusz7!$G$2:$G$24,-1)),"")&IF(AND(B15<>"",Z15="FMS2519"),INDEX(Arkusz7!$U$2:$U$24,MATCH(Converter!D15,Arkusz7!$H$2:$H$24,-1)),"")&IF(AND(B15<>"",Z15="FMS309"),INDEX(Arkusz7!$U$2:$U$24,MATCH(Converter!D15,Arkusz7!$I$2:$I$24,-1)),"")&IF(AND(B15<>"",Z15="FMS3011"),INDEX(Arkusz7!$U$2:$U$24,MATCH(Converter!D15,Arkusz7!$J$2:$J$24,-1)),"")&IF(AND(B15<>"",Z15="FMS3014"),INDEX(Arkusz7!$U$2:$U$24,MATCH(Converter!D15,Arkusz7!$K$2:$K$24,-1)),"")&IF(AND(B15<>"",Z15="FMS3019"),INDEX(Arkusz7!$U$2:$U$24,MATCH(Converter!D15,Arkusz7!$L$2:$L$24,-1)),"")&IF(AND(B15<>"",Z15="FMS349"),INDEX(Arkusz7!$U$2:$U$24,MATCH(Converter!D15,Arkusz7!$M$2:$M$24,-1)),"")&IF(AND(B15<>"",Z15="FMS3411"),INDEX(Arkusz7!$U$2:$U$24,MATCH(Converter!D15,Arkusz7!$N$2:$N$24,-1)),"")&IF(AND(B15<>"",Z15="FMS3414"),INDEX(Arkusz7!$U$2:$U$24,MATCH(Converter!D15,Arkusz7!$O$2:$O$24,-1)),"")&IF(AND(B15<>"",Z15="FMS3419"),INDEX(Arkusz7!$U$2:$U$24,MATCH(Converter!D15,Arkusz7!$P$2:$P$24,-1)),"")&IF(AND(B15<>"",Z15="FMS429"),INDEX(Arkusz7!$U$2:$U$24,MATCH(Converter!D15,Arkusz7!$Q$2:$Q$24,-1)),"")&IF(AND(B15<>"",Z15="FMS4211"),INDEX(Arkusz7!$U$2:$U$24,MATCH(Converter!D15,Arkusz7!$R$2:$R$24,-1)),"")&IF(AND(B15<>"",Z15="FMS4214"),INDEX(Arkusz7!$U$2:$U$24,MATCH(Converter!D15,Arkusz7!$S$2:$S$24,-1)),"")&IF(AND(B15<>"",Z15="FMS4219"),INDEX(Arkusz7!$U$2:$U$24,MATCH(Converter!D15,Arkusz7!$T$2:$T$24,-1)),"")&IF(AND(B15<>"",Z15="F1S177,5"),INDEX(Arkusz7!$AB$2:$AB$19,MATCH(Converter!D15,Arkusz7!$W$2:$W$19,-1)),"")&IF(AND(B15<>"",Z15="F1S207,5"),INDEX(Arkusz7!$AB$2:$AB$19,MATCH(Converter!D15,Arkusz7!$X$2:$X$19,-1)),"")&IF(AND(B15<>"",Z15="F1S237,5"),INDEX(Arkusz7!$AB$2:$AB$19,MATCH(Converter!D15,Arkusz7!$Y$2:$Y$19,-1)),"")&IF(AND(B15<>"",Z15="F1S2311"),INDEX(Arkusz7!$AB$2:$AB$19,MATCH(Converter!D15,Arkusz7!$Z$2:$Z$19,-1)),"")&IF(AND(B15<>"",Z15="F1S2511"),INDEX(Arkusz7!$AB$2:$AB$19,MATCH(Converter!D15,Arkusz7!$AA$2:$AA$19,-1)),"")&IF(AND(B15<>"",Z15="F2C2311"),INDEX(Arkusz7!$AI$2:$AI$7,MATCH(Converter!D15,Arkusz7!$AD$2:$AD$7,-1)),"")&IF(AND(B15<>"",Z15="F2C3417"),INDEX(Arkusz7!$AI$2:$AI$7,MATCH(Converter!D15,Arkusz7!$AE$2:$AE$7,-1)),"")&IF(AND(B15<>"",Z15="F2V3417"),INDEX(Arkusz7!$AI$2:$AI$7,MATCH(Converter!D15,Arkusz7!$AF$2:$AF$7,-1)),"")&IF(AND(B15<>"",Z15="F4C3417"),INDEX(Arkusz7!$AI$2:$AI$7,MATCH(Converter!D15,Arkusz7!$AG$2:$AG$7,-1)),"")&IF(AND(B15<>"",Z15="F4V3417"),INDEX(Arkusz7!$AI$2:$AI$7,MATCH(Converter!D15,Arkusz7!$AH$2:$AH$7,-1)),"") ->  | W15: =IF(AND(B15<>"",S15<>""),CONCATENATE(S15,"_"),"") ->  | Y15: =IF(AND(B15<>"",X15=7.5),"08",)&IF(AND(B15<>"",X15=9),"09",)&IF(AND(B15<>"",X15=11),"11",)&IF(AND(B15<>"",X15=14),"14",)&IF(AND(B15<>"",X15=17),"17",)&IF(AND(B15<>"",X15=19),"19",) ->  | Z15: =CONCATENATE(S15,T15,X15) ->  | AA15: =IF(AND(B15<>"",S15=""),CONCATENATE(IF(L15="FMS","FHQ","FHR"),L15,"0",M15,N15,Q15,"N",IF(OR(S15="F2V",S15="F4V",S15="F2C",S15="F4C"),"3",RIGHT(LEFT(B15,16),1))),"")&IF(AND(B15<>"",S15<>"",V15=""),_xlfn.CONCAT(IF(L15="FMS","FHQ","FHR"),S15,"0",T15,U15,Y15,"N",IF(OR(S15="F2V",S15="F4V",S15="F2C",S15="F4C"),"3",RIGHT(LEFT(B15,16),1))),"")&IF(AND(B15<>"",S15<>"",V15<>""),_xlfn.CONCAT(IF(L15="FMS","FHQ","FHR"),S15,"0",T15,V15,Y15,"N",IF(OR(S15="F2V",S15="F4V",S15="F2C",S15="F4C"),"3",RIGHT(LEFT(B15,16),1))),"") ->  | AB15: =IF(B15<>"",CONCATENATE("AQUILO ",RIGHT(LEFT(AA15,6),3)," ",RIGHT(LEFT(AA15,9),2)," ",RIGHT(LEFT(AA15,12),3)," ",RIGHT(LEFT(AA15,14),2)," ",IF(RIGHT(LEFT(AA15,16),1)="1","Stal ocynkowana, standard","Stal nierdzewna, standard")),"") ->  | AC15: =IF(B15<>"",E15,"") ->  | AD15: =IF(B15<>"",F15,"") ->  | AE15: =IF(B15<>"",ROUND(ROUND(ROUND(ROUND(ROUND(ROUND(ROUND(ROUND(ROUND(ROUND(ROUND(ROUND(ROUND(VLOOKUP(AA15,NewAquilo!E:F,2,0)*NewAquilo!$B$21,0)*NewAquilo!$B$22,0)*NewAquilo!$B$23,0)*NewAquilo!$B$24,0)*NewAquilo!$B$25,0)*NewAquilo!$B$26,0)*NewAquilo!$B$27,0)*NewAquilo!$B$28,0)*NewAquilo!$B$29,0)*NewAquilo!$B$30,0)*NewAquilo!$B$31,0)*NewAquilo!$B$32,0)*NewAquilo!$B$33,0),"") ->  | AG15: =IF(B15<>"",AE15*AC15-((AE15*AC15)*(AF15/100)),"") ->  | AH15: =IF(B15<>"",VLOOKUP(AA15,NewAquilo!E:G,3,0),"") ->  | AI15: =IF(B15<>"",AH15-D15,"") ->  | AJ15: =IF(B15<>"",ROUND((AH15-D15)/D15,4),"") ->  | AK15: =IF(B15<>"",AC15*AE15,"") ->  | AY15: 180
I16: =IF(B16<>"",G16*E16-((G16*E16)*(H16/100)),"") ->  | N16: =IF(AND(B16<>"",R16="FMS209"),INDEX(Arkusz7!$U$2:$U$24,MATCH(Converter!D16,Arkusz7!$A$2:$A$24,-1)),"")&IF(AND(B16<>"",R16="FMS2011"),INDEX(Arkusz7!$U$2:$U$24,MATCH(Converter!D16,Arkusz7!$B$2:$B$24,-1)),"")&IF(AND(B16<>"",R16="FMS2014"),INDEX(Arkusz7!$U$2:$U$24,MATCH(Converter!D16,Arkusz7!$C$2:$C$24,-1)),"")&IF(AND(B16<>"",R16="FMS2019"),INDEX(Arkusz7!$U$2:$U$24,MATCH(Converter!D16,Arkusz7!$D$2:$D$24,-1)),"")&IF(AND(B16<>"",R16="FMS259"),INDEX(Arkusz7!$U$2:$U$24,MATCH(Converter!D16,Arkusz7!$E$2:$E$24,-1)),"")&IF(AND(B16<>"",R16="FMS2511"),INDEX(Arkusz7!$U$2:$U$24,MATCH(Converter!D16,Arkusz7!$F$2:$F$24,-1)),"")&IF(AND(B16<>"",R16="FMS2514"),INDEX(Arkusz7!$U$2:$U$24,MATCH(Converter!D16,Arkusz7!$G$2:$G$24,-1)),"")&IF(AND(B16<>"",R16="FMS2519"),INDEX(Arkusz7!$U$2:$U$24,MATCH(Converter!D16,Arkusz7!$H$2:$H$24,-1)),"")&IF(AND(B16<>"",R16="FMS309"),INDEX(Arkusz7!$U$2:$U$24,MATCH(Converter!D16,Arkusz7!$I$2:$I$24,-1)),"")&IF(AND(B16<>"",R16="FMS3011"),INDEX(Arkusz7!$U$2:$U$24,MATCH(Converter!D16,Arkusz7!$J$2:$J$24,-1)),"")&IF(AND(B16<>"",R16="FMS3014"),INDEX(Arkusz7!$U$2:$U$24,MATCH(Converter!D16,Arkusz7!$K$2:$K$24,-1)),"")&IF(AND(B16<>"",R16="FMS3019"),INDEX(Arkusz7!$U$2:$U$24,MATCH(Converter!D16,Arkusz7!$L$2:$L$24,-1)),"")&IF(AND(B16<>"",R16="FMS349"),INDEX(Arkusz7!$U$2:$U$24,MATCH(Converter!D16,Arkusz7!$M$2:$M$24,-1)),"")&IF(AND(B16<>"",R16="FMS3411"),INDEX(Arkusz7!$U$2:$U$24,MATCH(Converter!D16,Arkusz7!$N$2:$N$24,-1)),"")&IF(AND(B16<>"",R16="FMS3414"),INDEX(Arkusz7!$U$2:$U$24,MATCH(Converter!D16,Arkusz7!$O$2:$O$24,-1)),"")&IF(AND(B16<>"",R16="FMS3419"),INDEX(Arkusz7!$U$2:$U$24,MATCH(Converter!D16,Arkusz7!$P$2:$P$24,-1)),"")&IF(AND(B16<>"",R16="FMS429"),INDEX(Arkusz7!$U$2:$U$24,MATCH(Converter!D16,Arkusz7!$Q$2:$Q$24,-1)),"")&IF(AND(B16<>"",R16="FMS4211"),INDEX(Arkusz7!$U$2:$U$24,MATCH(Converter!D16,Arkusz7!$R$2:$R$24,-1)),"")&IF(AND(B16<>"",R16="FMS4214"),INDEX(Arkusz7!$U$2:$U$24,MATCH(Converter!D16,Arkusz7!$S$2:$S$24,-1)),"")&IF(AND(B16<>"",R16="FMS4219"),INDEX(Arkusz7!$U$2:$U$24,MATCH(Converter!D16,Arkusz7!$T$2:$T$24,-1)),"")&IF(AND(B16<>"",R16="F1S177,5"),INDEX(Arkusz7!$AB$2:$AB$19,MATCH(Converter!D16,Arkusz7!$W$2:$W$19,-1)),"")&IF(AND(B16<>"",R16="F1S207,5"),INDEX(Arkusz7!$AB$2:$AB$19,MATCH(Converter!D16,Arkusz7!$X$2:$X$19,-1)),"")&IF(AND(B16<>"",R16="F1S237,5"),INDEX(Arkusz7!$AB$2:$AB$19,MATCH(Converter!D16,Arkusz7!$Y$2:$Y$19,-1)),"")&IF(AND(B16<>"",R16="F1S2311"),INDEX(Arkusz7!$AB$2:$AB$19,MATCH(Converter!D16,Arkusz7!$Z$2:$Z$19,-1)),"")&IF(AND(B16<>"",R16="F1S2511"),INDEX(Arkusz7!$AB$2:$AB$19,MATCH(Converter!D16,Arkusz7!$AA$2:$AA$19,-1)),"")&IF(AND(B16<>"",R16="F2C2311"),INDEX(Arkusz7!$AI$2:$AI$7,MATCH(Converter!D16,Arkusz7!$AD$2:$AD$7,-1)),"")&IF(AND(B16<>"",R16="F2C3417"),INDEX(Arkusz7!$AI$2:$AI$7,MATCH(Converter!D16,Arkusz7!$AE$2:$AE$7,-1)),"")&IF(AND(B16<>"",R16="F2V3417"),INDEX(Arkusz7!$AI$2:$AI$7,MATCH(Converter!D16,Arkusz7!$AF$2:$AF$7,-1)),"")&IF(AND(B16<>"",R16="F4C3417"),INDEX(Arkusz7!$AI$2:$AI$7,MATCH(Converter!D16,Arkusz7!$AG$2:$AG$7,-1)),"")&IF(AND(B16<>"",R16="F4V3417"),INDEX(Arkusz7!$AI$2:$AI$7,MATCH(Converter!D16,Arkusz7!$AH$2:$AH$7,-1)),"") ->  | R16: =CONCATENATE(L16,M16,P16) ->  | U16: =IF(AND(B16<>"",Z16="FMS209"),INDEX(Arkusz7!$U$2:$U$24,MATCH(Converter!D16,Arkusz7!$A$2:$A$24,-1)),"")&IF(AND(B16<>"",Z16="FMS2011"),INDEX(Arkusz7!$U$2:$U$24,MATCH(Converter!D16,Arkusz7!$B$2:$B$24,-1)),"")&IF(AND(B16<>"",Z16="FMS2014"),INDEX(Arkusz7!$U$2:$U$24,MATCH(Converter!D16,Arkusz7!$C$2:$C$24,-1)),"")&IF(AND(B16<>"",Z16="FMS2019"),INDEX(Arkusz7!$U$2:$U$24,MATCH(Converter!D16,Arkusz7!$D$2:$D$24,-1)),"")&IF(AND(B16<>"",Z16="FMS259"),INDEX(Arkusz7!$U$2:$U$24,MATCH(Converter!D16,Arkusz7!$E$2:$E$24,-1)),"")&IF(AND(B16<>"",Z16="FMS2511"),INDEX(Arkusz7!$U$2:$U$24,MATCH(Converter!D16,Arkusz7!$F$2:$F$24,-1)),"")&IF(AND(B16<>"",Z16="FMS2514"),INDEX(Arkusz7!$U$2:$U$24,MATCH(Converter!D16,Arkusz7!$G$2:$G$24,-1)),"")&IF(AND(B16<>"",Z16="FMS2519"),INDEX(Arkusz7!$U$2:$U$24,MATCH(Converter!D16,Arkusz7!$H$2:$H$24,-1)),"")&IF(AND(B16<>"",Z16="FMS309"),INDEX(Arkusz7!$U$2:$U$24,MATCH(Converter!D16,Arkusz7!$I$2:$I$24,-1)),"")&IF(AND(B16<>"",Z16="FMS3011"),INDEX(Arkusz7!$U$2:$U$24,MATCH(Converter!D16,Arkusz7!$J$2:$J$24,-1)),"")&IF(AND(B16<>"",Z16="FMS3014"),INDEX(Arkusz7!$U$2:$U$24,MATCH(Converter!D16,Arkusz7!$K$2:$K$24,-1)),"")&IF(AND(B16<>"",Z16="FMS3019"),INDEX(Arkusz7!$U$2:$U$24,MATCH(Converter!D16,Arkusz7!$L$2:$L$24,-1)),"")&IF(AND(B16<>"",Z16="FMS349"),INDEX(Arkusz7!$U$2:$U$24,MATCH(Converter!D16,Arkusz7!$M$2:$M$24,-1)),"")&IF(AND(B16<>"",Z16="FMS3411"),INDEX(Arkusz7!$U$2:$U$24,MATCH(Converter!D16,Arkusz7!$N$2:$N$24,-1)),"")&IF(AND(B16<>"",Z16="FMS3414"),INDEX(Arkusz7!$U$2:$U$24,MATCH(Converter!D16,Arkusz7!$O$2:$O$24,-1)),"")&IF(AND(B16<>"",Z16="FMS3419"),INDEX(Arkusz7!$U$2:$U$24,MATCH(Converter!D16,Arkusz7!$P$2:$P$24,-1)),"")&IF(AND(B16<>"",Z16="FMS429"),INDEX(Arkusz7!$U$2:$U$24,MATCH(Converter!D16,Arkusz7!$Q$2:$Q$24,-1)),"")&IF(AND(B16<>"",Z16="FMS4211"),INDEX(Arkusz7!$U$2:$U$24,MATCH(Converter!D16,Arkusz7!$R$2:$R$24,-1)),"")&IF(AND(B16<>"",Z16="FMS4214"),INDEX(Arkusz7!$U$2:$U$24,MATCH(Converter!D16,Arkusz7!$S$2:$S$24,-1)),"")&IF(AND(B16<>"",Z16="FMS4219"),INDEX(Arkusz7!$U$2:$U$24,MATCH(Converter!D16,Arkusz7!$T$2:$T$24,-1)),"")&IF(AND(B16<>"",Z16="F1S177,5"),INDEX(Arkusz7!$AB$2:$AB$19,MATCH(Converter!D16,Arkusz7!$W$2:$W$19,-1)),"")&IF(AND(B16<>"",Z16="F1S207,5"),INDEX(Arkusz7!$AB$2:$AB$19,MATCH(Converter!D16,Arkusz7!$X$2:$X$19,-1)),"")&IF(AND(B16<>"",Z16="F1S237,5"),INDEX(Arkusz7!$AB$2:$AB$19,MATCH(Converter!D16,Arkusz7!$Y$2:$Y$19,-1)),"")&IF(AND(B16<>"",Z16="F1S2311"),INDEX(Arkusz7!$AB$2:$AB$19,MATCH(Converter!D16,Arkusz7!$Z$2:$Z$19,-1)),"")&IF(AND(B16<>"",Z16="F1S2511"),INDEX(Arkusz7!$AB$2:$AB$19,MATCH(Converter!D16,Arkusz7!$AA$2:$AA$19,-1)),"")&IF(AND(B16<>"",Z16="F2C2311"),INDEX(Arkusz7!$AI$2:$AI$7,MATCH(Converter!D16,Arkusz7!$AD$2:$AD$7,-1)),"")&IF(AND(B16<>"",Z16="F2C3417"),INDEX(Arkusz7!$AI$2:$AI$7,MATCH(Converter!D16,Arkusz7!$AE$2:$AE$7,-1)),"")&IF(AND(B16<>"",Z16="F2V3417"),INDEX(Arkusz7!$AI$2:$AI$7,MATCH(Converter!D16,Arkusz7!$AF$2:$AF$7,-1)),"")&IF(AND(B16<>"",Z16="F4C3417"),INDEX(Arkusz7!$AI$2:$AI$7,MATCH(Converter!D16,Arkusz7!$AG$2:$AG$7,-1)),"")&IF(AND(B16<>"",Z16="F4V3417"),INDEX(Arkusz7!$AI$2:$AI$7,MATCH(Converter!D16,Arkusz7!$AH$2:$AH$7,-1)),"") ->  | AE16: =IF(B16<>"",ROUND(ROUND(ROUND(ROUND(ROUND(ROUND(ROUND(ROUND(ROUND(ROUND(ROUND(ROUND(ROUND(VLOOKUP(AA16,NewAquilo!E:F,2,0)*NewAquilo!$B$21,0)*NewAquilo!$B$22,0)*NewAquilo!$B$23,0)*NewAquilo!$B$24,0)*NewAquilo!$B$25,0)*NewAquilo!$B$26,0)*NewAquilo!$B$27,0)*NewAquilo!$B$28,0)*NewAquilo!$B$29,0)*NewAquilo!$B$30,0)*NewAquilo!$B$31,0)*NewAquilo!$B$32,0)*NewAquilo!$B$33,0),"") ->  | AH16: =IF(B16<>"",VLOOKUP(AA16,NewAquilo!E:G,3,0),"") ->  | AI16: =IF(B16<>"",AH16-D16,"") ->  | AJ16: =IF(B16<>"",ROUND((AH16-D16)/D16,4),"") ->  | AY16: 200
N17: =IF(AND(B17<>"",R17="FMS209"),INDEX(Arkusz7!$U$2:$U$24,MATCH(Converter!D17,Arkusz7!$A$2:$A$24,-1)),"")&IF(AND(B17<>"",R17="FMS2011"),INDEX(Arkusz7!$U$2:$U$24,MATCH(Converter!D17,Arkusz7!$B$2:$B$24,-1)),"")&IF(AND(B17<>"",R17="FMS2014"),INDEX(Arkusz7!$U$2:$U$24,MATCH(Converter!D17,Arkusz7!$C$2:$C$24,-1)),"")&IF(AND(B17<>"",R17="FMS2019"),INDEX(Arkusz7!$U$2:$U$24,MATCH(Converter!D17,Arkusz7!$D$2:$D$24,-1)),"")&IF(AND(B17<>"",R17="FMS259"),INDEX(Arkusz7!$U$2:$U$24,MATCH(Converter!D17,Arkusz7!$E$2:$E$24,-1)),"")&IF(AND(B17<>"",R17="FMS2511"),INDEX(Arkusz7!$U$2:$U$24,MATCH(Converter!D17,Arkusz7!$F$2:$F$24,-1)),"")&IF(AND(B17<>"",R17="FMS2514"),INDEX(Arkusz7!$U$2:$U$24,MATCH(Converter!D17,Arkusz7!$G$2:$G$24,-1)),"")&IF(AND(B17<>"",R17="FMS2519"),INDEX(Arkusz7!$U$2:$U$24,MATCH(Converter!D17,Arkusz7!$H$2:$H$24,-1)),"")&IF(AND(B17<>"",R17="FMS309"),INDEX(Arkusz7!$U$2:$U$24,MATCH(Converter!D17,Arkusz7!$I$2:$I$24,-1)),"")&IF(AND(B17<>"",R17="FMS3011"),INDEX(Arkusz7!$U$2:$U$24,MATCH(Converter!D17,Arkusz7!$J$2:$J$24,-1)),"")&IF(AND(B17<>"",R17="FMS3014"),INDEX(Arkusz7!$U$2:$U$24,MATCH(Converter!D17,Arkusz7!$K$2:$K$24,-1)),"")&IF(AND(B17<>"",R17="FMS3019"),INDEX(Arkusz7!$U$2:$U$24,MATCH(Converter!D17,Arkusz7!$L$2:$L$24,-1)),"")&IF(AND(B17<>"",R17="FMS349"),INDEX(Arkusz7!$U$2:$U$24,MATCH(Converter!D17,Arkusz7!$M$2:$M$24,-1)),"")&IF(AND(B17<>"",R17="FMS3411"),INDEX(Arkusz7!$U$2:$U$24,MATCH(Converter!D17,Arkusz7!$N$2:$N$24,-1)),"")&IF(AND(B17<>"",R17="FMS3414"),INDEX(Arkusz7!$U$2:$U$24,MATCH(Converter!D17,Arkusz7!$O$2:$O$24,-1)),"")&IF(AND(B17<>"",R17="FMS3419"),INDEX(Arkusz7!$U$2:$U$24,MATCH(Converter!D17,Arkusz7!$P$2:$P$24,-1)),"")&IF(AND(B17<>"",R17="FMS429"),INDEX(Arkusz7!$U$2:$U$24,MATCH(Converter!D17,Arkusz7!$Q$2:$Q$24,-1)),"")&IF(AND(B17<>"",R17="FMS4211"),INDEX(Arkusz7!$U$2:$U$24,MATCH(Converter!D17,Arkusz7!$R$2:$R$24,-1)),"")&IF(AND(B17<>"",R17="FMS4214"),INDEX(Arkusz7!$U$2:$U$24,MATCH(Converter!D17,Arkusz7!$S$2:$S$24,-1)),"")&IF(AND(B17<>"",R17="FMS4219"),INDEX(Arkusz7!$U$2:$U$24,MATCH(Converter!D17,Arkusz7!$T$2:$T$24,-1)),"")&IF(AND(B17<>"",R17="F1S177,5"),INDEX(Arkusz7!$AB$2:$AB$19,MATCH(Converter!D17,Arkusz7!$W$2:$W$19,-1)),"")&IF(AND(B17<>"",R17="F1S207,5"),INDEX(Arkusz7!$AB$2:$AB$19,MATCH(Converter!D17,Arkusz7!$X$2:$X$19,-1)),"")&IF(AND(B17<>"",R17="F1S237,5"),INDEX(Arkusz7!$AB$2:$AB$19,MATCH(Converter!D17,Arkusz7!$Y$2:$Y$19,-1)),"")&IF(AND(B17<>"",R17="F1S2311"),INDEX(Arkusz7!$AB$2:$AB$19,MATCH(Converter!D17,Arkusz7!$Z$2:$Z$19,-1)),"")&IF(AND(B17<>"",R17="F1S2511"),INDEX(Arkusz7!$AB$2:$AB$19,MATCH(Converter!D17,Arkusz7!$AA$2:$AA$19,-1)),"")&IF(AND(B17<>"",R17="F2C2311"),INDEX(Arkusz7!$AI$2:$AI$7,MATCH(Converter!D17,Arkusz7!$AD$2:$AD$7,-1)),"")&IF(AND(B17<>"",R17="F2C3417"),INDEX(Arkusz7!$AI$2:$AI$7,MATCH(Converter!D17,Arkusz7!$AE$2:$AE$7,-1)),"")&IF(AND(B17<>"",R17="F2V3417"),INDEX(Arkusz7!$AI$2:$AI$7,MATCH(Converter!D17,Arkusz7!$AF$2:$AF$7,-1)),"")&IF(AND(B17<>"",R17="F4C3417"),INDEX(Arkusz7!$AI$2:$AI$7,MATCH(Converter!D17,Arkusz7!$AG$2:$AG$7,-1)),"")&IF(AND(B17<>"",R17="F4V3417"),INDEX(Arkusz7!$AI$2:$AI$7,MATCH(Converter!D17,Arkusz7!$AH$2:$AH$7,-1)),"") ->  | U17: =IF(AND(B17<>"",Z17="FMS209"),INDEX(Arkusz7!$U$2:$U$24,MATCH(Converter!D17,Arkusz7!$A$2:$A$24,-1)),"")&IF(AND(B17<>"",Z17="FMS2011"),INDEX(Arkusz7!$U$2:$U$24,MATCH(Converter!D17,Arkusz7!$B$2:$B$24,-1)),"")&IF(AND(B17<>"",Z17="FMS2014"),INDEX(Arkusz7!$U$2:$U$24,MATCH(Converter!D17,Arkusz7!$C$2:$C$24,-1)),"")&IF(AND(B17<>"",Z17="FMS2019"),INDEX(Arkusz7!$U$2:$U$24,MATCH(Converter!D17,Arkusz7!$D$2:$D$24,-1)),"")&IF(AND(B17<>"",Z17="FMS259"),INDEX(Arkusz7!$U$2:$U$24,MATCH(Converter!D17,Arkusz7!$E$2:$E$24,-1)),"")&IF(AND(B17<>"",Z17="FMS2511"),INDEX(Arkusz7!$U$2:$U$24,MATCH(Converter!D17,Arkusz7!$F$2:$F$24,-1)),"")&IF(AND(B17<>"",Z17="FMS2514"),INDEX(Arkusz7!$U$2:$U$24,MATCH(Converter!D17,Arkusz7!$G$2:$G$24,-1)),"")&IF(AND(B17<>"",Z17="FMS2519"),INDEX(Arkusz7!$U$2:$U$24,MATCH(Converter!D17,Arkusz7!$H$2:$H$24,-1)),"")&IF(AND(B17<>"",Z17="FMS309"),INDEX(Arkusz7!$U$2:$U$24,MATCH(Converter!D17,Arkusz7!$I$2:$I$24,-1)),"")&IF(AND(B17<>"",Z17="FMS3011"),INDEX(Arkusz7!$U$2:$U$24,MATCH(Converter!D17,Arkusz7!$J$2:$J$24,-1)),"")&IF(AND(B17<>"",Z17="FMS3014"),INDEX(Arkusz7!$U$2:$U$24,MATCH(Converter!D17,Arkusz7!$K$2:$K$24,-1)),"")&IF(AND(B17<>"",Z17="FMS3019"),INDEX(Arkusz7!$U$2:$U$24,MATCH(Converter!D17,Arkusz7!$L$2:$L$24,-1)),"")&IF(AND(B17<>"",Z17="FMS349"),INDEX(Arkusz7!$U$2:$U$24,MATCH(Converter!D17,Arkusz7!$M$2:$M$24,-1)),"")&IF(AND(B17<>"",Z17="FMS3411"),INDEX(Arkusz7!$U$2:$U$24,MATCH(Converter!D17,Arkusz7!$N$2:$N$24,-1)),"")&IF(AND(B17<>"",Z17="FMS3414"),INDEX(Arkusz7!$U$2:$U$24,MATCH(Converter!D17,Arkusz7!$O$2:$O$24,-1)),"")&IF(AND(B17<>"",Z17="FMS3419"),INDEX(Arkusz7!$U$2:$U$24,MATCH(Converter!D17,Arkusz7!$P$2:$P$24,-1)),"")&IF(AND(B17<>"",Z17="FMS429"),INDEX(Arkusz7!$U$2:$U$24,MATCH(Converter!D17,Arkusz7!$Q$2:$Q$24,-1)),"")&IF(AND(B17<>"",Z17="FMS4211"),INDEX(Arkusz7!$U$2:$U$24,MATCH(Converter!D17,Arkusz7!$R$2:$R$24,-1)),"")&IF(AND(B17<>"",Z17="FMS4214"),INDEX(Arkusz7!$U$2:$U$24,MATCH(Converter!D17,Arkusz7!$S$2:$S$24,-1)),"")&IF(AND(B17<>"",Z17="FMS4219"),INDEX(Arkusz7!$U$2:$U$24,MATCH(Converter!D17,Arkusz7!$T$2:$T$24,-1)),"")&IF(AND(B17<>"",Z17="F1S177,5"),INDEX(Arkusz7!$AB$2:$AB$19,MATCH(Converter!D17,Arkusz7!$W$2:$W$19,-1)),"")&IF(AND(B17<>"",Z17="F1S207,5"),INDEX(Arkusz7!$AB$2:$AB$19,MATCH(Converter!D17,Arkusz7!$X$2:$X$19,-1)),"")&IF(AND(B17<>"",Z17="F1S237,5"),INDEX(Arkusz7!$AB$2:$AB$19,MATCH(Converter!D17,Arkusz7!$Y$2:$Y$19,-1)),"")&IF(AND(B17<>"",Z17="F1S2311"),INDEX(Arkusz7!$AB$2:$AB$19,MATCH(Converter!D17,Arkusz7!$Z$2:$Z$19,-1)),"")&IF(AND(B17<>"",Z17="F1S2511"),INDEX(Arkusz7!$AB$2:$AB$19,MATCH(Converter!D17,Arkusz7!$AA$2:$AA$19,-1)),"")&IF(AND(B17<>"",Z17="F2C2311"),INDEX(Arkusz7!$AI$2:$AI$7,MATCH(Converter!D17,Arkusz7!$AD$2:$AD$7,-1)),"")&IF(AND(B17<>"",Z17="F2C3417"),INDEX(Arkusz7!$AI$2:$AI$7,MATCH(Converter!D17,Arkusz7!$AE$2:$AE$7,-1)),"")&IF(AND(B17<>"",Z17="F2V3417"),INDEX(Arkusz7!$AI$2:$AI$7,MATCH(Converter!D17,Arkusz7!$AF$2:$AF$7,-1)),"")&IF(AND(B17<>"",Z17="F4C3417"),INDEX(Arkusz7!$AI$2:$AI$7,MATCH(Converter!D17,Arkusz7!$AG$2:$AG$7,-1)),"")&IF(AND(B17<>"",Z17="F4V3417"),INDEX(Arkusz7!$AI$2:$AI$7,MATCH(Converter!D17,Arkusz7!$AH$2:$AH$7,-1)),"") ->  | AE17: =IF(B17<>"",ROUND(ROUND(ROUND(ROUND(ROUND(ROUND(ROUND(ROUND(ROUND(ROUND(ROUND(ROUND(ROUND(VLOOKUP(AA17,NewAquilo!E:F,2,0)*NewAquilo!$B$21,0)*NewAquilo!$B$22,0)*NewAquilo!$B$23,0)*NewAquilo!$B$24,0)*NewAquilo!$B$25,0)*NewAquilo!$B$26,0)*NewAquilo!$B$27,0)*NewAquilo!$B$28,0)*NewAquilo!$B$29,0)*NewAquilo!$B$30,0)*NewAquilo!$B$31,0)*NewAquilo!$B$32,0)*NewAquilo!$B$33,0),"") ->  | AH17: =IF(B17<>"",VLOOKUP(AA17,NewAquilo!E:G,3,0),"") ->  | AY17: 210
N18: =IF(AND(B18<>"",R18="FMS209"),INDEX(Arkusz7!$U$2:$U$24,MATCH(Converter!D18,Arkusz7!$A$2:$A$24,-1)),"")&IF(AND(B18<>"",R18="FMS2011"),INDEX(Arkusz7!$U$2:$U$24,MATCH(Converter!D18,Arkusz7!$B$2:$B$24,-1)),"")&IF(AND(B18<>"",R18="FMS2014"),INDEX(Arkusz7!$U$2:$U$24,MATCH(Converter!D18,Arkusz7!$C$2:$C$24,-1)),"")&IF(AND(B18<>"",R18="FMS2019"),INDEX(Arkusz7!$U$2:$U$24,MATCH(Converter!D18,Arkusz7!$D$2:$D$24,-1)),"")&IF(AND(B18<>"",R18="FMS259"),INDEX(Arkusz7!$U$2:$U$24,MATCH(Converter!D18,Arkusz7!$E$2:$E$24,-1)),"")&IF(AND(B18<>"",R18="FMS2511"),INDEX(Arkusz7!$U$2:$U$24,MATCH(Converter!D18,Arkusz7!$F$2:$F$24,-1)),"")&IF(AND(B18<>"",R18="FMS2514"),INDEX(Arkusz7!$U$2:$U$24,MATCH(Converter!D18,Arkusz7!$G$2:$G$24,-1)),"")&IF(AND(B18<>"",R18="FMS2519"),INDEX(Arkusz7!$U$2:$U$24,MATCH(Converter!D18,Arkusz7!$H$2:$H$24,-1)),"")&IF(AND(B18<>"",R18="FMS309"),INDEX(Arkusz7!$U$2:$U$24,MATCH(Converter!D18,Arkusz7!$I$2:$I$24,-1)),"")&IF(AND(B18<>"",R18="FMS3011"),INDEX(Arkusz7!$U$2:$U$24,MATCH(Converter!D18,Arkusz7!$J$2:$J$24,-1)),"")&IF(AND(B18<>"",R18="FMS3014"),INDEX(Arkusz7!$U$2:$U$24,MATCH(Converter!D18,Arkusz7!$K$2:$K$24,-1)),"")&IF(AND(B18<>"",R18="FMS3019"),INDEX(Arkusz7!$U$2:$U$24,MATCH(Converter!D18,Arkusz7!$L$2:$L$24,-1)),"")&IF(AND(B18<>"",R18="FMS349"),INDEX(Arkusz7!$U$2:$U$24,MATCH(Converter!D18,Arkusz7!$M$2:$M$24,-1)),"")&IF(AND(B18<>"",R18="FMS3411"),INDEX(Arkusz7!$U$2:$U$24,MATCH(Converter!D18,Arkusz7!$N$2:$N$24,-1)),"")&IF(AND(B18<>"",R18="FMS3414"),INDEX(Arkusz7!$U$2:$U$24,MATCH(Converter!D18,Arkusz7!$O$2:$O$24,-1)),"")&IF(AND(B18<>"",R18="FMS3419"),INDEX(Arkusz7!$U$2:$U$24,MATCH(Converter!D18,Arkusz7!$P$2:$P$24,-1)),"")&IF(AND(B18<>"",R18="FMS429"),INDEX(Arkusz7!$U$2:$U$24,MATCH(Converter!D18,Arkusz7!$Q$2:$Q$24,-1)),"")&IF(AND(B18<>"",R18="FMS4211"),INDEX(Arkusz7!$U$2:$U$24,MATCH(Converter!D18,Arkusz7!$R$2:$R$24,-1)),"")&IF(AND(B18<>"",R18="FMS4214"),INDEX(Arkusz7!$U$2:$U$24,MATCH(Converter!D18,Arkusz7!$S$2:$S$24,-1)),"")&IF(AND(B18<>"",R18="FMS4219"),INDEX(Arkusz7!$U$2:$U$24,MATCH(Converter!D18,Arkusz7!$T$2:$T$24,-1)),"")&IF(AND(B18<>"",R18="F1S177,5"),INDEX(Arkusz7!$AB$2:$AB$19,MATCH(Converter!D18,Arkusz7!$W$2:$W$19,-1)),"")&IF(AND(B18<>"",R18="F1S207,5"),INDEX(Arkusz7!$AB$2:$AB$19,MATCH(Converter!D18,Arkusz7!$X$2:$X$19,-1)),"")&IF(AND(B18<>"",R18="F1S237,5"),INDEX(Arkusz7!$AB$2:$AB$19,MATCH(Converter!D18,Arkusz7!$Y$2:$Y$19,-1)),"")&IF(AND(B18<>"",R18="F1S2311"),INDEX(Arkusz7!$AB$2:$AB$19,MATCH(Converter!D18,Arkusz7!$Z$2:$Z$19,-1)),"")&IF(AND(B18<>"",R18="F1S2511"),INDEX(Arkusz7!$AB$2:$AB$19,MATCH(Converter!D18,Arkusz7!$AA$2:$AA$19,-1)),"")&IF(AND(B18<>"",R18="F2C2311"),INDEX(Arkusz7!$AI$2:$AI$7,MATCH(Converter!D18,Arkusz7!$AD$2:$AD$7,-1)),"")&IF(AND(B18<>"",R18="F2C3417"),INDEX(Arkusz7!$AI$2:$AI$7,MATCH(Converter!D18,Arkusz7!$AE$2:$AE$7,-1)),"")&IF(AND(B18<>"",R18="F2V3417"),INDEX(Arkusz7!$AI$2:$AI$7,MATCH(Converter!D18,Arkusz7!$AF$2:$AF$7,-1)),"")&IF(AND(B18<>"",R18="F4C3417"),INDEX(Arkusz7!$AI$2:$AI$7,MATCH(Converter!D18,Arkusz7!$AG$2:$AG$7,-1)),"")&IF(AND(B18<>"",R18="F4V3417"),INDEX(Arkusz7!$AI$2:$AI$7,MATCH(Converter!D18,Arkusz7!$AH$2:$AH$7,-1)),"") ->  | U18: =IF(AND(B18<>"",Z18="FMS209"),INDEX(Arkusz7!$U$2:$U$24,MATCH(Converter!D18,Arkusz7!$A$2:$A$24,-1)),"")&IF(AND(B18<>"",Z18="FMS2011"),INDEX(Arkusz7!$U$2:$U$24,MATCH(Converter!D18,Arkusz7!$B$2:$B$24,-1)),"")&IF(AND(B18<>"",Z18="FMS2014"),INDEX(Arkusz7!$U$2:$U$24,MATCH(Converter!D18,Arkusz7!$C$2:$C$24,-1)),"")&IF(AND(B18<>"",Z18="FMS2019"),INDEX(Arkusz7!$U$2:$U$24,MATCH(Converter!D18,Arkusz7!$D$2:$D$24,-1)),"")&IF(AND(B18<>"",Z18="FMS259"),INDEX(Arkusz7!$U$2:$U$24,MATCH(Converter!D18,Arkusz7!$E$2:$E$24,-1)),"")&IF(AND(B18<>"",Z18="FMS2511"),INDEX(Arkusz7!$U$2:$U$24,MATCH(Converter!D18,Arkusz7!$F$2:$F$24,-1)),"")&IF(AND(B18<>"",Z18="FMS2514"),INDEX(Arkusz7!$U$2:$U$24,MATCH(Converter!D18,Arkusz7!$G$2:$G$24,-1)),"")&IF(AND(B18<>"",Z18="FMS2519"),INDEX(Arkusz7!$U$2:$U$24,MATCH(Converter!D18,Arkusz7!$H$2:$H$24,-1)),"")&IF(AND(B18<>"",Z18="FMS309"),INDEX(Arkusz7!$U$2:$U$24,MATCH(Converter!D18,Arkusz7!$I$2:$I$24,-1)),"")&IF(AND(B18<>"",Z18="FMS3011"),INDEX(Arkusz7!$U$2:$U$24,MATCH(Converter!D18,Arkusz7!$J$2:$J$24,-1)),"")&IF(AND(B18<>"",Z18="FMS3014"),INDEX(Arkusz7!$U$2:$U$24,MATCH(Converter!D18,Arkusz7!$K$2:$K$24,-1)),"")&IF(AND(B18<>"",Z18="FMS3019"),INDEX(Arkusz7!$U$2:$U$24,MATCH(Converter!D18,Arkusz7!$L$2:$L$24,-1)),"")&IF(AND(B18<>"",Z18="FMS349"),INDEX(Arkusz7!$U$2:$U$24,MATCH(Converter!D18,Arkusz7!$M$2:$M$24,-1)),"")&IF(AND(B18<>"",Z18="FMS3411"),INDEX(Arkusz7!$U$2:$U$24,MATCH(Converter!D18,Arkusz7!$N$2:$N$24,-1)),"")&IF(AND(B18<>"",Z18="FMS3414"),INDEX(Arkusz7!$U$2:$U$24,MATCH(Converter!D18,Arkusz7!$O$2:$O$24,-1)),"")&IF(AND(B18<>"",Z18="FMS3419"),INDEX(Arkusz7!$U$2:$U$24,MATCH(Converter!D18,Arkusz7!$P$2:$P$24,-1)),"")&IF(AND(B18<>"",Z18="FMS429"),INDEX(Arkusz7!$U$2:$U$24,MATCH(Converter!D18,Arkusz7!$Q$2:$Q$24,-1)),"")&IF(AND(B18<>"",Z18="FMS4211"),INDEX(Arkusz7!$U$2:$U$24,MATCH(Converter!D18,Arkusz7!$R$2:$R$24,-1)),"")&IF(AND(B18<>"",Z18="FMS4214"),INDEX(Arkusz7!$U$2:$U$24,MATCH(Converter!D18,Arkusz7!$S$2:$S$24,-1)),"")&IF(AND(B18<>"",Z18="FMS4219"),INDEX(Arkusz7!$U$2:$U$24,MATCH(Converter!D18,Arkusz7!$T$2:$T$24,-1)),"")&IF(AND(B18<>"",Z18="F1S177,5"),INDEX(Arkusz7!$AB$2:$AB$19,MATCH(Converter!D18,Arkusz7!$W$2:$W$19,-1)),"")&IF(AND(B18<>"",Z18="F1S207,5"),INDEX(Arkusz7!$AB$2:$AB$19,MATCH(Converter!D18,Arkusz7!$X$2:$X$19,-1)),"")&IF(AND(B18<>"",Z18="F1S237,5"),INDEX(Arkusz7!$AB$2:$AB$19,MATCH(Converter!D18,Arkusz7!$Y$2:$Y$19,-1)),"")&IF(AND(B18<>"",Z18="F1S2311"),INDEX(Arkusz7!$AB$2:$AB$19,MATCH(Converter!D18,Arkusz7!$Z$2:$Z$19,-1)),"")&IF(AND(B18<>"",Z18="F1S2511"),INDEX(Arkusz7!$AB$2:$AB$19,MATCH(Converter!D18,Arkusz7!$AA$2:$AA$19,-1)),"")&IF(AND(B18<>"",Z18="F2C2311"),INDEX(Arkusz7!$AI$2:$AI$7,MATCH(Converter!D18,Arkusz7!$AD$2:$AD$7,-1)),"")&IF(AND(B18<>"",Z18="F2C3417"),INDEX(Arkusz7!$AI$2:$AI$7,MATCH(Converter!D18,Arkusz7!$AE$2:$AE$7,-1)),"")&IF(AND(B18<>"",Z18="F2V3417"),INDEX(Arkusz7!$AI$2:$AI$7,MATCH(Converter!D18,Arkusz7!$AF$2:$AF$7,-1)),"")&IF(AND(B18<>"",Z18="F4C3417"),INDEX(Arkusz7!$AI$2:$AI$7,MATCH(Converter!D18,Arkusz7!$AG$2:$AG$7,-1)),"")&IF(AND(B18<>"",Z18="F4V3417"),INDEX(Arkusz7!$AI$2:$AI$7,MATCH(Converter!D18,Arkusz7!$AH$2:$AH$7,-1)),"") ->  | AE18: =IF(B18<>"",ROUND(ROUND(ROUND(ROUND(ROUND(ROUND(ROUND(ROUND(ROUND(ROUND(ROUND(ROUND(ROUND(VLOOKUP(AA18,NewAquilo!E:F,2,0)*NewAquilo!$B$21,0)*NewAquilo!$B$22,0)*NewAquilo!$B$23,0)*NewAquilo!$B$24,0)*NewAquilo!$B$25,0)*NewAquilo!$B$26,0)*NewAquilo!$B$27,0)*NewAquilo!$B$28,0)*NewAquilo!$B$29,0)*NewAquilo!$B$30,0)*NewAquilo!$B$31,0)*NewAquilo!$B$32,0)*NewAquilo!$B$33,0),"") ->  | AH18: =IF(B18<>"",VLOOKUP(AA18,NewAquilo!E:G,3,0),"") ->  | AY18: 220
N19: =IF(AND(B19<>"",R19="FMS209"),INDEX(Arkusz7!$U$2:$U$24,MATCH(Converter!D19,Arkusz7!$A$2:$A$24,-1)),"")&IF(AND(B19<>"",R19="FMS2011"),INDEX(Arkusz7!$U$2:$U$24,MATCH(Converter!D19,Arkusz7!$B$2:$B$24,-1)),"")&IF(AND(B19<>"",R19="FMS2014"),INDEX(Arkusz7!$U$2:$U$24,MATCH(Converter!D19,Arkusz7!$C$2:$C$24,-1)),"")&IF(AND(B19<>"",R19="FMS2019"),INDEX(Arkusz7!$U$2:$U$24,MATCH(Converter!D19,Arkusz7!$D$2:$D$24,-1)),"")&IF(AND(B19<>"",R19="FMS259"),INDEX(Arkusz7!$U$2:$U$24,MATCH(Converter!D19,Arkusz7!$E$2:$E$24,-1)),"")&IF(AND(B19<>"",R19="FMS2511"),INDEX(Arkusz7!$U$2:$U$24,MATCH(Converter!D19,Arkusz7!$F$2:$F$24,-1)),"")&IF(AND(B19<>"",R19="FMS2514"),INDEX(Arkusz7!$U$2:$U$24,MATCH(Converter!D19,Arkusz7!$G$2:$G$24,-1)),"")&IF(AND(B19<>"",R19="FMS2519"),INDEX(Arkusz7!$U$2:$U$24,MATCH(Converter!D19,Arkusz7!$H$2:$H$24,-1)),"")&IF(AND(B19<>"",R19="FMS309"),INDEX(Arkusz7!$U$2:$U$24,MATCH(Converter!D19,Arkusz7!$I$2:$I$24,-1)),"")&IF(AND(B19<>"",R19="FMS3011"),INDEX(Arkusz7!$U$2:$U$24,MATCH(Converter!D19,Arkusz7!$J$2:$J$24,-1)),"")&IF(AND(B19<>"",R19="FMS3014"),INDEX(Arkusz7!$U$2:$U$24,MATCH(Converter!D19,Arkusz7!$K$2:$K$24,-1)),"")&IF(AND(B19<>"",R19="FMS3019"),INDEX(Arkusz7!$U$2:$U$24,MATCH(Converter!D19,Arkusz7!$L$2:$L$24,-1)),"")&IF(AND(B19<>"",R19="FMS349"),INDEX(Arkusz7!$U$2:$U$24,MATCH(Converter!D19,Arkusz7!$M$2:$M$24,-1)),"")&IF(AND(B19<>"",R19="FMS3411"),INDEX(Arkusz7!$U$2:$U$24,MATCH(Converter!D19,Arkusz7!$N$2:$N$24,-1)),"")&IF(AND(B19<>"",R19="FMS3414"),INDEX(Arkusz7!$U$2:$U$24,MATCH(Converter!D19,Arkusz7!$O$2:$O$24,-1)),"")&IF(AND(B19<>"",R19="FMS3419"),INDEX(Arkusz7!$U$2:$U$24,MATCH(Converter!D19,Arkusz7!$P$2:$P$24,-1)),"")&IF(AND(B19<>"",R19="FMS429"),INDEX(Arkusz7!$U$2:$U$24,MATCH(Converter!D19,Arkusz7!$Q$2:$Q$24,-1)),"")&IF(AND(B19<>"",R19="FMS4211"),INDEX(Arkusz7!$U$2:$U$24,MATCH(Converter!D19,Arkusz7!$R$2:$R$24,-1)),"")&IF(AND(B19<>"",R19="FMS4214"),INDEX(Arkusz7!$U$2:$U$24,MATCH(Converter!D19,Arkusz7!$S$2:$S$24,-1)),"")&IF(AND(B19<>"",R19="FMS4219"),INDEX(Arkusz7!$U$2:$U$24,MATCH(Converter!D19,Arkusz7!$T$2:$T$24,-1)),"")&IF(AND(B19<>"",R19="F1S177,5"),INDEX(Arkusz7!$AB$2:$AB$19,MATCH(Converter!D19,Arkusz7!$W$2:$W$19,-1)),"")&IF(AND(B19<>"",R19="F1S207,5"),INDEX(Arkusz7!$AB$2:$AB$19,MATCH(Converter!D19,Arkusz7!$X$2:$X$19,-1)),"")&IF(AND(B19<>"",R19="F1S237,5"),INDEX(Arkusz7!$AB$2:$AB$19,MATCH(Converter!D19,Arkusz7!$Y$2:$Y$19,-1)),"")&IF(AND(B19<>"",R19="F1S2311"),INDEX(Arkusz7!$AB$2:$AB$19,MATCH(Converter!D19,Arkusz7!$Z$2:$Z$19,-1)),"")&IF(AND(B19<>"",R19="F1S2511"),INDEX(Arkusz7!$AB$2:$AB$19,MATCH(Converter!D19,Arkusz7!$AA$2:$AA$19,-1)),"")&IF(AND(B19<>"",R19="F2C2311"),INDEX(Arkusz7!$AI$2:$AI$7,MATCH(Converter!D19,Arkusz7!$AD$2:$AD$7,-1)),"")&IF(AND(B19<>"",R19="F2C3417"),INDEX(Arkusz7!$AI$2:$AI$7,MATCH(Converter!D19,Arkusz7!$AE$2:$AE$7,-1)),"")&IF(AND(B19<>"",R19="F2V3417"),INDEX(Arkusz7!$AI$2:$AI$7,MATCH(Converter!D19,Arkusz7!$AF$2:$AF$7,-1)),"")&IF(AND(B19<>"",R19="F4C3417"),INDEX(Arkusz7!$AI$2:$AI$7,MATCH(Converter!D19,Arkusz7!$AG$2:$AG$7,-1)),"")&IF(AND(B19<>"",R19="F4V3417"),INDEX(Arkusz7!$AI$2:$AI$7,MATCH(Converter!D19,Arkusz7!$AH$2:$AH$7,-1)),"") ->  | U19: =IF(AND(B19<>"",Z19="FMS209"),INDEX(Arkusz7!$U$2:$U$24,MATCH(Converter!D19,Arkusz7!$A$2:$A$24,-1)),"")&IF(AND(B19<>"",Z19="FMS2011"),INDEX(Arkusz7!$U$2:$U$24,MATCH(Converter!D19,Arkusz7!$B$2:$B$24,-1)),"")&IF(AND(B19<>"",Z19="FMS2014"),INDEX(Arkusz7!$U$2:$U$24,MATCH(Converter!D19,Arkusz7!$C$2:$C$24,-1)),"")&IF(AND(B19<>"",Z19="FMS2019"),INDEX(Arkusz7!$U$2:$U$24,MATCH(Converter!D19,Arkusz7!$D$2:$D$24,-1)),"")&IF(AND(B19<>"",Z19="FMS259"),INDEX(Arkusz7!$U$2:$U$24,MATCH(Converter!D19,Arkusz7!$E$2:$E$24,-1)),"")&IF(AND(B19<>"",Z19="FMS2511"),INDEX(Arkusz7!$U$2:$U$24,MATCH(Converter!D19,Arkusz7!$F$2:$F$24,-1)),"")&IF(AND(B19<>"",Z19="FMS2514"),INDEX(Arkusz7!$U$2:$U$24,MATCH(Converter!D19,Arkusz7!$G$2:$G$24,-1)),"")&IF(AND(B19<>"",Z19="FMS2519"),INDEX(Arkusz7!$U$2:$U$24,MATCH(Converter!D19,Arkusz7!$H$2:$H$24,-1)),"")&IF(AND(B19<>"",Z19="FMS309"),INDEX(Arkusz7!$U$2:$U$24,MATCH(Converter!D19,Arkusz7!$I$2:$I$24,-1)),"")&IF(AND(B19<>"",Z19="FMS3011"),INDEX(Arkusz7!$U$2:$U$24,MATCH(Converter!D19,Arkusz7!$J$2:$J$24,-1)),"")&IF(AND(B19<>"",Z19="FMS3014"),INDEX(Arkusz7!$U$2:$U$24,MATCH(Converter!D19,Arkusz7!$K$2:$K$24,-1)),"")&IF(AND(B19<>"",Z19="FMS3019"),INDEX(Arkusz7!$U$2:$U$24,MATCH(Converter!D19,Arkusz7!$L$2:$L$24,-1)),"")&IF(AND(B19<>"",Z19="FMS349"),INDEX(Arkusz7!$U$2:$U$24,MATCH(Converter!D19,Arkusz7!$M$2:$M$24,-1)),"")&IF(AND(B19<>"",Z19="FMS3411"),INDEX(Arkusz7!$U$2:$U$24,MATCH(Converter!D19,Arkusz7!$N$2:$N$24,-1)),"")&IF(AND(B19<>"",Z19="FMS3414"),INDEX(Arkusz7!$U$2:$U$24,MATCH(Converter!D19,Arkusz7!$O$2:$O$24,-1)),"")&IF(AND(B19<>"",Z19="FMS3419"),INDEX(Arkusz7!$U$2:$U$24,MATCH(Converter!D19,Arkusz7!$P$2:$P$24,-1)),"")&IF(AND(B19<>"",Z19="FMS429"),INDEX(Arkusz7!$U$2:$U$24,MATCH(Converter!D19,Arkusz7!$Q$2:$Q$24,-1)),"")&IF(AND(B19<>"",Z19="FMS4211"),INDEX(Arkusz7!$U$2:$U$24,MATCH(Converter!D19,Arkusz7!$R$2:$R$24,-1)),"")&IF(AND(B19<>"",Z19="FMS4214"),INDEX(Arkusz7!$U$2:$U$24,MATCH(Converter!D19,Arkusz7!$S$2:$S$24,-1)),"")&IF(AND(B19<>"",Z19="FMS4219"),INDEX(Arkusz7!$U$2:$U$24,MATCH(Converter!D19,Arkusz7!$T$2:$T$24,-1)),"")&IF(AND(B19<>"",Z19="F1S177,5"),INDEX(Arkusz7!$AB$2:$AB$19,MATCH(Converter!D19,Arkusz7!$W$2:$W$19,-1)),"")&IF(AND(B19<>"",Z19="F1S207,5"),INDEX(Arkusz7!$AB$2:$AB$19,MATCH(Converter!D19,Arkusz7!$X$2:$X$19,-1)),"")&IF(AND(B19<>"",Z19="F1S237,5"),INDEX(Arkusz7!$AB$2:$AB$19,MATCH(Converter!D19,Arkusz7!$Y$2:$Y$19,-1)),"")&IF(AND(B19<>"",Z19="F1S2311"),INDEX(Arkusz7!$AB$2:$AB$19,MATCH(Converter!D19,Arkusz7!$Z$2:$Z$19,-1)),"")&IF(AND(B19<>"",Z19="F1S2511"),INDEX(Arkusz7!$AB$2:$AB$19,MATCH(Converter!D19,Arkusz7!$AA$2:$AA$19,-1)),"")&IF(AND(B19<>"",Z19="F2C2311"),INDEX(Arkusz7!$AI$2:$AI$7,MATCH(Converter!D19,Arkusz7!$AD$2:$AD$7,-1)),"")&IF(AND(B19<>"",Z19="F2C3417"),INDEX(Arkusz7!$AI$2:$AI$7,MATCH(Converter!D19,Arkusz7!$AE$2:$AE$7,-1)),"")&IF(AND(B19<>"",Z19="F2V3417"),INDEX(Arkusz7!$AI$2:$AI$7,MATCH(Converter!D19,Arkusz7!$AF$2:$AF$7,-1)),"")&IF(AND(B19<>"",Z19="F4C3417"),INDEX(Arkusz7!$AI$2:$AI$7,MATCH(Converter!D19,Arkusz7!$AG$2:$AG$7,-1)),"")&IF(AND(B19<>"",Z19="F4V3417"),INDEX(Arkusz7!$AI$2:$AI$7,MATCH(Converter!D19,Arkusz7!$AH$2:$AH$7,-1)),"") ->  | AE19: =IF(B19<>"",ROUND(ROUND(ROUND(ROUND(ROUND(ROUND(ROUND(ROUND(ROUND(ROUND(ROUND(ROUND(ROUND(VLOOKUP(AA19,NewAquilo!E:F,2,0)*NewAquilo!$B$21,0)*NewAquilo!$B$22,0)*NewAquilo!$B$23,0)*NewAquilo!$B$24,0)*NewAquilo!$B$25,0)*NewAquilo!$B$26,0)*NewAquilo!$B$27,0)*NewAquilo!$B$28,0)*NewAquilo!$B$29,0)*NewAquilo!$B$30,0)*NewAquilo!$B$31,0)*NewAquilo!$B$32,0)*NewAquilo!$B$33,0),"") ->  | AH19: =IF(B19<>"",VLOOKUP(AA19,NewAquilo!E:G,3,0),"") ->  | AY19: 240
N20: =IF(AND(B20<>"",R20="FMS209"),INDEX(Arkusz7!$U$2:$U$24,MATCH(Converter!D20,Arkusz7!$A$2:$A$24,-1)),"")&IF(AND(B20<>"",R20="FMS2011"),INDEX(Arkusz7!$U$2:$U$24,MATCH(Converter!D20,Arkusz7!$B$2:$B$24,-1)),"")&IF(AND(B20<>"",R20="FMS2014"),INDEX(Arkusz7!$U$2:$U$24,MATCH(Converter!D20,Arkusz7!$C$2:$C$24,-1)),"")&IF(AND(B20<>"",R20="FMS2019"),INDEX(Arkusz7!$U$2:$U$24,MATCH(Converter!D20,Arkusz7!$D$2:$D$24,-1)),"")&IF(AND(B20<>"",R20="FMS259"),INDEX(Arkusz7!$U$2:$U$24,MATCH(Converter!D20,Arkusz7!$E$2:$E$24,-1)),"")&IF(AND(B20<>"",R20="FMS2511"),INDEX(Arkusz7!$U$2:$U$24,MATCH(Converter!D20,Arkusz7!$F$2:$F$24,-1)),"")&IF(AND(B20<>"",R20="FMS2514"),INDEX(Arkusz7!$U$2:$U$24,MATCH(Converter!D20,Arkusz7!$G$2:$G$24,-1)),"")&IF(AND(B20<>"",R20="FMS2519"),INDEX(Arkusz7!$U$2:$U$24,MATCH(Converter!D20,Arkusz7!$H$2:$H$24,-1)),"")&IF(AND(B20<>"",R20="FMS309"),INDEX(Arkusz7!$U$2:$U$24,MATCH(Converter!D20,Arkusz7!$I$2:$I$24,-1)),"")&IF(AND(B20<>"",R20="FMS3011"),INDEX(Arkusz7!$U$2:$U$24,MATCH(Converter!D20,Arkusz7!$J$2:$J$24,-1)),"")&IF(AND(B20<>"",R20="FMS3014"),INDEX(Arkusz7!$U$2:$U$24,MATCH(Converter!D20,Arkusz7!$K$2:$K$24,-1)),"")&IF(AND(B20<>"",R20="FMS3019"),INDEX(Arkusz7!$U$2:$U$24,MATCH(Converter!D20,Arkusz7!$L$2:$L$24,-1)),"")&IF(AND(B20<>"",R20="FMS349"),INDEX(Arkusz7!$U$2:$U$24,MATCH(Converter!D20,Arkusz7!$M$2:$M$24,-1)),"")&IF(AND(B20<>"",R20="FMS3411"),INDEX(Arkusz7!$U$2:$U$24,MATCH(Converter!D20,Arkusz7!$N$2:$N$24,-1)),"")&IF(AND(B20<>"",R20="FMS3414"),INDEX(Arkusz7!$U$2:$U$24,MATCH(Converter!D20,Arkusz7!$O$2:$O$24,-1)),"")&IF(AND(B20<>"",R20="FMS3419"),INDEX(Arkusz7!$U$2:$U$24,MATCH(Converter!D20,Arkusz7!$P$2:$P$24,-1)),"")&IF(AND(B20<>"",R20="FMS429"),INDEX(Arkusz7!$U$2:$U$24,MATCH(Converter!D20,Arkusz7!$Q$2:$Q$24,-1)),"")&IF(AND(B20<>"",R20="FMS4211"),INDEX(Arkusz7!$U$2:$U$24,MATCH(Converter!D20,Arkusz7!$R$2:$R$24,-1)),"")&IF(AND(B20<>"",R20="FMS4214"),INDEX(Arkusz7!$U$2:$U$24,MATCH(Converter!D20,Arkusz7!$S$2:$S$24,-1)),"")&IF(AND(B20<>"",R20="FMS4219"),INDEX(Arkusz7!$U$2:$U$24,MATCH(Converter!D20,Arkusz7!$T$2:$T$24,-1)),"")&IF(AND(B20<>"",R20="F1S177,5"),INDEX(Arkusz7!$AB$2:$AB$19,MATCH(Converter!D20,Arkusz7!$W$2:$W$19,-1)),"")&IF(AND(B20<>"",R20="F1S207,5"),INDEX(Arkusz7!$AB$2:$AB$19,MATCH(Converter!D20,Arkusz7!$X$2:$X$19,-1)),"")&IF(AND(B20<>"",R20="F1S237,5"),INDEX(Arkusz7!$AB$2:$AB$19,MATCH(Converter!D20,Arkusz7!$Y$2:$Y$19,-1)),"")&IF(AND(B20<>"",R20="F1S2311"),INDEX(Arkusz7!$AB$2:$AB$19,MATCH(Converter!D20,Arkusz7!$Z$2:$Z$19,-1)),"")&IF(AND(B20<>"",R20="F1S2511"),INDEX(Arkusz7!$AB$2:$AB$19,MATCH(Converter!D20,Arkusz7!$AA$2:$AA$19,-1)),"")&IF(AND(B20<>"",R20="F2C2311"),INDEX(Arkusz7!$AI$2:$AI$7,MATCH(Converter!D20,Arkusz7!$AD$2:$AD$7,-1)),"")&IF(AND(B20<>"",R20="F2C3417"),INDEX(Arkusz7!$AI$2:$AI$7,MATCH(Converter!D20,Arkusz7!$AE$2:$AE$7,-1)),"")&IF(AND(B20<>"",R20="F2V3417"),INDEX(Arkusz7!$AI$2:$AI$7,MATCH(Converter!D20,Arkusz7!$AF$2:$AF$7,-1)),"")&IF(AND(B20<>"",R20="F4C3417"),INDEX(Arkusz7!$AI$2:$AI$7,MATCH(Converter!D20,Arkusz7!$AG$2:$AG$7,-1)),"")&IF(AND(B20<>"",R20="F4V3417"),INDEX(Arkusz7!$AI$2:$AI$7,MATCH(Converter!D20,Arkusz7!$AH$2:$AH$7,-1)),"") ->  | U20: =IF(AND(B20<>"",Z20="FMS209"),INDEX(Arkusz7!$U$2:$U$24,MATCH(Converter!D20,Arkusz7!$A$2:$A$24,-1)),"")&IF(AND(B20<>"",Z20="FMS2011"),INDEX(Arkusz7!$U$2:$U$24,MATCH(Converter!D20,Arkusz7!$B$2:$B$24,-1)),"")&IF(AND(B20<>"",Z20="FMS2014"),INDEX(Arkusz7!$U$2:$U$24,MATCH(Converter!D20,Arkusz7!$C$2:$C$24,-1)),"")&IF(AND(B20<>"",Z20="FMS2019"),INDEX(Arkusz7!$U$2:$U$24,MATCH(Converter!D20,Arkusz7!$D$2:$D$24,-1)),"")&IF(AND(B20<>"",Z20="FMS259"),INDEX(Arkusz7!$U$2:$U$24,MATCH(Converter!D20,Arkusz7!$E$2:$E$24,-1)),"")&IF(AND(B20<>"",Z20="FMS2511"),INDEX(Arkusz7!$U$2:$U$24,MATCH(Converter!D20,Arkusz7!$F$2:$F$24,-1)),"")&IF(AND(B20<>"",Z20="FMS2514"),INDEX(Arkusz7!$U$2:$U$24,MATCH(Converter!D20,Arkusz7!$G$2:$G$24,-1)),"")&IF(AND(B20<>"",Z20="FMS2519"),INDEX(Arkusz7!$U$2:$U$24,MATCH(Converter!D20,Arkusz7!$H$2:$H$24,-1)),"")&IF(AND(B20<>"",Z20="FMS309"),INDEX(Arkusz7!$U$2:$U$24,MATCH(Converter!D20,Arkusz7!$I$2:$I$24,-1)),"")&IF(AND(B20<>"",Z20="FMS3011"),INDEX(Arkusz7!$U$2:$U$24,MATCH(Converter!D20,Arkusz7!$J$2:$J$24,-1)),"")&IF(AND(B20<>"",Z20="FMS3014"),INDEX(Arkusz7!$U$2:$U$24,MATCH(Converter!D20,Arkusz7!$K$2:$K$24,-1)),"")&IF(AND(B20<>"",Z20="FMS3019"),INDEX(Arkusz7!$U$2:$U$24,MATCH(Converter!D20,Arkusz7!$L$2:$L$24,-1)),"")&IF(AND(B20<>"",Z20="FMS349"),INDEX(Arkusz7!$U$2:$U$24,MATCH(Converter!D20,Arkusz7!$M$2:$M$24,-1)),"")&IF(AND(B20<>"",Z20="FMS3411"),INDEX(Arkusz7!$U$2:$U$24,MATCH(Converter!D20,Arkusz7!$N$2:$N$24,-1)),"")&IF(AND(B20<>"",Z20="FMS3414"),INDEX(Arkusz7!$U$2:$U$24,MATCH(Converter!D20,Arkusz7!$O$2:$O$24,-1)),"")&IF(AND(B20<>"",Z20="FMS3419"),INDEX(Arkusz7!$U$2:$U$24,MATCH(Converter!D20,Arkusz7!$P$2:$P$24,-1)),"")&IF(AND(B20<>"",Z20="FMS429"),INDEX(Arkusz7!$U$2:$U$24,MATCH(Converter!D20,Arkusz7!$Q$2:$Q$24,-1)),"")&IF(AND(B20<>"",Z20="FMS4211"),INDEX(Arkusz7!$U$2:$U$24,MATCH(Converter!D20,Arkusz7!$R$2:$R$24,-1)),"")&IF(AND(B20<>"",Z20="FMS4214"),INDEX(Arkusz7!$U$2:$U$24,MATCH(Converter!D20,Arkusz7!$S$2:$S$24,-1)),"")&IF(AND(B20<>"",Z20="FMS4219"),INDEX(Arkusz7!$U$2:$U$24,MATCH(Converter!D20,Arkusz7!$T$2:$T$24,-1)),"")&IF(AND(B20<>"",Z20="F1S177,5"),INDEX(Arkusz7!$AB$2:$AB$19,MATCH(Converter!D20,Arkusz7!$W$2:$W$19,-1)),"")&IF(AND(B20<>"",Z20="F1S207,5"),INDEX(Arkusz7!$AB$2:$AB$19,MATCH(Converter!D20,Arkusz7!$X$2:$X$19,-1)),"")&IF(AND(B20<>"",Z20="F1S237,5"),INDEX(Arkusz7!$AB$2:$AB$19,MATCH(Converter!D20,Arkusz7!$Y$2:$Y$19,-1)),"")&IF(AND(B20<>"",Z20="F1S2311"),INDEX(Arkusz7!$AB$2:$AB$19,MATCH(Converter!D20,Arkusz7!$Z$2:$Z$19,-1)),"")&IF(AND(B20<>"",Z20="F1S2511"),INDEX(Arkusz7!$AB$2:$AB$19,MATCH(Converter!D20,Arkusz7!$AA$2:$AA$19,-1)),"")&IF(AND(B20<>"",Z20="F2C2311"),INDEX(Arkusz7!$AI$2:$AI$7,MATCH(Converter!D20,Arkusz7!$AD$2:$AD$7,-1)),"")&IF(AND(B20<>"",Z20="F2C3417"),INDEX(Arkusz7!$AI$2:$AI$7,MATCH(Converter!D20,Arkusz7!$AE$2:$AE$7,-1)),"")&IF(AND(B20<>"",Z20="F2V3417"),INDEX(Arkusz7!$AI$2:$AI$7,MATCH(Converter!D20,Arkusz7!$AF$2:$AF$7,-1)),"")&IF(AND(B20<>"",Z20="F4C3417"),INDEX(Arkusz7!$AI$2:$AI$7,MATCH(Converter!D20,Arkusz7!$AG$2:$AG$7,-1)),"")&IF(AND(B20<>"",Z20="F4V3417"),INDEX(Arkusz7!$AI$2:$AI$7,MATCH(Converter!D20,Arkusz7!$AH$2:$AH$7,-1)),"") ->  | AE20: =IF(B20<>"",ROUND(ROUND(ROUND(ROUND(ROUND(ROUND(ROUND(ROUND(ROUND(ROUND(ROUND(ROUND(ROUND(VLOOKUP(AA20,NewAquilo!E:F,2,0)*NewAquilo!$B$21,0)*NewAquilo!$B$22,0)*NewAquilo!$B$23,0)*NewAquilo!$B$24,0)*NewAquilo!$B$25,0)*NewAquilo!$B$26,0)*NewAquilo!$B$27,0)*NewAquilo!$B$28,0)*NewAquilo!$B$29,0)*NewAquilo!$B$30,0)*NewAquilo!$B$31,0)*NewAquilo!$B$32,0)*NewAquilo!$B$33,0),"") ->  | AH20: =IF(B20<>"",VLOOKUP(AA20,NewAquilo!E:G,3,0),"") ->  | AY20: 250
N21: =IF(AND(B21<>"",R21="FMS209"),INDEX(Arkusz7!$U$2:$U$24,MATCH(Converter!D21,Arkusz7!$A$2:$A$24,-1)),"")&IF(AND(B21<>"",R21="FMS2011"),INDEX(Arkusz7!$U$2:$U$24,MATCH(Converter!D21,Arkusz7!$B$2:$B$24,-1)),"")&IF(AND(B21<>"",R21="FMS2014"),INDEX(Arkusz7!$U$2:$U$24,MATCH(Converter!D21,Arkusz7!$C$2:$C$24,-1)),"")&IF(AND(B21<>"",R21="FMS2019"),INDEX(Arkusz7!$U$2:$U$24,MATCH(Converter!D21,Arkusz7!$D$2:$D$24,-1)),"")&IF(AND(B21<>"",R21="FMS259"),INDEX(Arkusz7!$U$2:$U$24,MATCH(Converter!D21,Arkusz7!$E$2:$E$24,-1)),"")&IF(AND(B21<>"",R21="FMS2511"),INDEX(Arkusz7!$U$2:$U$24,MATCH(Converter!D21,Arkusz7!$F$2:$F$24,-1)),"")&IF(AND(B21<>"",R21="FMS2514"),INDEX(Arkusz7!$U$2:$U$24,MATCH(Converter!D21,Arkusz7!$G$2:$G$24,-1)),"")&IF(AND(B21<>"",R21="FMS2519"),INDEX(Arkusz7!$U$2:$U$24,MATCH(Converter!D21,Arkusz7!$H$2:$H$24,-1)),"")&IF(AND(B21<>"",R21="FMS309"),INDEX(Arkusz7!$U$2:$U$24,MATCH(Converter!D21,Arkusz7!$I$2:$I$24,-1)),"")&IF(AND(B21<>"",R21="FMS3011"),INDEX(Arkusz7!$U$2:$U$24,MATCH(Converter!D21,Arkusz7!$J$2:$J$24,-1)),"")&IF(AND(B21<>"",R21="FMS3014"),INDEX(Arkusz7!$U$2:$U$24,MATCH(Converter!D21,Arkusz7!$K$2:$K$24,-1)),"")&IF(AND(B21<>"",R21="FMS3019"),INDEX(Arkusz7!$U$2:$U$24,MATCH(Converter!D21,Arkusz7!$L$2:$L$24,-1)),"")&IF(AND(B21<>"",R21="FMS349"),INDEX(Arkusz7!$U$2:$U$24,MATCH(Converter!D21,Arkusz7!$M$2:$M$24,-1)),"")&IF(AND(B21<>"",R21="FMS3411"),INDEX(Arkusz7!$U$2:$U$24,MATCH(Converter!D21,Arkusz7!$N$2:$N$24,-1)),"")&IF(AND(B21<>"",R21="FMS3414"),INDEX(Arkusz7!$U$2:$U$24,MATCH(Converter!D21,Arkusz7!$O$2:$O$24,-1)),"")&IF(AND(B21<>"",R21="FMS3419"),INDEX(Arkusz7!$U$2:$U$24,MATCH(Converter!D21,Arkusz7!$P$2:$P$24,-1)),"")&IF(AND(B21<>"",R21="FMS429"),INDEX(Arkusz7!$U$2:$U$24,MATCH(Converter!D21,Arkusz7!$Q$2:$Q$24,-1)),"")&IF(AND(B21<>"",R21="FMS4211"),INDEX(Arkusz7!$U$2:$U$24,MATCH(Converter!D21,Arkusz7!$R$2:$R$24,-1)),"")&IF(AND(B21<>"",R21="FMS4214"),INDEX(Arkusz7!$U$2:$U$24,MATCH(Converter!D21,Arkusz7!$S$2:$S$24,-1)),"")&IF(AND(B21<>"",R21="FMS4219"),INDEX(Arkusz7!$U$2:$U$24,MATCH(Converter!D21,Arkusz7!$T$2:$T$24,-1)),"")&IF(AND(B21<>"",R21="F1S177,5"),INDEX(Arkusz7!$AB$2:$AB$19,MATCH(Converter!D21,Arkusz7!$W$2:$W$19,-1)),"")&IF(AND(B21<>"",R21="F1S207,5"),INDEX(Arkusz7!$AB$2:$AB$19,MATCH(Converter!D21,Arkusz7!$X$2:$X$19,-1)),"")&IF(AND(B21<>"",R21="F1S237,5"),INDEX(Arkusz7!$AB$2:$AB$19,MATCH(Converter!D21,Arkusz7!$Y$2:$Y$19,-1)),"")&IF(AND(B21<>"",R21="F1S2311"),INDEX(Arkusz7!$AB$2:$AB$19,MATCH(Converter!D21,Arkusz7!$Z$2:$Z$19,-1)),"")&IF(AND(B21<>"",R21="F1S2511"),INDEX(Arkusz7!$AB$2:$AB$19,MATCH(Converter!D21,Arkusz7!$AA$2:$AA$19,-1)),"")&IF(AND(B21<>"",R21="F2C2311"),INDEX(Arkusz7!$AI$2:$AI$7,MATCH(Converter!D21,Arkusz7!$AD$2:$AD$7,-1)),"")&IF(AND(B21<>"",R21="F2C3417"),INDEX(Arkusz7!$AI$2:$AI$7,MATCH(Converter!D21,Arkusz7!$AE$2:$AE$7,-1)),"")&IF(AND(B21<>"",R21="F2V3417"),INDEX(Arkusz7!$AI$2:$AI$7,MATCH(Converter!D21,Arkusz7!$AF$2:$AF$7,-1)),"")&IF(AND(B21<>"",R21="F4C3417"),INDEX(Arkusz7!$AI$2:$AI$7,MATCH(Converter!D21,Arkusz7!$AG$2:$AG$7,-1)),"")&IF(AND(B21<>"",R21="F4V3417"),INDEX(Arkusz7!$AI$2:$AI$7,MATCH(Converter!D21,Arkusz7!$AH$2:$AH$7,-1)),"") ->  | U21: =IF(AND(B21<>"",Z21="FMS209"),INDEX(Arkusz7!$U$2:$U$24,MATCH(Converter!D21,Arkusz7!$A$2:$A$24,-1)),"")&IF(AND(B21<>"",Z21="FMS2011"),INDEX(Arkusz7!$U$2:$U$24,MATCH(Converter!D21,Arkusz7!$B$2:$B$24,-1)),"")&IF(AND(B21<>"",Z21="FMS2014"),INDEX(Arkusz7!$U$2:$U$24,MATCH(Converter!D21,Arkusz7!$C$2:$C$24,-1)),"")&IF(AND(B21<>"",Z21="FMS2019"),INDEX(Arkusz7!$U$2:$U$24,MATCH(Converter!D21,Arkusz7!$D$2:$D$24,-1)),"")&IF(AND(B21<>"",Z21="FMS259"),INDEX(Arkusz7!$U$2:$U$24,MATCH(Converter!D21,Arkusz7!$E$2:$E$24,-1)),"")&IF(AND(B21<>"",Z21="FMS2511"),INDEX(Arkusz7!$U$2:$U$24,MATCH(Converter!D21,Arkusz7!$F$2:$F$24,-1)),"")&IF(AND(B21<>"",Z21="FMS2514"),INDEX(Arkusz7!$U$2:$U$24,MATCH(Converter!D21,Arkusz7!$G$2:$G$24,-1)),"")&IF(AND(B21<>"",Z21="FMS2519"),INDEX(Arkusz7!$U$2:$U$24,MATCH(Converter!D21,Arkusz7!$H$2:$H$24,-1)),"")&IF(AND(B21<>"",Z21="FMS309"),INDEX(Arkusz7!$U$2:$U$24,MATCH(Converter!D21,Arkusz7!$I$2:$I$24,-1)),"")&IF(AND(B21<>"",Z21="FMS3011"),INDEX(Arkusz7!$U$2:$U$24,MATCH(Converter!D21,Arkusz7!$J$2:$J$24,-1)),"")&IF(AND(B21<>"",Z21="FMS3014"),INDEX(Arkusz7!$U$2:$U$24,MATCH(Converter!D21,Arkusz7!$K$2:$K$24,-1)),"")&IF(AND(B21<>"",Z21="FMS3019"),INDEX(Arkusz7!$U$2:$U$24,MATCH(Converter!D21,Arkusz7!$L$2:$L$24,-1)),"")&IF(AND(B21<>"",Z21="FMS349"),INDEX(Arkusz7!$U$2:$U$24,MATCH(Converter!D21,Arkusz7!$M$2:$M$24,-1)),"")&IF(AND(B21<>"",Z21="FMS3411"),INDEX(Arkusz7!$U$2:$U$24,MATCH(Converter!D21,Arkusz7!$N$2:$N$24,-1)),"")&IF(AND(B21<>"",Z21="FMS3414"),INDEX(Arkusz7!$U$2:$U$24,MATCH(Converter!D21,Arkusz7!$O$2:$O$24,-1)),"")&IF(AND(B21<>"",Z21="FMS3419"),INDEX(Arkusz7!$U$2:$U$24,MATCH(Converter!D21,Arkusz7!$P$2:$P$24,-1)),"")&IF(AND(B21<>"",Z21="FMS429"),INDEX(Arkusz7!$U$2:$U$24,MATCH(Converter!D21,Arkusz7!$Q$2:$Q$24,-1)),"")&IF(AND(B21<>"",Z21="FMS4211"),INDEX(Arkusz7!$U$2:$U$24,MATCH(Converter!D21,Arkusz7!$R$2:$R$24,-1)),"")&IF(AND(B21<>"",Z21="FMS4214"),INDEX(Arkusz7!$U$2:$U$24,MATCH(Converter!D21,Arkusz7!$S$2:$S$24,-1)),"")&IF(AND(B21<>"",Z21="FMS4219"),INDEX(Arkusz7!$U$2:$U$24,MATCH(Converter!D21,Arkusz7!$T$2:$T$24,-1)),"")&IF(AND(B21<>"",Z21="F1S177,5"),INDEX(Arkusz7!$AB$2:$AB$19,MATCH(Converter!D21,Arkusz7!$W$2:$W$19,-1)),"")&IF(AND(B21<>"",Z21="F1S207,5"),INDEX(Arkusz7!$AB$2:$AB$19,MATCH(Converter!D21,Arkusz7!$X$2:$X$19,-1)),"")&IF(AND(B21<>"",Z21="F1S237,5"),INDEX(Arkusz7!$AB$2:$AB$19,MATCH(Converter!D21,Arkusz7!$Y$2:$Y$19,-1)),"")&IF(AND(B21<>"",Z21="F1S2311"),INDEX(Arkusz7!$AB$2:$AB$19,MATCH(Converter!D21,Arkusz7!$Z$2:$Z$19,-1)),"")&IF(AND(B21<>"",Z21="F1S2511"),INDEX(Arkusz7!$AB$2:$AB$19,MATCH(Converter!D21,Arkusz7!$AA$2:$AA$19,-1)),"")&IF(AND(B21<>"",Z21="F2C2311"),INDEX(Arkusz7!$AI$2:$AI$7,MATCH(Converter!D21,Arkusz7!$AD$2:$AD$7,-1)),"")&IF(AND(B21<>"",Z21="F2C3417"),INDEX(Arkusz7!$AI$2:$AI$7,MATCH(Converter!D21,Arkusz7!$AE$2:$AE$7,-1)),"")&IF(AND(B21<>"",Z21="F2V3417"),INDEX(Arkusz7!$AI$2:$AI$7,MATCH(Converter!D21,Arkusz7!$AF$2:$AF$7,-1)),"")&IF(AND(B21<>"",Z21="F4C3417"),INDEX(Arkusz7!$AI$2:$AI$7,MATCH(Converter!D21,Arkusz7!$AG$2:$AG$7,-1)),"")&IF(AND(B21<>"",Z21="F4V3417"),INDEX(Arkusz7!$AI$2:$AI$7,MATCH(Converter!D21,Arkusz7!$AH$2:$AH$7,-1)),"") ->  | AE21: =IF(B21<>"",ROUND(ROUND(ROUND(ROUND(ROUND(ROUND(ROUND(ROUND(ROUND(ROUND(ROUND(ROUND(ROUND(VLOOKUP(AA21,NewAquilo!E:F,2,0)*NewAquilo!$B$21,0)*NewAquilo!$B$22,0)*NewAquilo!$B$23,0)*NewAquilo!$B$24,0)*NewAquilo!$B$25,0)*NewAquilo!$B$26,0)*NewAquilo!$B$27,0)*NewAquilo!$B$28,0)*NewAquilo!$B$29,0)*NewAquilo!$B$30,0)*NewAquilo!$B$31,0)*NewAquilo!$B$32,0)*NewAquilo!$B$33,0),"") ->  | AH21: =IF(B21<>"",VLOOKUP(AA21,NewAquilo!E:G,3,0),"") ->  | AY21: 260
N22: =IF(AND(B22<>"",R22="FMS209"),INDEX(Arkusz7!$U$2:$U$24,MATCH(Converter!D22,Arkusz7!$A$2:$A$24,-1)),"")&IF(AND(B22<>"",R22="FMS2011"),INDEX(Arkusz7!$U$2:$U$24,MATCH(Converter!D22,Arkusz7!$B$2:$B$24,-1)),"")&IF(AND(B22<>"",R22="FMS2014"),INDEX(Arkusz7!$U$2:$U$24,MATCH(Converter!D22,Arkusz7!$C$2:$C$24,-1)),"")&IF(AND(B22<>"",R22="FMS2019"),INDEX(Arkusz7!$U$2:$U$24,MATCH(Converter!D22,Arkusz7!$D$2:$D$24,-1)),"")&IF(AND(B22<>"",R22="FMS259"),INDEX(Arkusz7!$U$2:$U$24,MATCH(Converter!D22,Arkusz7!$E$2:$E$24,-1)),"")&IF(AND(B22<>"",R22="FMS2511"),INDEX(Arkusz7!$U$2:$U$24,MATCH(Converter!D22,Arkusz7!$F$2:$F$24,-1)),"")&IF(AND(B22<>"",R22="FMS2514"),INDEX(Arkusz7!$U$2:$U$24,MATCH(Converter!D22,Arkusz7!$G$2:$G$24,-1)),"")&IF(AND(B22<>"",R22="FMS2519"),INDEX(Arkusz7!$U$2:$U$24,MATCH(Converter!D22,Arkusz7!$H$2:$H$24,-1)),"")&IF(AND(B22<>"",R22="FMS309"),INDEX(Arkusz7!$U$2:$U$24,MATCH(Converter!D22,Arkusz7!$I$2:$I$24,-1)),"")&IF(AND(B22<>"",R22="FMS3011"),INDEX(Arkusz7!$U$2:$U$24,MATCH(Converter!D22,Arkusz7!$J$2:$J$24,-1)),"")&IF(AND(B22<>"",R22="FMS3014"),INDEX(Arkusz7!$U$2:$U$24,MATCH(Converter!D22,Arkusz7!$K$2:$K$24,-1)),"")&IF(AND(B22<>"",R22="FMS3019"),INDEX(Arkusz7!$U$2:$U$24,MATCH(Converter!D22,Arkusz7!$L$2:$L$24,-1)),"")&IF(AND(B22<>"",R22="FMS349"),INDEX(Arkusz7!$U$2:$U$24,MATCH(Converter!D22,Arkusz7!$M$2:$M$24,-1)),"")&IF(AND(B22<>"",R22="FMS3411"),INDEX(Arkusz7!$U$2:$U$24,MATCH(Converter!D22,Arkusz7!$N$2:$N$24,-1)),"")&IF(AND(B22<>"",R22="FMS3414"),INDEX(Arkusz7!$U$2:$U$24,MATCH(Converter!D22,Arkusz7!$O$2:$O$24,-1)),"")&IF(AND(B22<>"",R22="FMS3419"),INDEX(Arkusz7!$U$2:$U$24,MATCH(Converter!D22,Arkusz7!$P$2:$P$24,-1)),"")&IF(AND(B22<>"",R22="FMS429"),INDEX(Arkusz7!$U$2:$U$24,MATCH(Converter!D22,Arkusz7!$Q$2:$Q$24,-1)),"")&IF(AND(B22<>"",R22="FMS4211"),INDEX(Arkusz7!$U$2:$U$24,MATCH(Converter!D22,Arkusz7!$R$2:$R$24,-1)),"")&IF(AND(B22<>"",R22="FMS4214"),INDEX(Arkusz7!$U$2:$U$24,MATCH(Converter!D22,Arkusz7!$S$2:$S$24,-1)),"")&IF(AND(B22<>"",R22="FMS4219"),INDEX(Arkusz7!$U$2:$U$24,MATCH(Converter!D22,Arkusz7!$T$2:$T$24,-1)),"")&IF(AND(B22<>"",R22="F1S177,5"),INDEX(Arkusz7!$AB$2:$AB$19,MATCH(Converter!D22,Arkusz7!$W$2:$W$19,-1)),"")&IF(AND(B22<>"",R22="F1S207,5"),INDEX(Arkusz7!$AB$2:$AB$19,MATCH(Converter!D22,Arkusz7!$X$2:$X$19,-1)),"")&IF(AND(B22<>"",R22="F1S237,5"),INDEX(Arkusz7!$AB$2:$AB$19,MATCH(Converter!D22,Arkusz7!$Y$2:$Y$19,-1)),"")&IF(AND(B22<>"",R22="F1S2311"),INDEX(Arkusz7!$AB$2:$AB$19,MATCH(Converter!D22,Arkusz7!$Z$2:$Z$19,-1)),"")&IF(AND(B22<>"",R22="F1S2511"),INDEX(Arkusz7!$AB$2:$AB$19,MATCH(Converter!D22,Arkusz7!$AA$2:$AA$19,-1)),"")&IF(AND(B22<>"",R22="F2C2311"),INDEX(Arkusz7!$AI$2:$AI$7,MATCH(Converter!D22,Arkusz7!$AD$2:$AD$7,-1)),"")&IF(AND(B22<>"",R22="F2C3417"),INDEX(Arkusz7!$AI$2:$AI$7,MATCH(Converter!D22,Arkusz7!$AE$2:$AE$7,-1)),"")&IF(AND(B22<>"",R22="F2V3417"),INDEX(Arkusz7!$AI$2:$AI$7,MATCH(Converter!D22,Arkusz7!$AF$2:$AF$7,-1)),"")&IF(AND(B22<>"",R22="F4C3417"),INDEX(Arkusz7!$AI$2:$AI$7,MATCH(Converter!D22,Arkusz7!$AG$2:$AG$7,-1)),"")&IF(AND(B22<>"",R22="F4V3417"),INDEX(Arkusz7!$AI$2:$AI$7,MATCH(Converter!D22,Arkusz7!$AH$2:$AH$7,-1)),"") ->  | U22: =IF(AND(B22<>"",Z22="FMS209"),INDEX(Arkusz7!$U$2:$U$24,MATCH(Converter!D22,Arkusz7!$A$2:$A$24,-1)),"")&IF(AND(B22<>"",Z22="FMS2011"),INDEX(Arkusz7!$U$2:$U$24,MATCH(Converter!D22,Arkusz7!$B$2:$B$24,-1)),"")&IF(AND(B22<>"",Z22="FMS2014"),INDEX(Arkusz7!$U$2:$U$24,MATCH(Converter!D22,Arkusz7!$C$2:$C$24,-1)),"")&IF(AND(B22<>"",Z22="FMS2019"),INDEX(Arkusz7!$U$2:$U$24,MATCH(Converter!D22,Arkusz7!$D$2:$D$24,-1)),"")&IF(AND(B22<>"",Z22="FMS259"),INDEX(Arkusz7!$U$2:$U$24,MATCH(Converter!D22,Arkusz7!$E$2:$E$24,-1)),"")&IF(AND(B22<>"",Z22="FMS2511"),INDEX(Arkusz7!$U$2:$U$24,MATCH(Converter!D22,Arkusz7!$F$2:$F$24,-1)),"")&IF(AND(B22<>"",Z22="FMS2514"),INDEX(Arkusz7!$U$2:$U$24,MATCH(Converter!D22,Arkusz7!$G$2:$G$24,-1)),"")&IF(AND(B22<>"",Z22="FMS2519"),INDEX(Arkusz7!$U$2:$U$24,MATCH(Converter!D22,Arkusz7!$H$2:$H$24,-1)),"")&IF(AND(B22<>"",Z22="FMS309"),INDEX(Arkusz7!$U$2:$U$24,MATCH(Converter!D22,Arkusz7!$I$2:$I$24,-1)),"")&IF(AND(B22<>"",Z22="FMS3011"),INDEX(Arkusz7!$U$2:$U$24,MATCH(Converter!D22,Arkusz7!$J$2:$J$24,-1)),"")&IF(AND(B22<>"",Z22="FMS3014"),INDEX(Arkusz7!$U$2:$U$24,MATCH(Converter!D22,Arkusz7!$K$2:$K$24,-1)),"")&IF(AND(B22<>"",Z22="FMS3019"),INDEX(Arkusz7!$U$2:$U$24,MATCH(Converter!D22,Arkusz7!$L$2:$L$24,-1)),"")&IF(AND(B22<>"",Z22="FMS349"),INDEX(Arkusz7!$U$2:$U$24,MATCH(Converter!D22,Arkusz7!$M$2:$M$24,-1)),"")&IF(AND(B22<>"",Z22="FMS3411"),INDEX(Arkusz7!$U$2:$U$24,MATCH(Converter!D22,Arkusz7!$N$2:$N$24,-1)),"")&IF(AND(B22<>"",Z22="FMS3414"),INDEX(Arkusz7!$U$2:$U$24,MATCH(Converter!D22,Arkusz7!$O$2:$O$24,-1)),"")&IF(AND(B22<>"",Z22="FMS3419"),INDEX(Arkusz7!$U$2:$U$24,MATCH(Converter!D22,Arkusz7!$P$2:$P$24,-1)),"")&IF(AND(B22<>"",Z22="FMS429"),INDEX(Arkusz7!$U$2:$U$24,MATCH(Converter!D22,Arkusz7!$Q$2:$Q$24,-1)),"")&IF(AND(B22<>"",Z22="FMS4211"),INDEX(Arkusz7!$U$2:$U$24,MATCH(Converter!D22,Arkusz7!$R$2:$R$24,-1)),"")&IF(AND(B22<>"",Z22="FMS4214"),INDEX(Arkusz7!$U$2:$U$24,MATCH(Converter!D22,Arkusz7!$S$2:$S$24,-1)),"")&IF(AND(B22<>"",Z22="FMS4219"),INDEX(Arkusz7!$U$2:$U$24,MATCH(Converter!D22,Arkusz7!$T$2:$T$24,-1)),"")&IF(AND(B22<>"",Z22="F1S177,5"),INDEX(Arkusz7!$AB$2:$AB$19,MATCH(Converter!D22,Arkusz7!$W$2:$W$19,-1)),"")&IF(AND(B22<>"",Z22="F1S207,5"),INDEX(Arkusz7!$AB$2:$AB$19,MATCH(Converter!D22,Arkusz7!$X$2:$X$19,-1)),"")&IF(AND(B22<>"",Z22="F1S237,5"),INDEX(Arkusz7!$AB$2:$AB$19,MATCH(Converter!D22,Arkusz7!$Y$2:$Y$19,-1)),"")&IF(AND(B22<>"",Z22="F1S2311"),INDEX(Arkusz7!$AB$2:$AB$19,MATCH(Converter!D22,Arkusz7!$Z$2:$Z$19,-1)),"")&IF(AND(B22<>"",Z22="F1S2511"),INDEX(Arkusz7!$AB$2:$AB$19,MATCH(Converter!D22,Arkusz7!$AA$2:$AA$19,-1)),"")&IF(AND(B22<>"",Z22="F2C2311"),INDEX(Arkusz7!$AI$2:$AI$7,MATCH(Converter!D22,Arkusz7!$AD$2:$AD$7,-1)),"")&IF(AND(B22<>"",Z22="F2C3417"),INDEX(Arkusz7!$AI$2:$AI$7,MATCH(Converter!D22,Arkusz7!$AE$2:$AE$7,-1)),"")&IF(AND(B22<>"",Z22="F2V3417"),INDEX(Arkusz7!$AI$2:$AI$7,MATCH(Converter!D22,Arkusz7!$AF$2:$AF$7,-1)),"")&IF(AND(B22<>"",Z22="F4C3417"),INDEX(Arkusz7!$AI$2:$AI$7,MATCH(Converter!D22,Arkusz7!$AG$2:$AG$7,-1)),"")&IF(AND(B22<>"",Z22="F4V3417"),INDEX(Arkusz7!$AI$2:$AI$7,MATCH(Converter!D22,Arkusz7!$AH$2:$AH$7,-1)),"") ->  | AE22: =IF(B22<>"",ROUND(ROUND(ROUND(ROUND(ROUND(ROUND(ROUND(ROUND(ROUND(ROUND(ROUND(ROUND(ROUND(VLOOKUP(AA22,NewAquilo!E:F,2,0)*NewAquilo!$B$21,0)*NewAquilo!$B$22,0)*NewAquilo!$B$23,0)*NewAquilo!$B$24,0)*NewAquilo!$B$25,0)*NewAquilo!$B$26,0)*NewAquilo!$B$27,0)*NewAquilo!$B$28,0)*NewAquilo!$B$29,0)*NewAquilo!$B$30,0)*NewAquilo!$B$31,0)*NewAquilo!$B$32,0)*NewAquilo!$B$33,0),"") ->  | AH22: =IF(B22<>"",VLOOKUP(AA22,NewAquilo!E:G,3,0),"") ->  | AY22: 270
N23: =IF(AND(B23<>"",R23="FMS209"),INDEX(Arkusz7!$U$2:$U$24,MATCH(Converter!D23,Arkusz7!$A$2:$A$24,-1)),"")&IF(AND(B23<>"",R23="FMS2011"),INDEX(Arkusz7!$U$2:$U$24,MATCH(Converter!D23,Arkusz7!$B$2:$B$24,-1)),"")&IF(AND(B23<>"",R23="FMS2014"),INDEX(Arkusz7!$U$2:$U$24,MATCH(Converter!D23,Arkusz7!$C$2:$C$24,-1)),"")&IF(AND(B23<>"",R23="FMS2019"),INDEX(Arkusz7!$U$2:$U$24,MATCH(Converter!D23,Arkusz7!$D$2:$D$24,-1)),"")&IF(AND(B23<>"",R23="FMS259"),INDEX(Arkusz7!$U$2:$U$24,MATCH(Converter!D23,Arkusz7!$E$2:$E$24,-1)),"")&IF(AND(B23<>"",R23="FMS2511"),INDEX(Arkusz7!$U$2:$U$24,MATCH(Converter!D23,Arkusz7!$F$2:$F$24,-1)),"")&IF(AND(B23<>"",R23="FMS2514"),INDEX(Arkusz7!$U$2:$U$24,MATCH(Converter!D23,Arkusz7!$G$2:$G$24,-1)),"")&IF(AND(B23<>"",R23="FMS2519"),INDEX(Arkusz7!$U$2:$U$24,MATCH(Converter!D23,Arkusz7!$H$2:$H$24,-1)),"")&IF(AND(B23<>"",R23="FMS309"),INDEX(Arkusz7!$U$2:$U$24,MATCH(Converter!D23,Arkusz7!$I$2:$I$24,-1)),"")&IF(AND(B23<>"",R23="FMS3011"),INDEX(Arkusz7!$U$2:$U$24,MATCH(Converter!D23,Arkusz7!$J$2:$J$24,-1)),"")&IF(AND(B23<>"",R23="FMS3014"),INDEX(Arkusz7!$U$2:$U$24,MATCH(Converter!D23,Arkusz7!$K$2:$K$24,-1)),"")&IF(AND(B23<>"",R23="FMS3019"),INDEX(Arkusz7!$U$2:$U$24,MATCH(Converter!D23,Arkusz7!$L$2:$L$24,-1)),"")&IF(AND(B23<>"",R23="FMS349"),INDEX(Arkusz7!$U$2:$U$24,MATCH(Converter!D23,Arkusz7!$M$2:$M$24,-1)),"")&IF(AND(B23<>"",R23="FMS3411"),INDEX(Arkusz7!$U$2:$U$24,MATCH(Converter!D23,Arkusz7!$N$2:$N$24,-1)),"")&IF(AND(B23<>"",R23="FMS3414"),INDEX(Arkusz7!$U$2:$U$24,MATCH(Converter!D23,Arkusz7!$O$2:$O$24,-1)),"")&IF(AND(B23<>"",R23="FMS3419"),INDEX(Arkusz7!$U$2:$U$24,MATCH(Converter!D23,Arkusz7!$P$2:$P$24,-1)),"")&IF(AND(B23<>"",R23="FMS429"),INDEX(Arkusz7!$U$2:$U$24,MATCH(Converter!D23,Arkusz7!$Q$2:$Q$24,-1)),"")&IF(AND(B23<>"",R23="FMS4211"),INDEX(Arkusz7!$U$2:$U$24,MATCH(Converter!D23,Arkusz7!$R$2:$R$24,-1)),"")&IF(AND(B23<>"",R23="FMS4214"),INDEX(Arkusz7!$U$2:$U$24,MATCH(Converter!D23,Arkusz7!$S$2:$S$24,-1)),"")&IF(AND(B23<>"",R23="FMS4219"),INDEX(Arkusz7!$U$2:$U$24,MATCH(Converter!D23,Arkusz7!$T$2:$T$24,-1)),"")&IF(AND(B23<>"",R23="F1S177,5"),INDEX(Arkusz7!$AB$2:$AB$19,MATCH(Converter!D23,Arkusz7!$W$2:$W$19,-1)),"")&IF(AND(B23<>"",R23="F1S207,5"),INDEX(Arkusz7!$AB$2:$AB$19,MATCH(Converter!D23,Arkusz7!$X$2:$X$19,-1)),"")&IF(AND(B23<>"",R23="F1S237,5"),INDEX(Arkusz7!$AB$2:$AB$19,MATCH(Converter!D23,Arkusz7!$Y$2:$Y$19,-1)),"")&IF(AND(B23<>"",R23="F1S2311"),INDEX(Arkusz7!$AB$2:$AB$19,MATCH(Converter!D23,Arkusz7!$Z$2:$Z$19,-1)),"")&IF(AND(B23<>"",R23="F1S2511"),INDEX(Arkusz7!$AB$2:$AB$19,MATCH(Converter!D23,Arkusz7!$AA$2:$AA$19,-1)),"")&IF(AND(B23<>"",R23="F2C2311"),INDEX(Arkusz7!$AI$2:$AI$7,MATCH(Converter!D23,Arkusz7!$AD$2:$AD$7,-1)),"")&IF(AND(B23<>"",R23="F2C3417"),INDEX(Arkusz7!$AI$2:$AI$7,MATCH(Converter!D23,Arkusz7!$AE$2:$AE$7,-1)),"")&IF(AND(B23<>"",R23="F2V3417"),INDEX(Arkusz7!$AI$2:$AI$7,MATCH(Converter!D23,Arkusz7!$AF$2:$AF$7,-1)),"")&IF(AND(B23<>"",R23="F4C3417"),INDEX(Arkusz7!$AI$2:$AI$7,MATCH(Converter!D23,Arkusz7!$AG$2:$AG$7,-1)),"")&IF(AND(B23<>"",R23="F4V3417"),INDEX(Arkusz7!$AI$2:$AI$7,MATCH(Converter!D23,Arkusz7!$AH$2:$AH$7,-1)),"") ->  | U23: =IF(AND(B23<>"",Z23="FMS209"),INDEX(Arkusz7!$U$2:$U$24,MATCH(Converter!D23,Arkusz7!$A$2:$A$24,-1)),"")&IF(AND(B23<>"",Z23="FMS2011"),INDEX(Arkusz7!$U$2:$U$24,MATCH(Converter!D23,Arkusz7!$B$2:$B$24,-1)),"")&IF(AND(B23<>"",Z23="FMS2014"),INDEX(Arkusz7!$U$2:$U$24,MATCH(Converter!D23,Arkusz7!$C$2:$C$24,-1)),"")&IF(AND(B23<>"",Z23="FMS2019"),INDEX(Arkusz7!$U$2:$U$24,MATCH(Converter!D23,Arkusz7!$D$2:$D$24,-1)),"")&IF(AND(B23<>"",Z23="FMS259"),INDEX(Arkusz7!$U$2:$U$24,MATCH(Converter!D23,Arkusz7!$E$2:$E$24,-1)),"")&IF(AND(B23<>"",Z23="FMS2511"),INDEX(Arkusz7!$U$2:$U$24,MATCH(Converter!D23,Arkusz7!$F$2:$F$24,-1)),"")&IF(AND(B23<>"",Z23="FMS2514"),INDEX(Arkusz7!$U$2:$U$24,MATCH(Converter!D23,Arkusz7!$G$2:$G$24,-1)),"")&IF(AND(B23<>"",Z23="FMS2519"),INDEX(Arkusz7!$U$2:$U$24,MATCH(Converter!D23,Arkusz7!$H$2:$H$24,-1)),"")&IF(AND(B23<>"",Z23="FMS309"),INDEX(Arkusz7!$U$2:$U$24,MATCH(Converter!D23,Arkusz7!$I$2:$I$24,-1)),"")&IF(AND(B23<>"",Z23="FMS3011"),INDEX(Arkusz7!$U$2:$U$24,MATCH(Converter!D23,Arkusz7!$J$2:$J$24,-1)),"")&IF(AND(B23<>"",Z23="FMS3014"),INDEX(Arkusz7!$U$2:$U$24,MATCH(Converter!D23,Arkusz7!$K$2:$K$24,-1)),"")&IF(AND(B23<>"",Z23="FMS3019"),INDEX(Arkusz7!$U$2:$U$24,MATCH(Converter!D23,Arkusz7!$L$2:$L$24,-1)),"")&IF(AND(B23<>"",Z23="FMS349"),INDEX(Arkusz7!$U$2:$U$24,MATCH(Converter!D23,Arkusz7!$M$2:$M$24,-1)),"")&IF(AND(B23<>"",Z23="FMS3411"),INDEX(Arkusz7!$U$2:$U$24,MATCH(Converter!D23,Arkusz7!$N$2:$N$24,-1)),"")&IF(AND(B23<>"",Z23="FMS3414"),INDEX(Arkusz7!$U$2:$U$24,MATCH(Converter!D23,Arkusz7!$O$2:$O$24,-1)),"")&IF(AND(B23<>"",Z23="FMS3419"),INDEX(Arkusz7!$U$2:$U$24,MATCH(Converter!D23,Arkusz7!$P$2:$P$24,-1)),"")&IF(AND(B23<>"",Z23="FMS429"),INDEX(Arkusz7!$U$2:$U$24,MATCH(Converter!D23,Arkusz7!$Q$2:$Q$24,-1)),"")&IF(AND(B23<>"",Z23="FMS4211"),INDEX(Arkusz7!$U$2:$U$24,MATCH(Converter!D23,Arkusz7!$R$2:$R$24,-1)),"")&IF(AND(B23<>"",Z23="FMS4214"),INDEX(Arkusz7!$U$2:$U$24,MATCH(Converter!D23,Arkusz7!$S$2:$S$24,-1)),"")&IF(AND(B23<>"",Z23="FMS4219"),INDEX(Arkusz7!$U$2:$U$24,MATCH(Converter!D23,Arkusz7!$T$2:$T$24,-1)),"")&IF(AND(B23<>"",Z23="F1S177,5"),INDEX(Arkusz7!$AB$2:$AB$19,MATCH(Converter!D23,Arkusz7!$W$2:$W$19,-1)),"")&IF(AND(B23<>"",Z23="F1S207,5"),INDEX(Arkusz7!$AB$2:$AB$19,MATCH(Converter!D23,Arkusz7!$X$2:$X$19,-1)),"")&IF(AND(B23<>"",Z23="F1S237,5"),INDEX(Arkusz7!$AB$2:$AB$19,MATCH(Converter!D23,Arkusz7!$Y$2:$Y$19,-1)),"")&IF(AND(B23<>"",Z23="F1S2311"),INDEX(Arkusz7!$AB$2:$AB$19,MATCH(Converter!D23,Arkusz7!$Z$2:$Z$19,-1)),"")&IF(AND(B23<>"",Z23="F1S2511"),INDEX(Arkusz7!$AB$2:$AB$19,MATCH(Converter!D23,Arkusz7!$AA$2:$AA$19,-1)),"")&IF(AND(B23<>"",Z23="F2C2311"),INDEX(Arkusz7!$AI$2:$AI$7,MATCH(Converter!D23,Arkusz7!$AD$2:$AD$7,-1)),"")&IF(AND(B23<>"",Z23="F2C3417"),INDEX(Arkusz7!$AI$2:$AI$7,MATCH(Converter!D23,Arkusz7!$AE$2:$AE$7,-1)),"")&IF(AND(B23<>"",Z23="F2V3417"),INDEX(Arkusz7!$AI$2:$AI$7,MATCH(Converter!D23,Arkusz7!$AF$2:$AF$7,-1)),"")&IF(AND(B23<>"",Z23="F4C3417"),INDEX(Arkusz7!$AI$2:$AI$7,MATCH(Converter!D23,Arkusz7!$AG$2:$AG$7,-1)),"")&IF(AND(B23<>"",Z23="F4V3417"),INDEX(Arkusz7!$AI$2:$AI$7,MATCH(Converter!D23,Arkusz7!$AH$2:$AH$7,-1)),"") ->  | AE23: =IF(B23<>"",ROUND(ROUND(ROUND(ROUND(ROUND(ROUND(ROUND(ROUND(ROUND(ROUND(ROUND(ROUND(ROUND(VLOOKUP(AA23,NewAquilo!E:F,2,0)*NewAquilo!$B$21,0)*NewAquilo!$B$22,0)*NewAquilo!$B$23,0)*NewAquilo!$B$24,0)*NewAquilo!$B$25,0)*NewAquilo!$B$26,0)*NewAquilo!$B$27,0)*NewAquilo!$B$28,0)*NewAquilo!$B$29,0)*NewAquilo!$B$30,0)*NewAquilo!$B$31,0)*NewAquilo!$B$32,0)*NewAquilo!$B$33,0),"") ->  | AH23: =IF(B23<>"",VLOOKUP(AA23,NewAquilo!E:G,3,0),"") ->  | AY23: 280
N24: =IF(AND(B24<>"",R24="FMS209"),INDEX(Arkusz7!$U$2:$U$24,MATCH(Converter!D24,Arkusz7!$A$2:$A$24,-1)),"")&IF(AND(B24<>"",R24="FMS2011"),INDEX(Arkusz7!$U$2:$U$24,MATCH(Converter!D24,Arkusz7!$B$2:$B$24,-1)),"")&IF(AND(B24<>"",R24="FMS2014"),INDEX(Arkusz7!$U$2:$U$24,MATCH(Converter!D24,Arkusz7!$C$2:$C$24,-1)),"")&IF(AND(B24<>"",R24="FMS2019"),INDEX(Arkusz7!$U$2:$U$24,MATCH(Converter!D24,Arkusz7!$D$2:$D$24,-1)),"")&IF(AND(B24<>"",R24="FMS259"),INDEX(Arkusz7!$U$2:$U$24,MATCH(Converter!D24,Arkusz7!$E$2:$E$24,-1)),"")&IF(AND(B24<>"",R24="FMS2511"),INDEX(Arkusz7!$U$2:$U$24,MATCH(Converter!D24,Arkusz7!$F$2:$F$24,-1)),"")&IF(AND(B24<>"",R24="FMS2514"),INDEX(Arkusz7!$U$2:$U$24,MATCH(Converter!D24,Arkusz7!$G$2:$G$24,-1)),"")&IF(AND(B24<>"",R24="FMS2519"),INDEX(Arkusz7!$U$2:$U$24,MATCH(Converter!D24,Arkusz7!$H$2:$H$24,-1)),"")&IF(AND(B24<>"",R24="FMS309"),INDEX(Arkusz7!$U$2:$U$24,MATCH(Converter!D24,Arkusz7!$I$2:$I$24,-1)),"")&IF(AND(B24<>"",R24="FMS3011"),INDEX(Arkusz7!$U$2:$U$24,MATCH(Converter!D24,Arkusz7!$J$2:$J$24,-1)),"")&IF(AND(B24<>"",R24="FMS3014"),INDEX(Arkusz7!$U$2:$U$24,MATCH(Converter!D24,Arkusz7!$K$2:$K$24,-1)),"")&IF(AND(B24<>"",R24="FMS3019"),INDEX(Arkusz7!$U$2:$U$24,MATCH(Converter!D24,Arkusz7!$L$2:$L$24,-1)),"")&IF(AND(B24<>"",R24="FMS349"),INDEX(Arkusz7!$U$2:$U$24,MATCH(Converter!D24,Arkusz7!$M$2:$M$24,-1)),"")&IF(AND(B24<>"",R24="FMS3411"),INDEX(Arkusz7!$U$2:$U$24,MATCH(Converter!D24,Arkusz7!$N$2:$N$24,-1)),"")&IF(AND(B24<>"",R24="FMS3414"),INDEX(Arkusz7!$U$2:$U$24,MATCH(Converter!D24,Arkusz7!$O$2:$O$24,-1)),"")&IF(AND(B24<>"",R24="FMS3419"),INDEX(Arkusz7!$U$2:$U$24,MATCH(Converter!D24,Arkusz7!$P$2:$P$24,-1)),"")&IF(AND(B24<>"",R24="FMS429"),INDEX(Arkusz7!$U$2:$U$24,MATCH(Converter!D24,Arkusz7!$Q$2:$Q$24,-1)),"")&IF(AND(B24<>"",R24="FMS4211"),INDEX(Arkusz7!$U$2:$U$24,MATCH(Converter!D24,Arkusz7!$R$2:$R$24,-1)),"")&IF(AND(B24<>"",R24="FMS4214"),INDEX(Arkusz7!$U$2:$U$24,MATCH(Converter!D24,Arkusz7!$S$2:$S$24,-1)),"")&IF(AND(B24<>"",R24="FMS4219"),INDEX(Arkusz7!$U$2:$U$24,MATCH(Converter!D24,Arkusz7!$T$2:$T$24,-1)),"")&IF(AND(B24<>"",R24="F1S177,5"),INDEX(Arkusz7!$AB$2:$AB$19,MATCH(Converter!D24,Arkusz7!$W$2:$W$19,-1)),"")&IF(AND(B24<>"",R24="F1S207,5"),INDEX(Arkusz7!$AB$2:$AB$19,MATCH(Converter!D24,Arkusz7!$X$2:$X$19,-1)),"")&IF(AND(B24<>"",R24="F1S237,5"),INDEX(Arkusz7!$AB$2:$AB$19,MATCH(Converter!D24,Arkusz7!$Y$2:$Y$19,-1)),"")&IF(AND(B24<>"",R24="F1S2311"),INDEX(Arkusz7!$AB$2:$AB$19,MATCH(Converter!D24,Arkusz7!$Z$2:$Z$19,-1)),"")&IF(AND(B24<>"",R24="F1S2511"),INDEX(Arkusz7!$AB$2:$AB$19,MATCH(Converter!D24,Arkusz7!$AA$2:$AA$19,-1)),"")&IF(AND(B24<>"",R24="F2C2311"),INDEX(Arkusz7!$AI$2:$AI$7,MATCH(Converter!D24,Arkusz7!$AD$2:$AD$7,-1)),"")&IF(AND(B24<>"",R24="F2C3417"),INDEX(Arkusz7!$AI$2:$AI$7,MATCH(Converter!D24,Arkusz7!$AE$2:$AE$7,-1)),"")&IF(AND(B24<>"",R24="F2V3417"),INDEX(Arkusz7!$AI$2:$AI$7,MATCH(Converter!D24,Arkusz7!$AF$2:$AF$7,-1)),"")&IF(AND(B24<>"",R24="F4C3417"),INDEX(Arkusz7!$AI$2:$AI$7,MATCH(Converter!D24,Arkusz7!$AG$2:$AG$7,-1)),"")&IF(AND(B24<>"",R24="F4V3417"),INDEX(Arkusz7!$AI$2:$AI$7,MATCH(Converter!D24,Arkusz7!$AH$2:$AH$7,-1)),"") ->  | U24: =IF(AND(B24<>"",Z24="FMS209"),INDEX(Arkusz7!$U$2:$U$24,MATCH(Converter!D24,Arkusz7!$A$2:$A$24,-1)),"")&IF(AND(B24<>"",Z24="FMS2011"),INDEX(Arkusz7!$U$2:$U$24,MATCH(Converter!D24,Arkusz7!$B$2:$B$24,-1)),"")&IF(AND(B24<>"",Z24="FMS2014"),INDEX(Arkusz7!$U$2:$U$24,MATCH(Converter!D24,Arkusz7!$C$2:$C$24,-1)),"")&IF(AND(B24<>"",Z24="FMS2019"),INDEX(Arkusz7!$U$2:$U$24,MATCH(Converter!D24,Arkusz7!$D$2:$D$24,-1)),"")&IF(AND(B24<>"",Z24="FMS259"),INDEX(Arkusz7!$U$2:$U$24,MATCH(Converter!D24,Arkusz7!$E$2:$E$24,-1)),"")&IF(AND(B24<>"",Z24="FMS2511"),INDEX(Arkusz7!$U$2:$U$24,MATCH(Converter!D24,Arkusz7!$F$2:$F$24,-1)),"")&IF(AND(B24<>"",Z24="FMS2514"),INDEX(Arkusz7!$U$2:$U$24,MATCH(Converter!D24,Arkusz7!$G$2:$G$24,-1)),"")&IF(AND(B24<>"",Z24="FMS2519"),INDEX(Arkusz7!$U$2:$U$24,MATCH(Converter!D24,Arkusz7!$H$2:$H$24,-1)),"")&IF(AND(B24<>"",Z24="FMS309"),INDEX(Arkusz7!$U$2:$U$24,MATCH(Converter!D24,Arkusz7!$I$2:$I$24,-1)),"")&IF(AND(B24<>"",Z24="FMS3011"),INDEX(Arkusz7!$U$2:$U$24,MATCH(Converter!D24,Arkusz7!$J$2:$J$24,-1)),"")&IF(AND(B24<>"",Z24="FMS3014"),INDEX(Arkusz7!$U$2:$U$24,MATCH(Converter!D24,Arkusz7!$K$2:$K$24,-1)),"")&IF(AND(B24<>"",Z24="FMS3019"),INDEX(Arkusz7!$U$2:$U$24,MATCH(Converter!D24,Arkusz7!$L$2:$L$24,-1)),"")&IF(AND(B24<>"",Z24="FMS349"),INDEX(Arkusz7!$U$2:$U$24,MATCH(Converter!D24,Arkusz7!$M$2:$M$24,-1)),"")&IF(AND(B24<>"",Z24="FMS3411"),INDEX(Arkusz7!$U$2:$U$24,MATCH(Converter!D24,Arkusz7!$N$2:$N$24,-1)),"")&IF(AND(B24<>"",Z24="FMS3414"),INDEX(Arkusz7!$U$2:$U$24,MATCH(Converter!D24,Arkusz7!$O$2:$O$24,-1)),"")&IF(AND(B24<>"",Z24="FMS3419"),INDEX(Arkusz7!$U$2:$U$24,MATCH(Converter!D24,Arkusz7!$P$2:$P$24,-1)),"")&IF(AND(B24<>"",Z24="FMS429"),INDEX(Arkusz7!$U$2:$U$24,MATCH(Converter!D24,Arkusz7!$Q$2:$Q$24,-1)),"")&IF(AND(B24<>"",Z24="FMS4211"),INDEX(Arkusz7!$U$2:$U$24,MATCH(Converter!D24,Arkusz7!$R$2:$R$24,-1)),"")&IF(AND(B24<>"",Z24="FMS4214"),INDEX(Arkusz7!$U$2:$U$24,MATCH(Converter!D24,Arkusz7!$S$2:$S$24,-1)),"")&IF(AND(B24<>"",Z24="FMS4219"),INDEX(Arkusz7!$U$2:$U$24,MATCH(Converter!D24,Arkusz7!$T$2:$T$24,-1)),"")&IF(AND(B24<>"",Z24="F1S177,5"),INDEX(Arkusz7!$AB$2:$AB$19,MATCH(Converter!D24,Arkusz7!$W$2:$W$19,-1)),"")&IF(AND(B24<>"",Z24="F1S207,5"),INDEX(Arkusz7!$AB$2:$AB$19,MATCH(Converter!D24,Arkusz7!$X$2:$X$19,-1)),"")&IF(AND(B24<>"",Z24="F1S237,5"),INDEX(Arkusz7!$AB$2:$AB$19,MATCH(Converter!D24,Arkusz7!$Y$2:$Y$19,-1)),"")&IF(AND(B24<>"",Z24="F1S2311"),INDEX(Arkusz7!$AB$2:$AB$19,MATCH(Converter!D24,Arkusz7!$Z$2:$Z$19,-1)),"")&IF(AND(B24<>"",Z24="F1S2511"),INDEX(Arkusz7!$AB$2:$AB$19,MATCH(Converter!D24,Arkusz7!$AA$2:$AA$19,-1)),"")&IF(AND(B24<>"",Z24="F2C2311"),INDEX(Arkusz7!$AI$2:$AI$7,MATCH(Converter!D24,Arkusz7!$AD$2:$AD$7,-1)),"")&IF(AND(B24<>"",Z24="F2C3417"),INDEX(Arkusz7!$AI$2:$AI$7,MATCH(Converter!D24,Arkusz7!$AE$2:$AE$7,-1)),"")&IF(AND(B24<>"",Z24="F2V3417"),INDEX(Arkusz7!$AI$2:$AI$7,MATCH(Converter!D24,Arkusz7!$AF$2:$AF$7,-1)),"")&IF(AND(B24<>"",Z24="F4C3417"),INDEX(Arkusz7!$AI$2:$AI$7,MATCH(Converter!D24,Arkusz7!$AG$2:$AG$7,-1)),"")&IF(AND(B24<>"",Z24="F4V3417"),INDEX(Arkusz7!$AI$2:$AI$7,MATCH(Converter!D24,Arkusz7!$AH$2:$AH$7,-1)),"") ->  | AE24: =IF(B24<>"",ROUND(ROUND(ROUND(ROUND(ROUND(ROUND(ROUND(ROUND(ROUND(ROUND(ROUND(ROUND(ROUND(VLOOKUP(AA24,NewAquilo!E:F,2,0)*NewAquilo!$B$21,0)*NewAquilo!$B$22,0)*NewAquilo!$B$23,0)*NewAquilo!$B$24,0)*NewAquilo!$B$25,0)*NewAquilo!$B$26,0)*NewAquilo!$B$27,0)*NewAquilo!$B$28,0)*NewAquilo!$B$29,0)*NewAquilo!$B$30,0)*NewAquilo!$B$31,0)*NewAquilo!$B$32,0)*NewAquilo!$B$33,0),"") ->  | AH24: =IF(B24<>"",VLOOKUP(AA24,NewAquilo!E:G,3,0),"") ->  | AY24: 290
N25: =IF(AND(B25<>"",R25="FMS209"),INDEX(Arkusz7!$U$2:$U$24,MATCH(Converter!D25,Arkusz7!$A$2:$A$24,-1)),"")&IF(AND(B25<>"",R25="FMS2011"),INDEX(Arkusz7!$U$2:$U$24,MATCH(Converter!D25,Arkusz7!$B$2:$B$24,-1)),"")&IF(AND(B25<>"",R25="FMS2014"),INDEX(Arkusz7!$U$2:$U$24,MATCH(Converter!D25,Arkusz7!$C$2:$C$24,-1)),"")&IF(AND(B25<>"",R25="FMS2019"),INDEX(Arkusz7!$U$2:$U$24,MATCH(Converter!D25,Arkusz7!$D$2:$D$24,-1)),"")&IF(AND(B25<>"",R25="FMS259"),INDEX(Arkusz7!$U$2:$U$24,MATCH(Converter!D25,Arkusz7!$E$2:$E$24,-1)),"")&IF(AND(B25<>"",R25="FMS2511"),INDEX(Arkusz7!$U$2:$U$24,MATCH(Converter!D25,Arkusz7!$F$2:$F$24,-1)),"")&IF(AND(B25<>"",R25="FMS2514"),INDEX(Arkusz7!$U$2:$U$24,MATCH(Converter!D25,Arkusz7!$G$2:$G$24,-1)),"")&IF(AND(B25<>"",R25="FMS2519"),INDEX(Arkusz7!$U$2:$U$24,MATCH(Converter!D25,Arkusz7!$H$2:$H$24,-1)),"")&IF(AND(B25<>"",R25="FMS309"),INDEX(Arkusz7!$U$2:$U$24,MATCH(Converter!D25,Arkusz7!$I$2:$I$24,-1)),"")&IF(AND(B25<>"",R25="FMS3011"),INDEX(Arkusz7!$U$2:$U$24,MATCH(Converter!D25,Arkusz7!$J$2:$J$24,-1)),"")&IF(AND(B25<>"",R25="FMS3014"),INDEX(Arkusz7!$U$2:$U$24,MATCH(Converter!D25,Arkusz7!$K$2:$K$24,-1)),"")&IF(AND(B25<>"",R25="FMS3019"),INDEX(Arkusz7!$U$2:$U$24,MATCH(Converter!D25,Arkusz7!$L$2:$L$24,-1)),"")&IF(AND(B25<>"",R25="FMS349"),INDEX(Arkusz7!$U$2:$U$24,MATCH(Converter!D25,Arkusz7!$M$2:$M$24,-1)),"")&IF(AND(B25<>"",R25="FMS3411"),INDEX(Arkusz7!$U$2:$U$24,MATCH(Converter!D25,Arkusz7!$N$2:$N$24,-1)),"")&IF(AND(B25<>"",R25="FMS3414"),INDEX(Arkusz7!$U$2:$U$24,MATCH(Converter!D25,Arkusz7!$O$2:$O$24,-1)),"")&IF(AND(B25<>"",R25="FMS3419"),INDEX(Arkusz7!$U$2:$U$24,MATCH(Converter!D25,Arkusz7!$P$2:$P$24,-1)),"")&IF(AND(B25<>"",R25="FMS429"),INDEX(Arkusz7!$U$2:$U$24,MATCH(Converter!D25,Arkusz7!$Q$2:$Q$24,-1)),"")&IF(AND(B25<>"",R25="FMS4211"),INDEX(Arkusz7!$U$2:$U$24,MATCH(Converter!D25,Arkusz7!$R$2:$R$24,-1)),"")&IF(AND(B25<>"",R25="FMS4214"),INDEX(Arkusz7!$U$2:$U$24,MATCH(Converter!D25,Arkusz7!$S$2:$S$24,-1)),"")&IF(AND(B25<>"",R25="FMS4219"),INDEX(Arkusz7!$U$2:$U$24,MATCH(Converter!D25,Arkusz7!$T$2:$T$24,-1)),"")&IF(AND(B25<>"",R25="F1S177,5"),INDEX(Arkusz7!$AB$2:$AB$19,MATCH(Converter!D25,Arkusz7!$W$2:$W$19,-1)),"")&IF(AND(B25<>"",R25="F1S207,5"),INDEX(Arkusz7!$AB$2:$AB$19,MATCH(Converter!D25,Arkusz7!$X$2:$X$19,-1)),"")&IF(AND(B25<>"",R25="F1S237,5"),INDEX(Arkusz7!$AB$2:$AB$19,MATCH(Converter!D25,Arkusz7!$Y$2:$Y$19,-1)),"")&IF(AND(B25<>"",R25="F1S2311"),INDEX(Arkusz7!$AB$2:$AB$19,MATCH(Converter!D25,Arkusz7!$Z$2:$Z$19,-1)),"")&IF(AND(B25<>"",R25="F1S2511"),INDEX(Arkusz7!$AB$2:$AB$19,MATCH(Converter!D25,Arkusz7!$AA$2:$AA$19,-1)),"")&IF(AND(B25<>"",R25="F2C2311"),INDEX(Arkusz7!$AI$2:$AI$7,MATCH(Converter!D25,Arkusz7!$AD$2:$AD$7,-1)),"")&IF(AND(B25<>"",R25="F2C3417"),INDEX(Arkusz7!$AI$2:$AI$7,MATCH(Converter!D25,Arkusz7!$AE$2:$AE$7,-1)),"")&IF(AND(B25<>"",R25="F2V3417"),INDEX(Arkusz7!$AI$2:$AI$7,MATCH(Converter!D25,Arkusz7!$AF$2:$AF$7,-1)),"")&IF(AND(B25<>"",R25="F4C3417"),INDEX(Arkusz7!$AI$2:$AI$7,MATCH(Converter!D25,Arkusz7!$AG$2:$AG$7,-1)),"")&IF(AND(B25<>"",R25="F4V3417"),INDEX(Arkusz7!$AI$2:$AI$7,MATCH(Converter!D25,Arkusz7!$AH$2:$AH$7,-1)),"") ->  | U25: =IF(AND(B25<>"",Z25="FMS209"),INDEX(Arkusz7!$U$2:$U$24,MATCH(Converter!D25,Arkusz7!$A$2:$A$24,-1)),"")&IF(AND(B25<>"",Z25="FMS2011"),INDEX(Arkusz7!$U$2:$U$24,MATCH(Converter!D25,Arkusz7!$B$2:$B$24,-1)),"")&IF(AND(B25<>"",Z25="FMS2014"),INDEX(Arkusz7!$U$2:$U$24,MATCH(Converter!D25,Arkusz7!$C$2:$C$24,-1)),"")&IF(AND(B25<>"",Z25="FMS2019"),INDEX(Arkusz7!$U$2:$U$24,MATCH(Converter!D25,Arkusz7!$D$2:$D$24,-1)),"")&IF(AND(B25<>"",Z25="FMS259"),INDEX(Arkusz7!$U$2:$U$24,MATCH(Converter!D25,Arkusz7!$E$2:$E$24,-1)),"")&IF(AND(B25<>"",Z25="FMS2511"),INDEX(Arkusz7!$U$2:$U$24,MATCH(Converter!D25,Arkusz7!$F$2:$F$24,-1)),"")&IF(AND(B25<>"",Z25="FMS2514"),INDEX(Arkusz7!$U$2:$U$24,MATCH(Converter!D25,Arkusz7!$G$2:$G$24,-1)),"")&IF(AND(B25<>"",Z25="FMS2519"),INDEX(Arkusz7!$U$2:$U$24,MATCH(Converter!D25,Arkusz7!$H$2:$H$24,-1)),"")&IF(AND(B25<>"",Z25="FMS309"),INDEX(Arkusz7!$U$2:$U$24,MATCH(Converter!D25,Arkusz7!$I$2:$I$24,-1)),"")&IF(AND(B25<>"",Z25="FMS3011"),INDEX(Arkusz7!$U$2:$U$24,MATCH(Converter!D25,Arkusz7!$J$2:$J$24,-1)),"")&IF(AND(B25<>"",Z25="FMS3014"),INDEX(Arkusz7!$U$2:$U$24,MATCH(Converter!D25,Arkusz7!$K$2:$K$24,-1)),"")&IF(AND(B25<>"",Z25="FMS3019"),INDEX(Arkusz7!$U$2:$U$24,MATCH(Converter!D25,Arkusz7!$L$2:$L$24,-1)),"")&IF(AND(B25<>"",Z25="FMS349"),INDEX(Arkusz7!$U$2:$U$24,MATCH(Converter!D25,Arkusz7!$M$2:$M$24,-1)),"")&IF(AND(B25<>"",Z25="FMS3411"),INDEX(Arkusz7!$U$2:$U$24,MATCH(Converter!D25,Arkusz7!$N$2:$N$24,-1)),"")&IF(AND(B25<>"",Z25="FMS3414"),INDEX(Arkusz7!$U$2:$U$24,MATCH(Converter!D25,Arkusz7!$O$2:$O$24,-1)),"")&IF(AND(B25<>"",Z25="FMS3419"),INDEX(Arkusz7!$U$2:$U$24,MATCH(Converter!D25,Arkusz7!$P$2:$P$24,-1)),"")&IF(AND(B25<>"",Z25="FMS429"),INDEX(Arkusz7!$U$2:$U$24,MATCH(Converter!D25,Arkusz7!$Q$2:$Q$24,-1)),"")&IF(AND(B25<>"",Z25="FMS4211"),INDEX(Arkusz7!$U$2:$U$24,MATCH(Converter!D25,Arkusz7!$R$2:$R$24,-1)),"")&IF(AND(B25<>"",Z25="FMS4214"),INDEX(Arkusz7!$U$2:$U$24,MATCH(Converter!D25,Arkusz7!$S$2:$S$24,-1)),"")&IF(AND(B25<>"",Z25="FMS4219"),INDEX(Arkusz7!$U$2:$U$24,MATCH(Converter!D25,Arkusz7!$T$2:$T$24,-1)),"")&IF(AND(B25<>"",Z25="F1S177,5"),INDEX(Arkusz7!$AB$2:$AB$19,MATCH(Converter!D25,Arkusz7!$W$2:$W$19,-1)),"")&IF(AND(B25<>"",Z25="F1S207,5"),INDEX(Arkusz7!$AB$2:$AB$19,MATCH(Converter!D25,Arkusz7!$X$2:$X$19,-1)),"")&IF(AND(B25<>"",Z25="F1S237,5"),INDEX(Arkusz7!$AB$2:$AB$19,MATCH(Converter!D25,Arkusz7!$Y$2:$Y$19,-1)),"")&IF(AND(B25<>"",Z25="F1S2311"),INDEX(Arkusz7!$AB$2:$AB$19,MATCH(Converter!D25,Arkusz7!$Z$2:$Z$19,-1)),"")&IF(AND(B25<>"",Z25="F1S2511"),INDEX(Arkusz7!$AB$2:$AB$19,MATCH(Converter!D25,Arkusz7!$AA$2:$AA$19,-1)),"")&IF(AND(B25<>"",Z25="F2C2311"),INDEX(Arkusz7!$AI$2:$AI$7,MATCH(Converter!D25,Arkusz7!$AD$2:$AD$7,-1)),"")&IF(AND(B25<>"",Z25="F2C3417"),INDEX(Arkusz7!$AI$2:$AI$7,MATCH(Converter!D25,Arkusz7!$AE$2:$AE$7,-1)),"")&IF(AND(B25<>"",Z25="F2V3417"),INDEX(Arkusz7!$AI$2:$AI$7,MATCH(Converter!D25,Arkusz7!$AF$2:$AF$7,-1)),"")&IF(AND(B25<>"",Z25="F4C3417"),INDEX(Arkusz7!$AI$2:$AI$7,MATCH(Converter!D25,Arkusz7!$AG$2:$AG$7,-1)),"")&IF(AND(B25<>"",Z25="F4V3417"),INDEX(Arkusz7!$AI$2:$AI$7,MATCH(Converter!D25,Arkusz7!$AH$2:$AH$7,-1)),"") ->  | AE25: =IF(B25<>"",ROUND(ROUND(ROUND(ROUND(ROUND(ROUND(ROUND(ROUND(ROUND(ROUND(ROUND(ROUND(ROUND(VLOOKUP(AA25,NewAquilo!E:F,2,0)*NewAquilo!$B$21,0)*NewAquilo!$B$22,0)*NewAquilo!$B$23,0)*NewAquilo!$B$24,0)*NewAquilo!$B$25,0)*NewAquilo!$B$26,0)*NewAquilo!$B$27,0)*NewAquilo!$B$28,0)*NewAquilo!$B$29,0)*NewAquilo!$B$30,0)*NewAquilo!$B$31,0)*NewAquilo!$B$32,0)*NewAquilo!$B$33,0),"") ->  | AH25: =IF(B25<>"",VLOOKUP(AA25,NewAquilo!E:G,3,0),"") ->  | AY25: 300
N26: =IF(AND(B26<>"",R26="FMS209"),INDEX(Arkusz7!$U$2:$U$24,MATCH(Converter!D26,Arkusz7!$A$2:$A$24,-1)),"")&IF(AND(B26<>"",R26="FMS2011"),INDEX(Arkusz7!$U$2:$U$24,MATCH(Converter!D26,Arkusz7!$B$2:$B$24,-1)),"")&IF(AND(B26<>"",R26="FMS2014"),INDEX(Arkusz7!$U$2:$U$24,MATCH(Converter!D26,Arkusz7!$C$2:$C$24,-1)),"")&IF(AND(B26<>"",R26="FMS2019"),INDEX(Arkusz7!$U$2:$U$24,MATCH(Converter!D26,Arkusz7!$D$2:$D$24,-1)),"")&IF(AND(B26<>"",R26="FMS259"),INDEX(Arkusz7!$U$2:$U$24,MATCH(Converter!D26,Arkusz7!$E$2:$E$24,-1)),"")&IF(AND(B26<>"",R26="FMS2511"),INDEX(Arkusz7!$U$2:$U$24,MATCH(Converter!D26,Arkusz7!$F$2:$F$24,-1)),"")&IF(AND(B26<>"",R26="FMS2514"),INDEX(Arkusz7!$U$2:$U$24,MATCH(Converter!D26,Arkusz7!$G$2:$G$24,-1)),"")&IF(AND(B26<>"",R26="FMS2519"),INDEX(Arkusz7!$U$2:$U$24,MATCH(Converter!D26,Arkusz7!$H$2:$H$24,-1)),"")&IF(AND(B26<>"",R26="FMS309"),INDEX(Arkusz7!$U$2:$U$24,MATCH(Converter!D26,Arkusz7!$I$2:$I$24,-1)),"")&IF(AND(B26<>"",R26="FMS3011"),INDEX(Arkusz7!$U$2:$U$24,MATCH(Converter!D26,Arkusz7!$J$2:$J$24,-1)),"")&IF(AND(B26<>"",R26="FMS3014"),INDEX(Arkusz7!$U$2:$U$24,MATCH(Converter!D26,Arkusz7!$K$2:$K$24,-1)),"")&IF(AND(B26<>"",R26="FMS3019"),INDEX(Arkusz7!$U$2:$U$24,MATCH(Converter!D26,Arkusz7!$L$2:$L$24,-1)),"")&IF(AND(B26<>"",R26="FMS349"),INDEX(Arkusz7!$U$2:$U$24,MATCH(Converter!D26,Arkusz7!$M$2:$M$24,-1)),"")&IF(AND(B26<>"",R26="FMS3411"),INDEX(Arkusz7!$U$2:$U$24,MATCH(Converter!D26,Arkusz7!$N$2:$N$24,-1)),"")&IF(AND(B26<>"",R26="FMS3414"),INDEX(Arkusz7!$U$2:$U$24,MATCH(Converter!D26,Arkusz7!$O$2:$O$24,-1)),"")&IF(AND(B26<>"",R26="FMS3419"),INDEX(Arkusz7!$U$2:$U$24,MATCH(Converter!D26,Arkusz7!$P$2:$P$24,-1)),"")&IF(AND(B26<>"",R26="FMS429"),INDEX(Arkusz7!$U$2:$U$24,MATCH(Converter!D26,Arkusz7!$Q$2:$Q$24,-1)),"")&IF(AND(B26<>"",R26="FMS4211"),INDEX(Arkusz7!$U$2:$U$24,MATCH(Converter!D26,Arkusz7!$R$2:$R$24,-1)),"")&IF(AND(B26<>"",R26="FMS4214"),INDEX(Arkusz7!$U$2:$U$24,MATCH(Converter!D26,Arkusz7!$S$2:$S$24,-1)),"")&IF(AND(B26<>"",R26="FMS4219"),INDEX(Arkusz7!$U$2:$U$24,MATCH(Converter!D26,Arkusz7!$T$2:$T$24,-1)),"")&IF(AND(B26<>"",R26="F1S177,5"),INDEX(Arkusz7!$AB$2:$AB$19,MATCH(Converter!D26,Arkusz7!$W$2:$W$19,-1)),"")&IF(AND(B26<>"",R26="F1S207,5"),INDEX(Arkusz7!$AB$2:$AB$19,MATCH(Converter!D26,Arkusz7!$X$2:$X$19,-1)),"")&IF(AND(B26<>"",R26="F1S237,5"),INDEX(Arkusz7!$AB$2:$AB$19,MATCH(Converter!D26,Arkusz7!$Y$2:$Y$19,-1)),"")&IF(AND(B26<>"",R26="F1S2311"),INDEX(Arkusz7!$AB$2:$AB$19,MATCH(Converter!D26,Arkusz7!$Z$2:$Z$19,-1)),"")&IF(AND(B26<>"",R26="F1S2511"),INDEX(Arkusz7!$AB$2:$AB$19,MATCH(Converter!D26,Arkusz7!$AA$2:$AA$19,-1)),"")&IF(AND(B26<>"",R26="F2C2311"),INDEX(Arkusz7!$AI$2:$AI$7,MATCH(Converter!D26,Arkusz7!$AD$2:$AD$7,-1)),"")&IF(AND(B26<>"",R26="F2C3417"),INDEX(Arkusz7!$AI$2:$AI$7,MATCH(Converter!D26,Arkusz7!$AE$2:$AE$7,-1)),"")&IF(AND(B26<>"",R26="F2V3417"),INDEX(Arkusz7!$AI$2:$AI$7,MATCH(Converter!D26,Arkusz7!$AF$2:$AF$7,-1)),"")&IF(AND(B26<>"",R26="F4C3417"),INDEX(Arkusz7!$AI$2:$AI$7,MATCH(Converter!D26,Arkusz7!$AG$2:$AG$7,-1)),"")&IF(AND(B26<>"",R26="F4V3417"),INDEX(Arkusz7!$AI$2:$AI$7,MATCH(Converter!D26,Arkusz7!$AH$2:$AH$7,-1)),"") ->  | U26: =IF(AND(B26<>"",Z26="FMS209"),INDEX(Arkusz7!$U$2:$U$24,MATCH(Converter!D26,Arkusz7!$A$2:$A$24,-1)),"")&IF(AND(B26<>"",Z26="FMS2011"),INDEX(Arkusz7!$U$2:$U$24,MATCH(Converter!D26,Arkusz7!$B$2:$B$24,-1)),"")&IF(AND(B26<>"",Z26="FMS2014"),INDEX(Arkusz7!$U$2:$U$24,MATCH(Converter!D26,Arkusz7!$C$2:$C$24,-1)),"")&IF(AND(B26<>"",Z26="FMS2019"),INDEX(Arkusz7!$U$2:$U$24,MATCH(Converter!D26,Arkusz7!$D$2:$D$24,-1)),"")&IF(AND(B26<>"",Z26="FMS259"),INDEX(Arkusz7!$U$2:$U$24,MATCH(Converter!D26,Arkusz7!$E$2:$E$24,-1)),"")&IF(AND(B26<>"",Z26="FMS2511"),INDEX(Arkusz7!$U$2:$U$24,MATCH(Converter!D26,Arkusz7!$F$2:$F$24,-1)),"")&IF(AND(B26<>"",Z26="FMS2514"),INDEX(Arkusz7!$U$2:$U$24,MATCH(Converter!D26,Arkusz7!$G$2:$G$24,-1)),"")&IF(AND(B26<>"",Z26="FMS2519"),INDEX(Arkusz7!$U$2:$U$24,MATCH(Converter!D26,Arkusz7!$H$2:$H$24,-1)),"")&IF(AND(B26<>"",Z26="FMS309"),INDEX(Arkusz7!$U$2:$U$24,MATCH(Converter!D26,Arkusz7!$I$2:$I$24,-1)),"")&IF(AND(B26<>"",Z26="FMS3011"),INDEX(Arkusz7!$U$2:$U$24,MATCH(Converter!D26,Arkusz7!$J$2:$J$24,-1)),"")&IF(AND(B26<>"",Z26="FMS3014"),INDEX(Arkusz7!$U$2:$U$24,MATCH(Converter!D26,Arkusz7!$K$2:$K$24,-1)),"")&IF(AND(B26<>"",Z26="FMS3019"),INDEX(Arkusz7!$U$2:$U$24,MATCH(Converter!D26,Arkusz7!$L$2:$L$24,-1)),"")&IF(AND(B26<>"",Z26="FMS349"),INDEX(Arkusz7!$U$2:$U$24,MATCH(Converter!D26,Arkusz7!$M$2:$M$24,-1)),"")&IF(AND(B26<>"",Z26="FMS3411"),INDEX(Arkusz7!$U$2:$U$24,MATCH(Converter!D26,Arkusz7!$N$2:$N$24,-1)),"")&IF(AND(B26<>"",Z26="FMS3414"),INDEX(Arkusz7!$U$2:$U$24,MATCH(Converter!D26,Arkusz7!$O$2:$O$24,-1)),"")&IF(AND(B26<>"",Z26="FMS3419"),INDEX(Arkusz7!$U$2:$U$24,MATCH(Converter!D26,Arkusz7!$P$2:$P$24,-1)),"")&IF(AND(B26<>"",Z26="FMS429"),INDEX(Arkusz7!$U$2:$U$24,MATCH(Converter!D26,Arkusz7!$Q$2:$Q$24,-1)),"")&IF(AND(B26<>"",Z26="FMS4211"),INDEX(Arkusz7!$U$2:$U$24,MATCH(Converter!D26,Arkusz7!$R$2:$R$24,-1)),"")&IF(AND(B26<>"",Z26="FMS4214"),INDEX(Arkusz7!$U$2:$U$24,MATCH(Converter!D26,Arkusz7!$S$2:$S$24,-1)),"")&IF(AND(B26<>"",Z26="FMS4219"),INDEX(Arkusz7!$U$2:$U$24,MATCH(Converter!D26,Arkusz7!$T$2:$T$24,-1)),"")&IF(AND(B26<>"",Z26="F1S177,5"),INDEX(Arkusz7!$AB$2:$AB$19,MATCH(Converter!D26,Arkusz7!$W$2:$W$19,-1)),"")&IF(AND(B26<>"",Z26="F1S207,5"),INDEX(Arkusz7!$AB$2:$AB$19,MATCH(Converter!D26,Arkusz7!$X$2:$X$19,-1)),"")&IF(AND(B26<>"",Z26="F1S237,5"),INDEX(Arkusz7!$AB$2:$AB$19,MATCH(Converter!D26,Arkusz7!$Y$2:$Y$19,-1)),"")&IF(AND(B26<>"",Z26="F1S2311"),INDEX(Arkusz7!$AB$2:$AB$19,MATCH(Converter!D26,Arkusz7!$Z$2:$Z$19,-1)),"")&IF(AND(B26<>"",Z26="F1S2511"),INDEX(Arkusz7!$AB$2:$AB$19,MATCH(Converter!D26,Arkusz7!$AA$2:$AA$19,-1)),"")&IF(AND(B26<>"",Z26="F2C2311"),INDEX(Arkusz7!$AI$2:$AI$7,MATCH(Converter!D26,Arkusz7!$AD$2:$AD$7,-1)),"")&IF(AND(B26<>"",Z26="F2C3417"),INDEX(Arkusz7!$AI$2:$AI$7,MATCH(Converter!D26,Arkusz7!$AE$2:$AE$7,-1)),"")&IF(AND(B26<>"",Z26="F2V3417"),INDEX(Arkusz7!$AI$2:$AI$7,MATCH(Converter!D26,Arkusz7!$AF$2:$AF$7,-1)),"")&IF(AND(B26<>"",Z26="F4C3417"),INDEX(Arkusz7!$AI$2:$AI$7,MATCH(Converter!D26,Arkusz7!$AG$2:$AG$7,-1)),"")&IF(AND(B26<>"",Z26="F4V3417"),INDEX(Arkusz7!$AI$2:$AI$7,MATCH(Converter!D26,Arkusz7!$AH$2:$AH$7,-1)),"") ->  | AE26: =IF(B26<>"",ROUND(ROUND(ROUND(ROUND(ROUND(ROUND(ROUND(ROUND(ROUND(ROUND(ROUND(ROUND(ROUND(VLOOKUP(AA26,NewAquilo!E:F,2,0)*NewAquilo!$B$21,0)*NewAquilo!$B$22,0)*NewAquilo!$B$23,0)*NewAquilo!$B$24,0)*NewAquilo!$B$25,0)*NewAquilo!$B$26,0)*NewAquilo!$B$27,0)*NewAquilo!$B$28,0)*NewAquilo!$B$29,0)*NewAquilo!$B$30,0)*NewAquilo!$B$31,0)*NewAquilo!$B$32,0)*NewAquilo!$B$33,0),"") ->  | AH26: =IF(B26<>"",VLOOKUP(AA26,NewAquilo!E:G,3,0),"") ->  | AY26: 320
N27: =IF(AND(B27<>"",R27="FMS209"),INDEX(Arkusz7!$U$2:$U$24,MATCH(Converter!D27,Arkusz7!$A$2:$A$24,-1)),"")&IF(AND(B27<>"",R27="FMS2011"),INDEX(Arkusz7!$U$2:$U$24,MATCH(Converter!D27,Arkusz7!$B$2:$B$24,-1)),"")&IF(AND(B27<>"",R27="FMS2014"),INDEX(Arkusz7!$U$2:$U$24,MATCH(Converter!D27,Arkusz7!$C$2:$C$24,-1)),"")&IF(AND(B27<>"",R27="FMS2019"),INDEX(Arkusz7!$U$2:$U$24,MATCH(Converter!D27,Arkusz7!$D$2:$D$24,-1)),"")&IF(AND(B27<>"",R27="FMS259"),INDEX(Arkusz7!$U$2:$U$24,MATCH(Converter!D27,Arkusz7!$E$2:$E$24,-1)),"")&IF(AND(B27<>"",R27="FMS2511"),INDEX(Arkusz7!$U$2:$U$24,MATCH(Converter!D27,Arkusz7!$F$2:$F$24,-1)),"")&IF(AND(B27<>"",R27="FMS2514"),INDEX(Arkusz7!$U$2:$U$24,MATCH(Converter!D27,Arkusz7!$G$2:$G$24,-1)),"")&IF(AND(B27<>"",R27="FMS2519"),INDEX(Arkusz7!$U$2:$U$24,MATCH(Converter!D27,Arkusz7!$H$2:$H$24,-1)),"")&IF(AND(B27<>"",R27="FMS309"),INDEX(Arkusz7!$U$2:$U$24,MATCH(Converter!D27,Arkusz7!$I$2:$I$24,-1)),"")&IF(AND(B27<>"",R27="FMS3011"),INDEX(Arkusz7!$U$2:$U$24,MATCH(Converter!D27,Arkusz7!$J$2:$J$24,-1)),"")&IF(AND(B27<>"",R27="FMS3014"),INDEX(Arkusz7!$U$2:$U$24,MATCH(Converter!D27,Arkusz7!$K$2:$K$24,-1)),"")&IF(AND(B27<>"",R27="FMS3019"),INDEX(Arkusz7!$U$2:$U$24,MATCH(Converter!D27,Arkusz7!$L$2:$L$24,-1)),"")&IF(AND(B27<>"",R27="FMS349"),INDEX(Arkusz7!$U$2:$U$24,MATCH(Converter!D27,Arkusz7!$M$2:$M$24,-1)),"")&IF(AND(B27<>"",R27="FMS3411"),INDEX(Arkusz7!$U$2:$U$24,MATCH(Converter!D27,Arkusz7!$N$2:$N$24,-1)),"")&IF(AND(B27<>"",R27="FMS3414"),INDEX(Arkusz7!$U$2:$U$24,MATCH(Converter!D27,Arkusz7!$O$2:$O$24,-1)),"")&IF(AND(B27<>"",R27="FMS3419"),INDEX(Arkusz7!$U$2:$U$24,MATCH(Converter!D27,Arkusz7!$P$2:$P$24,-1)),"")&IF(AND(B27<>"",R27="FMS429"),INDEX(Arkusz7!$U$2:$U$24,MATCH(Converter!D27,Arkusz7!$Q$2:$Q$24,-1)),"")&IF(AND(B27<>"",R27="FMS4211"),INDEX(Arkusz7!$U$2:$U$24,MATCH(Converter!D27,Arkusz7!$R$2:$R$24,-1)),"")&IF(AND(B27<>"",R27="FMS4214"),INDEX(Arkusz7!$U$2:$U$24,MATCH(Converter!D27,Arkusz7!$S$2:$S$24,-1)),"")&IF(AND(B27<>"",R27="FMS4219"),INDEX(Arkusz7!$U$2:$U$24,MATCH(Converter!D27,Arkusz7!$T$2:$T$24,-1)),"")&IF(AND(B27<>"",R27="F1S177,5"),INDEX(Arkusz7!$AB$2:$AB$19,MATCH(Converter!D27,Arkusz7!$W$2:$W$19,-1)),"")&IF(AND(B27<>"",R27="F1S207,5"),INDEX(Arkusz7!$AB$2:$AB$19,MATCH(Converter!D27,Arkusz7!$X$2:$X$19,-1)),"")&IF(AND(B27<>"",R27="F1S237,5"),INDEX(Arkusz7!$AB$2:$AB$19,MATCH(Converter!D27,Arkusz7!$Y$2:$Y$19,-1)),"")&IF(AND(B27<>"",R27="F1S2311"),INDEX(Arkusz7!$AB$2:$AB$19,MATCH(Converter!D27,Arkusz7!$Z$2:$Z$19,-1)),"")&IF(AND(B27<>"",R27="F1S2511"),INDEX(Arkusz7!$AB$2:$AB$19,MATCH(Converter!D27,Arkusz7!$AA$2:$AA$19,-1)),"")&IF(AND(B27<>"",R27="F2C2311"),INDEX(Arkusz7!$AI$2:$AI$7,MATCH(Converter!D27,Arkusz7!$AD$2:$AD$7,-1)),"")&IF(AND(B27<>"",R27="F2C3417"),INDEX(Arkusz7!$AI$2:$AI$7,MATCH(Converter!D27,Arkusz7!$AE$2:$AE$7,-1)),"")&IF(AND(B27<>"",R27="F2V3417"),INDEX(Arkusz7!$AI$2:$AI$7,MATCH(Converter!D27,Arkusz7!$AF$2:$AF$7,-1)),"")&IF(AND(B27<>"",R27="F4C3417"),INDEX(Arkusz7!$AI$2:$AI$7,MATCH(Converter!D27,Arkusz7!$AG$2:$AG$7,-1)),"")&IF(AND(B27<>"",R27="F4V3417"),INDEX(Arkusz7!$AI$2:$AI$7,MATCH(Converter!D27,Arkusz7!$AH$2:$AH$7,-1)),"") ->  | U27: =IF(AND(B27<>"",Z27="FMS209"),INDEX(Arkusz7!$U$2:$U$24,MATCH(Converter!D27,Arkusz7!$A$2:$A$24,-1)),"")&IF(AND(B27<>"",Z27="FMS2011"),INDEX(Arkusz7!$U$2:$U$24,MATCH(Converter!D27,Arkusz7!$B$2:$B$24,-1)),"")&IF(AND(B27<>"",Z27="FMS2014"),INDEX(Arkusz7!$U$2:$U$24,MATCH(Converter!D27,Arkusz7!$C$2:$C$24,-1)),"")&IF(AND(B27<>"",Z27="FMS2019"),INDEX(Arkusz7!$U$2:$U$24,MATCH(Converter!D27,Arkusz7!$D$2:$D$24,-1)),"")&IF(AND(B27<>"",Z27="FMS259"),INDEX(Arkusz7!$U$2:$U$24,MATCH(Converter!D27,Arkusz7!$E$2:$E$24,-1)),"")&IF(AND(B27<>"",Z27="FMS2511"),INDEX(Arkusz7!$U$2:$U$24,MATCH(Converter!D27,Arkusz7!$F$2:$F$24,-1)),"")&IF(AND(B27<>"",Z27="FMS2514"),INDEX(Arkusz7!$U$2:$U$24,MATCH(Converter!D27,Arkusz7!$G$2:$G$24,-1)),"")&IF(AND(B27<>"",Z27="FMS2519"),INDEX(Arkusz7!$U$2:$U$24,MATCH(Converter!D27,Arkusz7!$H$2:$H$24,-1)),"")&IF(AND(B27<>"",Z27="FMS309"),INDEX(Arkusz7!$U$2:$U$24,MATCH(Converter!D27,Arkusz7!$I$2:$I$24,-1)),"")&IF(AND(B27<>"",Z27="FMS3011"),INDEX(Arkusz7!$U$2:$U$24,MATCH(Converter!D27,Arkusz7!$J$2:$J$24,-1)),"")&IF(AND(B27<>"",Z27="FMS3014"),INDEX(Arkusz7!$U$2:$U$24,MATCH(Converter!D27,Arkusz7!$K$2:$K$24,-1)),"")&IF(AND(B27<>"",Z27="FMS3019"),INDEX(Arkusz7!$U$2:$U$24,MATCH(Converter!D27,Arkusz7!$L$2:$L$24,-1)),"")&IF(AND(B27<>"",Z27="FMS349"),INDEX(Arkusz7!$U$2:$U$24,MATCH(Converter!D27,Arkusz7!$M$2:$M$24,-1)),"")&IF(AND(B27<>"",Z27="FMS3411"),INDEX(Arkusz7!$U$2:$U$24,MATCH(Converter!D27,Arkusz7!$N$2:$N$24,-1)),"")&IF(AND(B27<>"",Z27="FMS3414"),INDEX(Arkusz7!$U$2:$U$24,MATCH(Converter!D27,Arkusz7!$O$2:$O$24,-1)),"")&IF(AND(B27<>"",Z27="FMS3419"),INDEX(Arkusz7!$U$2:$U$24,MATCH(Converter!D27,Arkusz7!$P$2:$P$24,-1)),"")&IF(AND(B27<>"",Z27="FMS429"),INDEX(Arkusz7!$U$2:$U$24,MATCH(Converter!D27,Arkusz7!$Q$2:$Q$24,-1)),"")&IF(AND(B27<>"",Z27="FMS4211"),INDEX(Arkusz7!$U$2:$U$24,MATCH(Converter!D27,Arkusz7!$R$2:$R$24,-1)),"")&IF(AND(B27<>"",Z27="FMS4214"),INDEX(Arkusz7!$U$2:$U$24,MATCH(Converter!D27,Arkusz7!$S$2:$S$24,-1)),"")&IF(AND(B27<>"",Z27="FMS4219"),INDEX(Arkusz7!$U$2:$U$24,MATCH(Converter!D27,Arkusz7!$T$2:$T$24,-1)),"")&IF(AND(B27<>"",Z27="F1S177,5"),INDEX(Arkusz7!$AB$2:$AB$19,MATCH(Converter!D27,Arkusz7!$W$2:$W$19,-1)),"")&IF(AND(B27<>"",Z27="F1S207,5"),INDEX(Arkusz7!$AB$2:$AB$19,MATCH(Converter!D27,Arkusz7!$X$2:$X$19,-1)),"")&IF(AND(B27<>"",Z27="F1S237,5"),INDEX(Arkusz7!$AB$2:$AB$19,MATCH(Converter!D27,Arkusz7!$Y$2:$Y$19,-1)),"")&IF(AND(B27<>"",Z27="F1S2311"),INDEX(Arkusz7!$AB$2:$AB$19,MATCH(Converter!D27,Arkusz7!$Z$2:$Z$19,-1)),"")&IF(AND(B27<>"",Z27="F1S2511"),INDEX(Arkusz7!$AB$2:$AB$19,MATCH(Converter!D27,Arkusz7!$AA$2:$AA$19,-1)),"")&IF(AND(B27<>"",Z27="F2C2311"),INDEX(Arkusz7!$AI$2:$AI$7,MATCH(Converter!D27,Arkusz7!$AD$2:$AD$7,-1)),"")&IF(AND(B27<>"",Z27="F2C3417"),INDEX(Arkusz7!$AI$2:$AI$7,MATCH(Converter!D27,Arkusz7!$AE$2:$AE$7,-1)),"")&IF(AND(B27<>"",Z27="F2V3417"),INDEX(Arkusz7!$AI$2:$AI$7,MATCH(Converter!D27,Arkusz7!$AF$2:$AF$7,-1)),"")&IF(AND(B27<>"",Z27="F4C3417"),INDEX(Arkusz7!$AI$2:$AI$7,MATCH(Converter!D27,Arkusz7!$AG$2:$AG$7,-1)),"")&IF(AND(B27<>"",Z27="F4V3417"),INDEX(Arkusz7!$AI$2:$AI$7,MATCH(Converter!D27,Arkusz7!$AH$2:$AH$7,-1)),"") ->  | AE27: =IF(B27<>"",ROUND(ROUND(ROUND(ROUND(ROUND(ROUND(ROUND(ROUND(ROUND(ROUND(ROUND(ROUND(ROUND(VLOOKUP(AA27,NewAquilo!E:F,2,0)*NewAquilo!$B$21,0)*NewAquilo!$B$22,0)*NewAquilo!$B$23,0)*NewAquilo!$B$24,0)*NewAquilo!$B$25,0)*NewAquilo!$B$26,0)*NewAquilo!$B$27,0)*NewAquilo!$B$28,0)*NewAquilo!$B$29,0)*NewAquilo!$B$30,0)*NewAquilo!$B$31,0)*NewAquilo!$B$32,0)*NewAquilo!$B$33,0),"") ->  | AH27: =IF(B27<>"",VLOOKUP(AA27,NewAquilo!E:G,3,0),"") ->  | AY27: 340
N28: =IF(AND(B28<>"",R28="FMS209"),INDEX(Arkusz7!$U$2:$U$24,MATCH(Converter!D28,Arkusz7!$A$2:$A$24,-1)),"")&IF(AND(B28<>"",R28="FMS2011"),INDEX(Arkusz7!$U$2:$U$24,MATCH(Converter!D28,Arkusz7!$B$2:$B$24,-1)),"")&IF(AND(B28<>"",R28="FMS2014"),INDEX(Arkusz7!$U$2:$U$24,MATCH(Converter!D28,Arkusz7!$C$2:$C$24,-1)),"")&IF(AND(B28<>"",R28="FMS2019"),INDEX(Arkusz7!$U$2:$U$24,MATCH(Converter!D28,Arkusz7!$D$2:$D$24,-1)),"")&IF(AND(B28<>"",R28="FMS259"),INDEX(Arkusz7!$U$2:$U$24,MATCH(Converter!D28,Arkusz7!$E$2:$E$24,-1)),"")&IF(AND(B28<>"",R28="FMS2511"),INDEX(Arkusz7!$U$2:$U$24,MATCH(Converter!D28,Arkusz7!$F$2:$F$24,-1)),"")&IF(AND(B28<>"",R28="FMS2514"),INDEX(Arkusz7!$U$2:$U$24,MATCH(Converter!D28,Arkusz7!$G$2:$G$24,-1)),"")&IF(AND(B28<>"",R28="FMS2519"),INDEX(Arkusz7!$U$2:$U$24,MATCH(Converter!D28,Arkusz7!$H$2:$H$24,-1)),"")&IF(AND(B28<>"",R28="FMS309"),INDEX(Arkusz7!$U$2:$U$24,MATCH(Converter!D28,Arkusz7!$I$2:$I$24,-1)),"")&IF(AND(B28<>"",R28="FMS3011"),INDEX(Arkusz7!$U$2:$U$24,MATCH(Converter!D28,Arkusz7!$J$2:$J$24,-1)),"")&IF(AND(B28<>"",R28="FMS3014"),INDEX(Arkusz7!$U$2:$U$24,MATCH(Converter!D28,Arkusz7!$K$2:$K$24,-1)),"")&IF(AND(B28<>"",R28="FMS3019"),INDEX(Arkusz7!$U$2:$U$24,MATCH(Converter!D28,Arkusz7!$L$2:$L$24,-1)),"")&IF(AND(B28<>"",R28="FMS349"),INDEX(Arkusz7!$U$2:$U$24,MATCH(Converter!D28,Arkusz7!$M$2:$M$24,-1)),"")&IF(AND(B28<>"",R28="FMS3411"),INDEX(Arkusz7!$U$2:$U$24,MATCH(Converter!D28,Arkusz7!$N$2:$N$24,-1)),"")&IF(AND(B28<>"",R28="FMS3414"),INDEX(Arkusz7!$U$2:$U$24,MATCH(Converter!D28,Arkusz7!$O$2:$O$24,-1)),"")&IF(AND(B28<>"",R28="FMS3419"),INDEX(Arkusz7!$U$2:$U$24,MATCH(Converter!D28,Arkusz7!$P$2:$P$24,-1)),"")&IF(AND(B28<>"",R28="FMS429"),INDEX(Arkusz7!$U$2:$U$24,MATCH(Converter!D28,Arkusz7!$Q$2:$Q$24,-1)),"")&IF(AND(B28<>"",R28="FMS4211"),INDEX(Arkusz7!$U$2:$U$24,MATCH(Converter!D28,Arkusz7!$R$2:$R$24,-1)),"")&IF(AND(B28<>"",R28="FMS4214"),INDEX(Arkusz7!$U$2:$U$24,MATCH(Converter!D28,Arkusz7!$S$2:$S$24,-1)),"")&IF(AND(B28<>"",R28="FMS4219"),INDEX(Arkusz7!$U$2:$U$24,MATCH(Converter!D28,Arkusz7!$T$2:$T$24,-1)),"")&IF(AND(B28<>"",R28="F1S177,5"),INDEX(Arkusz7!$AB$2:$AB$19,MATCH(Converter!D28,Arkusz7!$W$2:$W$19,-1)),"")&IF(AND(B28<>"",R28="F1S207,5"),INDEX(Arkusz7!$AB$2:$AB$19,MATCH(Converter!D28,Arkusz7!$X$2:$X$19,-1)),"")&IF(AND(B28<>"",R28="F1S237,5"),INDEX(Arkusz7!$AB$2:$AB$19,MATCH(Converter!D28,Arkusz7!$Y$2:$Y$19,-1)),"")&IF(AND(B28<>"",R28="F1S2311"),INDEX(Arkusz7!$AB$2:$AB$19,MATCH(Converter!D28,Arkusz7!$Z$2:$Z$19,-1)),"")&IF(AND(B28<>"",R28="F1S2511"),INDEX(Arkusz7!$AB$2:$AB$19,MATCH(Converter!D28,Arkusz7!$AA$2:$AA$19,-1)),"")&IF(AND(B28<>"",R28="F2C2311"),INDEX(Arkusz7!$AI$2:$AI$7,MATCH(Converter!D28,Arkusz7!$AD$2:$AD$7,-1)),"")&IF(AND(B28<>"",R28="F2C3417"),INDEX(Arkusz7!$AI$2:$AI$7,MATCH(Converter!D28,Arkusz7!$AE$2:$AE$7,-1)),"")&IF(AND(B28<>"",R28="F2V3417"),INDEX(Arkusz7!$AI$2:$AI$7,MATCH(Converter!D28,Arkusz7!$AF$2:$AF$7,-1)),"")&IF(AND(B28<>"",R28="F4C3417"),INDEX(Arkusz7!$AI$2:$AI$7,MATCH(Converter!D28,Arkusz7!$AG$2:$AG$7,-1)),"")&IF(AND(B28<>"",R28="F4V3417"),INDEX(Arkusz7!$AI$2:$AI$7,MATCH(Converter!D28,Arkusz7!$AH$2:$AH$7,-1)),"") ->  | U28: =IF(AND(B28<>"",Z28="FMS209"),INDEX(Arkusz7!$U$2:$U$24,MATCH(Converter!D28,Arkusz7!$A$2:$A$24,-1)),"")&IF(AND(B28<>"",Z28="FMS2011"),INDEX(Arkusz7!$U$2:$U$24,MATCH(Converter!D28,Arkusz7!$B$2:$B$24,-1)),"")&IF(AND(B28<>"",Z28="FMS2014"),INDEX(Arkusz7!$U$2:$U$24,MATCH(Converter!D28,Arkusz7!$C$2:$C$24,-1)),"")&IF(AND(B28<>"",Z28="FMS2019"),INDEX(Arkusz7!$U$2:$U$24,MATCH(Converter!D28,Arkusz7!$D$2:$D$24,-1)),"")&IF(AND(B28<>"",Z28="FMS259"),INDEX(Arkusz7!$U$2:$U$24,MATCH(Converter!D28,Arkusz7!$E$2:$E$24,-1)),"")&IF(AND(B28<>"",Z28="FMS2511"),INDEX(Arkusz7!$U$2:$U$24,MATCH(Converter!D28,Arkusz7!$F$2:$F$24,-1)),"")&IF(AND(B28<>"",Z28="FMS2514"),INDEX(Arkusz7!$U$2:$U$24,MATCH(Converter!D28,Arkusz7!$G$2:$G$24,-1)),"")&IF(AND(B28<>"",Z28="FMS2519"),INDEX(Arkusz7!$U$2:$U$24,MATCH(Converter!D28,Arkusz7!$H$2:$H$24,-1)),"")&IF(AND(B28<>"",Z28="FMS309"),INDEX(Arkusz7!$U$2:$U$24,MATCH(Converter!D28,Arkusz7!$I$2:$I$24,-1)),"")&IF(AND(B28<>"",Z28="FMS3011"),INDEX(Arkusz7!$U$2:$U$24,MATCH(Converter!D28,Arkusz7!$J$2:$J$24,-1)),"")&IF(AND(B28<>"",Z28="FMS3014"),INDEX(Arkusz7!$U$2:$U$24,MATCH(Converter!D28,Arkusz7!$K$2:$K$24,-1)),"")&IF(AND(B28<>"",Z28="FMS3019"),INDEX(Arkusz7!$U$2:$U$24,MATCH(Converter!D28,Arkusz7!$L$2:$L$24,-1)),"")&IF(AND(B28<>"",Z28="FMS349"),INDEX(Arkusz7!$U$2:$U$24,MATCH(Converter!D28,Arkusz7!$M$2:$M$24,-1)),"")&IF(AND(B28<>"",Z28="FMS3411"),INDEX(Arkusz7!$U$2:$U$24,MATCH(Converter!D28,Arkusz7!$N$2:$N$24,-1)),"")&IF(AND(B28<>"",Z28="FMS3414"),INDEX(Arkusz7!$U$2:$U$24,MATCH(Converter!D28,Arkusz7!$O$2:$O$24,-1)),"")&IF(AND(B28<>"",Z28="FMS3419"),INDEX(Arkusz7!$U$2:$U$24,MATCH(Converter!D28,Arkusz7!$P$2:$P$24,-1)),"")&IF(AND(B28<>"",Z28="FMS429"),INDEX(Arkusz7!$U$2:$U$24,MATCH(Converter!D28,Arkusz7!$Q$2:$Q$24,-1)),"")&IF(AND(B28<>"",Z28="FMS4211"),INDEX(Arkusz7!$U$2:$U$24,MATCH(Converter!D28,Arkusz7!$R$2:$R$24,-1)),"")&IF(AND(B28<>"",Z28="FMS4214"),INDEX(Arkusz7!$U$2:$U$24,MATCH(Converter!D28,Arkusz7!$S$2:$S$24,-1)),"")&IF(AND(B28<>"",Z28="FMS4219"),INDEX(Arkusz7!$U$2:$U$24,MATCH(Converter!D28,Arkusz7!$T$2:$T$24,-1)),"")&IF(AND(B28<>"",Z28="F1S177,5"),INDEX(Arkusz7!$AB$2:$AB$19,MATCH(Converter!D28,Arkusz7!$W$2:$W$19,-1)),"")&IF(AND(B28<>"",Z28="F1S207,5"),INDEX(Arkusz7!$AB$2:$AB$19,MATCH(Converter!D28,Arkusz7!$X$2:$X$19,-1)),"")&IF(AND(B28<>"",Z28="F1S237,5"),INDEX(Arkusz7!$AB$2:$AB$19,MATCH(Converter!D28,Arkusz7!$Y$2:$Y$19,-1)),"")&IF(AND(B28<>"",Z28="F1S2311"),INDEX(Arkusz7!$AB$2:$AB$19,MATCH(Converter!D28,Arkusz7!$Z$2:$Z$19,-1)),"")&IF(AND(B28<>"",Z28="F1S2511"),INDEX(Arkusz7!$AB$2:$AB$19,MATCH(Converter!D28,Arkusz7!$AA$2:$AA$19,-1)),"")&IF(AND(B28<>"",Z28="F2C2311"),INDEX(Arkusz7!$AI$2:$AI$7,MATCH(Converter!D28,Arkusz7!$AD$2:$AD$7,-1)),"")&IF(AND(B28<>"",Z28="F2C3417"),INDEX(Arkusz7!$AI$2:$AI$7,MATCH(Converter!D28,Arkusz7!$AE$2:$AE$7,-1)),"")&IF(AND(B28<>"",Z28="F2V3417"),INDEX(Arkusz7!$AI$2:$AI$7,MATCH(Converter!D28,Arkusz7!$AF$2:$AF$7,-1)),"")&IF(AND(B28<>"",Z28="F4C3417"),INDEX(Arkusz7!$AI$2:$AI$7,MATCH(Converter!D28,Arkusz7!$AG$2:$AG$7,-1)),"")&IF(AND(B28<>"",Z28="F4V3417"),INDEX(Arkusz7!$AI$2:$AI$7,MATCH(Converter!D28,Arkusz7!$AH$2:$AH$7,-1)),"") ->  | AE28: =IF(B28<>"",ROUND(ROUND(ROUND(ROUND(ROUND(ROUND(ROUND(ROUND(ROUND(ROUND(ROUND(ROUND(ROUND(VLOOKUP(AA28,NewAquilo!E:F,2,0)*NewAquilo!$B$21,0)*NewAquilo!$B$22,0)*NewAquilo!$B$23,0)*NewAquilo!$B$24,0)*NewAquilo!$B$25,0)*NewAquilo!$B$26,0)*NewAquilo!$B$27,0)*NewAquilo!$B$28,0)*NewAquilo!$B$29,0)*NewAquilo!$B$30,0)*NewAquilo!$B$31,0)*NewAquilo!$B$32,0)*NewAquilo!$B$33,0),"") ->  | AH28: =IF(B28<>"",VLOOKUP(AA28,NewAquilo!E:G,3,0),"") ->  | AY28: 360
N29: =IF(AND(B29<>"",R29="FMS209"),INDEX(Arkusz7!$U$2:$U$24,MATCH(Converter!D29,Arkusz7!$A$2:$A$24,-1)),"")&IF(AND(B29<>"",R29="FMS2011"),INDEX(Arkusz7!$U$2:$U$24,MATCH(Converter!D29,Arkusz7!$B$2:$B$24,-1)),"")&IF(AND(B29<>"",R29="FMS2014"),INDEX(Arkusz7!$U$2:$U$24,MATCH(Converter!D29,Arkusz7!$C$2:$C$24,-1)),"")&IF(AND(B29<>"",R29="FMS2019"),INDEX(Arkusz7!$U$2:$U$24,MATCH(Converter!D29,Arkusz7!$D$2:$D$24,-1)),"")&IF(AND(B29<>"",R29="FMS259"),INDEX(Arkusz7!$U$2:$U$24,MATCH(Converter!D29,Arkusz7!$E$2:$E$24,-1)),"")&IF(AND(B29<>"",R29="FMS2511"),INDEX(Arkusz7!$U$2:$U$24,MATCH(Converter!D29,Arkusz7!$F$2:$F$24,-1)),"")&IF(AND(B29<>"",R29="FMS2514"),INDEX(Arkusz7!$U$2:$U$24,MATCH(Converter!D29,Arkusz7!$G$2:$G$24,-1)),"")&IF(AND(B29<>"",R29="FMS2519"),INDEX(Arkusz7!$U$2:$U$24,MATCH(Converter!D29,Arkusz7!$H$2:$H$24,-1)),"")&IF(AND(B29<>"",R29="FMS309"),INDEX(Arkusz7!$U$2:$U$24,MATCH(Converter!D29,Arkusz7!$I$2:$I$24,-1)),"")&IF(AND(B29<>"",R29="FMS3011"),INDEX(Arkusz7!$U$2:$U$24,MATCH(Converter!D29,Arkusz7!$J$2:$J$24,-1)),"")&IF(AND(B29<>"",R29="FMS3014"),INDEX(Arkusz7!$U$2:$U$24,MATCH(Converter!D29,Arkusz7!$K$2:$K$24,-1)),"")&IF(AND(B29<>"",R29="FMS3019"),INDEX(Arkusz7!$U$2:$U$24,MATCH(Converter!D29,Arkusz7!$L$2:$L$24,-1)),"")&IF(AND(B29<>"",R29="FMS349"),INDEX(Arkusz7!$U$2:$U$24,MATCH(Converter!D29,Arkusz7!$M$2:$M$24,-1)),"")&IF(AND(B29<>"",R29="FMS3411"),INDEX(Arkusz7!$U$2:$U$24,MATCH(Converter!D29,Arkusz7!$N$2:$N$24,-1)),"")&IF(AND(B29<>"",R29="FMS3414"),INDEX(Arkusz7!$U$2:$U$24,MATCH(Converter!D29,Arkusz7!$O$2:$O$24,-1)),"")&IF(AND(B29<>"",R29="FMS3419"),INDEX(Arkusz7!$U$2:$U$24,MATCH(Converter!D29,Arkusz7!$P$2:$P$24,-1)),"")&IF(AND(B29<>"",R29="FMS429"),INDEX(Arkusz7!$U$2:$U$24,MATCH(Converter!D29,Arkusz7!$Q$2:$Q$24,-1)),"")&IF(AND(B29<>"",R29="FMS4211"),INDEX(Arkusz7!$U$2:$U$24,MATCH(Converter!D29,Arkusz7!$R$2:$R$24,-1)),"")&IF(AND(B29<>"",R29="FMS4214"),INDEX(Arkusz7!$U$2:$U$24,MATCH(Converter!D29,Arkusz7!$S$2:$S$24,-1)),"")&IF(AND(B29<>"",R29="FMS4219"),INDEX(Arkusz7!$U$2:$U$24,MATCH(Converter!D29,Arkusz7!$T$2:$T$24,-1)),"")&IF(AND(B29<>"",R29="F1S177,5"),INDEX(Arkusz7!$AB$2:$AB$19,MATCH(Converter!D29,Arkusz7!$W$2:$W$19,-1)),"")&IF(AND(B29<>"",R29="F1S207,5"),INDEX(Arkusz7!$AB$2:$AB$19,MATCH(Converter!D29,Arkusz7!$X$2:$X$19,-1)),"")&IF(AND(B29<>"",R29="F1S237,5"),INDEX(Arkusz7!$AB$2:$AB$19,MATCH(Converter!D29,Arkusz7!$Y$2:$Y$19,-1)),"")&IF(AND(B29<>"",R29="F1S2311"),INDEX(Arkusz7!$AB$2:$AB$19,MATCH(Converter!D29,Arkusz7!$Z$2:$Z$19,-1)),"")&IF(AND(B29<>"",R29="F1S2511"),INDEX(Arkusz7!$AB$2:$AB$19,MATCH(Converter!D29,Arkusz7!$AA$2:$AA$19,-1)),"")&IF(AND(B29<>"",R29="F2C2311"),INDEX(Arkusz7!$AI$2:$AI$7,MATCH(Converter!D29,Arkusz7!$AD$2:$AD$7,-1)),"")&IF(AND(B29<>"",R29="F2C3417"),INDEX(Arkusz7!$AI$2:$AI$7,MATCH(Converter!D29,Arkusz7!$AE$2:$AE$7,-1)),"")&IF(AND(B29<>"",R29="F2V3417"),INDEX(Arkusz7!$AI$2:$AI$7,MATCH(Converter!D29,Arkusz7!$AF$2:$AF$7,-1)),"")&IF(AND(B29<>"",R29="F4C3417"),INDEX(Arkusz7!$AI$2:$AI$7,MATCH(Converter!D29,Arkusz7!$AG$2:$AG$7,-1)),"")&IF(AND(B29<>"",R29="F4V3417"),INDEX(Arkusz7!$AI$2:$AI$7,MATCH(Converter!D29,Arkusz7!$AH$2:$AH$7,-1)),"") ->  | U29: =IF(AND(B29<>"",Z29="FMS209"),INDEX(Arkusz7!$U$2:$U$24,MATCH(Converter!D29,Arkusz7!$A$2:$A$24,-1)),"")&IF(AND(B29<>"",Z29="FMS2011"),INDEX(Arkusz7!$U$2:$U$24,MATCH(Converter!D29,Arkusz7!$B$2:$B$24,-1)),"")&IF(AND(B29<>"",Z29="FMS2014"),INDEX(Arkusz7!$U$2:$U$24,MATCH(Converter!D29,Arkusz7!$C$2:$C$24,-1)),"")&IF(AND(B29<>"",Z29="FMS2019"),INDEX(Arkusz7!$U$2:$U$24,MATCH(Converter!D29,Arkusz7!$D$2:$D$24,-1)),"")&IF(AND(B29<>"",Z29="FMS259"),INDEX(Arkusz7!$U$2:$U$24,MATCH(Converter!D29,Arkusz7!$E$2:$E$24,-1)),"")&IF(AND(B29<>"",Z29="FMS2511"),INDEX(Arkusz7!$U$2:$U$24,MATCH(Converter!D29,Arkusz7!$F$2:$F$24,-1)),"")&IF(AND(B29<>"",Z29="FMS2514"),INDEX(Arkusz7!$U$2:$U$24,MATCH(Converter!D29,Arkusz7!$G$2:$G$24,-1)),"")&IF(AND(B29<>"",Z29="FMS2519"),INDEX(Arkusz7!$U$2:$U$24,MATCH(Converter!D29,Arkusz7!$H$2:$H$24,-1)),"")&IF(AND(B29<>"",Z29="FMS309"),INDEX(Arkusz7!$U$2:$U$24,MATCH(Converter!D29,Arkusz7!$I$2:$I$24,-1)),"")&IF(AND(B29<>"",Z29="FMS3011"),INDEX(Arkusz7!$U$2:$U$24,MATCH(Converter!D29,Arkusz7!$J$2:$J$24,-1)),"")&IF(AND(B29<>"",Z29="FMS3014"),INDEX(Arkusz7!$U$2:$U$24,MATCH(Converter!D29,Arkusz7!$K$2:$K$24,-1)),"")&IF(AND(B29<>"",Z29="FMS3019"),INDEX(Arkusz7!$U$2:$U$24,MATCH(Converter!D29,Arkusz7!$L$2:$L$24,-1)),"")&IF(AND(B29<>"",Z29="FMS349"),INDEX(Arkusz7!$U$2:$U$24,MATCH(Converter!D29,Arkusz7!$M$2:$M$24,-1)),"")&IF(AND(B29<>"",Z29="FMS3411"),INDEX(Arkusz7!$U$2:$U$24,MATCH(Converter!D29,Arkusz7!$N$2:$N$24,-1)),"")&IF(AND(B29<>"",Z29="FMS3414"),INDEX(Arkusz7!$U$2:$U$24,MATCH(Converter!D29,Arkusz7!$O$2:$O$24,-1)),"")&IF(AND(B29<>"",Z29="FMS3419"),INDEX(Arkusz7!$U$2:$U$24,MATCH(Converter!D29,Arkusz7!$P$2:$P$24,-1)),"")&IF(AND(B29<>"",Z29="FMS429"),INDEX(Arkusz7!$U$2:$U$24,MATCH(Converter!D29,Arkusz7!$Q$2:$Q$24,-1)),"")&IF(AND(B29<>"",Z29="FMS4211"),INDEX(Arkusz7!$U$2:$U$24,MATCH(Converter!D29,Arkusz7!$R$2:$R$24,-1)),"")&IF(AND(B29<>"",Z29="FMS4214"),INDEX(Arkusz7!$U$2:$U$24,MATCH(Converter!D29,Arkusz7!$S$2:$S$24,-1)),"")&IF(AND(B29<>"",Z29="FMS4219"),INDEX(Arkusz7!$U$2:$U$24,MATCH(Converter!D29,Arkusz7!$T$2:$T$24,-1)),"")&IF(AND(B29<>"",Z29="F1S177,5"),INDEX(Arkusz7!$AB$2:$AB$19,MATCH(Converter!D29,Arkusz7!$W$2:$W$19,-1)),"")&IF(AND(B29<>"",Z29="F1S207,5"),INDEX(Arkusz7!$AB$2:$AB$19,MATCH(Converter!D29,Arkusz7!$X$2:$X$19,-1)),"")&IF(AND(B29<>"",Z29="F1S237,5"),INDEX(Arkusz7!$AB$2:$AB$19,MATCH(Converter!D29,Arkusz7!$Y$2:$Y$19,-1)),"")&IF(AND(B29<>"",Z29="F1S2311"),INDEX(Arkusz7!$AB$2:$AB$19,MATCH(Converter!D29,Arkusz7!$Z$2:$Z$19,-1)),"")&IF(AND(B29<>"",Z29="F1S2511"),INDEX(Arkusz7!$AB$2:$AB$19,MATCH(Converter!D29,Arkusz7!$AA$2:$AA$19,-1)),"")&IF(AND(B29<>"",Z29="F2C2311"),INDEX(Arkusz7!$AI$2:$AI$7,MATCH(Converter!D29,Arkusz7!$AD$2:$AD$7,-1)),"")&IF(AND(B29<>"",Z29="F2C3417"),INDEX(Arkusz7!$AI$2:$AI$7,MATCH(Converter!D29,Arkusz7!$AE$2:$AE$7,-1)),"")&IF(AND(B29<>"",Z29="F2V3417"),INDEX(Arkusz7!$AI$2:$AI$7,MATCH(Converter!D29,Arkusz7!$AF$2:$AF$7,-1)),"")&IF(AND(B29<>"",Z29="F4C3417"),INDEX(Arkusz7!$AI$2:$AI$7,MATCH(Converter!D29,Arkusz7!$AG$2:$AG$7,-1)),"")&IF(AND(B29<>"",Z29="F4V3417"),INDEX(Arkusz7!$AI$2:$AI$7,MATCH(Converter!D29,Arkusz7!$AH$2:$AH$7,-1)),"") ->  | AE29: =IF(B29<>"",ROUND(ROUND(ROUND(ROUND(ROUND(ROUND(ROUND(ROUND(ROUND(ROUND(ROUND(ROUND(ROUND(VLOOKUP(AA29,NewAquilo!E:F,2,0)*NewAquilo!$B$21,0)*NewAquilo!$B$22,0)*NewAquilo!$B$23,0)*NewAquilo!$B$24,0)*NewAquilo!$B$25,0)*NewAquilo!$B$26,0)*NewAquilo!$B$27,0)*NewAquilo!$B$28,0)*NewAquilo!$B$29,0)*NewAquilo!$B$30,0)*NewAquilo!$B$31,0)*NewAquilo!$B$32,0)*NewAquilo!$B$33,0),"") ->  | AH29: =IF(B29<>"",VLOOKUP(AA29,NewAquilo!E:G,3,0),"") -> 
N30: =IF(AND(B30<>"",R30="FMS209"),INDEX(Arkusz7!$U$2:$U$24,MATCH(Converter!D30,Arkusz7!$A$2:$A$24,-1)),"")&IF(AND(B30<>"",R30="FMS2011"),INDEX(Arkusz7!$U$2:$U$24,MATCH(Converter!D30,Arkusz7!$B$2:$B$24,-1)),"")&IF(AND(B30<>"",R30="FMS2014"),INDEX(Arkusz7!$U$2:$U$24,MATCH(Converter!D30,Arkusz7!$C$2:$C$24,-1)),"")&IF(AND(B30<>"",R30="FMS2019"),INDEX(Arkusz7!$U$2:$U$24,MATCH(Converter!D30,Arkusz7!$D$2:$D$24,-1)),"")&IF(AND(B30<>"",R30="FMS259"),INDEX(Arkusz7!$U$2:$U$24,MATCH(Converter!D30,Arkusz7!$E$2:$E$24,-1)),"")&IF(AND(B30<>"",R30="FMS2511"),INDEX(Arkusz7!$U$2:$U$24,MATCH(Converter!D30,Arkusz7!$F$2:$F$24,-1)),"")&IF(AND(B30<>"",R30="FMS2514"),INDEX(Arkusz7!$U$2:$U$24,MATCH(Converter!D30,Arkusz7!$G$2:$G$24,-1)),"")&IF(AND(B30<>"",R30="FMS2519"),INDEX(Arkusz7!$U$2:$U$24,MATCH(Converter!D30,Arkusz7!$H$2:$H$24,-1)),"")&IF(AND(B30<>"",R30="FMS309"),INDEX(Arkusz7!$U$2:$U$24,MATCH(Converter!D30,Arkusz7!$I$2:$I$24,-1)),"")&IF(AND(B30<>"",R30="FMS3011"),INDEX(Arkusz7!$U$2:$U$24,MATCH(Converter!D30,Arkusz7!$J$2:$J$24,-1)),"")&IF(AND(B30<>"",R30="FMS3014"),INDEX(Arkusz7!$U$2:$U$24,MATCH(Converter!D30,Arkusz7!$K$2:$K$24,-1)),"")&IF(AND(B30<>"",R30="FMS3019"),INDEX(Arkusz7!$U$2:$U$24,MATCH(Converter!D30,Arkusz7!$L$2:$L$24,-1)),"")&IF(AND(B30<>"",R30="FMS349"),INDEX(Arkusz7!$U$2:$U$24,MATCH(Converter!D30,Arkusz7!$M$2:$M$24,-1)),"")&IF(AND(B30<>"",R30="FMS3411"),INDEX(Arkusz7!$U$2:$U$24,MATCH(Converter!D30,Arkusz7!$N$2:$N$24,-1)),"")&IF(AND(B30<>"",R30="FMS3414"),INDEX(Arkusz7!$U$2:$U$24,MATCH(Converter!D30,Arkusz7!$O$2:$O$24,-1)),"")&IF(AND(B30<>"",R30="FMS3419"),INDEX(Arkusz7!$U$2:$U$24,MATCH(Converter!D30,Arkusz7!$P$2:$P$24,-1)),"")&IF(AND(B30<>"",R30="FMS429"),INDEX(Arkusz7!$U$2:$U$24,MATCH(Converter!D30,Arkusz7!$Q$2:$Q$24,-1)),"")&IF(AND(B30<>"",R30="FMS4211"),INDEX(Arkusz7!$U$2:$U$24,MATCH(Converter!D30,Arkusz7!$R$2:$R$24,-1)),"")&IF(AND(B30<>"",R30="FMS4214"),INDEX(Arkusz7!$U$2:$U$24,MATCH(Converter!D30,Arkusz7!$S$2:$S$24,-1)),"")&IF(AND(B30<>"",R30="FMS4219"),INDEX(Arkusz7!$U$2:$U$24,MATCH(Converter!D30,Arkusz7!$T$2:$T$24,-1)),"")&IF(AND(B30<>"",R30="F1S177,5"),INDEX(Arkusz7!$AB$2:$AB$19,MATCH(Converter!D30,Arkusz7!$W$2:$W$19,-1)),"")&IF(AND(B30<>"",R30="F1S207,5"),INDEX(Arkusz7!$AB$2:$AB$19,MATCH(Converter!D30,Arkusz7!$X$2:$X$19,-1)),"")&IF(AND(B30<>"",R30="F1S237,5"),INDEX(Arkusz7!$AB$2:$AB$19,MATCH(Converter!D30,Arkusz7!$Y$2:$Y$19,-1)),"")&IF(AND(B30<>"",R30="F1S2311"),INDEX(Arkusz7!$AB$2:$AB$19,MATCH(Converter!D30,Arkusz7!$Z$2:$Z$19,-1)),"")&IF(AND(B30<>"",R30="F1S2511"),INDEX(Arkusz7!$AB$2:$AB$19,MATCH(Converter!D30,Arkusz7!$AA$2:$AA$19,-1)),"")&IF(AND(B30<>"",R30="F2C2311"),INDEX(Arkusz7!$AI$2:$AI$7,MATCH(Converter!D30,Arkusz7!$AD$2:$AD$7,-1)),"")&IF(AND(B30<>"",R30="F2C3417"),INDEX(Arkusz7!$AI$2:$AI$7,MATCH(Converter!D30,Arkusz7!$AE$2:$AE$7,-1)),"")&IF(AND(B30<>"",R30="F2V3417"),INDEX(Arkusz7!$AI$2:$AI$7,MATCH(Converter!D30,Arkusz7!$AF$2:$AF$7,-1)),"")&IF(AND(B30<>"",R30="F4C3417"),INDEX(Arkusz7!$AI$2:$AI$7,MATCH(Converter!D30,Arkusz7!$AG$2:$AG$7,-1)),"")&IF(AND(B30<>"",R30="F4V3417"),INDEX(Arkusz7!$AI$2:$AI$7,MATCH(Converter!D30,Arkusz7!$AH$2:$AH$7,-1)),"") ->  | U30: =IF(AND(B30<>"",Z30="FMS209"),INDEX(Arkusz7!$U$2:$U$24,MATCH(Converter!D30,Arkusz7!$A$2:$A$24,-1)),"")&IF(AND(B30<>"",Z30="FMS2011"),INDEX(Arkusz7!$U$2:$U$24,MATCH(Converter!D30,Arkusz7!$B$2:$B$24,-1)),"")&IF(AND(B30<>"",Z30="FMS2014"),INDEX(Arkusz7!$U$2:$U$24,MATCH(Converter!D30,Arkusz7!$C$2:$C$24,-1)),"")&IF(AND(B30<>"",Z30="FMS2019"),INDEX(Arkusz7!$U$2:$U$24,MATCH(Converter!D30,Arkusz7!$D$2:$D$24,-1)),"")&IF(AND(B30<>"",Z30="FMS259"),INDEX(Arkusz7!$U$2:$U$24,MATCH(Converter!D30,Arkusz7!$E$2:$E$24,-1)),"")&IF(AND(B30<>"",Z30="FMS2511"),INDEX(Arkusz7!$U$2:$U$24,MATCH(Converter!D30,Arkusz7!$F$2:$F$24,-1)),"")&IF(AND(B30<>"",Z30="FMS2514"),INDEX(Arkusz7!$U$2:$U$24,MATCH(Converter!D30,Arkusz7!$G$2:$G$24,-1)),"")&IF(AND(B30<>"",Z30="FMS2519"),INDEX(Arkusz7!$U$2:$U$24,MATCH(Converter!D30,Arkusz7!$H$2:$H$24,-1)),"")&IF(AND(B30<>"",Z30="FMS309"),INDEX(Arkusz7!$U$2:$U$24,MATCH(Converter!D30,Arkusz7!$I$2:$I$24,-1)),"")&IF(AND(B30<>"",Z30="FMS3011"),INDEX(Arkusz7!$U$2:$U$24,MATCH(Converter!D30,Arkusz7!$J$2:$J$24,-1)),"")&IF(AND(B30<>"",Z30="FMS3014"),INDEX(Arkusz7!$U$2:$U$24,MATCH(Converter!D30,Arkusz7!$K$2:$K$24,-1)),"")&IF(AND(B30<>"",Z30="FMS3019"),INDEX(Arkusz7!$U$2:$U$24,MATCH(Converter!D30,Arkusz7!$L$2:$L$24,-1)),"")&IF(AND(B30<>"",Z30="FMS349"),INDEX(Arkusz7!$U$2:$U$24,MATCH(Converter!D30,Arkusz7!$M$2:$M$24,-1)),"")&IF(AND(B30<>"",Z30="FMS3411"),INDEX(Arkusz7!$U$2:$U$24,MATCH(Converter!D30,Arkusz7!$N$2:$N$24,-1)),"")&IF(AND(B30<>"",Z30="FMS3414"),INDEX(Arkusz7!$U$2:$U$24,MATCH(Converter!D30,Arkusz7!$O$2:$O$24,-1)),"")&IF(AND(B30<>"",Z30="FMS3419"),INDEX(Arkusz7!$U$2:$U$24,MATCH(Converter!D30,Arkusz7!$P$2:$P$24,-1)),"")&IF(AND(B30<>"",Z30="FMS429"),INDEX(Arkusz7!$U$2:$U$24,MATCH(Converter!D30,Arkusz7!$Q$2:$Q$24,-1)),"")&IF(AND(B30<>"",Z30="FMS4211"),INDEX(Arkusz7!$U$2:$U$24,MATCH(Converter!D30,Arkusz7!$R$2:$R$24,-1)),"")&IF(AND(B30<>"",Z30="FMS4214"),INDEX(Arkusz7!$U$2:$U$24,MATCH(Converter!D30,Arkusz7!$S$2:$S$24,-1)),"")&IF(AND(B30<>"",Z30="FMS4219"),INDEX(Arkusz7!$U$2:$U$24,MATCH(Converter!D30,Arkusz7!$T$2:$T$24,-1)),"")&IF(AND(B30<>"",Z30="F1S177,5"),INDEX(Arkusz7!$AB$2:$AB$19,MATCH(Converter!D30,Arkusz7!$W$2:$W$19,-1)),"")&IF(AND(B30<>"",Z30="F1S207,5"),INDEX(Arkusz7!$AB$2:$AB$19,MATCH(Converter!D30,Arkusz7!$X$2:$X$19,-1)),"")&IF(AND(B30<>"",Z30="F1S237,5"),INDEX(Arkusz7!$AB$2:$AB$19,MATCH(Converter!D30,Arkusz7!$Y$2:$Y$19,-1)),"")&IF(AND(B30<>"",Z30="F1S2311"),INDEX(Arkusz7!$AB$2:$AB$19,MATCH(Converter!D30,Arkusz7!$Z$2:$Z$19,-1)),"")&IF(AND(B30<>"",Z30="F1S2511"),INDEX(Arkusz7!$AB$2:$AB$19,MATCH(Converter!D30,Arkusz7!$AA$2:$AA$19,-1)),"")&IF(AND(B30<>"",Z30="F2C2311"),INDEX(Arkusz7!$AI$2:$AI$7,MATCH(Converter!D30,Arkusz7!$AD$2:$AD$7,-1)),"")&IF(AND(B30<>"",Z30="F2C3417"),INDEX(Arkusz7!$AI$2:$AI$7,MATCH(Converter!D30,Arkusz7!$AE$2:$AE$7,-1)),"")&IF(AND(B30<>"",Z30="F2V3417"),INDEX(Arkusz7!$AI$2:$AI$7,MATCH(Converter!D30,Arkusz7!$AF$2:$AF$7,-1)),"")&IF(AND(B30<>"",Z30="F4C3417"),INDEX(Arkusz7!$AI$2:$AI$7,MATCH(Converter!D30,Arkusz7!$AG$2:$AG$7,-1)),"")&IF(AND(B30<>"",Z30="F4V3417"),INDEX(Arkusz7!$AI$2:$AI$7,MATCH(Converter!D30,Arkusz7!$AH$2:$AH$7,-1)),"") ->  | AE30: =IF(B30<>"",ROUND(ROUND(ROUND(ROUND(ROUND(ROUND(ROUND(ROUND(ROUND(ROUND(ROUND(ROUND(ROUND(VLOOKUP(AA30,NewAquilo!E:F,2,0)*NewAquilo!$B$21,0)*NewAquilo!$B$22,0)*NewAquilo!$B$23,0)*NewAquilo!$B$24,0)*NewAquilo!$B$25,0)*NewAquilo!$B$26,0)*NewAquilo!$B$27,0)*NewAquilo!$B$28,0)*NewAquilo!$B$29,0)*NewAquilo!$B$30,0)*NewAquilo!$B$31,0)*NewAquilo!$B$32,0)*NewAquilo!$B$33,0),"") ->  | AH30: =IF(B30<>"",VLOOKUP(AA30,NewAquilo!E:G,3,0),"") -> 
N31: =IF(AND(B31<>"",R31="FMS209"),INDEX(Arkusz7!$U$2:$U$24,MATCH(Converter!D31,Arkusz7!$A$2:$A$24,-1)),"")&IF(AND(B31<>"",R31="FMS2011"),INDEX(Arkusz7!$U$2:$U$24,MATCH(Converter!D31,Arkusz7!$B$2:$B$24,-1)),"")&IF(AND(B31<>"",R31="FMS2014"),INDEX(Arkusz7!$U$2:$U$24,MATCH(Converter!D31,Arkusz7!$C$2:$C$24,-1)),"")&IF(AND(B31<>"",R31="FMS2019"),INDEX(Arkusz7!$U$2:$U$24,MATCH(Converter!D31,Arkusz7!$D$2:$D$24,-1)),"")&IF(AND(B31<>"",R31="FMS259"),INDEX(Arkusz7!$U$2:$U$24,MATCH(Converter!D31,Arkusz7!$E$2:$E$24,-1)),"")&IF(AND(B31<>"",R31="FMS2511"),INDEX(Arkusz7!$U$2:$U$24,MATCH(Converter!D31,Arkusz7!$F$2:$F$24,-1)),"")&IF(AND(B31<>"",R31="FMS2514"),INDEX(Arkusz7!$U$2:$U$24,MATCH(Converter!D31,Arkusz7!$G$2:$G$24,-1)),"")&IF(AND(B31<>"",R31="FMS2519"),INDEX(Arkusz7!$U$2:$U$24,MATCH(Converter!D31,Arkusz7!$H$2:$H$24,-1)),"")&IF(AND(B31<>"",R31="FMS309"),INDEX(Arkusz7!$U$2:$U$24,MATCH(Converter!D31,Arkusz7!$I$2:$I$24,-1)),"")&IF(AND(B31<>"",R31="FMS3011"),INDEX(Arkusz7!$U$2:$U$24,MATCH(Converter!D31,Arkusz7!$J$2:$J$24,-1)),"")&IF(AND(B31<>"",R31="FMS3014"),INDEX(Arkusz7!$U$2:$U$24,MATCH(Converter!D31,Arkusz7!$K$2:$K$24,-1)),"")&IF(AND(B31<>"",R31="FMS3019"),INDEX(Arkusz7!$U$2:$U$24,MATCH(Converter!D31,Arkusz7!$L$2:$L$24,-1)),"")&IF(AND(B31<>"",R31="FMS349"),INDEX(Arkusz7!$U$2:$U$24,MATCH(Converter!D31,Arkusz7!$M$2:$M$24,-1)),"")&IF(AND(B31<>"",R31="FMS3411"),INDEX(Arkusz7!$U$2:$U$24,MATCH(Converter!D31,Arkusz7!$N$2:$N$24,-1)),"")&IF(AND(B31<>"",R31="FMS3414"),INDEX(Arkusz7!$U$2:$U$24,MATCH(Converter!D31,Arkusz7!$O$2:$O$24,-1)),"")&IF(AND(B31<>"",R31="FMS3419"),INDEX(Arkusz7!$U$2:$U$24,MATCH(Converter!D31,Arkusz7!$P$2:$P$24,-1)),"")&IF(AND(B31<>"",R31="FMS429"),INDEX(Arkusz7!$U$2:$U$24,MATCH(Converter!D31,Arkusz7!$Q$2:$Q$24,-1)),"")&IF(AND(B31<>"",R31="FMS4211"),INDEX(Arkusz7!$U$2:$U$24,MATCH(Converter!D31,Arkusz7!$R$2:$R$24,-1)),"")&IF(AND(B31<>"",R31="FMS4214"),INDEX(Arkusz7!$U$2:$U$24,MATCH(Converter!D31,Arkusz7!$S$2:$S$24,-1)),"")&IF(AND(B31<>"",R31="FMS4219"),INDEX(Arkusz7!$U$2:$U$24,MATCH(Converter!D31,Arkusz7!$T$2:$T$24,-1)),"")&IF(AND(B31<>"",R31="F1S177,5"),INDEX(Arkusz7!$AB$2:$AB$19,MATCH(Converter!D31,Arkusz7!$W$2:$W$19,-1)),"")&IF(AND(B31<>"",R31="F1S207,5"),INDEX(Arkusz7!$AB$2:$AB$19,MATCH(Converter!D31,Arkusz7!$X$2:$X$19,-1)),"")&IF(AND(B31<>"",R31="F1S237,5"),INDEX(Arkusz7!$AB$2:$AB$19,MATCH(Converter!D31,Arkusz7!$Y$2:$Y$19,-1)),"")&IF(AND(B31<>"",R31="F1S2311"),INDEX(Arkusz7!$AB$2:$AB$19,MATCH(Converter!D31,Arkusz7!$Z$2:$Z$19,-1)),"")&IF(AND(B31<>"",R31="F1S2511"),INDEX(Arkusz7!$AB$2:$AB$19,MATCH(Converter!D31,Arkusz7!$AA$2:$AA$19,-1)),"")&IF(AND(B31<>"",R31="F2C2311"),INDEX(Arkusz7!$AI$2:$AI$7,MATCH(Converter!D31,Arkusz7!$AD$2:$AD$7,-1)),"")&IF(AND(B31<>"",R31="F2C3417"),INDEX(Arkusz7!$AI$2:$AI$7,MATCH(Converter!D31,Arkusz7!$AE$2:$AE$7,-1)),"")&IF(AND(B31<>"",R31="F2V3417"),INDEX(Arkusz7!$AI$2:$AI$7,MATCH(Converter!D31,Arkusz7!$AF$2:$AF$7,-1)),"")&IF(AND(B31<>"",R31="F4C3417"),INDEX(Arkusz7!$AI$2:$AI$7,MATCH(Converter!D31,Arkusz7!$AG$2:$AG$7,-1)),"")&IF(AND(B31<>"",R31="F4V3417"),INDEX(Arkusz7!$AI$2:$AI$7,MATCH(Converter!D31,Arkusz7!$AH$2:$AH$7,-1)),"") ->  | U31: =IF(AND(B31<>"",Z31="FMS209"),INDEX(Arkusz7!$U$2:$U$24,MATCH(Converter!D31,Arkusz7!$A$2:$A$24,-1)),"")&IF(AND(B31<>"",Z31="FMS2011"),INDEX(Arkusz7!$U$2:$U$24,MATCH(Converter!D31,Arkusz7!$B$2:$B$24,-1)),"")&IF(AND(B31<>"",Z31="FMS2014"),INDEX(Arkusz7!$U$2:$U$24,MATCH(Converter!D31,Arkusz7!$C$2:$C$24,-1)),"")&IF(AND(B31<>"",Z31="FMS2019"),INDEX(Arkusz7!$U$2:$U$24,MATCH(Converter!D31,Arkusz7!$D$2:$D$24,-1)),"")&IF(AND(B31<>"",Z31="FMS259"),INDEX(Arkusz7!$U$2:$U$24,MATCH(Converter!D31,Arkusz7!$E$2:$E$24,-1)),"")&IF(AND(B31<>"",Z31="FMS2511"),INDEX(Arkusz7!$U$2:$U$24,MATCH(Converter!D31,Arkusz7!$F$2:$F$24,-1)),"")&IF(AND(B31<>"",Z31="FMS2514"),INDEX(Arkusz7!$U$2:$U$24,MATCH(Converter!D31,Arkusz7!$G$2:$G$24,-1)),"")&IF(AND(B31<>"",Z31="FMS2519"),INDEX(Arkusz7!$U$2:$U$24,MATCH(Converter!D31,Arkusz7!$H$2:$H$24,-1)),"")&IF(AND(B31<>"",Z31="FMS309"),INDEX(Arkusz7!$U$2:$U$24,MATCH(Converter!D31,Arkusz7!$I$2:$I$24,-1)),"")&IF(AND(B31<>"",Z31="FMS3011"),INDEX(Arkusz7!$U$2:$U$24,MATCH(Converter!D31,Arkusz7!$J$2:$J$24,-1)),"")&IF(AND(B31<>"",Z31="FMS3014"),INDEX(Arkusz7!$U$2:$U$24,MATCH(Converter!D31,Arkusz7!$K$2:$K$24,-1)),"")&IF(AND(B31<>"",Z31="FMS3019"),INDEX(Arkusz7!$U$2:$U$24,MATCH(Converter!D31,Arkusz7!$L$2:$L$24,-1)),"")&IF(AND(B31<>"",Z31="FMS349"),INDEX(Arkusz7!$U$2:$U$24,MATCH(Converter!D31,Arkusz7!$M$2:$M$24,-1)),"")&IF(AND(B31<>"",Z31="FMS3411"),INDEX(Arkusz7!$U$2:$U$24,MATCH(Converter!D31,Arkusz7!$N$2:$N$24,-1)),"")&IF(AND(B31<>"",Z31="FMS3414"),INDEX(Arkusz7!$U$2:$U$24,MATCH(Converter!D31,Arkusz7!$O$2:$O$24,-1)),"")&IF(AND(B31<>"",Z31="FMS3419"),INDEX(Arkusz7!$U$2:$U$24,MATCH(Converter!D31,Arkusz7!$P$2:$P$24,-1)),"")&IF(AND(B31<>"",Z31="FMS429"),INDEX(Arkusz7!$U$2:$U$24,MATCH(Converter!D31,Arkusz7!$Q$2:$Q$24,-1)),"")&IF(AND(B31<>"",Z31="FMS4211"),INDEX(Arkusz7!$U$2:$U$24,MATCH(Converter!D31,Arkusz7!$R$2:$R$24,-1)),"")&IF(AND(B31<>"",Z31="FMS4214"),INDEX(Arkusz7!$U$2:$U$24,MATCH(Converter!D31,Arkusz7!$S$2:$S$24,-1)),"")&IF(AND(B31<>"",Z31="FMS4219"),INDEX(Arkusz7!$U$2:$U$24,MATCH(Converter!D31,Arkusz7!$T$2:$T$24,-1)),"")&IF(AND(B31<>"",Z31="F1S177,5"),INDEX(Arkusz7!$AB$2:$AB$19,MATCH(Converter!D31,Arkusz7!$W$2:$W$19,-1)),"")&IF(AND(B31<>"",Z31="F1S207,5"),INDEX(Arkusz7!$AB$2:$AB$19,MATCH(Converter!D31,Arkusz7!$X$2:$X$19,-1)),"")&IF(AND(B31<>"",Z31="F1S237,5"),INDEX(Arkusz7!$AB$2:$AB$19,MATCH(Converter!D31,Arkusz7!$Y$2:$Y$19,-1)),"")&IF(AND(B31<>"",Z31="F1S2311"),INDEX(Arkusz7!$AB$2:$AB$19,MATCH(Converter!D31,Arkusz7!$Z$2:$Z$19,-1)),"")&IF(AND(B31<>"",Z31="F1S2511"),INDEX(Arkusz7!$AB$2:$AB$19,MATCH(Converter!D31,Arkusz7!$AA$2:$AA$19,-1)),"")&IF(AND(B31<>"",Z31="F2C2311"),INDEX(Arkusz7!$AI$2:$AI$7,MATCH(Converter!D31,Arkusz7!$AD$2:$AD$7,-1)),"")&IF(AND(B31<>"",Z31="F2C3417"),INDEX(Arkusz7!$AI$2:$AI$7,MATCH(Converter!D31,Arkusz7!$AE$2:$AE$7,-1)),"")&IF(AND(B31<>"",Z31="F2V3417"),INDEX(Arkusz7!$AI$2:$AI$7,MATCH(Converter!D31,Arkusz7!$AF$2:$AF$7,-1)),"")&IF(AND(B31<>"",Z31="F4C3417"),INDEX(Arkusz7!$AI$2:$AI$7,MATCH(Converter!D31,Arkusz7!$AG$2:$AG$7,-1)),"")&IF(AND(B31<>"",Z31="F4V3417"),INDEX(Arkusz7!$AI$2:$AI$7,MATCH(Converter!D31,Arkusz7!$AH$2:$AH$7,-1)),"") ->  | AE31: =IF(B31<>"",ROUND(ROUND(ROUND(ROUND(ROUND(ROUND(ROUND(ROUND(ROUND(ROUND(ROUND(ROUND(ROUND(VLOOKUP(AA31,NewAquilo!E:F,2,0)*NewAquilo!$B$21,0)*NewAquilo!$B$22,0)*NewAquilo!$B$23,0)*NewAquilo!$B$24,0)*NewAquilo!$B$25,0)*NewAquilo!$B$26,0)*NewAquilo!$B$27,0)*NewAquilo!$B$28,0)*NewAquilo!$B$29,0)*NewAquilo!$B$30,0)*NewAquilo!$B$31,0)*NewAquilo!$B$32,0)*NewAquilo!$B$33,0),"") ->  | AH31: =IF(B31<>"",VLOOKUP(AA31,NewAquilo!E:G,3,0),"") -> 
N32: =IF(AND(B32<>"",R32="FMS209"),INDEX(Arkusz7!$U$2:$U$24,MATCH(Converter!D32,Arkusz7!$A$2:$A$24,-1)),"")&IF(AND(B32<>"",R32="FMS2011"),INDEX(Arkusz7!$U$2:$U$24,MATCH(Converter!D32,Arkusz7!$B$2:$B$24,-1)),"")&IF(AND(B32<>"",R32="FMS2014"),INDEX(Arkusz7!$U$2:$U$24,MATCH(Converter!D32,Arkusz7!$C$2:$C$24,-1)),"")&IF(AND(B32<>"",R32="FMS2019"),INDEX(Arkusz7!$U$2:$U$24,MATCH(Converter!D32,Arkusz7!$D$2:$D$24,-1)),"")&IF(AND(B32<>"",R32="FMS259"),INDEX(Arkusz7!$U$2:$U$24,MATCH(Converter!D32,Arkusz7!$E$2:$E$24,-1)),"")&IF(AND(B32<>"",R32="FMS2511"),INDEX(Arkusz7!$U$2:$U$24,MATCH(Converter!D32,Arkusz7!$F$2:$F$24,-1)),"")&IF(AND(B32<>"",R32="FMS2514"),INDEX(Arkusz7!$U$2:$U$24,MATCH(Converter!D32,Arkusz7!$G$2:$G$24,-1)),"")&IF(AND(B32<>"",R32="FMS2519"),INDEX(Arkusz7!$U$2:$U$24,MATCH(Converter!D32,Arkusz7!$H$2:$H$24,-1)),"")&IF(AND(B32<>"",R32="FMS309"),INDEX(Arkusz7!$U$2:$U$24,MATCH(Converter!D32,Arkusz7!$I$2:$I$24,-1)),"")&IF(AND(B32<>"",R32="FMS3011"),INDEX(Arkusz7!$U$2:$U$24,MATCH(Converter!D32,Arkusz7!$J$2:$J$24,-1)),"")&IF(AND(B32<>"",R32="FMS3014"),INDEX(Arkusz7!$U$2:$U$24,MATCH(Converter!D32,Arkusz7!$K$2:$K$24,-1)),"")&IF(AND(B32<>"",R32="FMS3019"),INDEX(Arkusz7!$U$2:$U$24,MATCH(Converter!D32,Arkusz7!$L$2:$L$24,-1)),"")&IF(AND(B32<>"",R32="FMS349"),INDEX(Arkusz7!$U$2:$U$24,MATCH(Converter!D32,Arkusz7!$M$2:$M$24,-1)),"")&IF(AND(B32<>"",R32="FMS3411"),INDEX(Arkusz7!$U$2:$U$24,MATCH(Converter!D32,Arkusz7!$N$2:$N$24,-1)),"")&IF(AND(B32<>"",R32="FMS3414"),INDEX(Arkusz7!$U$2:$U$24,MATCH(Converter!D32,Arkusz7!$O$2:$O$24,-1)),"")&IF(AND(B32<>"",R32="FMS3419"),INDEX(Arkusz7!$U$2:$U$24,MATCH(Converter!D32,Arkusz7!$P$2:$P$24,-1)),"")&IF(AND(B32<>"",R32="FMS429"),INDEX(Arkusz7!$U$2:$U$24,MATCH(Converter!D32,Arkusz7!$Q$2:$Q$24,-1)),"")&IF(AND(B32<>"",R32="FMS4211"),INDEX(Arkusz7!$U$2:$U$24,MATCH(Converter!D32,Arkusz7!$R$2:$R$24,-1)),"")&IF(AND(B32<>"",R32="FMS4214"),INDEX(Arkusz7!$U$2:$U$24,MATCH(Converter!D32,Arkusz7!$S$2:$S$24,-1)),"")&IF(AND(B32<>"",R32="FMS4219"),INDEX(Arkusz7!$U$2:$U$24,MATCH(Converter!D32,Arkusz7!$T$2:$T$24,-1)),"")&IF(AND(B32<>"",R32="F1S177,5"),INDEX(Arkusz7!$AB$2:$AB$19,MATCH(Converter!D32,Arkusz7!$W$2:$W$19,-1)),"")&IF(AND(B32<>"",R32="F1S207,5"),INDEX(Arkusz7!$AB$2:$AB$19,MATCH(Converter!D32,Arkusz7!$X$2:$X$19,-1)),"")&IF(AND(B32<>"",R32="F1S237,5"),INDEX(Arkusz7!$AB$2:$AB$19,MATCH(Converter!D32,Arkusz7!$Y$2:$Y$19,-1)),"")&IF(AND(B32<>"",R32="F1S2311"),INDEX(Arkusz7!$AB$2:$AB$19,MATCH(Converter!D32,Arkusz7!$Z$2:$Z$19,-1)),"")&IF(AND(B32<>"",R32="F1S2511"),INDEX(Arkusz7!$AB$2:$AB$19,MATCH(Converter!D32,Arkusz7!$AA$2:$AA$19,-1)),"")&IF(AND(B32<>"",R32="F2C2311"),INDEX(Arkusz7!$AI$2:$AI$7,MATCH(Converter!D32,Arkusz7!$AD$2:$AD$7,-1)),"")&IF(AND(B32<>"",R32="F2C3417"),INDEX(Arkusz7!$AI$2:$AI$7,MATCH(Converter!D32,Arkusz7!$AE$2:$AE$7,-1)),"")&IF(AND(B32<>"",R32="F2V3417"),INDEX(Arkusz7!$AI$2:$AI$7,MATCH(Converter!D32,Arkusz7!$AF$2:$AF$7,-1)),"")&IF(AND(B32<>"",R32="F4C3417"),INDEX(Arkusz7!$AI$2:$AI$7,MATCH(Converter!D32,Arkusz7!$AG$2:$AG$7,-1)),"")&IF(AND(B32<>"",R32="F4V3417"),INDEX(Arkusz7!$AI$2:$AI$7,MATCH(Converter!D32,Arkusz7!$AH$2:$AH$7,-1)),"") ->  | U32: =IF(AND(B32<>"",Z32="FMS209"),INDEX(Arkusz7!$U$2:$U$24,MATCH(Converter!D32,Arkusz7!$A$2:$A$24,-1)),"")&IF(AND(B32<>"",Z32="FMS2011"),INDEX(Arkusz7!$U$2:$U$24,MATCH(Converter!D32,Arkusz7!$B$2:$B$24,-1)),"")&IF(AND(B32<>"",Z32="FMS2014"),INDEX(Arkusz7!$U$2:$U$24,MATCH(Converter!D32,Arkusz7!$C$2:$C$24,-1)),"")&IF(AND(B32<>"",Z32="FMS2019"),INDEX(Arkusz7!$U$2:$U$24,MATCH(Converter!D32,Arkusz7!$D$2:$D$24,-1)),"")&IF(AND(B32<>"",Z32="FMS259"),INDEX(Arkusz7!$U$2:$U$24,MATCH(Converter!D32,Arkusz7!$E$2:$E$24,-1)),"")&IF(AND(B32<>"",Z32="FMS2511"),INDEX(Arkusz7!$U$2:$U$24,MATCH(Converter!D32,Arkusz7!$F$2:$F$24,-1)),"")&IF(AND(B32<>"",Z32="FMS2514"),INDEX(Arkusz7!$U$2:$U$24,MATCH(Converter!D32,Arkusz7!$G$2:$G$24,-1)),"")&IF(AND(B32<>"",Z32="FMS2519"),INDEX(Arkusz7!$U$2:$U$24,MATCH(Converter!D32,Arkusz7!$H$2:$H$24,-1)),"")&IF(AND(B32<>"",Z32="FMS309"),INDEX(Arkusz7!$U$2:$U$24,MATCH(Converter!D32,Arkusz7!$I$2:$I$24,-1)),"")&IF(AND(B32<>"",Z32="FMS3011"),INDEX(Arkusz7!$U$2:$U$24,MATCH(Converter!D32,Arkusz7!$J$2:$J$24,-1)),"")&IF(AND(B32<>"",Z32="FMS3014"),INDEX(Arkusz7!$U$2:$U$24,MATCH(Converter!D32,Arkusz7!$K$2:$K$24,-1)),"")&IF(AND(B32<>"",Z32="FMS3019"),INDEX(Arkusz7!$U$2:$U$24,MATCH(Converter!D32,Arkusz7!$L$2:$L$24,-1)),"")&IF(AND(B32<>"",Z32="FMS349"),INDEX(Arkusz7!$U$2:$U$24,MATCH(Converter!D32,Arkusz7!$M$2:$M$24,-1)),"")&IF(AND(B32<>"",Z32="FMS3411"),INDEX(Arkusz7!$U$2:$U$24,MATCH(Converter!D32,Arkusz7!$N$2:$N$24,-1)),"")&IF(AND(B32<>"",Z32="FMS3414"),INDEX(Arkusz7!$U$2:$U$24,MATCH(Converter!D32,Arkusz7!$O$2:$O$24,-1)),"")&IF(AND(B32<>"",Z32="FMS3419"),INDEX(Arkusz7!$U$2:$U$24,MATCH(Converter!D32,Arkusz7!$P$2:$P$24,-1)),"")&IF(AND(B32<>"",Z32="FMS429"),INDEX(Arkusz7!$U$2:$U$24,MATCH(Converter!D32,Arkusz7!$Q$2:$Q$24,-1)),"")&IF(AND(B32<>"",Z32="FMS4211"),INDEX(Arkusz7!$U$2:$U$24,MATCH(Converter!D32,Arkusz7!$R$2:$R$24,-1)),"")&IF(AND(B32<>"",Z32="FMS4214"),INDEX(Arkusz7!$U$2:$U$24,MATCH(Converter!D32,Arkusz7!$S$2:$S$24,-1)),"")&IF(AND(B32<>"",Z32="FMS4219"),INDEX(Arkusz7!$U$2:$U$24,MATCH(Converter!D32,Arkusz7!$T$2:$T$24,-1)),"")&IF(AND(B32<>"",Z32="F1S177,5"),INDEX(Arkusz7!$AB$2:$AB$19,MATCH(Converter!D32,Arkusz7!$W$2:$W$19,-1)),"")&IF(AND(B32<>"",Z32="F1S207,5"),INDEX(Arkusz7!$AB$2:$AB$19,MATCH(Converter!D32,Arkusz7!$X$2:$X$19,-1)),"")&IF(AND(B32<>"",Z32="F1S237,5"),INDEX(Arkusz7!$AB$2:$AB$19,MATCH(Converter!D32,Arkusz7!$Y$2:$Y$19,-1)),"")&IF(AND(B32<>"",Z32="F1S2311"),INDEX(Arkusz7!$AB$2:$AB$19,MATCH(Converter!D32,Arkusz7!$Z$2:$Z$19,-1)),"")&IF(AND(B32<>"",Z32="F1S2511"),INDEX(Arkusz7!$AB$2:$AB$19,MATCH(Converter!D32,Arkusz7!$AA$2:$AA$19,-1)),"")&IF(AND(B32<>"",Z32="F2C2311"),INDEX(Arkusz7!$AI$2:$AI$7,MATCH(Converter!D32,Arkusz7!$AD$2:$AD$7,-1)),"")&IF(AND(B32<>"",Z32="F2C3417"),INDEX(Arkusz7!$AI$2:$AI$7,MATCH(Converter!D32,Arkusz7!$AE$2:$AE$7,-1)),"")&IF(AND(B32<>"",Z32="F2V3417"),INDEX(Arkusz7!$AI$2:$AI$7,MATCH(Converter!D32,Arkusz7!$AF$2:$AF$7,-1)),"")&IF(AND(B32<>"",Z32="F4C3417"),INDEX(Arkusz7!$AI$2:$AI$7,MATCH(Converter!D32,Arkusz7!$AG$2:$AG$7,-1)),"")&IF(AND(B32<>"",Z32="F4V3417"),INDEX(Arkusz7!$AI$2:$AI$7,MATCH(Converter!D32,Arkusz7!$AH$2:$AH$7,-1)),"") ->  | AE32: =IF(B32<>"",ROUND(ROUND(ROUND(ROUND(ROUND(ROUND(ROUND(ROUND(ROUND(ROUND(ROUND(ROUND(ROUND(VLOOKUP(AA32,NewAquilo!E:F,2,0)*NewAquilo!$B$21,0)*NewAquilo!$B$22,0)*NewAquilo!$B$23,0)*NewAquilo!$B$24,0)*NewAquilo!$B$25,0)*NewAquilo!$B$26,0)*NewAquilo!$B$27,0)*NewAquilo!$B$28,0)*NewAquilo!$B$29,0)*NewAquilo!$B$30,0)*NewAquilo!$B$31,0)*NewAquilo!$B$32,0)*NewAquilo!$B$33,0),"") ->  | AH32: =IF(B32<>"",VLOOKUP(AA32,NewAquilo!E:G,3,0),"") -> 
N33: =IF(AND(B33<>"",R33="FMS209"),INDEX(Arkusz7!$U$2:$U$24,MATCH(Converter!D33,Arkusz7!$A$2:$A$24,-1)),"")&IF(AND(B33<>"",R33="FMS2011"),INDEX(Arkusz7!$U$2:$U$24,MATCH(Converter!D33,Arkusz7!$B$2:$B$24,-1)),"")&IF(AND(B33<>"",R33="FMS2014"),INDEX(Arkusz7!$U$2:$U$24,MATCH(Converter!D33,Arkusz7!$C$2:$C$24,-1)),"")&IF(AND(B33<>"",R33="FMS2019"),INDEX(Arkusz7!$U$2:$U$24,MATCH(Converter!D33,Arkusz7!$D$2:$D$24,-1)),"")&IF(AND(B33<>"",R33="FMS259"),INDEX(Arkusz7!$U$2:$U$24,MATCH(Converter!D33,Arkusz7!$E$2:$E$24,-1)),"")&IF(AND(B33<>"",R33="FMS2511"),INDEX(Arkusz7!$U$2:$U$24,MATCH(Converter!D33,Arkusz7!$F$2:$F$24,-1)),"")&IF(AND(B33<>"",R33="FMS2514"),INDEX(Arkusz7!$U$2:$U$24,MATCH(Converter!D33,Arkusz7!$G$2:$G$24,-1)),"")&IF(AND(B33<>"",R33="FMS2519"),INDEX(Arkusz7!$U$2:$U$24,MATCH(Converter!D33,Arkusz7!$H$2:$H$24,-1)),"")&IF(AND(B33<>"",R33="FMS309"),INDEX(Arkusz7!$U$2:$U$24,MATCH(Converter!D33,Arkusz7!$I$2:$I$24,-1)),"")&IF(AND(B33<>"",R33="FMS3011"),INDEX(Arkusz7!$U$2:$U$24,MATCH(Converter!D33,Arkusz7!$J$2:$J$24,-1)),"")&IF(AND(B33<>"",R33="FMS3014"),INDEX(Arkusz7!$U$2:$U$24,MATCH(Converter!D33,Arkusz7!$K$2:$K$24,-1)),"")&IF(AND(B33<>"",R33="FMS3019"),INDEX(Arkusz7!$U$2:$U$24,MATCH(Converter!D33,Arkusz7!$L$2:$L$24,-1)),"")&IF(AND(B33<>"",R33="FMS349"),INDEX(Arkusz7!$U$2:$U$24,MATCH(Converter!D33,Arkusz7!$M$2:$M$24,-1)),"")&IF(AND(B33<>"",R33="FMS3411"),INDEX(Arkusz7!$U$2:$U$24,MATCH(Converter!D33,Arkusz7!$N$2:$N$24,-1)),"")&IF(AND(B33<>"",R33="FMS3414"),INDEX(Arkusz7!$U$2:$U$24,MATCH(Converter!D33,Arkusz7!$O$2:$O$24,-1)),"")&IF(AND(B33<>"",R33="FMS3419"),INDEX(Arkusz7!$U$2:$U$24,MATCH(Converter!D33,Arkusz7!$P$2:$P$24,-1)),"")&IF(AND(B33<>"",R33="FMS429"),INDEX(Arkusz7!$U$2:$U$24,MATCH(Converter!D33,Arkusz7!$Q$2:$Q$24,-1)),"")&IF(AND(B33<>"",R33="FMS4211"),INDEX(Arkusz7!$U$2:$U$24,MATCH(Converter!D33,Arkusz7!$R$2:$R$24,-1)),"")&IF(AND(B33<>"",R33="FMS4214"),INDEX(Arkusz7!$U$2:$U$24,MATCH(Converter!D33,Arkusz7!$S$2:$S$24,-1)),"")&IF(AND(B33<>"",R33="FMS4219"),INDEX(Arkusz7!$U$2:$U$24,MATCH(Converter!D33,Arkusz7!$T$2:$T$24,-1)),"")&IF(AND(B33<>"",R33="F1S177,5"),INDEX(Arkusz7!$AB$2:$AB$19,MATCH(Converter!D33,Arkusz7!$W$2:$W$19,-1)),"")&IF(AND(B33<>"",R33="F1S207,5"),INDEX(Arkusz7!$AB$2:$AB$19,MATCH(Converter!D33,Arkusz7!$X$2:$X$19,-1)),"")&IF(AND(B33<>"",R33="F1S237,5"),INDEX(Arkusz7!$AB$2:$AB$19,MATCH(Converter!D33,Arkusz7!$Y$2:$Y$19,-1)),"")&IF(AND(B33<>"",R33="F1S2311"),INDEX(Arkusz7!$AB$2:$AB$19,MATCH(Converter!D33,Arkusz7!$Z$2:$Z$19,-1)),"")&IF(AND(B33<>"",R33="F1S2511"),INDEX(Arkusz7!$AB$2:$AB$19,MATCH(Converter!D33,Arkusz7!$AA$2:$AA$19,-1)),"")&IF(AND(B33<>"",R33="F2C2311"),INDEX(Arkusz7!$AI$2:$AI$7,MATCH(Converter!D33,Arkusz7!$AD$2:$AD$7,-1)),"")&IF(AND(B33<>"",R33="F2C3417"),INDEX(Arkusz7!$AI$2:$AI$7,MATCH(Converter!D33,Arkusz7!$AE$2:$AE$7,-1)),"")&IF(AND(B33<>"",R33="F2V3417"),INDEX(Arkusz7!$AI$2:$AI$7,MATCH(Converter!D33,Arkusz7!$AF$2:$AF$7,-1)),"")&IF(AND(B33<>"",R33="F4C3417"),INDEX(Arkusz7!$AI$2:$AI$7,MATCH(Converter!D33,Arkusz7!$AG$2:$AG$7,-1)),"")&IF(AND(B33<>"",R33="F4V3417"),INDEX(Arkusz7!$AI$2:$AI$7,MATCH(Converter!D33,Arkusz7!$AH$2:$AH$7,-1)),"") ->  | U33: =IF(AND(B33<>"",Z33="FMS209"),INDEX(Arkusz7!$U$2:$U$24,MATCH(Converter!D33,Arkusz7!$A$2:$A$24,-1)),"")&IF(AND(B33<>"",Z33="FMS2011"),INDEX(Arkusz7!$U$2:$U$24,MATCH(Converter!D33,Arkusz7!$B$2:$B$24,-1)),"")&IF(AND(B33<>"",Z33="FMS2014"),INDEX(Arkusz7!$U$2:$U$24,MATCH(Converter!D33,Arkusz7!$C$2:$C$24,-1)),"")&IF(AND(B33<>"",Z33="FMS2019"),INDEX(Arkusz7!$U$2:$U$24,MATCH(Converter!D33,Arkusz7!$D$2:$D$24,-1)),"")&IF(AND(B33<>"",Z33="FMS259"),INDEX(Arkusz7!$U$2:$U$24,MATCH(Converter!D33,Arkusz7!$E$2:$E$24,-1)),"")&IF(AND(B33<>"",Z33="FMS2511"),INDEX(Arkusz7!$U$2:$U$24,MATCH(Converter!D33,Arkusz7!$F$2:$F$24,-1)),"")&IF(AND(B33<>"",Z33="FMS2514"),INDEX(Arkusz7!$U$2:$U$24,MATCH(Converter!D33,Arkusz7!$G$2:$G$24,-1)),"")&IF(AND(B33<>"",Z33="FMS2519"),INDEX(Arkusz7!$U$2:$U$24,MATCH(Converter!D33,Arkusz7!$H$2:$H$24,-1)),"")&IF(AND(B33<>"",Z33="FMS309"),INDEX(Arkusz7!$U$2:$U$24,MATCH(Converter!D33,Arkusz7!$I$2:$I$24,-1)),"")&IF(AND(B33<>"",Z33="FMS3011"),INDEX(Arkusz7!$U$2:$U$24,MATCH(Converter!D33,Arkusz7!$J$2:$J$24,-1)),"")&IF(AND(B33<>"",Z33="FMS3014"),INDEX(Arkusz7!$U$2:$U$24,MATCH(Converter!D33,Arkusz7!$K$2:$K$24,-1)),"")&IF(AND(B33<>"",Z33="FMS3019"),INDEX(Arkusz7!$U$2:$U$24,MATCH(Converter!D33,Arkusz7!$L$2:$L$24,-1)),"")&IF(AND(B33<>"",Z33="FMS349"),INDEX(Arkusz7!$U$2:$U$24,MATCH(Converter!D33,Arkusz7!$M$2:$M$24,-1)),"")&IF(AND(B33<>"",Z33="FMS3411"),INDEX(Arkusz7!$U$2:$U$24,MATCH(Converter!D33,Arkusz7!$N$2:$N$24,-1)),"")&IF(AND(B33<>"",Z33="FMS3414"),INDEX(Arkusz7!$U$2:$U$24,MATCH(Converter!D33,Arkusz7!$O$2:$O$24,-1)),"")&IF(AND(B33<>"",Z33="FMS3419"),INDEX(Arkusz7!$U$2:$U$24,MATCH(Converter!D33,Arkusz7!$P$2:$P$24,-1)),"")&IF(AND(B33<>"",Z33="FMS429"),INDEX(Arkusz7!$U$2:$U$24,MATCH(Converter!D33,Arkusz7!$Q$2:$Q$24,-1)),"")&IF(AND(B33<>"",Z33="FMS4211"),INDEX(Arkusz7!$U$2:$U$24,MATCH(Converter!D33,Arkusz7!$R$2:$R$24,-1)),"")&IF(AND(B33<>"",Z33="FMS4214"),INDEX(Arkusz7!$U$2:$U$24,MATCH(Converter!D33,Arkusz7!$S$2:$S$24,-1)),"")&IF(AND(B33<>"",Z33="FMS4219"),INDEX(Arkusz7!$U$2:$U$24,MATCH(Converter!D33,Arkusz7!$T$2:$T$24,-1)),"")&IF(AND(B33<>"",Z33="F1S177,5"),INDEX(Arkusz7!$AB$2:$AB$19,MATCH(Converter!D33,Arkusz7!$W$2:$W$19,-1)),"")&IF(AND(B33<>"",Z33="F1S207,5"),INDEX(Arkusz7!$AB$2:$AB$19,MATCH(Converter!D33,Arkusz7!$X$2:$X$19,-1)),"")&IF(AND(B33<>"",Z33="F1S237,5"),INDEX(Arkusz7!$AB$2:$AB$19,MATCH(Converter!D33,Arkusz7!$Y$2:$Y$19,-1)),"")&IF(AND(B33<>"",Z33="F1S2311"),INDEX(Arkusz7!$AB$2:$AB$19,MATCH(Converter!D33,Arkusz7!$Z$2:$Z$19,-1)),"")&IF(AND(B33<>"",Z33="F1S2511"),INDEX(Arkusz7!$AB$2:$AB$19,MATCH(Converter!D33,Arkusz7!$AA$2:$AA$19,-1)),"")&IF(AND(B33<>"",Z33="F2C2311"),INDEX(Arkusz7!$AI$2:$AI$7,MATCH(Converter!D33,Arkusz7!$AD$2:$AD$7,-1)),"")&IF(AND(B33<>"",Z33="F2C3417"),INDEX(Arkusz7!$AI$2:$AI$7,MATCH(Converter!D33,Arkusz7!$AE$2:$AE$7,-1)),"")&IF(AND(B33<>"",Z33="F2V3417"),INDEX(Arkusz7!$AI$2:$AI$7,MATCH(Converter!D33,Arkusz7!$AF$2:$AF$7,-1)),"")&IF(AND(B33<>"",Z33="F4C3417"),INDEX(Arkusz7!$AI$2:$AI$7,MATCH(Converter!D33,Arkusz7!$AG$2:$AG$7,-1)),"")&IF(AND(B33<>"",Z33="F4V3417"),INDEX(Arkusz7!$AI$2:$AI$7,MATCH(Converter!D33,Arkusz7!$AH$2:$AH$7,-1)),"") ->  | AE33: =IF(B33<>"",ROUND(ROUND(ROUND(ROUND(ROUND(ROUND(ROUND(ROUND(ROUND(ROUND(ROUND(ROUND(ROUND(VLOOKUP(AA33,NewAquilo!E:F,2,0)*NewAquilo!$B$21,0)*NewAquilo!$B$22,0)*NewAquilo!$B$23,0)*NewAquilo!$B$24,0)*NewAquilo!$B$25,0)*NewAquilo!$B$26,0)*NewAquilo!$B$27,0)*NewAquilo!$B$28,0)*NewAquilo!$B$29,0)*NewAquilo!$B$30,0)*NewAquilo!$B$31,0)*NewAquilo!$B$32,0)*NewAquilo!$B$33,0),"") ->  | AH33: =IF(B33<>"",VLOOKUP(AA33,NewAquilo!E:G,3,0),"") -> 
N34: =IF(AND(B34<>"",R34="FMS209"),INDEX(Arkusz7!$U$2:$U$24,MATCH(Converter!D34,Arkusz7!$A$2:$A$24,-1)),"")&IF(AND(B34<>"",R34="FMS2011"),INDEX(Arkusz7!$U$2:$U$24,MATCH(Converter!D34,Arkusz7!$B$2:$B$24,-1)),"")&IF(AND(B34<>"",R34="FMS2014"),INDEX(Arkusz7!$U$2:$U$24,MATCH(Converter!D34,Arkusz7!$C$2:$C$24,-1)),"")&IF(AND(B34<>"",R34="FMS2019"),INDEX(Arkusz7!$U$2:$U$24,MATCH(Converter!D34,Arkusz7!$D$2:$D$24,-1)),"")&IF(AND(B34<>"",R34="FMS259"),INDEX(Arkusz7!$U$2:$U$24,MATCH(Converter!D34,Arkusz7!$E$2:$E$24,-1)),"")&IF(AND(B34<>"",R34="FMS2511"),INDEX(Arkusz7!$U$2:$U$24,MATCH(Converter!D34,Arkusz7!$F$2:$F$24,-1)),"")&IF(AND(B34<>"",R34="FMS2514"),INDEX(Arkusz7!$U$2:$U$24,MATCH(Converter!D34,Arkusz7!$G$2:$G$24,-1)),"")&IF(AND(B34<>"",R34="FMS2519"),INDEX(Arkusz7!$U$2:$U$24,MATCH(Converter!D34,Arkusz7!$H$2:$H$24,-1)),"")&IF(AND(B34<>"",R34="FMS309"),INDEX(Arkusz7!$U$2:$U$24,MATCH(Converter!D34,Arkusz7!$I$2:$I$24,-1)),"")&IF(AND(B34<>"",R34="FMS3011"),INDEX(Arkusz7!$U$2:$U$24,MATCH(Converter!D34,Arkusz7!$J$2:$J$24,-1)),"")&IF(AND(B34<>"",R34="FMS3014"),INDEX(Arkusz7!$U$2:$U$24,MATCH(Converter!D34,Arkusz7!$K$2:$K$24,-1)),"")&IF(AND(B34<>"",R34="FMS3019"),INDEX(Arkusz7!$U$2:$U$24,MATCH(Converter!D34,Arkusz7!$L$2:$L$24,-1)),"")&IF(AND(B34<>"",R34="FMS349"),INDEX(Arkusz7!$U$2:$U$24,MATCH(Converter!D34,Arkusz7!$M$2:$M$24,-1)),"")&IF(AND(B34<>"",R34="FMS3411"),INDEX(Arkusz7!$U$2:$U$24,MATCH(Converter!D34,Arkusz7!$N$2:$N$24,-1)),"")&IF(AND(B34<>"",R34="FMS3414"),INDEX(Arkusz7!$U$2:$U$24,MATCH(Converter!D34,Arkusz7!$O$2:$O$24,-1)),"")&IF(AND(B34<>"",R34="FMS3419"),INDEX(Arkusz7!$U$2:$U$24,MATCH(Converter!D34,Arkusz7!$P$2:$P$24,-1)),"")&IF(AND(B34<>"",R34="FMS429"),INDEX(Arkusz7!$U$2:$U$24,MATCH(Converter!D34,Arkusz7!$Q$2:$Q$24,-1)),"")&IF(AND(B34<>"",R34="FMS4211"),INDEX(Arkusz7!$U$2:$U$24,MATCH(Converter!D34,Arkusz7!$R$2:$R$24,-1)),"")&IF(AND(B34<>"",R34="FMS4214"),INDEX(Arkusz7!$U$2:$U$24,MATCH(Converter!D34,Arkusz7!$S$2:$S$24,-1)),"")&IF(AND(B34<>"",R34="FMS4219"),INDEX(Arkusz7!$U$2:$U$24,MATCH(Converter!D34,Arkusz7!$T$2:$T$24,-1)),"")&IF(AND(B34<>"",R34="F1S177,5"),INDEX(Arkusz7!$AB$2:$AB$19,MATCH(Converter!D34,Arkusz7!$W$2:$W$19,-1)),"")&IF(AND(B34<>"",R34="F1S207,5"),INDEX(Arkusz7!$AB$2:$AB$19,MATCH(Converter!D34,Arkusz7!$X$2:$X$19,-1)),"")&IF(AND(B34<>"",R34="F1S237,5"),INDEX(Arkusz7!$AB$2:$AB$19,MATCH(Converter!D34,Arkusz7!$Y$2:$Y$19,-1)),"")&IF(AND(B34<>"",R34="F1S2311"),INDEX(Arkusz7!$AB$2:$AB$19,MATCH(Converter!D34,Arkusz7!$Z$2:$Z$19,-1)),"")&IF(AND(B34<>"",R34="F1S2511"),INDEX(Arkusz7!$AB$2:$AB$19,MATCH(Converter!D34,Arkusz7!$AA$2:$AA$19,-1)),"")&IF(AND(B34<>"",R34="F2C2311"),INDEX(Arkusz7!$AI$2:$AI$7,MATCH(Converter!D34,Arkusz7!$AD$2:$AD$7,-1)),"")&IF(AND(B34<>"",R34="F2C3417"),INDEX(Arkusz7!$AI$2:$AI$7,MATCH(Converter!D34,Arkusz7!$AE$2:$AE$7,-1)),"")&IF(AND(B34<>"",R34="F2V3417"),INDEX(Arkusz7!$AI$2:$AI$7,MATCH(Converter!D34,Arkusz7!$AF$2:$AF$7,-1)),"")&IF(AND(B34<>"",R34="F4C3417"),INDEX(Arkusz7!$AI$2:$AI$7,MATCH(Converter!D34,Arkusz7!$AG$2:$AG$7,-1)),"")&IF(AND(B34<>"",R34="F4V3417"),INDEX(Arkusz7!$AI$2:$AI$7,MATCH(Converter!D34,Arkusz7!$AH$2:$AH$7,-1)),"") ->  | U34: =IF(AND(B34<>"",Z34="FMS209"),INDEX(Arkusz7!$U$2:$U$24,MATCH(Converter!D34,Arkusz7!$A$2:$A$24,-1)),"")&IF(AND(B34<>"",Z34="FMS2011"),INDEX(Arkusz7!$U$2:$U$24,MATCH(Converter!D34,Arkusz7!$B$2:$B$24,-1)),"")&IF(AND(B34<>"",Z34="FMS2014"),INDEX(Arkusz7!$U$2:$U$24,MATCH(Converter!D34,Arkusz7!$C$2:$C$24,-1)),"")&IF(AND(B34<>"",Z34="FMS2019"),INDEX(Arkusz7!$U$2:$U$24,MATCH(Converter!D34,Arkusz7!$D$2:$D$24,-1)),"")&IF(AND(B34<>"",Z34="FMS259"),INDEX(Arkusz7!$U$2:$U$24,MATCH(Converter!D34,Arkusz7!$E$2:$E$24,-1)),"")&IF(AND(B34<>"",Z34="FMS2511"),INDEX(Arkusz7!$U$2:$U$24,MATCH(Converter!D34,Arkusz7!$F$2:$F$24,-1)),"")&IF(AND(B34<>"",Z34="FMS2514"),INDEX(Arkusz7!$U$2:$U$24,MATCH(Converter!D34,Arkusz7!$G$2:$G$24,-1)),"")&IF(AND(B34<>"",Z34="FMS2519"),INDEX(Arkusz7!$U$2:$U$24,MATCH(Converter!D34,Arkusz7!$H$2:$H$24,-1)),"")&IF(AND(B34<>"",Z34="FMS309"),INDEX(Arkusz7!$U$2:$U$24,MATCH(Converter!D34,Arkusz7!$I$2:$I$24,-1)),"")&IF(AND(B34<>"",Z34="FMS3011"),INDEX(Arkusz7!$U$2:$U$24,MATCH(Converter!D34,Arkusz7!$J$2:$J$24,-1)),"")&IF(AND(B34<>"",Z34="FMS3014"),INDEX(Arkusz7!$U$2:$U$24,MATCH(Converter!D34,Arkusz7!$K$2:$K$24,-1)),"")&IF(AND(B34<>"",Z34="FMS3019"),INDEX(Arkusz7!$U$2:$U$24,MATCH(Converter!D34,Arkusz7!$L$2:$L$24,-1)),"")&IF(AND(B34<>"",Z34="FMS349"),INDEX(Arkusz7!$U$2:$U$24,MATCH(Converter!D34,Arkusz7!$M$2:$M$24,-1)),"")&IF(AND(B34<>"",Z34="FMS3411"),INDEX(Arkusz7!$U$2:$U$24,MATCH(Converter!D34,Arkusz7!$N$2:$N$24,-1)),"")&IF(AND(B34<>"",Z34="FMS3414"),INDEX(Arkusz7!$U$2:$U$24,MATCH(Converter!D34,Arkusz7!$O$2:$O$24,-1)),"")&IF(AND(B34<>"",Z34="FMS3419"),INDEX(Arkusz7!$U$2:$U$24,MATCH(Converter!D34,Arkusz7!$P$2:$P$24,-1)),"")&IF(AND(B34<>"",Z34="FMS429"),INDEX(Arkusz7!$U$2:$U$24,MATCH(Converter!D34,Arkusz7!$Q$2:$Q$24,-1)),"")&IF(AND(B34<>"",Z34="FMS4211"),INDEX(Arkusz7!$U$2:$U$24,MATCH(Converter!D34,Arkusz7!$R$2:$R$24,-1)),"")&IF(AND(B34<>"",Z34="FMS4214"),INDEX(Arkusz7!$U$2:$U$24,MATCH(Converter!D34,Arkusz7!$S$2:$S$24,-1)),"")&IF(AND(B34<>"",Z34="FMS4219"),INDEX(Arkusz7!$U$2:$U$24,MATCH(Converter!D34,Arkusz7!$T$2:$T$24,-1)),"")&IF(AND(B34<>"",Z34="F1S177,5"),INDEX(Arkusz7!$AB$2:$AB$19,MATCH(Converter!D34,Arkusz7!$W$2:$W$19,-1)),"")&IF(AND(B34<>"",Z34="F1S207,5"),INDEX(Arkusz7!$AB$2:$AB$19,MATCH(Converter!D34,Arkusz7!$X$2:$X$19,-1)),"")&IF(AND(B34<>"",Z34="F1S237,5"),INDEX(Arkusz7!$AB$2:$AB$19,MATCH(Converter!D34,Arkusz7!$Y$2:$Y$19,-1)),"")&IF(AND(B34<>"",Z34="F1S2311"),INDEX(Arkusz7!$AB$2:$AB$19,MATCH(Converter!D34,Arkusz7!$Z$2:$Z$19,-1)),"")&IF(AND(B34<>"",Z34="F1S2511"),INDEX(Arkusz7!$AB$2:$AB$19,MATCH(Converter!D34,Arkusz7!$AA$2:$AA$19,-1)),"")&IF(AND(B34<>"",Z34="F2C2311"),INDEX(Arkusz7!$AI$2:$AI$7,MATCH(Converter!D34,Arkusz7!$AD$2:$AD$7,-1)),"")&IF(AND(B34<>"",Z34="F2C3417"),INDEX(Arkusz7!$AI$2:$AI$7,MATCH(Converter!D34,Arkusz7!$AE$2:$AE$7,-1)),"")&IF(AND(B34<>"",Z34="F2V3417"),INDEX(Arkusz7!$AI$2:$AI$7,MATCH(Converter!D34,Arkusz7!$AF$2:$AF$7,-1)),"")&IF(AND(B34<>"",Z34="F4C3417"),INDEX(Arkusz7!$AI$2:$AI$7,MATCH(Converter!D34,Arkusz7!$AG$2:$AG$7,-1)),"")&IF(AND(B34<>"",Z34="F4V3417"),INDEX(Arkusz7!$AI$2:$AI$7,MATCH(Converter!D34,Arkusz7!$AH$2:$AH$7,-1)),"") ->  | AE34: =IF(B34<>"",ROUND(ROUND(ROUND(ROUND(ROUND(ROUND(ROUND(ROUND(ROUND(ROUND(ROUND(ROUND(ROUND(VLOOKUP(AA34,NewAquilo!E:F,2,0)*NewAquilo!$B$21,0)*NewAquilo!$B$22,0)*NewAquilo!$B$23,0)*NewAquilo!$B$24,0)*NewAquilo!$B$25,0)*NewAquilo!$B$26,0)*NewAquilo!$B$27,0)*NewAquilo!$B$28,0)*NewAquilo!$B$29,0)*NewAquilo!$B$30,0)*NewAquilo!$B$31,0)*NewAquilo!$B$32,0)*NewAquilo!$B$33,0),"") ->  | AH34: =IF(B34<>"",VLOOKUP(AA34,NewAquilo!E:G,3,0),"") -> 
N35: =IF(AND(B35<>"",R35="FMS209"),INDEX(Arkusz7!$U$2:$U$24,MATCH(Converter!D35,Arkusz7!$A$2:$A$24,-1)),"")&IF(AND(B35<>"",R35="FMS2011"),INDEX(Arkusz7!$U$2:$U$24,MATCH(Converter!D35,Arkusz7!$B$2:$B$24,-1)),"")&IF(AND(B35<>"",R35="FMS2014"),INDEX(Arkusz7!$U$2:$U$24,MATCH(Converter!D35,Arkusz7!$C$2:$C$24,-1)),"")&IF(AND(B35<>"",R35="FMS2019"),INDEX(Arkusz7!$U$2:$U$24,MATCH(Converter!D35,Arkusz7!$D$2:$D$24,-1)),"")&IF(AND(B35<>"",R35="FMS259"),INDEX(Arkusz7!$U$2:$U$24,MATCH(Converter!D35,Arkusz7!$E$2:$E$24,-1)),"")&IF(AND(B35<>"",R35="FMS2511"),INDEX(Arkusz7!$U$2:$U$24,MATCH(Converter!D35,Arkusz7!$F$2:$F$24,-1)),"")&IF(AND(B35<>"",R35="FMS2514"),INDEX(Arkusz7!$U$2:$U$24,MATCH(Converter!D35,Arkusz7!$G$2:$G$24,-1)),"")&IF(AND(B35<>"",R35="FMS2519"),INDEX(Arkusz7!$U$2:$U$24,MATCH(Converter!D35,Arkusz7!$H$2:$H$24,-1)),"")&IF(AND(B35<>"",R35="FMS309"),INDEX(Arkusz7!$U$2:$U$24,MATCH(Converter!D35,Arkusz7!$I$2:$I$24,-1)),"")&IF(AND(B35<>"",R35="FMS3011"),INDEX(Arkusz7!$U$2:$U$24,MATCH(Converter!D35,Arkusz7!$J$2:$J$24,-1)),"")&IF(AND(B35<>"",R35="FMS3014"),INDEX(Arkusz7!$U$2:$U$24,MATCH(Converter!D35,Arkusz7!$K$2:$K$24,-1)),"")&IF(AND(B35<>"",R35="FMS3019"),INDEX(Arkusz7!$U$2:$U$24,MATCH(Converter!D35,Arkusz7!$L$2:$L$24,-1)),"")&IF(AND(B35<>"",R35="FMS349"),INDEX(Arkusz7!$U$2:$U$24,MATCH(Converter!D35,Arkusz7!$M$2:$M$24,-1)),"")&IF(AND(B35<>"",R35="FMS3411"),INDEX(Arkusz7!$U$2:$U$24,MATCH(Converter!D35,Arkusz7!$N$2:$N$24,-1)),"")&IF(AND(B35<>"",R35="FMS3414"),INDEX(Arkusz7!$U$2:$U$24,MATCH(Converter!D35,Arkusz7!$O$2:$O$24,-1)),"")&IF(AND(B35<>"",R35="FMS3419"),INDEX(Arkusz7!$U$2:$U$24,MATCH(Converter!D35,Arkusz7!$P$2:$P$24,-1)),"")&IF(AND(B35<>"",R35="FMS429"),INDEX(Arkusz7!$U$2:$U$24,MATCH(Converter!D35,Arkusz7!$Q$2:$Q$24,-1)),"")&IF(AND(B35<>"",R35="FMS4211"),INDEX(Arkusz7!$U$2:$U$24,MATCH(Converter!D35,Arkusz7!$R$2:$R$24,-1)),"")&IF(AND(B35<>"",R35="FMS4214"),INDEX(Arkusz7!$U$2:$U$24,MATCH(Converter!D35,Arkusz7!$S$2:$S$24,-1)),"")&IF(AND(B35<>"",R35="FMS4219"),INDEX(Arkusz7!$U$2:$U$24,MATCH(Converter!D35,Arkusz7!$T$2:$T$24,-1)),"")&IF(AND(B35<>"",R35="F1S177,5"),INDEX(Arkusz7!$AB$2:$AB$19,MATCH(Converter!D35,Arkusz7!$W$2:$W$19,-1)),"")&IF(AND(B35<>"",R35="F1S207,5"),INDEX(Arkusz7!$AB$2:$AB$19,MATCH(Converter!D35,Arkusz7!$X$2:$X$19,-1)),"")&IF(AND(B35<>"",R35="F1S237,5"),INDEX(Arkusz7!$AB$2:$AB$19,MATCH(Converter!D35,Arkusz7!$Y$2:$Y$19,-1)),"")&IF(AND(B35<>"",R35="F1S2311"),INDEX(Arkusz7!$AB$2:$AB$19,MATCH(Converter!D35,Arkusz7!$Z$2:$Z$19,-1)),"")&IF(AND(B35<>"",R35="F1S2511"),INDEX(Arkusz7!$AB$2:$AB$19,MATCH(Converter!D35,Arkusz7!$AA$2:$AA$19,-1)),"")&IF(AND(B35<>"",R35="F2C2311"),INDEX(Arkusz7!$AI$2:$AI$7,MATCH(Converter!D35,Arkusz7!$AD$2:$AD$7,-1)),"")&IF(AND(B35<>"",R35="F2C3417"),INDEX(Arkusz7!$AI$2:$AI$7,MATCH(Converter!D35,Arkusz7!$AE$2:$AE$7,-1)),"")&IF(AND(B35<>"",R35="F2V3417"),INDEX(Arkusz7!$AI$2:$AI$7,MATCH(Converter!D35,Arkusz7!$AF$2:$AF$7,-1)),"")&IF(AND(B35<>"",R35="F4C3417"),INDEX(Arkusz7!$AI$2:$AI$7,MATCH(Converter!D35,Arkusz7!$AG$2:$AG$7,-1)),"")&IF(AND(B35<>"",R35="F4V3417"),INDEX(Arkusz7!$AI$2:$AI$7,MATCH(Converter!D35,Arkusz7!$AH$2:$AH$7,-1)),"") ->  | U35: =IF(AND(B35<>"",Z35="FMS209"),INDEX(Arkusz7!$U$2:$U$24,MATCH(Converter!D35,Arkusz7!$A$2:$A$24,-1)),"")&IF(AND(B35<>"",Z35="FMS2011"),INDEX(Arkusz7!$U$2:$U$24,MATCH(Converter!D35,Arkusz7!$B$2:$B$24,-1)),"")&IF(AND(B35<>"",Z35="FMS2014"),INDEX(Arkusz7!$U$2:$U$24,MATCH(Converter!D35,Arkusz7!$C$2:$C$24,-1)),"")&IF(AND(B35<>"",Z35="FMS2019"),INDEX(Arkusz7!$U$2:$U$24,MATCH(Converter!D35,Arkusz7!$D$2:$D$24,-1)),"")&IF(AND(B35<>"",Z35="FMS259"),INDEX(Arkusz7!$U$2:$U$24,MATCH(Converter!D35,Arkusz7!$E$2:$E$24,-1)),"")&IF(AND(B35<>"",Z35="FMS2511"),INDEX(Arkusz7!$U$2:$U$24,MATCH(Converter!D35,Arkusz7!$F$2:$F$24,-1)),"")&IF(AND(B35<>"",Z35="FMS2514"),INDEX(Arkusz7!$U$2:$U$24,MATCH(Converter!D35,Arkusz7!$G$2:$G$24,-1)),"")&IF(AND(B35<>"",Z35="FMS2519"),INDEX(Arkusz7!$U$2:$U$24,MATCH(Converter!D35,Arkusz7!$H$2:$H$24,-1)),"")&IF(AND(B35<>"",Z35="FMS309"),INDEX(Arkusz7!$U$2:$U$24,MATCH(Converter!D35,Arkusz7!$I$2:$I$24,-1)),"")&IF(AND(B35<>"",Z35="FMS3011"),INDEX(Arkusz7!$U$2:$U$24,MATCH(Converter!D35,Arkusz7!$J$2:$J$24,-1)),"")&IF(AND(B35<>"",Z35="FMS3014"),INDEX(Arkusz7!$U$2:$U$24,MATCH(Converter!D35,Arkusz7!$K$2:$K$24,-1)),"")&IF(AND(B35<>"",Z35="FMS3019"),INDEX(Arkusz7!$U$2:$U$24,MATCH(Converter!D35,Arkusz7!$L$2:$L$24,-1)),"")&IF(AND(B35<>"",Z35="FMS349"),INDEX(Arkusz7!$U$2:$U$24,MATCH(Converter!D35,Arkusz7!$M$2:$M$24,-1)),"")&IF(AND(B35<>"",Z35="FMS3411"),INDEX(Arkusz7!$U$2:$U$24,MATCH(Converter!D35,Arkusz7!$N$2:$N$24,-1)),"")&IF(AND(B35<>"",Z35="FMS3414"),INDEX(Arkusz7!$U$2:$U$24,MATCH(Converter!D35,Arkusz7!$O$2:$O$24,-1)),"")&IF(AND(B35<>"",Z35="FMS3419"),INDEX(Arkusz7!$U$2:$U$24,MATCH(Converter!D35,Arkusz7!$P$2:$P$24,-1)),"")&IF(AND(B35<>"",Z35="FMS429"),INDEX(Arkusz7!$U$2:$U$24,MATCH(Converter!D35,Arkusz7!$Q$2:$Q$24,-1)),"")&IF(AND(B35<>"",Z35="FMS4211"),INDEX(Arkusz7!$U$2:$U$24,MATCH(Converter!D35,Arkusz7!$R$2:$R$24,-1)),"")&IF(AND(B35<>"",Z35="FMS4214"),INDEX(Arkusz7!$U$2:$U$24,MATCH(Converter!D35,Arkusz7!$S$2:$S$24,-1)),"")&IF(AND(B35<>"",Z35="FMS4219"),INDEX(Arkusz7!$U$2:$U$24,MATCH(Converter!D35,Arkusz7!$T$2:$T$24,-1)),"")&IF(AND(B35<>"",Z35="F1S177,5"),INDEX(Arkusz7!$AB$2:$AB$19,MATCH(Converter!D35,Arkusz7!$W$2:$W$19,-1)),"")&IF(AND(B35<>"",Z35="F1S207,5"),INDEX(Arkusz7!$AB$2:$AB$19,MATCH(Converter!D35,Arkusz7!$X$2:$X$19,-1)),"")&IF(AND(B35<>"",Z35="F1S237,5"),INDEX(Arkusz7!$AB$2:$AB$19,MATCH(Converter!D35,Arkusz7!$Y$2:$Y$19,-1)),"")&IF(AND(B35<>"",Z35="F1S2311"),INDEX(Arkusz7!$AB$2:$AB$19,MATCH(Converter!D35,Arkusz7!$Z$2:$Z$19,-1)),"")&IF(AND(B35<>"",Z35="F1S2511"),INDEX(Arkusz7!$AB$2:$AB$19,MATCH(Converter!D35,Arkusz7!$AA$2:$AA$19,-1)),"")&IF(AND(B35<>"",Z35="F2C2311"),INDEX(Arkusz7!$AI$2:$AI$7,MATCH(Converter!D35,Arkusz7!$AD$2:$AD$7,-1)),"")&IF(AND(B35<>"",Z35="F2C3417"),INDEX(Arkusz7!$AI$2:$AI$7,MATCH(Converter!D35,Arkusz7!$AE$2:$AE$7,-1)),"")&IF(AND(B35<>"",Z35="F2V3417"),INDEX(Arkusz7!$AI$2:$AI$7,MATCH(Converter!D35,Arkusz7!$AF$2:$AF$7,-1)),"")&IF(AND(B35<>"",Z35="F4C3417"),INDEX(Arkusz7!$AI$2:$AI$7,MATCH(Converter!D35,Arkusz7!$AG$2:$AG$7,-1)),"")&IF(AND(B35<>"",Z35="F4V3417"),INDEX(Arkusz7!$AI$2:$AI$7,MATCH(Converter!D35,Arkusz7!$AH$2:$AH$7,-1)),"") ->  | AE35: =IF(B35<>"",ROUND(ROUND(ROUND(ROUND(ROUND(ROUND(ROUND(ROUND(ROUND(ROUND(ROUND(ROUND(ROUND(VLOOKUP(AA35,NewAquilo!E:F,2,0)*NewAquilo!$B$21,0)*NewAquilo!$B$22,0)*NewAquilo!$B$23,0)*NewAquilo!$B$24,0)*NewAquilo!$B$25,0)*NewAquilo!$B$26,0)*NewAquilo!$B$27,0)*NewAquilo!$B$28,0)*NewAquilo!$B$29,0)*NewAquilo!$B$30,0)*NewAquilo!$B$31,0)*NewAquilo!$B$32,0)*NewAquilo!$B$33,0),"") ->  | AH35: =IF(B35<>"",VLOOKUP(AA35,NewAquilo!E:G,3,0),"") -> 
N36: =IF(AND(B36<>"",R36="FMS209"),INDEX(Arkusz7!$U$2:$U$24,MATCH(Converter!D36,Arkusz7!$A$2:$A$24,-1)),"")&IF(AND(B36<>"",R36="FMS2011"),INDEX(Arkusz7!$U$2:$U$24,MATCH(Converter!D36,Arkusz7!$B$2:$B$24,-1)),"")&IF(AND(B36<>"",R36="FMS2014"),INDEX(Arkusz7!$U$2:$U$24,MATCH(Converter!D36,Arkusz7!$C$2:$C$24,-1)),"")&IF(AND(B36<>"",R36="FMS2019"),INDEX(Arkusz7!$U$2:$U$24,MATCH(Converter!D36,Arkusz7!$D$2:$D$24,-1)),"")&IF(AND(B36<>"",R36="FMS259"),INDEX(Arkusz7!$U$2:$U$24,MATCH(Converter!D36,Arkusz7!$E$2:$E$24,-1)),"")&IF(AND(B36<>"",R36="FMS2511"),INDEX(Arkusz7!$U$2:$U$24,MATCH(Converter!D36,Arkusz7!$F$2:$F$24,-1)),"")&IF(AND(B36<>"",R36="FMS2514"),INDEX(Arkusz7!$U$2:$U$24,MATCH(Converter!D36,Arkusz7!$G$2:$G$24,-1)),"")&IF(AND(B36<>"",R36="FMS2519"),INDEX(Arkusz7!$U$2:$U$24,MATCH(Converter!D36,Arkusz7!$H$2:$H$24,-1)),"")&IF(AND(B36<>"",R36="FMS309"),INDEX(Arkusz7!$U$2:$U$24,MATCH(Converter!D36,Arkusz7!$I$2:$I$24,-1)),"")&IF(AND(B36<>"",R36="FMS3011"),INDEX(Arkusz7!$U$2:$U$24,MATCH(Converter!D36,Arkusz7!$J$2:$J$24,-1)),"")&IF(AND(B36<>"",R36="FMS3014"),INDEX(Arkusz7!$U$2:$U$24,MATCH(Converter!D36,Arkusz7!$K$2:$K$24,-1)),"")&IF(AND(B36<>"",R36="FMS3019"),INDEX(Arkusz7!$U$2:$U$24,MATCH(Converter!D36,Arkusz7!$L$2:$L$24,-1)),"")&IF(AND(B36<>"",R36="FMS349"),INDEX(Arkusz7!$U$2:$U$24,MATCH(Converter!D36,Arkusz7!$M$2:$M$24,-1)),"")&IF(AND(B36<>"",R36="FMS3411"),INDEX(Arkusz7!$U$2:$U$24,MATCH(Converter!D36,Arkusz7!$N$2:$N$24,-1)),"")&IF(AND(B36<>"",R36="FMS3414"),INDEX(Arkusz7!$U$2:$U$24,MATCH(Converter!D36,Arkusz7!$O$2:$O$24,-1)),"")&IF(AND(B36<>"",R36="FMS3419"),INDEX(Arkusz7!$U$2:$U$24,MATCH(Converter!D36,Arkusz7!$P$2:$P$24,-1)),"")&IF(AND(B36<>"",R36="FMS429"),INDEX(Arkusz7!$U$2:$U$24,MATCH(Converter!D36,Arkusz7!$Q$2:$Q$24,-1)),"")&IF(AND(B36<>"",R36="FMS4211"),INDEX(Arkusz7!$U$2:$U$24,MATCH(Converter!D36,Arkusz7!$R$2:$R$24,-1)),"")&IF(AND(B36<>"",R36="FMS4214"),INDEX(Arkusz7!$U$2:$U$24,MATCH(Converter!D36,Arkusz7!$S$2:$S$24,-1)),"")&IF(AND(B36<>"",R36="FMS4219"),INDEX(Arkusz7!$U$2:$U$24,MATCH(Converter!D36,Arkusz7!$T$2:$T$24,-1)),"")&IF(AND(B36<>"",R36="F1S177,5"),INDEX(Arkusz7!$AB$2:$AB$19,MATCH(Converter!D36,Arkusz7!$W$2:$W$19,-1)),"")&IF(AND(B36<>"",R36="F1S207,5"),INDEX(Arkusz7!$AB$2:$AB$19,MATCH(Converter!D36,Arkusz7!$X$2:$X$19,-1)),"")&IF(AND(B36<>"",R36="F1S237,5"),INDEX(Arkusz7!$AB$2:$AB$19,MATCH(Converter!D36,Arkusz7!$Y$2:$Y$19,-1)),"")&IF(AND(B36<>"",R36="F1S2311"),INDEX(Arkusz7!$AB$2:$AB$19,MATCH(Converter!D36,Arkusz7!$Z$2:$Z$19,-1)),"")&IF(AND(B36<>"",R36="F1S2511"),INDEX(Arkusz7!$AB$2:$AB$19,MATCH(Converter!D36,Arkusz7!$AA$2:$AA$19,-1)),"")&IF(AND(B36<>"",R36="F2C2311"),INDEX(Arkusz7!$AI$2:$AI$7,MATCH(Converter!D36,Arkusz7!$AD$2:$AD$7,-1)),"")&IF(AND(B36<>"",R36="F2C3417"),INDEX(Arkusz7!$AI$2:$AI$7,MATCH(Converter!D36,Arkusz7!$AE$2:$AE$7,-1)),"")&IF(AND(B36<>"",R36="F2V3417"),INDEX(Arkusz7!$AI$2:$AI$7,MATCH(Converter!D36,Arkusz7!$AF$2:$AF$7,-1)),"")&IF(AND(B36<>"",R36="F4C3417"),INDEX(Arkusz7!$AI$2:$AI$7,MATCH(Converter!D36,Arkusz7!$AG$2:$AG$7,-1)),"")&IF(AND(B36<>"",R36="F4V3417"),INDEX(Arkusz7!$AI$2:$AI$7,MATCH(Converter!D36,Arkusz7!$AH$2:$AH$7,-1)),"") ->  | U36: =IF(AND(B36<>"",Z36="FMS209"),INDEX(Arkusz7!$U$2:$U$24,MATCH(Converter!D36,Arkusz7!$A$2:$A$24,-1)),"")&IF(AND(B36<>"",Z36="FMS2011"),INDEX(Arkusz7!$U$2:$U$24,MATCH(Converter!D36,Arkusz7!$B$2:$B$24,-1)),"")&IF(AND(B36<>"",Z36="FMS2014"),INDEX(Arkusz7!$U$2:$U$24,MATCH(Converter!D36,Arkusz7!$C$2:$C$24,-1)),"")&IF(AND(B36<>"",Z36="FMS2019"),INDEX(Arkusz7!$U$2:$U$24,MATCH(Converter!D36,Arkusz7!$D$2:$D$24,-1)),"")&IF(AND(B36<>"",Z36="FMS259"),INDEX(Arkusz7!$U$2:$U$24,MATCH(Converter!D36,Arkusz7!$E$2:$E$24,-1)),"")&IF(AND(B36<>"",Z36="FMS2511"),INDEX(Arkusz7!$U$2:$U$24,MATCH(Converter!D36,Arkusz7!$F$2:$F$24,-1)),"")&IF(AND(B36<>"",Z36="FMS2514"),INDEX(Arkusz7!$U$2:$U$24,MATCH(Converter!D36,Arkusz7!$G$2:$G$24,-1)),"")&IF(AND(B36<>"",Z36="FMS2519"),INDEX(Arkusz7!$U$2:$U$24,MATCH(Converter!D36,Arkusz7!$H$2:$H$24,-1)),"")&IF(AND(B36<>"",Z36="FMS309"),INDEX(Arkusz7!$U$2:$U$24,MATCH(Converter!D36,Arkusz7!$I$2:$I$24,-1)),"")&IF(AND(B36<>"",Z36="FMS3011"),INDEX(Arkusz7!$U$2:$U$24,MATCH(Converter!D36,Arkusz7!$J$2:$J$24,-1)),"")&IF(AND(B36<>"",Z36="FMS3014"),INDEX(Arkusz7!$U$2:$U$24,MATCH(Converter!D36,Arkusz7!$K$2:$K$24,-1)),"")&IF(AND(B36<>"",Z36="FMS3019"),INDEX(Arkusz7!$U$2:$U$24,MATCH(Converter!D36,Arkusz7!$L$2:$L$24,-1)),"")&IF(AND(B36<>"",Z36="FMS349"),INDEX(Arkusz7!$U$2:$U$24,MATCH(Converter!D36,Arkusz7!$M$2:$M$24,-1)),"")&IF(AND(B36<>"",Z36="FMS3411"),INDEX(Arkusz7!$U$2:$U$24,MATCH(Converter!D36,Arkusz7!$N$2:$N$24,-1)),"")&IF(AND(B36<>"",Z36="FMS3414"),INDEX(Arkusz7!$U$2:$U$24,MATCH(Converter!D36,Arkusz7!$O$2:$O$24,-1)),"")&IF(AND(B36<>"",Z36="FMS3419"),INDEX(Arkusz7!$U$2:$U$24,MATCH(Converter!D36,Arkusz7!$P$2:$P$24,-1)),"")&IF(AND(B36<>"",Z36="FMS429"),INDEX(Arkusz7!$U$2:$U$24,MATCH(Converter!D36,Arkusz7!$Q$2:$Q$24,-1)),"")&IF(AND(B36<>"",Z36="FMS4211"),INDEX(Arkusz7!$U$2:$U$24,MATCH(Converter!D36,Arkusz7!$R$2:$R$24,-1)),"")&IF(AND(B36<>"",Z36="FMS4214"),INDEX(Arkusz7!$U$2:$U$24,MATCH(Converter!D36,Arkusz7!$S$2:$S$24,-1)),"")&IF(AND(B36<>"",Z36="FMS4219"),INDEX(Arkusz7!$U$2:$U$24,MATCH(Converter!D36,Arkusz7!$T$2:$T$24,-1)),"")&IF(AND(B36<>"",Z36="F1S177,5"),INDEX(Arkusz7!$AB$2:$AB$19,MATCH(Converter!D36,Arkusz7!$W$2:$W$19,-1)),"")&IF(AND(B36<>"",Z36="F1S207,5"),INDEX(Arkusz7!$AB$2:$AB$19,MATCH(Converter!D36,Arkusz7!$X$2:$X$19,-1)),"")&IF(AND(B36<>"",Z36="F1S237,5"),INDEX(Arkusz7!$AB$2:$AB$19,MATCH(Converter!D36,Arkusz7!$Y$2:$Y$19,-1)),"")&IF(AND(B36<>"",Z36="F1S2311"),INDEX(Arkusz7!$AB$2:$AB$19,MATCH(Converter!D36,Arkusz7!$Z$2:$Z$19,-1)),"")&IF(AND(B36<>"",Z36="F1S2511"),INDEX(Arkusz7!$AB$2:$AB$19,MATCH(Converter!D36,Arkusz7!$AA$2:$AA$19,-1)),"")&IF(AND(B36<>"",Z36="F2C2311"),INDEX(Arkusz7!$AI$2:$AI$7,MATCH(Converter!D36,Arkusz7!$AD$2:$AD$7,-1)),"")&IF(AND(B36<>"",Z36="F2C3417"),INDEX(Arkusz7!$AI$2:$AI$7,MATCH(Converter!D36,Arkusz7!$AE$2:$AE$7,-1)),"")&IF(AND(B36<>"",Z36="F2V3417"),INDEX(Arkusz7!$AI$2:$AI$7,MATCH(Converter!D36,Arkusz7!$AF$2:$AF$7,-1)),"")&IF(AND(B36<>"",Z36="F4C3417"),INDEX(Arkusz7!$AI$2:$AI$7,MATCH(Converter!D36,Arkusz7!$AG$2:$AG$7,-1)),"")&IF(AND(B36<>"",Z36="F4V3417"),INDEX(Arkusz7!$AI$2:$AI$7,MATCH(Converter!D36,Arkusz7!$AH$2:$AH$7,-1)),"") ->  | AE36: =IF(B36<>"",ROUND(ROUND(ROUND(ROUND(ROUND(ROUND(ROUND(ROUND(ROUND(ROUND(ROUND(ROUND(ROUND(VLOOKUP(AA36,NewAquilo!E:F,2,0)*NewAquilo!$B$21,0)*NewAquilo!$B$22,0)*NewAquilo!$B$23,0)*NewAquilo!$B$24,0)*NewAquilo!$B$25,0)*NewAquilo!$B$26,0)*NewAquilo!$B$27,0)*NewAquilo!$B$28,0)*NewAquilo!$B$29,0)*NewAquilo!$B$30,0)*NewAquilo!$B$31,0)*NewAquilo!$B$32,0)*NewAquilo!$B$33,0),"") ->  | AH36: =IF(B36<>"",VLOOKUP(AA36,NewAquilo!E:G,3,0),"") -> 
N37: =IF(AND(B37<>"",R37="FMS209"),INDEX(Arkusz7!$U$2:$U$24,MATCH(Converter!D37,Arkusz7!$A$2:$A$24,-1)),"")&IF(AND(B37<>"",R37="FMS2011"),INDEX(Arkusz7!$U$2:$U$24,MATCH(Converter!D37,Arkusz7!$B$2:$B$24,-1)),"")&IF(AND(B37<>"",R37="FMS2014"),INDEX(Arkusz7!$U$2:$U$24,MATCH(Converter!D37,Arkusz7!$C$2:$C$24,-1)),"")&IF(AND(B37<>"",R37="FMS2019"),INDEX(Arkusz7!$U$2:$U$24,MATCH(Converter!D37,Arkusz7!$D$2:$D$24,-1)),"")&IF(AND(B37<>"",R37="FMS259"),INDEX(Arkusz7!$U$2:$U$24,MATCH(Converter!D37,Arkusz7!$E$2:$E$24,-1)),"")&IF(AND(B37<>"",R37="FMS2511"),INDEX(Arkusz7!$U$2:$U$24,MATCH(Converter!D37,Arkusz7!$F$2:$F$24,-1)),"")&IF(AND(B37<>"",R37="FMS2514"),INDEX(Arkusz7!$U$2:$U$24,MATCH(Converter!D37,Arkusz7!$G$2:$G$24,-1)),"")&IF(AND(B37<>"",R37="FMS2519"),INDEX(Arkusz7!$U$2:$U$24,MATCH(Converter!D37,Arkusz7!$H$2:$H$24,-1)),"")&IF(AND(B37<>"",R37="FMS309"),INDEX(Arkusz7!$U$2:$U$24,MATCH(Converter!D37,Arkusz7!$I$2:$I$24,-1)),"")&IF(AND(B37<>"",R37="FMS3011"),INDEX(Arkusz7!$U$2:$U$24,MATCH(Converter!D37,Arkusz7!$J$2:$J$24,-1)),"")&IF(AND(B37<>"",R37="FMS3014"),INDEX(Arkusz7!$U$2:$U$24,MATCH(Converter!D37,Arkusz7!$K$2:$K$24,-1)),"")&IF(AND(B37<>"",R37="FMS3019"),INDEX(Arkusz7!$U$2:$U$24,MATCH(Converter!D37,Arkusz7!$L$2:$L$24,-1)),"")&IF(AND(B37<>"",R37="FMS349"),INDEX(Arkusz7!$U$2:$U$24,MATCH(Converter!D37,Arkusz7!$M$2:$M$24,-1)),"")&IF(AND(B37<>"",R37="FMS3411"),INDEX(Arkusz7!$U$2:$U$24,MATCH(Converter!D37,Arkusz7!$N$2:$N$24,-1)),"")&IF(AND(B37<>"",R37="FMS3414"),INDEX(Arkusz7!$U$2:$U$24,MATCH(Converter!D37,Arkusz7!$O$2:$O$24,-1)),"")&IF(AND(B37<>"",R37="FMS3419"),INDEX(Arkusz7!$U$2:$U$24,MATCH(Converter!D37,Arkusz7!$P$2:$P$24,-1)),"")&IF(AND(B37<>"",R37="FMS429"),INDEX(Arkusz7!$U$2:$U$24,MATCH(Converter!D37,Arkusz7!$Q$2:$Q$24,-1)),"")&IF(AND(B37<>"",R37="FMS4211"),INDEX(Arkusz7!$U$2:$U$24,MATCH(Converter!D37,Arkusz7!$R$2:$R$24,-1)),"")&IF(AND(B37<>"",R37="FMS4214"),INDEX(Arkusz7!$U$2:$U$24,MATCH(Converter!D37,Arkusz7!$S$2:$S$24,-1)),"")&IF(AND(B37<>"",R37="FMS4219"),INDEX(Arkusz7!$U$2:$U$24,MATCH(Converter!D37,Arkusz7!$T$2:$T$24,-1)),"")&IF(AND(B37<>"",R37="F1S177,5"),INDEX(Arkusz7!$AB$2:$AB$19,MATCH(Converter!D37,Arkusz7!$W$2:$W$19,-1)),"")&IF(AND(B37<>"",R37="F1S207,5"),INDEX(Arkusz7!$AB$2:$AB$19,MATCH(Converter!D37,Arkusz7!$X$2:$X$19,-1)),"")&IF(AND(B37<>"",R37="F1S237,5"),INDEX(Arkusz7!$AB$2:$AB$19,MATCH(Converter!D37,Arkusz7!$Y$2:$Y$19,-1)),"")&IF(AND(B37<>"",R37="F1S2311"),INDEX(Arkusz7!$AB$2:$AB$19,MATCH(Converter!D37,Arkusz7!$Z$2:$Z$19,-1)),"")&IF(AND(B37<>"",R37="F1S2511"),INDEX(Arkusz7!$AB$2:$AB$19,MATCH(Converter!D37,Arkusz7!$AA$2:$AA$19,-1)),"")&IF(AND(B37<>"",R37="F2C2311"),INDEX(Arkusz7!$AI$2:$AI$7,MATCH(Converter!D37,Arkusz7!$AD$2:$AD$7,-1)),"")&IF(AND(B37<>"",R37="F2C3417"),INDEX(Arkusz7!$AI$2:$AI$7,MATCH(Converter!D37,Arkusz7!$AE$2:$AE$7,-1)),"")&IF(AND(B37<>"",R37="F2V3417"),INDEX(Arkusz7!$AI$2:$AI$7,MATCH(Converter!D37,Arkusz7!$AF$2:$AF$7,-1)),"")&IF(AND(B37<>"",R37="F4C3417"),INDEX(Arkusz7!$AI$2:$AI$7,MATCH(Converter!D37,Arkusz7!$AG$2:$AG$7,-1)),"")&IF(AND(B37<>"",R37="F4V3417"),INDEX(Arkusz7!$AI$2:$AI$7,MATCH(Converter!D37,Arkusz7!$AH$2:$AH$7,-1)),"") ->  | U37: =IF(AND(B37<>"",Z37="FMS209"),INDEX(Arkusz7!$U$2:$U$24,MATCH(Converter!D37,Arkusz7!$A$2:$A$24,-1)),"")&IF(AND(B37<>"",Z37="FMS2011"),INDEX(Arkusz7!$U$2:$U$24,MATCH(Converter!D37,Arkusz7!$B$2:$B$24,-1)),"")&IF(AND(B37<>"",Z37="FMS2014"),INDEX(Arkusz7!$U$2:$U$24,MATCH(Converter!D37,Arkusz7!$C$2:$C$24,-1)),"")&IF(AND(B37<>"",Z37="FMS2019"),INDEX(Arkusz7!$U$2:$U$24,MATCH(Converter!D37,Arkusz7!$D$2:$D$24,-1)),"")&IF(AND(B37<>"",Z37="FMS259"),INDEX(Arkusz7!$U$2:$U$24,MATCH(Converter!D37,Arkusz7!$E$2:$E$24,-1)),"")&IF(AND(B37<>"",Z37="FMS2511"),INDEX(Arkusz7!$U$2:$U$24,MATCH(Converter!D37,Arkusz7!$F$2:$F$24,-1)),"")&IF(AND(B37<>"",Z37="FMS2514"),INDEX(Arkusz7!$U$2:$U$24,MATCH(Converter!D37,Arkusz7!$G$2:$G$24,-1)),"")&IF(AND(B37<>"",Z37="FMS2519"),INDEX(Arkusz7!$U$2:$U$24,MATCH(Converter!D37,Arkusz7!$H$2:$H$24,-1)),"")&IF(AND(B37<>"",Z37="FMS309"),INDEX(Arkusz7!$U$2:$U$24,MATCH(Converter!D37,Arkusz7!$I$2:$I$24,-1)),"")&IF(AND(B37<>"",Z37="FMS3011"),INDEX(Arkusz7!$U$2:$U$24,MATCH(Converter!D37,Arkusz7!$J$2:$J$24,-1)),"")&IF(AND(B37<>"",Z37="FMS3014"),INDEX(Arkusz7!$U$2:$U$24,MATCH(Converter!D37,Arkusz7!$K$2:$K$24,-1)),"")&IF(AND(B37<>"",Z37="FMS3019"),INDEX(Arkusz7!$U$2:$U$24,MATCH(Converter!D37,Arkusz7!$L$2:$L$24,-1)),"")&IF(AND(B37<>"",Z37="FMS349"),INDEX(Arkusz7!$U$2:$U$24,MATCH(Converter!D37,Arkusz7!$M$2:$M$24,-1)),"")&IF(AND(B37<>"",Z37="FMS3411"),INDEX(Arkusz7!$U$2:$U$24,MATCH(Converter!D37,Arkusz7!$N$2:$N$24,-1)),"")&IF(AND(B37<>"",Z37="FMS3414"),INDEX(Arkusz7!$U$2:$U$24,MATCH(Converter!D37,Arkusz7!$O$2:$O$24,-1)),"")&IF(AND(B37<>"",Z37="FMS3419"),INDEX(Arkusz7!$U$2:$U$24,MATCH(Converter!D37,Arkusz7!$P$2:$P$24,-1)),"")&IF(AND(B37<>"",Z37="FMS429"),INDEX(Arkusz7!$U$2:$U$24,MATCH(Converter!D37,Arkusz7!$Q$2:$Q$24,-1)),"")&IF(AND(B37<>"",Z37="FMS4211"),INDEX(Arkusz7!$U$2:$U$24,MATCH(Converter!D37,Arkusz7!$R$2:$R$24,-1)),"")&IF(AND(B37<>"",Z37="FMS4214"),INDEX(Arkusz7!$U$2:$U$24,MATCH(Converter!D37,Arkusz7!$S$2:$S$24,-1)),"")&IF(AND(B37<>"",Z37="FMS4219"),INDEX(Arkusz7!$U$2:$U$24,MATCH(Converter!D37,Arkusz7!$T$2:$T$24,-1)),"")&IF(AND(B37<>"",Z37="F1S177,5"),INDEX(Arkusz7!$AB$2:$AB$19,MATCH(Converter!D37,Arkusz7!$W$2:$W$19,-1)),"")&IF(AND(B37<>"",Z37="F1S207,5"),INDEX(Arkusz7!$AB$2:$AB$19,MATCH(Converter!D37,Arkusz7!$X$2:$X$19,-1)),"")&IF(AND(B37<>"",Z37="F1S237,5"),INDEX(Arkusz7!$AB$2:$AB$19,MATCH(Converter!D37,Arkusz7!$Y$2:$Y$19,-1)),"")&IF(AND(B37<>"",Z37="F1S2311"),INDEX(Arkusz7!$AB$2:$AB$19,MATCH(Converter!D37,Arkusz7!$Z$2:$Z$19,-1)),"")&IF(AND(B37<>"",Z37="F1S2511"),INDEX(Arkusz7!$AB$2:$AB$19,MATCH(Converter!D37,Arkusz7!$AA$2:$AA$19,-1)),"")&IF(AND(B37<>"",Z37="F2C2311"),INDEX(Arkusz7!$AI$2:$AI$7,MATCH(Converter!D37,Arkusz7!$AD$2:$AD$7,-1)),"")&IF(AND(B37<>"",Z37="F2C3417"),INDEX(Arkusz7!$AI$2:$AI$7,MATCH(Converter!D37,Arkusz7!$AE$2:$AE$7,-1)),"")&IF(AND(B37<>"",Z37="F2V3417"),INDEX(Arkusz7!$AI$2:$AI$7,MATCH(Converter!D37,Arkusz7!$AF$2:$AF$7,-1)),"")&IF(AND(B37<>"",Z37="F4C3417"),INDEX(Arkusz7!$AI$2:$AI$7,MATCH(Converter!D37,Arkusz7!$AG$2:$AG$7,-1)),"")&IF(AND(B37<>"",Z37="F4V3417"),INDEX(Arkusz7!$AI$2:$AI$7,MATCH(Converter!D37,Arkusz7!$AH$2:$AH$7,-1)),"") ->  | AE37: =IF(B37<>"",ROUND(ROUND(ROUND(ROUND(ROUND(ROUND(ROUND(ROUND(ROUND(ROUND(ROUND(ROUND(ROUND(VLOOKUP(AA37,NewAquilo!E:F,2,0)*NewAquilo!$B$21,0)*NewAquilo!$B$22,0)*NewAquilo!$B$23,0)*NewAquilo!$B$24,0)*NewAquilo!$B$25,0)*NewAquilo!$B$26,0)*NewAquilo!$B$27,0)*NewAquilo!$B$28,0)*NewAquilo!$B$29,0)*NewAquilo!$B$30,0)*NewAquilo!$B$31,0)*NewAquilo!$B$32,0)*NewAquilo!$B$33,0),"") ->  | AH37: =IF(B37<>"",VLOOKUP(AA37,NewAquilo!E:G,3,0),"") -> 
N38: =IF(AND(B38<>"",R38="FMS209"),INDEX(Arkusz7!$U$2:$U$24,MATCH(Converter!D38,Arkusz7!$A$2:$A$24,-1)),"")&IF(AND(B38<>"",R38="FMS2011"),INDEX(Arkusz7!$U$2:$U$24,MATCH(Converter!D38,Arkusz7!$B$2:$B$24,-1)),"")&IF(AND(B38<>"",R38="FMS2014"),INDEX(Arkusz7!$U$2:$U$24,MATCH(Converter!D38,Arkusz7!$C$2:$C$24,-1)),"")&IF(AND(B38<>"",R38="FMS2019"),INDEX(Arkusz7!$U$2:$U$24,MATCH(Converter!D38,Arkusz7!$D$2:$D$24,-1)),"")&IF(AND(B38<>"",R38="FMS259"),INDEX(Arkusz7!$U$2:$U$24,MATCH(Converter!D38,Arkusz7!$E$2:$E$24,-1)),"")&IF(AND(B38<>"",R38="FMS2511"),INDEX(Arkusz7!$U$2:$U$24,MATCH(Converter!D38,Arkusz7!$F$2:$F$24,-1)),"")&IF(AND(B38<>"",R38="FMS2514"),INDEX(Arkusz7!$U$2:$U$24,MATCH(Converter!D38,Arkusz7!$G$2:$G$24,-1)),"")&IF(AND(B38<>"",R38="FMS2519"),INDEX(Arkusz7!$U$2:$U$24,MATCH(Converter!D38,Arkusz7!$H$2:$H$24,-1)),"")&IF(AND(B38<>"",R38="FMS309"),INDEX(Arkusz7!$U$2:$U$24,MATCH(Converter!D38,Arkusz7!$I$2:$I$24,-1)),"")&IF(AND(B38<>"",R38="FMS3011"),INDEX(Arkusz7!$U$2:$U$24,MATCH(Converter!D38,Arkusz7!$J$2:$J$24,-1)),"")&IF(AND(B38<>"",R38="FMS3014"),INDEX(Arkusz7!$U$2:$U$24,MATCH(Converter!D38,Arkusz7!$K$2:$K$24,-1)),"")&IF(AND(B38<>"",R38="FMS3019"),INDEX(Arkusz7!$U$2:$U$24,MATCH(Converter!D38,Arkusz7!$L$2:$L$24,-1)),"")&IF(AND(B38<>"",R38="FMS349"),INDEX(Arkusz7!$U$2:$U$24,MATCH(Converter!D38,Arkusz7!$M$2:$M$24,-1)),"")&IF(AND(B38<>"",R38="FMS3411"),INDEX(Arkusz7!$U$2:$U$24,MATCH(Converter!D38,Arkusz7!$N$2:$N$24,-1)),"")&IF(AND(B38<>"",R38="FMS3414"),INDEX(Arkusz7!$U$2:$U$24,MATCH(Converter!D38,Arkusz7!$O$2:$O$24,-1)),"")&IF(AND(B38<>"",R38="FMS3419"),INDEX(Arkusz7!$U$2:$U$24,MATCH(Converter!D38,Arkusz7!$P$2:$P$24,-1)),"")&IF(AND(B38<>"",R38="FMS429"),INDEX(Arkusz7!$U$2:$U$24,MATCH(Converter!D38,Arkusz7!$Q$2:$Q$24,-1)),"")&IF(AND(B38<>"",R38="FMS4211"),INDEX(Arkusz7!$U$2:$U$24,MATCH(Converter!D38,Arkusz7!$R$2:$R$24,-1)),"")&IF(AND(B38<>"",R38="FMS4214"),INDEX(Arkusz7!$U$2:$U$24,MATCH(Converter!D38,Arkusz7!$S$2:$S$24,-1)),"")&IF(AND(B38<>"",R38="FMS4219"),INDEX(Arkusz7!$U$2:$U$24,MATCH(Converter!D38,Arkusz7!$T$2:$T$24,-1)),"")&IF(AND(B38<>"",R38="F1S177,5"),INDEX(Arkusz7!$AB$2:$AB$19,MATCH(Converter!D38,Arkusz7!$W$2:$W$19,-1)),"")&IF(AND(B38<>"",R38="F1S207,5"),INDEX(Arkusz7!$AB$2:$AB$19,MATCH(Converter!D38,Arkusz7!$X$2:$X$19,-1)),"")&IF(AND(B38<>"",R38="F1S237,5"),INDEX(Arkusz7!$AB$2:$AB$19,MATCH(Converter!D38,Arkusz7!$Y$2:$Y$19,-1)),"")&IF(AND(B38<>"",R38="F1S2311"),INDEX(Arkusz7!$AB$2:$AB$19,MATCH(Converter!D38,Arkusz7!$Z$2:$Z$19,-1)),"")&IF(AND(B38<>"",R38="F1S2511"),INDEX(Arkusz7!$AB$2:$AB$19,MATCH(Converter!D38,Arkusz7!$AA$2:$AA$19,-1)),"")&IF(AND(B38<>"",R38="F2C2311"),INDEX(Arkusz7!$AI$2:$AI$7,MATCH(Converter!D38,Arkusz7!$AD$2:$AD$7,-1)),"")&IF(AND(B38<>"",R38="F2C3417"),INDEX(Arkusz7!$AI$2:$AI$7,MATCH(Converter!D38,Arkusz7!$AE$2:$AE$7,-1)),"")&IF(AND(B38<>"",R38="F2V3417"),INDEX(Arkusz7!$AI$2:$AI$7,MATCH(Converter!D38,Arkusz7!$AF$2:$AF$7,-1)),"")&IF(AND(B38<>"",R38="F4C3417"),INDEX(Arkusz7!$AI$2:$AI$7,MATCH(Converter!D38,Arkusz7!$AG$2:$AG$7,-1)),"")&IF(AND(B38<>"",R38="F4V3417"),INDEX(Arkusz7!$AI$2:$AI$7,MATCH(Converter!D38,Arkusz7!$AH$2:$AH$7,-1)),"") ->  | U38: =IF(AND(B38<>"",Z38="FMS209"),INDEX(Arkusz7!$U$2:$U$24,MATCH(Converter!D38,Arkusz7!$A$2:$A$24,-1)),"")&IF(AND(B38<>"",Z38="FMS2011"),INDEX(Arkusz7!$U$2:$U$24,MATCH(Converter!D38,Arkusz7!$B$2:$B$24,-1)),"")&IF(AND(B38<>"",Z38="FMS2014"),INDEX(Arkusz7!$U$2:$U$24,MATCH(Converter!D38,Arkusz7!$C$2:$C$24,-1)),"")&IF(AND(B38<>"",Z38="FMS2019"),INDEX(Arkusz7!$U$2:$U$24,MATCH(Converter!D38,Arkusz7!$D$2:$D$24,-1)),"")&IF(AND(B38<>"",Z38="FMS259"),INDEX(Arkusz7!$U$2:$U$24,MATCH(Converter!D38,Arkusz7!$E$2:$E$24,-1)),"")&IF(AND(B38<>"",Z38="FMS2511"),INDEX(Arkusz7!$U$2:$U$24,MATCH(Converter!D38,Arkusz7!$F$2:$F$24,-1)),"")&IF(AND(B38<>"",Z38="FMS2514"),INDEX(Arkusz7!$U$2:$U$24,MATCH(Converter!D38,Arkusz7!$G$2:$G$24,-1)),"")&IF(AND(B38<>"",Z38="FMS2519"),INDEX(Arkusz7!$U$2:$U$24,MATCH(Converter!D38,Arkusz7!$H$2:$H$24,-1)),"")&IF(AND(B38<>"",Z38="FMS309"),INDEX(Arkusz7!$U$2:$U$24,MATCH(Converter!D38,Arkusz7!$I$2:$I$24,-1)),"")&IF(AND(B38<>"",Z38="FMS3011"),INDEX(Arkusz7!$U$2:$U$24,MATCH(Converter!D38,Arkusz7!$J$2:$J$24,-1)),"")&IF(AND(B38<>"",Z38="FMS3014"),INDEX(Arkusz7!$U$2:$U$24,MATCH(Converter!D38,Arkusz7!$K$2:$K$24,-1)),"")&IF(AND(B38<>"",Z38="FMS3019"),INDEX(Arkusz7!$U$2:$U$24,MATCH(Converter!D38,Arkusz7!$L$2:$L$24,-1)),"")&IF(AND(B38<>"",Z38="FMS349"),INDEX(Arkusz7!$U$2:$U$24,MATCH(Converter!D38,Arkusz7!$M$2:$M$24,-1)),"")&IF(AND(B38<>"",Z38="FMS3411"),INDEX(Arkusz7!$U$2:$U$24,MATCH(Converter!D38,Arkusz7!$N$2:$N$24,-1)),"")&IF(AND(B38<>"",Z38="FMS3414"),INDEX(Arkusz7!$U$2:$U$24,MATCH(Converter!D38,Arkusz7!$O$2:$O$24,-1)),"")&IF(AND(B38<>"",Z38="FMS3419"),INDEX(Arkusz7!$U$2:$U$24,MATCH(Converter!D38,Arkusz7!$P$2:$P$24,-1)),"")&IF(AND(B38<>"",Z38="FMS429"),INDEX(Arkusz7!$U$2:$U$24,MATCH(Converter!D38,Arkusz7!$Q$2:$Q$24,-1)),"")&IF(AND(B38<>"",Z38="FMS4211"),INDEX(Arkusz7!$U$2:$U$24,MATCH(Converter!D38,Arkusz7!$R$2:$R$24,-1)),"")&IF(AND(B38<>"",Z38="FMS4214"),INDEX(Arkusz7!$U$2:$U$24,MATCH(Converter!D38,Arkusz7!$S$2:$S$24,-1)),"")&IF(AND(B38<>"",Z38="FMS4219"),INDEX(Arkusz7!$U$2:$U$24,MATCH(Converter!D38,Arkusz7!$T$2:$T$24,-1)),"")&IF(AND(B38<>"",Z38="F1S177,5"),INDEX(Arkusz7!$AB$2:$AB$19,MATCH(Converter!D38,Arkusz7!$W$2:$W$19,-1)),"")&IF(AND(B38<>"",Z38="F1S207,5"),INDEX(Arkusz7!$AB$2:$AB$19,MATCH(Converter!D38,Arkusz7!$X$2:$X$19,-1)),"")&IF(AND(B38<>"",Z38="F1S237,5"),INDEX(Arkusz7!$AB$2:$AB$19,MATCH(Converter!D38,Arkusz7!$Y$2:$Y$19,-1)),"")&IF(AND(B38<>"",Z38="F1S2311"),INDEX(Arkusz7!$AB$2:$AB$19,MATCH(Converter!D38,Arkusz7!$Z$2:$Z$19,-1)),"")&IF(AND(B38<>"",Z38="F1S2511"),INDEX(Arkusz7!$AB$2:$AB$19,MATCH(Converter!D38,Arkusz7!$AA$2:$AA$19,-1)),"")&IF(AND(B38<>"",Z38="F2C2311"),INDEX(Arkusz7!$AI$2:$AI$7,MATCH(Converter!D38,Arkusz7!$AD$2:$AD$7,-1)),"")&IF(AND(B38<>"",Z38="F2C3417"),INDEX(Arkusz7!$AI$2:$AI$7,MATCH(Converter!D38,Arkusz7!$AE$2:$AE$7,-1)),"")&IF(AND(B38<>"",Z38="F2V3417"),INDEX(Arkusz7!$AI$2:$AI$7,MATCH(Converter!D38,Arkusz7!$AF$2:$AF$7,-1)),"")&IF(AND(B38<>"",Z38="F4C3417"),INDEX(Arkusz7!$AI$2:$AI$7,MATCH(Converter!D38,Arkusz7!$AG$2:$AG$7,-1)),"")&IF(AND(B38<>"",Z38="F4V3417"),INDEX(Arkusz7!$AI$2:$AI$7,MATCH(Converter!D38,Arkusz7!$AH$2:$AH$7,-1)),"") ->  | AE38: =IF(B38<>"",ROUND(ROUND(ROUND(ROUND(ROUND(ROUND(ROUND(ROUND(ROUND(ROUND(ROUND(ROUND(ROUND(VLOOKUP(AA38,NewAquilo!E:F,2,0)*NewAquilo!$B$21,0)*NewAquilo!$B$22,0)*NewAquilo!$B$23,0)*NewAquilo!$B$24,0)*NewAquilo!$B$25,0)*NewAquilo!$B$26,0)*NewAquilo!$B$27,0)*NewAquilo!$B$28,0)*NewAquilo!$B$29,0)*NewAquilo!$B$30,0)*NewAquilo!$B$31,0)*NewAquilo!$B$32,0)*NewAquilo!$B$33,0),"") ->  | AH38: =IF(B38<>"",VLOOKUP(AA38,NewAquilo!E:G,3,0),"") -> 
N39: =IF(AND(B39<>"",R39="FMS209"),INDEX(Arkusz7!$U$2:$U$24,MATCH(Converter!D39,Arkusz7!$A$2:$A$24,-1)),"")&IF(AND(B39<>"",R39="FMS2011"),INDEX(Arkusz7!$U$2:$U$24,MATCH(Converter!D39,Arkusz7!$B$2:$B$24,-1)),"")&IF(AND(B39<>"",R39="FMS2014"),INDEX(Arkusz7!$U$2:$U$24,MATCH(Converter!D39,Arkusz7!$C$2:$C$24,-1)),"")&IF(AND(B39<>"",R39="FMS2019"),INDEX(Arkusz7!$U$2:$U$24,MATCH(Converter!D39,Arkusz7!$D$2:$D$24,-1)),"")&IF(AND(B39<>"",R39="FMS259"),INDEX(Arkusz7!$U$2:$U$24,MATCH(Converter!D39,Arkusz7!$E$2:$E$24,-1)),"")&IF(AND(B39<>"",R39="FMS2511"),INDEX(Arkusz7!$U$2:$U$24,MATCH(Converter!D39,Arkusz7!$F$2:$F$24,-1)),"")&IF(AND(B39<>"",R39="FMS2514"),INDEX(Arkusz7!$U$2:$U$24,MATCH(Converter!D39,Arkusz7!$G$2:$G$24,-1)),"")&IF(AND(B39<>"",R39="FMS2519"),INDEX(Arkusz7!$U$2:$U$24,MATCH(Converter!D39,Arkusz7!$H$2:$H$24,-1)),"")&IF(AND(B39<>"",R39="FMS309"),INDEX(Arkusz7!$U$2:$U$24,MATCH(Converter!D39,Arkusz7!$I$2:$I$24,-1)),"")&IF(AND(B39<>"",R39="FMS3011"),INDEX(Arkusz7!$U$2:$U$24,MATCH(Converter!D39,Arkusz7!$J$2:$J$24,-1)),"")&IF(AND(B39<>"",R39="FMS3014"),INDEX(Arkusz7!$U$2:$U$24,MATCH(Converter!D39,Arkusz7!$K$2:$K$24,-1)),"")&IF(AND(B39<>"",R39="FMS3019"),INDEX(Arkusz7!$U$2:$U$24,MATCH(Converter!D39,Arkusz7!$L$2:$L$24,-1)),"")&IF(AND(B39<>"",R39="FMS349"),INDEX(Arkusz7!$U$2:$U$24,MATCH(Converter!D39,Arkusz7!$M$2:$M$24,-1)),"")&IF(AND(B39<>"",R39="FMS3411"),INDEX(Arkusz7!$U$2:$U$24,MATCH(Converter!D39,Arkusz7!$N$2:$N$24,-1)),"")&IF(AND(B39<>"",R39="FMS3414"),INDEX(Arkusz7!$U$2:$U$24,MATCH(Converter!D39,Arkusz7!$O$2:$O$24,-1)),"")&IF(AND(B39<>"",R39="FMS3419"),INDEX(Arkusz7!$U$2:$U$24,MATCH(Converter!D39,Arkusz7!$P$2:$P$24,-1)),"")&IF(AND(B39<>"",R39="FMS429"),INDEX(Arkusz7!$U$2:$U$24,MATCH(Converter!D39,Arkusz7!$Q$2:$Q$24,-1)),"")&IF(AND(B39<>"",R39="FMS4211"),INDEX(Arkusz7!$U$2:$U$24,MATCH(Converter!D39,Arkusz7!$R$2:$R$24,-1)),"")&IF(AND(B39<>"",R39="FMS4214"),INDEX(Arkusz7!$U$2:$U$24,MATCH(Converter!D39,Arkusz7!$S$2:$S$24,-1)),"")&IF(AND(B39<>"",R39="FMS4219"),INDEX(Arkusz7!$U$2:$U$24,MATCH(Converter!D39,Arkusz7!$T$2:$T$24,-1)),"")&IF(AND(B39<>"",R39="F1S177,5"),INDEX(Arkusz7!$AB$2:$AB$19,MATCH(Converter!D39,Arkusz7!$W$2:$W$19,-1)),"")&IF(AND(B39<>"",R39="F1S207,5"),INDEX(Arkusz7!$AB$2:$AB$19,MATCH(Converter!D39,Arkusz7!$X$2:$X$19,-1)),"")&IF(AND(B39<>"",R39="F1S237,5"),INDEX(Arkusz7!$AB$2:$AB$19,MATCH(Converter!D39,Arkusz7!$Y$2:$Y$19,-1)),"")&IF(AND(B39<>"",R39="F1S2311"),INDEX(Arkusz7!$AB$2:$AB$19,MATCH(Converter!D39,Arkusz7!$Z$2:$Z$19,-1)),"")&IF(AND(B39<>"",R39="F1S2511"),INDEX(Arkusz7!$AB$2:$AB$19,MATCH(Converter!D39,Arkusz7!$AA$2:$AA$19,-1)),"")&IF(AND(B39<>"",R39="F2C2311"),INDEX(Arkusz7!$AI$2:$AI$7,MATCH(Converter!D39,Arkusz7!$AD$2:$AD$7,-1)),"")&IF(AND(B39<>"",R39="F2C3417"),INDEX(Arkusz7!$AI$2:$AI$7,MATCH(Converter!D39,Arkusz7!$AE$2:$AE$7,-1)),"")&IF(AND(B39<>"",R39="F2V3417"),INDEX(Arkusz7!$AI$2:$AI$7,MATCH(Converter!D39,Arkusz7!$AF$2:$AF$7,-1)),"")&IF(AND(B39<>"",R39="F4C3417"),INDEX(Arkusz7!$AI$2:$AI$7,MATCH(Converter!D39,Arkusz7!$AG$2:$AG$7,-1)),"")&IF(AND(B39<>"",R39="F4V3417"),INDEX(Arkusz7!$AI$2:$AI$7,MATCH(Converter!D39,Arkusz7!$AH$2:$AH$7,-1)),"") ->  | U39: =IF(AND(B39<>"",Z39="FMS209"),INDEX(Arkusz7!$U$2:$U$24,MATCH(Converter!D39,Arkusz7!$A$2:$A$24,-1)),"")&IF(AND(B39<>"",Z39="FMS2011"),INDEX(Arkusz7!$U$2:$U$24,MATCH(Converter!D39,Arkusz7!$B$2:$B$24,-1)),"")&IF(AND(B39<>"",Z39="FMS2014"),INDEX(Arkusz7!$U$2:$U$24,MATCH(Converter!D39,Arkusz7!$C$2:$C$24,-1)),"")&IF(AND(B39<>"",Z39="FMS2019"),INDEX(Arkusz7!$U$2:$U$24,MATCH(Converter!D39,Arkusz7!$D$2:$D$24,-1)),"")&IF(AND(B39<>"",Z39="FMS259"),INDEX(Arkusz7!$U$2:$U$24,MATCH(Converter!D39,Arkusz7!$E$2:$E$24,-1)),"")&IF(AND(B39<>"",Z39="FMS2511"),INDEX(Arkusz7!$U$2:$U$24,MATCH(Converter!D39,Arkusz7!$F$2:$F$24,-1)),"")&IF(AND(B39<>"",Z39="FMS2514"),INDEX(Arkusz7!$U$2:$U$24,MATCH(Converter!D39,Arkusz7!$G$2:$G$24,-1)),"")&IF(AND(B39<>"",Z39="FMS2519"),INDEX(Arkusz7!$U$2:$U$24,MATCH(Converter!D39,Arkusz7!$H$2:$H$24,-1)),"")&IF(AND(B39<>"",Z39="FMS309"),INDEX(Arkusz7!$U$2:$U$24,MATCH(Converter!D39,Arkusz7!$I$2:$I$24,-1)),"")&IF(AND(B39<>"",Z39="FMS3011"),INDEX(Arkusz7!$U$2:$U$24,MATCH(Converter!D39,Arkusz7!$J$2:$J$24,-1)),"")&IF(AND(B39<>"",Z39="FMS3014"),INDEX(Arkusz7!$U$2:$U$24,MATCH(Converter!D39,Arkusz7!$K$2:$K$24,-1)),"")&IF(AND(B39<>"",Z39="FMS3019"),INDEX(Arkusz7!$U$2:$U$24,MATCH(Converter!D39,Arkusz7!$L$2:$L$24,-1)),"")&IF(AND(B39<>"",Z39="FMS349"),INDEX(Arkusz7!$U$2:$U$24,MATCH(Converter!D39,Arkusz7!$M$2:$M$24,-1)),"")&IF(AND(B39<>"",Z39="FMS3411"),INDEX(Arkusz7!$U$2:$U$24,MATCH(Converter!D39,Arkusz7!$N$2:$N$24,-1)),"")&IF(AND(B39<>"",Z39="FMS3414"),INDEX(Arkusz7!$U$2:$U$24,MATCH(Converter!D39,Arkusz7!$O$2:$O$24,-1)),"")&IF(AND(B39<>"",Z39="FMS3419"),INDEX(Arkusz7!$U$2:$U$24,MATCH(Converter!D39,Arkusz7!$P$2:$P$24,-1)),"")&IF(AND(B39<>"",Z39="FMS429"),INDEX(Arkusz7!$U$2:$U$24,MATCH(Converter!D39,Arkusz7!$Q$2:$Q$24,-1)),"")&IF(AND(B39<>"",Z39="FMS4211"),INDEX(Arkusz7!$U$2:$U$24,MATCH(Converter!D39,Arkusz7!$R$2:$R$24,-1)),"")&IF(AND(B39<>"",Z39="FMS4214"),INDEX(Arkusz7!$U$2:$U$24,MATCH(Converter!D39,Arkusz7!$S$2:$S$24,-1)),"")&IF(AND(B39<>"",Z39="FMS4219"),INDEX(Arkusz7!$U$2:$U$24,MATCH(Converter!D39,Arkusz7!$T$2:$T$24,-1)),"")&IF(AND(B39<>"",Z39="F1S177,5"),INDEX(Arkusz7!$AB$2:$AB$19,MATCH(Converter!D39,Arkusz7!$W$2:$W$19,-1)),"")&IF(AND(B39<>"",Z39="F1S207,5"),INDEX(Arkusz7!$AB$2:$AB$19,MATCH(Converter!D39,Arkusz7!$X$2:$X$19,-1)),"")&IF(AND(B39<>"",Z39="F1S237,5"),INDEX(Arkusz7!$AB$2:$AB$19,MATCH(Converter!D39,Arkusz7!$Y$2:$Y$19,-1)),"")&IF(AND(B39<>"",Z39="F1S2311"),INDEX(Arkusz7!$AB$2:$AB$19,MATCH(Converter!D39,Arkusz7!$Z$2:$Z$19,-1)),"")&IF(AND(B39<>"",Z39="F1S2511"),INDEX(Arkusz7!$AB$2:$AB$19,MATCH(Converter!D39,Arkusz7!$AA$2:$AA$19,-1)),"")&IF(AND(B39<>"",Z39="F2C2311"),INDEX(Arkusz7!$AI$2:$AI$7,MATCH(Converter!D39,Arkusz7!$AD$2:$AD$7,-1)),"")&IF(AND(B39<>"",Z39="F2C3417"),INDEX(Arkusz7!$AI$2:$AI$7,MATCH(Converter!D39,Arkusz7!$AE$2:$AE$7,-1)),"")&IF(AND(B39<>"",Z39="F2V3417"),INDEX(Arkusz7!$AI$2:$AI$7,MATCH(Converter!D39,Arkusz7!$AF$2:$AF$7,-1)),"")&IF(AND(B39<>"",Z39="F4C3417"),INDEX(Arkusz7!$AI$2:$AI$7,MATCH(Converter!D39,Arkusz7!$AG$2:$AG$7,-1)),"")&IF(AND(B39<>"",Z39="F4V3417"),INDEX(Arkusz7!$AI$2:$AI$7,MATCH(Converter!D39,Arkusz7!$AH$2:$AH$7,-1)),"") ->  | AE39: =IF(B39<>"",ROUND(ROUND(ROUND(ROUND(ROUND(ROUND(ROUND(ROUND(ROUND(ROUND(ROUND(ROUND(ROUND(VLOOKUP(AA39,NewAquilo!E:F,2,0)*NewAquilo!$B$21,0)*NewAquilo!$B$22,0)*NewAquilo!$B$23,0)*NewAquilo!$B$24,0)*NewAquilo!$B$25,0)*NewAquilo!$B$26,0)*NewAquilo!$B$27,0)*NewAquilo!$B$28,0)*NewAquilo!$B$29,0)*NewAquilo!$B$30,0)*NewAquilo!$B$31,0)*NewAquilo!$B$32,0)*NewAquilo!$B$33,0),"") ->  | AH39: =IF(B39<>"",VLOOKUP(AA39,NewAquilo!E:G,3,0),"") -> 
N40: =IF(AND(B40<>"",R40="FMS209"),INDEX(Arkusz7!$U$2:$U$24,MATCH(Converter!D40,Arkusz7!$A$2:$A$24,-1)),"")&IF(AND(B40<>"",R40="FMS2011"),INDEX(Arkusz7!$U$2:$U$24,MATCH(Converter!D40,Arkusz7!$B$2:$B$24,-1)),"")&IF(AND(B40<>"",R40="FMS2014"),INDEX(Arkusz7!$U$2:$U$24,MATCH(Converter!D40,Arkusz7!$C$2:$C$24,-1)),"")&IF(AND(B40<>"",R40="FMS2019"),INDEX(Arkusz7!$U$2:$U$24,MATCH(Converter!D40,Arkusz7!$D$2:$D$24,-1)),"")&IF(AND(B40<>"",R40="FMS259"),INDEX(Arkusz7!$U$2:$U$24,MATCH(Converter!D40,Arkusz7!$E$2:$E$24,-1)),"")&IF(AND(B40<>"",R40="FMS2511"),INDEX(Arkusz7!$U$2:$U$24,MATCH(Converter!D40,Arkusz7!$F$2:$F$24,-1)),"")&IF(AND(B40<>"",R40="FMS2514"),INDEX(Arkusz7!$U$2:$U$24,MATCH(Converter!D40,Arkusz7!$G$2:$G$24,-1)),"")&IF(AND(B40<>"",R40="FMS2519"),INDEX(Arkusz7!$U$2:$U$24,MATCH(Converter!D40,Arkusz7!$H$2:$H$24,-1)),"")&IF(AND(B40<>"",R40="FMS309"),INDEX(Arkusz7!$U$2:$U$24,MATCH(Converter!D40,Arkusz7!$I$2:$I$24,-1)),"")&IF(AND(B40<>"",R40="FMS3011"),INDEX(Arkusz7!$U$2:$U$24,MATCH(Converter!D40,Arkusz7!$J$2:$J$24,-1)),"")&IF(AND(B40<>"",R40="FMS3014"),INDEX(Arkusz7!$U$2:$U$24,MATCH(Converter!D40,Arkusz7!$K$2:$K$24,-1)),"")&IF(AND(B40<>"",R40="FMS3019"),INDEX(Arkusz7!$U$2:$U$24,MATCH(Converter!D40,Arkusz7!$L$2:$L$24,-1)),"")&IF(AND(B40<>"",R40="FMS349"),INDEX(Arkusz7!$U$2:$U$24,MATCH(Converter!D40,Arkusz7!$M$2:$M$24,-1)),"")&IF(AND(B40<>"",R40="FMS3411"),INDEX(Arkusz7!$U$2:$U$24,MATCH(Converter!D40,Arkusz7!$N$2:$N$24,-1)),"")&IF(AND(B40<>"",R40="FMS3414"),INDEX(Arkusz7!$U$2:$U$24,MATCH(Converter!D40,Arkusz7!$O$2:$O$24,-1)),"")&IF(AND(B40<>"",R40="FMS3419"),INDEX(Arkusz7!$U$2:$U$24,MATCH(Converter!D40,Arkusz7!$P$2:$P$24,-1)),"")&IF(AND(B40<>"",R40="FMS429"),INDEX(Arkusz7!$U$2:$U$24,MATCH(Converter!D40,Arkusz7!$Q$2:$Q$24,-1)),"")&IF(AND(B40<>"",R40="FMS4211"),INDEX(Arkusz7!$U$2:$U$24,MATCH(Converter!D40,Arkusz7!$R$2:$R$24,-1)),"")&IF(AND(B40<>"",R40="FMS4214"),INDEX(Arkusz7!$U$2:$U$24,MATCH(Converter!D40,Arkusz7!$S$2:$S$24,-1)),"")&IF(AND(B40<>"",R40="FMS4219"),INDEX(Arkusz7!$U$2:$U$24,MATCH(Converter!D40,Arkusz7!$T$2:$T$24,-1)),"")&IF(AND(B40<>"",R40="F1S177,5"),INDEX(Arkusz7!$AB$2:$AB$19,MATCH(Converter!D40,Arkusz7!$W$2:$W$19,-1)),"")&IF(AND(B40<>"",R40="F1S207,5"),INDEX(Arkusz7!$AB$2:$AB$19,MATCH(Converter!D40,Arkusz7!$X$2:$X$19,-1)),"")&IF(AND(B40<>"",R40="F1S237,5"),INDEX(Arkusz7!$AB$2:$AB$19,MATCH(Converter!D40,Arkusz7!$Y$2:$Y$19,-1)),"")&IF(AND(B40<>"",R40="F1S2311"),INDEX(Arkusz7!$AB$2:$AB$19,MATCH(Converter!D40,Arkusz7!$Z$2:$Z$19,-1)),"")&IF(AND(B40<>"",R40="F1S2511"),INDEX(Arkusz7!$AB$2:$AB$19,MATCH(Converter!D40,Arkusz7!$AA$2:$AA$19,-1)),"")&IF(AND(B40<>"",R40="F2C2311"),INDEX(Arkusz7!$AI$2:$AI$7,MATCH(Converter!D40,Arkusz7!$AD$2:$AD$7,-1)),"")&IF(AND(B40<>"",R40="F2C3417"),INDEX(Arkusz7!$AI$2:$AI$7,MATCH(Converter!D40,Arkusz7!$AE$2:$AE$7,-1)),"")&IF(AND(B40<>"",R40="F2V3417"),INDEX(Arkusz7!$AI$2:$AI$7,MATCH(Converter!D40,Arkusz7!$AF$2:$AF$7,-1)),"")&IF(AND(B40<>"",R40="F4C3417"),INDEX(Arkusz7!$AI$2:$AI$7,MATCH(Converter!D40,Arkusz7!$AG$2:$AG$7,-1)),"")&IF(AND(B40<>"",R40="F4V3417"),INDEX(Arkusz7!$AI$2:$AI$7,MATCH(Converter!D40,Arkusz7!$AH$2:$AH$7,-1)),"") ->  | U40: =IF(AND(B40<>"",Z40="FMS209"),INDEX(Arkusz7!$U$2:$U$24,MATCH(Converter!D40,Arkusz7!$A$2:$A$24,-1)),"")&IF(AND(B40<>"",Z40="FMS2011"),INDEX(Arkusz7!$U$2:$U$24,MATCH(Converter!D40,Arkusz7!$B$2:$B$24,-1)),"")&IF(AND(B40<>"",Z40="FMS2014"),INDEX(Arkusz7!$U$2:$U$24,MATCH(Converter!D40,Arkusz7!$C$2:$C$24,-1)),"")&IF(AND(B40<>"",Z40="FMS2019"),INDEX(Arkusz7!$U$2:$U$24,MATCH(Converter!D40,Arkusz7!$D$2:$D$24,-1)),"")&IF(AND(B40<>"",Z40="FMS259"),INDEX(Arkusz7!$U$2:$U$24,MATCH(Converter!D40,Arkusz7!$E$2:$E$24,-1)),"")&IF(AND(B40<>"",Z40="FMS2511"),INDEX(Arkusz7!$U$2:$U$24,MATCH(Converter!D40,Arkusz7!$F$2:$F$24,-1)),"")&IF(AND(B40<>"",Z40="FMS2514"),INDEX(Arkusz7!$U$2:$U$24,MATCH(Converter!D40,Arkusz7!$G$2:$G$24,-1)),"")&IF(AND(B40<>"",Z40="FMS2519"),INDEX(Arkusz7!$U$2:$U$24,MATCH(Converter!D40,Arkusz7!$H$2:$H$24,-1)),"")&IF(AND(B40<>"",Z40="FMS309"),INDEX(Arkusz7!$U$2:$U$24,MATCH(Converter!D40,Arkusz7!$I$2:$I$24,-1)),"")&IF(AND(B40<>"",Z40="FMS3011"),INDEX(Arkusz7!$U$2:$U$24,MATCH(Converter!D40,Arkusz7!$J$2:$J$24,-1)),"")&IF(AND(B40<>"",Z40="FMS3014"),INDEX(Arkusz7!$U$2:$U$24,MATCH(Converter!D40,Arkusz7!$K$2:$K$24,-1)),"")&IF(AND(B40<>"",Z40="FMS3019"),INDEX(Arkusz7!$U$2:$U$24,MATCH(Converter!D40,Arkusz7!$L$2:$L$24,-1)),"")&IF(AND(B40<>"",Z40="FMS349"),INDEX(Arkusz7!$U$2:$U$24,MATCH(Converter!D40,Arkusz7!$M$2:$M$24,-1)),"")&IF(AND(B40<>"",Z40="FMS3411"),INDEX(Arkusz7!$U$2:$U$24,MATCH(Converter!D40,Arkusz7!$N$2:$N$24,-1)),"")&IF(AND(B40<>"",Z40="FMS3414"),INDEX(Arkusz7!$U$2:$U$24,MATCH(Converter!D40,Arkusz7!$O$2:$O$24,-1)),"")&IF(AND(B40<>"",Z40="FMS3419"),INDEX(Arkusz7!$U$2:$U$24,MATCH(Converter!D40,Arkusz7!$P$2:$P$24,-1)),"")&IF(AND(B40<>"",Z40="FMS429"),INDEX(Arkusz7!$U$2:$U$24,MATCH(Converter!D40,Arkusz7!$Q$2:$Q$24,-1)),"")&IF(AND(B40<>"",Z40="FMS4211"),INDEX(Arkusz7!$U$2:$U$24,MATCH(Converter!D40,Arkusz7!$R$2:$R$24,-1)),"")&IF(AND(B40<>"",Z40="FMS4214"),INDEX(Arkusz7!$U$2:$U$24,MATCH(Converter!D40,Arkusz7!$S$2:$S$24,-1)),"")&IF(AND(B40<>"",Z40="FMS4219"),INDEX(Arkusz7!$U$2:$U$24,MATCH(Converter!D40,Arkusz7!$T$2:$T$24,-1)),"")&IF(AND(B40<>"",Z40="F1S177,5"),INDEX(Arkusz7!$AB$2:$AB$19,MATCH(Converter!D40,Arkusz7!$W$2:$W$19,-1)),"")&IF(AND(B40<>"",Z40="F1S207,5"),INDEX(Arkusz7!$AB$2:$AB$19,MATCH(Converter!D40,Arkusz7!$X$2:$X$19,-1)),"")&IF(AND(B40<>"",Z40="F1S237,5"),INDEX(Arkusz7!$AB$2:$AB$19,MATCH(Converter!D40,Arkusz7!$Y$2:$Y$19,-1)),"")&IF(AND(B40<>"",Z40="F1S2311"),INDEX(Arkusz7!$AB$2:$AB$19,MATCH(Converter!D40,Arkusz7!$Z$2:$Z$19,-1)),"")&IF(AND(B40<>"",Z40="F1S2511"),INDEX(Arkusz7!$AB$2:$AB$19,MATCH(Converter!D40,Arkusz7!$AA$2:$AA$19,-1)),"")&IF(AND(B40<>"",Z40="F2C2311"),INDEX(Arkusz7!$AI$2:$AI$7,MATCH(Converter!D40,Arkusz7!$AD$2:$AD$7,-1)),"")&IF(AND(B40<>"",Z40="F2C3417"),INDEX(Arkusz7!$AI$2:$AI$7,MATCH(Converter!D40,Arkusz7!$AE$2:$AE$7,-1)),"")&IF(AND(B40<>"",Z40="F2V3417"),INDEX(Arkusz7!$AI$2:$AI$7,MATCH(Converter!D40,Arkusz7!$AF$2:$AF$7,-1)),"")&IF(AND(B40<>"",Z40="F4C3417"),INDEX(Arkusz7!$AI$2:$AI$7,MATCH(Converter!D40,Arkusz7!$AG$2:$AG$7,-1)),"")&IF(AND(B40<>"",Z40="F4V3417"),INDEX(Arkusz7!$AI$2:$AI$7,MATCH(Converter!D40,Arkusz7!$AH$2:$AH$7,-1)),"") ->  | AE40: =IF(B40<>"",ROUND(ROUND(ROUND(ROUND(ROUND(ROUND(ROUND(ROUND(ROUND(ROUND(ROUND(ROUND(ROUND(VLOOKUP(AA40,NewAquilo!E:F,2,0)*NewAquilo!$B$21,0)*NewAquilo!$B$22,0)*NewAquilo!$B$23,0)*NewAquilo!$B$24,0)*NewAquilo!$B$25,0)*NewAquilo!$B$26,0)*NewAquilo!$B$27,0)*NewAquilo!$B$28,0)*NewAquilo!$B$29,0)*NewAquilo!$B$30,0)*NewAquilo!$B$31,0)*NewAquilo!$B$32,0)*NewAquilo!$B$33,0),"") ->  | AH40: =IF(B40<>"",VLOOKUP(AA40,NewAquilo!E:G,3,0),"") -> 
N41: =IF(AND(B41<>"",R41="FMS209"),INDEX(Arkusz7!$U$2:$U$24,MATCH(Converter!D41,Arkusz7!$A$2:$A$24,-1)),"")&IF(AND(B41<>"",R41="FMS2011"),INDEX(Arkusz7!$U$2:$U$24,MATCH(Converter!D41,Arkusz7!$B$2:$B$24,-1)),"")&IF(AND(B41<>"",R41="FMS2014"),INDEX(Arkusz7!$U$2:$U$24,MATCH(Converter!D41,Arkusz7!$C$2:$C$24,-1)),"")&IF(AND(B41<>"",R41="FMS2019"),INDEX(Arkusz7!$U$2:$U$24,MATCH(Converter!D41,Arkusz7!$D$2:$D$24,-1)),"")&IF(AND(B41<>"",R41="FMS259"),INDEX(Arkusz7!$U$2:$U$24,MATCH(Converter!D41,Arkusz7!$E$2:$E$24,-1)),"")&IF(AND(B41<>"",R41="FMS2511"),INDEX(Arkusz7!$U$2:$U$24,MATCH(Converter!D41,Arkusz7!$F$2:$F$24,-1)),"")&IF(AND(B41<>"",R41="FMS2514"),INDEX(Arkusz7!$U$2:$U$24,MATCH(Converter!D41,Arkusz7!$G$2:$G$24,-1)),"")&IF(AND(B41<>"",R41="FMS2519"),INDEX(Arkusz7!$U$2:$U$24,MATCH(Converter!D41,Arkusz7!$H$2:$H$24,-1)),"")&IF(AND(B41<>"",R41="FMS309"),INDEX(Arkusz7!$U$2:$U$24,MATCH(Converter!D41,Arkusz7!$I$2:$I$24,-1)),"")&IF(AND(B41<>"",R41="FMS3011"),INDEX(Arkusz7!$U$2:$U$24,MATCH(Converter!D41,Arkusz7!$J$2:$J$24,-1)),"")&IF(AND(B41<>"",R41="FMS3014"),INDEX(Arkusz7!$U$2:$U$24,MATCH(Converter!D41,Arkusz7!$K$2:$K$24,-1)),"")&IF(AND(B41<>"",R41="FMS3019"),INDEX(Arkusz7!$U$2:$U$24,MATCH(Converter!D41,Arkusz7!$L$2:$L$24,-1)),"")&IF(AND(B41<>"",R41="FMS349"),INDEX(Arkusz7!$U$2:$U$24,MATCH(Converter!D41,Arkusz7!$M$2:$M$24,-1)),"")&IF(AND(B41<>"",R41="FMS3411"),INDEX(Arkusz7!$U$2:$U$24,MATCH(Converter!D41,Arkusz7!$N$2:$N$24,-1)),"")&IF(AND(B41<>"",R41="FMS3414"),INDEX(Arkusz7!$U$2:$U$24,MATCH(Converter!D41,Arkusz7!$O$2:$O$24,-1)),"")&IF(AND(B41<>"",R41="FMS3419"),INDEX(Arkusz7!$U$2:$U$24,MATCH(Converter!D41,Arkusz7!$P$2:$P$24,-1)),"")&IF(AND(B41<>"",R41="FMS429"),INDEX(Arkusz7!$U$2:$U$24,MATCH(Converter!D41,Arkusz7!$Q$2:$Q$24,-1)),"")&IF(AND(B41<>"",R41="FMS4211"),INDEX(Arkusz7!$U$2:$U$24,MATCH(Converter!D41,Arkusz7!$R$2:$R$24,-1)),"")&IF(AND(B41<>"",R41="FMS4214"),INDEX(Arkusz7!$U$2:$U$24,MATCH(Converter!D41,Arkusz7!$S$2:$S$24,-1)),"")&IF(AND(B41<>"",R41="FMS4219"),INDEX(Arkusz7!$U$2:$U$24,MATCH(Converter!D41,Arkusz7!$T$2:$T$24,-1)),"")&IF(AND(B41<>"",R41="F1S177,5"),INDEX(Arkusz7!$AB$2:$AB$19,MATCH(Converter!D41,Arkusz7!$W$2:$W$19,-1)),"")&IF(AND(B41<>"",R41="F1S207,5"),INDEX(Arkusz7!$AB$2:$AB$19,MATCH(Converter!D41,Arkusz7!$X$2:$X$19,-1)),"")&IF(AND(B41<>"",R41="F1S237,5"),INDEX(Arkusz7!$AB$2:$AB$19,MATCH(Converter!D41,Arkusz7!$Y$2:$Y$19,-1)),"")&IF(AND(B41<>"",R41="F1S2311"),INDEX(Arkusz7!$AB$2:$AB$19,MATCH(Converter!D41,Arkusz7!$Z$2:$Z$19,-1)),"")&IF(AND(B41<>"",R41="F1S2511"),INDEX(Arkusz7!$AB$2:$AB$19,MATCH(Converter!D41,Arkusz7!$AA$2:$AA$19,-1)),"")&IF(AND(B41<>"",R41="F2C2311"),INDEX(Arkusz7!$AI$2:$AI$7,MATCH(Converter!D41,Arkusz7!$AD$2:$AD$7,-1)),"")&IF(AND(B41<>"",R41="F2C3417"),INDEX(Arkusz7!$AI$2:$AI$7,MATCH(Converter!D41,Arkusz7!$AE$2:$AE$7,-1)),"")&IF(AND(B41<>"",R41="F2V3417"),INDEX(Arkusz7!$AI$2:$AI$7,MATCH(Converter!D41,Arkusz7!$AF$2:$AF$7,-1)),"")&IF(AND(B41<>"",R41="F4C3417"),INDEX(Arkusz7!$AI$2:$AI$7,MATCH(Converter!D41,Arkusz7!$AG$2:$AG$7,-1)),"")&IF(AND(B41<>"",R41="F4V3417"),INDEX(Arkusz7!$AI$2:$AI$7,MATCH(Converter!D41,Arkusz7!$AH$2:$AH$7,-1)),"") ->  | U41: =IF(AND(B41<>"",Z41="FMS209"),INDEX(Arkusz7!$U$2:$U$24,MATCH(Converter!D41,Arkusz7!$A$2:$A$24,-1)),"")&IF(AND(B41<>"",Z41="FMS2011"),INDEX(Arkusz7!$U$2:$U$24,MATCH(Converter!D41,Arkusz7!$B$2:$B$24,-1)),"")&IF(AND(B41<>"",Z41="FMS2014"),INDEX(Arkusz7!$U$2:$U$24,MATCH(Converter!D41,Arkusz7!$C$2:$C$24,-1)),"")&IF(AND(B41<>"",Z41="FMS2019"),INDEX(Arkusz7!$U$2:$U$24,MATCH(Converter!D41,Arkusz7!$D$2:$D$24,-1)),"")&IF(AND(B41<>"",Z41="FMS259"),INDEX(Arkusz7!$U$2:$U$24,MATCH(Converter!D41,Arkusz7!$E$2:$E$24,-1)),"")&IF(AND(B41<>"",Z41="FMS2511"),INDEX(Arkusz7!$U$2:$U$24,MATCH(Converter!D41,Arkusz7!$F$2:$F$24,-1)),"")&IF(AND(B41<>"",Z41="FMS2514"),INDEX(Arkusz7!$U$2:$U$24,MATCH(Converter!D41,Arkusz7!$G$2:$G$24,-1)),"")&IF(AND(B41<>"",Z41="FMS2519"),INDEX(Arkusz7!$U$2:$U$24,MATCH(Converter!D41,Arkusz7!$H$2:$H$24,-1)),"")&IF(AND(B41<>"",Z41="FMS309"),INDEX(Arkusz7!$U$2:$U$24,MATCH(Converter!D41,Arkusz7!$I$2:$I$24,-1)),"")&IF(AND(B41<>"",Z41="FMS3011"),INDEX(Arkusz7!$U$2:$U$24,MATCH(Converter!D41,Arkusz7!$J$2:$J$24,-1)),"")&IF(AND(B41<>"",Z41="FMS3014"),INDEX(Arkusz7!$U$2:$U$24,MATCH(Converter!D41,Arkusz7!$K$2:$K$24,-1)),"")&IF(AND(B41<>"",Z41="FMS3019"),INDEX(Arkusz7!$U$2:$U$24,MATCH(Converter!D41,Arkusz7!$L$2:$L$24,-1)),"")&IF(AND(B41<>"",Z41="FMS349"),INDEX(Arkusz7!$U$2:$U$24,MATCH(Converter!D41,Arkusz7!$M$2:$M$24,-1)),"")&IF(AND(B41<>"",Z41="FMS3411"),INDEX(Arkusz7!$U$2:$U$24,MATCH(Converter!D41,Arkusz7!$N$2:$N$24,-1)),"")&IF(AND(B41<>"",Z41="FMS3414"),INDEX(Arkusz7!$U$2:$U$24,MATCH(Converter!D41,Arkusz7!$O$2:$O$24,-1)),"")&IF(AND(B41<>"",Z41="FMS3419"),INDEX(Arkusz7!$U$2:$U$24,MATCH(Converter!D41,Arkusz7!$P$2:$P$24,-1)),"")&IF(AND(B41<>"",Z41="FMS429"),INDEX(Arkusz7!$U$2:$U$24,MATCH(Converter!D41,Arkusz7!$Q$2:$Q$24,-1)),"")&IF(AND(B41<>"",Z41="FMS4211"),INDEX(Arkusz7!$U$2:$U$24,MATCH(Converter!D41,Arkusz7!$R$2:$R$24,-1)),"")&IF(AND(B41<>"",Z41="FMS4214"),INDEX(Arkusz7!$U$2:$U$24,MATCH(Converter!D41,Arkusz7!$S$2:$S$24,-1)),"")&IF(AND(B41<>"",Z41="FMS4219"),INDEX(Arkusz7!$U$2:$U$24,MATCH(Converter!D41,Arkusz7!$T$2:$T$24,-1)),"")&IF(AND(B41<>"",Z41="F1S177,5"),INDEX(Arkusz7!$AB$2:$AB$19,MATCH(Converter!D41,Arkusz7!$W$2:$W$19,-1)),"")&IF(AND(B41<>"",Z41="F1S207,5"),INDEX(Arkusz7!$AB$2:$AB$19,MATCH(Converter!D41,Arkusz7!$X$2:$X$19,-1)),"")&IF(AND(B41<>"",Z41="F1S237,5"),INDEX(Arkusz7!$AB$2:$AB$19,MATCH(Converter!D41,Arkusz7!$Y$2:$Y$19,-1)),"")&IF(AND(B41<>"",Z41="F1S2311"),INDEX(Arkusz7!$AB$2:$AB$19,MATCH(Converter!D41,Arkusz7!$Z$2:$Z$19,-1)),"")&IF(AND(B41<>"",Z41="F1S2511"),INDEX(Arkusz7!$AB$2:$AB$19,MATCH(Converter!D41,Arkusz7!$AA$2:$AA$19,-1)),"")&IF(AND(B41<>"",Z41="F2C2311"),INDEX(Arkusz7!$AI$2:$AI$7,MATCH(Converter!D41,Arkusz7!$AD$2:$AD$7,-1)),"")&IF(AND(B41<>"",Z41="F2C3417"),INDEX(Arkusz7!$AI$2:$AI$7,MATCH(Converter!D41,Arkusz7!$AE$2:$AE$7,-1)),"")&IF(AND(B41<>"",Z41="F2V3417"),INDEX(Arkusz7!$AI$2:$AI$7,MATCH(Converter!D41,Arkusz7!$AF$2:$AF$7,-1)),"")&IF(AND(B41<>"",Z41="F4C3417"),INDEX(Arkusz7!$AI$2:$AI$7,MATCH(Converter!D41,Arkusz7!$AG$2:$AG$7,-1)),"")&IF(AND(B41<>"",Z41="F4V3417"),INDEX(Arkusz7!$AI$2:$AI$7,MATCH(Converter!D41,Arkusz7!$AH$2:$AH$7,-1)),"") ->  | AE41: =IF(B41<>"",ROUND(ROUND(ROUND(ROUND(ROUND(ROUND(ROUND(ROUND(ROUND(ROUND(ROUND(ROUND(ROUND(VLOOKUP(AA41,NewAquilo!E:F,2,0)*NewAquilo!$B$21,0)*NewAquilo!$B$22,0)*NewAquilo!$B$23,0)*NewAquilo!$B$24,0)*NewAquilo!$B$25,0)*NewAquilo!$B$26,0)*NewAquilo!$B$27,0)*NewAquilo!$B$28,0)*NewAquilo!$B$29,0)*NewAquilo!$B$30,0)*NewAquilo!$B$31,0)*NewAquilo!$B$32,0)*NewAquilo!$B$33,0),"") ->  | AH41: =IF(B41<>"",VLOOKUP(AA41,NewAquilo!E:G,3,0),"") -> 
N42: =IF(AND(B42<>"",R42="FMS209"),INDEX(Arkusz7!$U$2:$U$24,MATCH(Converter!D42,Arkusz7!$A$2:$A$24,-1)),"")&IF(AND(B42<>"",R42="FMS2011"),INDEX(Arkusz7!$U$2:$U$24,MATCH(Converter!D42,Arkusz7!$B$2:$B$24,-1)),"")&IF(AND(B42<>"",R42="FMS2014"),INDEX(Arkusz7!$U$2:$U$24,MATCH(Converter!D42,Arkusz7!$C$2:$C$24,-1)),"")&IF(AND(B42<>"",R42="FMS2019"),INDEX(Arkusz7!$U$2:$U$24,MATCH(Converter!D42,Arkusz7!$D$2:$D$24,-1)),"")&IF(AND(B42<>"",R42="FMS259"),INDEX(Arkusz7!$U$2:$U$24,MATCH(Converter!D42,Arkusz7!$E$2:$E$24,-1)),"")&IF(AND(B42<>"",R42="FMS2511"),INDEX(Arkusz7!$U$2:$U$24,MATCH(Converter!D42,Arkusz7!$F$2:$F$24,-1)),"")&IF(AND(B42<>"",R42="FMS2514"),INDEX(Arkusz7!$U$2:$U$24,MATCH(Converter!D42,Arkusz7!$G$2:$G$24,-1)),"")&IF(AND(B42<>"",R42="FMS2519"),INDEX(Arkusz7!$U$2:$U$24,MATCH(Converter!D42,Arkusz7!$H$2:$H$24,-1)),"")&IF(AND(B42<>"",R42="FMS309"),INDEX(Arkusz7!$U$2:$U$24,MATCH(Converter!D42,Arkusz7!$I$2:$I$24,-1)),"")&IF(AND(B42<>"",R42="FMS3011"),INDEX(Arkusz7!$U$2:$U$24,MATCH(Converter!D42,Arkusz7!$J$2:$J$24,-1)),"")&IF(AND(B42<>"",R42="FMS3014"),INDEX(Arkusz7!$U$2:$U$24,MATCH(Converter!D42,Arkusz7!$K$2:$K$24,-1)),"")&IF(AND(B42<>"",R42="FMS3019"),INDEX(Arkusz7!$U$2:$U$24,MATCH(Converter!D42,Arkusz7!$L$2:$L$24,-1)),"")&IF(AND(B42<>"",R42="FMS349"),INDEX(Arkusz7!$U$2:$U$24,MATCH(Converter!D42,Arkusz7!$M$2:$M$24,-1)),"")&IF(AND(B42<>"",R42="FMS3411"),INDEX(Arkusz7!$U$2:$U$24,MATCH(Converter!D42,Arkusz7!$N$2:$N$24,-1)),"")&IF(AND(B42<>"",R42="FMS3414"),INDEX(Arkusz7!$U$2:$U$24,MATCH(Converter!D42,Arkusz7!$O$2:$O$24,-1)),"")&IF(AND(B42<>"",R42="FMS3419"),INDEX(Arkusz7!$U$2:$U$24,MATCH(Converter!D42,Arkusz7!$P$2:$P$24,-1)),"")&IF(AND(B42<>"",R42="FMS429"),INDEX(Arkusz7!$U$2:$U$24,MATCH(Converter!D42,Arkusz7!$Q$2:$Q$24,-1)),"")&IF(AND(B42<>"",R42="FMS4211"),INDEX(Arkusz7!$U$2:$U$24,MATCH(Converter!D42,Arkusz7!$R$2:$R$24,-1)),"")&IF(AND(B42<>"",R42="FMS4214"),INDEX(Arkusz7!$U$2:$U$24,MATCH(Converter!D42,Arkusz7!$S$2:$S$24,-1)),"")&IF(AND(B42<>"",R42="FMS4219"),INDEX(Arkusz7!$U$2:$U$24,MATCH(Converter!D42,Arkusz7!$T$2:$T$24,-1)),"")&IF(AND(B42<>"",R42="F1S177,5"),INDEX(Arkusz7!$AB$2:$AB$19,MATCH(Converter!D42,Arkusz7!$W$2:$W$19,-1)),"")&IF(AND(B42<>"",R42="F1S207,5"),INDEX(Arkusz7!$AB$2:$AB$19,MATCH(Converter!D42,Arkusz7!$X$2:$X$19,-1)),"")&IF(AND(B42<>"",R42="F1S237,5"),INDEX(Arkusz7!$AB$2:$AB$19,MATCH(Converter!D42,Arkusz7!$Y$2:$Y$19,-1)),"")&IF(AND(B42<>"",R42="F1S2311"),INDEX(Arkusz7!$AB$2:$AB$19,MATCH(Converter!D42,Arkusz7!$Z$2:$Z$19,-1)),"")&IF(AND(B42<>"",R42="F1S2511"),INDEX(Arkusz7!$AB$2:$AB$19,MATCH(Converter!D42,Arkusz7!$AA$2:$AA$19,-1)),"")&IF(AND(B42<>"",R42="F2C2311"),INDEX(Arkusz7!$AI$2:$AI$7,MATCH(Converter!D42,Arkusz7!$AD$2:$AD$7,-1)),"")&IF(AND(B42<>"",R42="F2C3417"),INDEX(Arkusz7!$AI$2:$AI$7,MATCH(Converter!D42,Arkusz7!$AE$2:$AE$7,-1)),"")&IF(AND(B42<>"",R42="F2V3417"),INDEX(Arkusz7!$AI$2:$AI$7,MATCH(Converter!D42,Arkusz7!$AF$2:$AF$7,-1)),"")&IF(AND(B42<>"",R42="F4C3417"),INDEX(Arkusz7!$AI$2:$AI$7,MATCH(Converter!D42,Arkusz7!$AG$2:$AG$7,-1)),"")&IF(AND(B42<>"",R42="F4V3417"),INDEX(Arkusz7!$AI$2:$AI$7,MATCH(Converter!D42,Arkusz7!$AH$2:$AH$7,-1)),"") ->  | U42: =IF(AND(B42<>"",Z42="FMS209"),INDEX(Arkusz7!$U$2:$U$24,MATCH(Converter!D42,Arkusz7!$A$2:$A$24,-1)),"")&IF(AND(B42<>"",Z42="FMS2011"),INDEX(Arkusz7!$U$2:$U$24,MATCH(Converter!D42,Arkusz7!$B$2:$B$24,-1)),"")&IF(AND(B42<>"",Z42="FMS2014"),INDEX(Arkusz7!$U$2:$U$24,MATCH(Converter!D42,Arkusz7!$C$2:$C$24,-1)),"")&IF(AND(B42<>"",Z42="FMS2019"),INDEX(Arkusz7!$U$2:$U$24,MATCH(Converter!D42,Arkusz7!$D$2:$D$24,-1)),"")&IF(AND(B42<>"",Z42="FMS259"),INDEX(Arkusz7!$U$2:$U$24,MATCH(Converter!D42,Arkusz7!$E$2:$E$24,-1)),"")&IF(AND(B42<>"",Z42="FMS2511"),INDEX(Arkusz7!$U$2:$U$24,MATCH(Converter!D42,Arkusz7!$F$2:$F$24,-1)),"")&IF(AND(B42<>"",Z42="FMS2514"),INDEX(Arkusz7!$U$2:$U$24,MATCH(Converter!D42,Arkusz7!$G$2:$G$24,-1)),"")&IF(AND(B42<>"",Z42="FMS2519"),INDEX(Arkusz7!$U$2:$U$24,MATCH(Converter!D42,Arkusz7!$H$2:$H$24,-1)),"")&IF(AND(B42<>"",Z42="FMS309"),INDEX(Arkusz7!$U$2:$U$24,MATCH(Converter!D42,Arkusz7!$I$2:$I$24,-1)),"")&IF(AND(B42<>"",Z42="FMS3011"),INDEX(Arkusz7!$U$2:$U$24,MATCH(Converter!D42,Arkusz7!$J$2:$J$24,-1)),"")&IF(AND(B42<>"",Z42="FMS3014"),INDEX(Arkusz7!$U$2:$U$24,MATCH(Converter!D42,Arkusz7!$K$2:$K$24,-1)),"")&IF(AND(B42<>"",Z42="FMS3019"),INDEX(Arkusz7!$U$2:$U$24,MATCH(Converter!D42,Arkusz7!$L$2:$L$24,-1)),"")&IF(AND(B42<>"",Z42="FMS349"),INDEX(Arkusz7!$U$2:$U$24,MATCH(Converter!D42,Arkusz7!$M$2:$M$24,-1)),"")&IF(AND(B42<>"",Z42="FMS3411"),INDEX(Arkusz7!$U$2:$U$24,MATCH(Converter!D42,Arkusz7!$N$2:$N$24,-1)),"")&IF(AND(B42<>"",Z42="FMS3414"),INDEX(Arkusz7!$U$2:$U$24,MATCH(Converter!D42,Arkusz7!$O$2:$O$24,-1)),"")&IF(AND(B42<>"",Z42="FMS3419"),INDEX(Arkusz7!$U$2:$U$24,MATCH(Converter!D42,Arkusz7!$P$2:$P$24,-1)),"")&IF(AND(B42<>"",Z42="FMS429"),INDEX(Arkusz7!$U$2:$U$24,MATCH(Converter!D42,Arkusz7!$Q$2:$Q$24,-1)),"")&IF(AND(B42<>"",Z42="FMS4211"),INDEX(Arkusz7!$U$2:$U$24,MATCH(Converter!D42,Arkusz7!$R$2:$R$24,-1)),"")&IF(AND(B42<>"",Z42="FMS4214"),INDEX(Arkusz7!$U$2:$U$24,MATCH(Converter!D42,Arkusz7!$S$2:$S$24,-1)),"")&IF(AND(B42<>"",Z42="FMS4219"),INDEX(Arkusz7!$U$2:$U$24,MATCH(Converter!D42,Arkusz7!$T$2:$T$24,-1)),"")&IF(AND(B42<>"",Z42="F1S177,5"),INDEX(Arkusz7!$AB$2:$AB$19,MATCH(Converter!D42,Arkusz7!$W$2:$W$19,-1)),"")&IF(AND(B42<>"",Z42="F1S207,5"),INDEX(Arkusz7!$AB$2:$AB$19,MATCH(Converter!D42,Arkusz7!$X$2:$X$19,-1)),"")&IF(AND(B42<>"",Z42="F1S237,5"),INDEX(Arkusz7!$AB$2:$AB$19,MATCH(Converter!D42,Arkusz7!$Y$2:$Y$19,-1)),"")&IF(AND(B42<>"",Z42="F1S2311"),INDEX(Arkusz7!$AB$2:$AB$19,MATCH(Converter!D42,Arkusz7!$Z$2:$Z$19,-1)),"")&IF(AND(B42<>"",Z42="F1S2511"),INDEX(Arkusz7!$AB$2:$AB$19,MATCH(Converter!D42,Arkusz7!$AA$2:$AA$19,-1)),"")&IF(AND(B42<>"",Z42="F2C2311"),INDEX(Arkusz7!$AI$2:$AI$7,MATCH(Converter!D42,Arkusz7!$AD$2:$AD$7,-1)),"")&IF(AND(B42<>"",Z42="F2C3417"),INDEX(Arkusz7!$AI$2:$AI$7,MATCH(Converter!D42,Arkusz7!$AE$2:$AE$7,-1)),"")&IF(AND(B42<>"",Z42="F2V3417"),INDEX(Arkusz7!$AI$2:$AI$7,MATCH(Converter!D42,Arkusz7!$AF$2:$AF$7,-1)),"")&IF(AND(B42<>"",Z42="F4C3417"),INDEX(Arkusz7!$AI$2:$AI$7,MATCH(Converter!D42,Arkusz7!$AG$2:$AG$7,-1)),"")&IF(AND(B42<>"",Z42="F4V3417"),INDEX(Arkusz7!$AI$2:$AI$7,MATCH(Converter!D42,Arkusz7!$AH$2:$AH$7,-1)),"") ->  | AE42: =IF(B42<>"",ROUND(ROUND(ROUND(ROUND(ROUND(ROUND(ROUND(ROUND(ROUND(ROUND(ROUND(ROUND(ROUND(VLOOKUP(AA42,NewAquilo!E:F,2,0)*NewAquilo!$B$21,0)*NewAquilo!$B$22,0)*NewAquilo!$B$23,0)*NewAquilo!$B$24,0)*NewAquilo!$B$25,0)*NewAquilo!$B$26,0)*NewAquilo!$B$27,0)*NewAquilo!$B$28,0)*NewAquilo!$B$29,0)*NewAquilo!$B$30,0)*NewAquilo!$B$31,0)*NewAquilo!$B$32,0)*NewAquilo!$B$33,0),"") ->  | AH42: =IF(B42<>"",VLOOKUP(AA42,NewAquilo!E:G,3,0),"") -> 
N43: =IF(AND(B43<>"",R43="FMS209"),INDEX(Arkusz7!$U$2:$U$24,MATCH(Converter!D43,Arkusz7!$A$2:$A$24,-1)),"")&IF(AND(B43<>"",R43="FMS2011"),INDEX(Arkusz7!$U$2:$U$24,MATCH(Converter!D43,Arkusz7!$B$2:$B$24,-1)),"")&IF(AND(B43<>"",R43="FMS2014"),INDEX(Arkusz7!$U$2:$U$24,MATCH(Converter!D43,Arkusz7!$C$2:$C$24,-1)),"")&IF(AND(B43<>"",R43="FMS2019"),INDEX(Arkusz7!$U$2:$U$24,MATCH(Converter!D43,Arkusz7!$D$2:$D$24,-1)),"")&IF(AND(B43<>"",R43="FMS259"),INDEX(Arkusz7!$U$2:$U$24,MATCH(Converter!D43,Arkusz7!$E$2:$E$24,-1)),"")&IF(AND(B43<>"",R43="FMS2511"),INDEX(Arkusz7!$U$2:$U$24,MATCH(Converter!D43,Arkusz7!$F$2:$F$24,-1)),"")&IF(AND(B43<>"",R43="FMS2514"),INDEX(Arkusz7!$U$2:$U$24,MATCH(Converter!D43,Arkusz7!$G$2:$G$24,-1)),"")&IF(AND(B43<>"",R43="FMS2519"),INDEX(Arkusz7!$U$2:$U$24,MATCH(Converter!D43,Arkusz7!$H$2:$H$24,-1)),"")&IF(AND(B43<>"",R43="FMS309"),INDEX(Arkusz7!$U$2:$U$24,MATCH(Converter!D43,Arkusz7!$I$2:$I$24,-1)),"")&IF(AND(B43<>"",R43="FMS3011"),INDEX(Arkusz7!$U$2:$U$24,MATCH(Converter!D43,Arkusz7!$J$2:$J$24,-1)),"")&IF(AND(B43<>"",R43="FMS3014"),INDEX(Arkusz7!$U$2:$U$24,MATCH(Converter!D43,Arkusz7!$K$2:$K$24,-1)),"")&IF(AND(B43<>"",R43="FMS3019"),INDEX(Arkusz7!$U$2:$U$24,MATCH(Converter!D43,Arkusz7!$L$2:$L$24,-1)),"")&IF(AND(B43<>"",R43="FMS349"),INDEX(Arkusz7!$U$2:$U$24,MATCH(Converter!D43,Arkusz7!$M$2:$M$24,-1)),"")&IF(AND(B43<>"",R43="FMS3411"),INDEX(Arkusz7!$U$2:$U$24,MATCH(Converter!D43,Arkusz7!$N$2:$N$24,-1)),"")&IF(AND(B43<>"",R43="FMS3414"),INDEX(Arkusz7!$U$2:$U$24,MATCH(Converter!D43,Arkusz7!$O$2:$O$24,-1)),"")&IF(AND(B43<>"",R43="FMS3419"),INDEX(Arkusz7!$U$2:$U$24,MATCH(Converter!D43,Arkusz7!$P$2:$P$24,-1)),"")&IF(AND(B43<>"",R43="FMS429"),INDEX(Arkusz7!$U$2:$U$24,MATCH(Converter!D43,Arkusz7!$Q$2:$Q$24,-1)),"")&IF(AND(B43<>"",R43="FMS4211"),INDEX(Arkusz7!$U$2:$U$24,MATCH(Converter!D43,Arkusz7!$R$2:$R$24,-1)),"")&IF(AND(B43<>"",R43="FMS4214"),INDEX(Arkusz7!$U$2:$U$24,MATCH(Converter!D43,Arkusz7!$S$2:$S$24,-1)),"")&IF(AND(B43<>"",R43="FMS4219"),INDEX(Arkusz7!$U$2:$U$24,MATCH(Converter!D43,Arkusz7!$T$2:$T$24,-1)),"")&IF(AND(B43<>"",R43="F1S177,5"),INDEX(Arkusz7!$AB$2:$AB$19,MATCH(Converter!D43,Arkusz7!$W$2:$W$19,-1)),"")&IF(AND(B43<>"",R43="F1S207,5"),INDEX(Arkusz7!$AB$2:$AB$19,MATCH(Converter!D43,Arkusz7!$X$2:$X$19,-1)),"")&IF(AND(B43<>"",R43="F1S237,5"),INDEX(Arkusz7!$AB$2:$AB$19,MATCH(Converter!D43,Arkusz7!$Y$2:$Y$19,-1)),"")&IF(AND(B43<>"",R43="F1S2311"),INDEX(Arkusz7!$AB$2:$AB$19,MATCH(Converter!D43,Arkusz7!$Z$2:$Z$19,-1)),"")&IF(AND(B43<>"",R43="F1S2511"),INDEX(Arkusz7!$AB$2:$AB$19,MATCH(Converter!D43,Arkusz7!$AA$2:$AA$19,-1)),"")&IF(AND(B43<>"",R43="F2C2311"),INDEX(Arkusz7!$AI$2:$AI$7,MATCH(Converter!D43,Arkusz7!$AD$2:$AD$7,-1)),"")&IF(AND(B43<>"",R43="F2C3417"),INDEX(Arkusz7!$AI$2:$AI$7,MATCH(Converter!D43,Arkusz7!$AE$2:$AE$7,-1)),"")&IF(AND(B43<>"",R43="F2V3417"),INDEX(Arkusz7!$AI$2:$AI$7,MATCH(Converter!D43,Arkusz7!$AF$2:$AF$7,-1)),"")&IF(AND(B43<>"",R43="F4C3417"),INDEX(Arkusz7!$AI$2:$AI$7,MATCH(Converter!D43,Arkusz7!$AG$2:$AG$7,-1)),"")&IF(AND(B43<>"",R43="F4V3417"),INDEX(Arkusz7!$AI$2:$AI$7,MATCH(Converter!D43,Arkusz7!$AH$2:$AH$7,-1)),"") ->  | U43: =IF(AND(B43<>"",Z43="FMS209"),INDEX(Arkusz7!$U$2:$U$24,MATCH(Converter!D43,Arkusz7!$A$2:$A$24,-1)),"")&IF(AND(B43<>"",Z43="FMS2011"),INDEX(Arkusz7!$U$2:$U$24,MATCH(Converter!D43,Arkusz7!$B$2:$B$24,-1)),"")&IF(AND(B43<>"",Z43="FMS2014"),INDEX(Arkusz7!$U$2:$U$24,MATCH(Converter!D43,Arkusz7!$C$2:$C$24,-1)),"")&IF(AND(B43<>"",Z43="FMS2019"),INDEX(Arkusz7!$U$2:$U$24,MATCH(Converter!D43,Arkusz7!$D$2:$D$24,-1)),"")&IF(AND(B43<>"",Z43="FMS259"),INDEX(Arkusz7!$U$2:$U$24,MATCH(Converter!D43,Arkusz7!$E$2:$E$24,-1)),"")&IF(AND(B43<>"",Z43="FMS2511"),INDEX(Arkusz7!$U$2:$U$24,MATCH(Converter!D43,Arkusz7!$F$2:$F$24,-1)),"")&IF(AND(B43<>"",Z43="FMS2514"),INDEX(Arkusz7!$U$2:$U$24,MATCH(Converter!D43,Arkusz7!$G$2:$G$24,-1)),"")&IF(AND(B43<>"",Z43="FMS2519"),INDEX(Arkusz7!$U$2:$U$24,MATCH(Converter!D43,Arkusz7!$H$2:$H$24,-1)),"")&IF(AND(B43<>"",Z43="FMS309"),INDEX(Arkusz7!$U$2:$U$24,MATCH(Converter!D43,Arkusz7!$I$2:$I$24,-1)),"")&IF(AND(B43<>"",Z43="FMS3011"),INDEX(Arkusz7!$U$2:$U$24,MATCH(Converter!D43,Arkusz7!$J$2:$J$24,-1)),"")&IF(AND(B43<>"",Z43="FMS3014"),INDEX(Arkusz7!$U$2:$U$24,MATCH(Converter!D43,Arkusz7!$K$2:$K$24,-1)),"")&IF(AND(B43<>"",Z43="FMS3019"),INDEX(Arkusz7!$U$2:$U$24,MATCH(Converter!D43,Arkusz7!$L$2:$L$24,-1)),"")&IF(AND(B43<>"",Z43="FMS349"),INDEX(Arkusz7!$U$2:$U$24,MATCH(Converter!D43,Arkusz7!$M$2:$M$24,-1)),"")&IF(AND(B43<>"",Z43="FMS3411"),INDEX(Arkusz7!$U$2:$U$24,MATCH(Converter!D43,Arkusz7!$N$2:$N$24,-1)),"")&IF(AND(B43<>"",Z43="FMS3414"),INDEX(Arkusz7!$U$2:$U$24,MATCH(Converter!D43,Arkusz7!$O$2:$O$24,-1)),"")&IF(AND(B43<>"",Z43="FMS3419"),INDEX(Arkusz7!$U$2:$U$24,MATCH(Converter!D43,Arkusz7!$P$2:$P$24,-1)),"")&IF(AND(B43<>"",Z43="FMS429"),INDEX(Arkusz7!$U$2:$U$24,MATCH(Converter!D43,Arkusz7!$Q$2:$Q$24,-1)),"")&IF(AND(B43<>"",Z43="FMS4211"),INDEX(Arkusz7!$U$2:$U$24,MATCH(Converter!D43,Arkusz7!$R$2:$R$24,-1)),"")&IF(AND(B43<>"",Z43="FMS4214"),INDEX(Arkusz7!$U$2:$U$24,MATCH(Converter!D43,Arkusz7!$S$2:$S$24,-1)),"")&IF(AND(B43<>"",Z43="FMS4219"),INDEX(Arkusz7!$U$2:$U$24,MATCH(Converter!D43,Arkusz7!$T$2:$T$24,-1)),"")&IF(AND(B43<>"",Z43="F1S177,5"),INDEX(Arkusz7!$AB$2:$AB$19,MATCH(Converter!D43,Arkusz7!$W$2:$W$19,-1)),"")&IF(AND(B43<>"",Z43="F1S207,5"),INDEX(Arkusz7!$AB$2:$AB$19,MATCH(Converter!D43,Arkusz7!$X$2:$X$19,-1)),"")&IF(AND(B43<>"",Z43="F1S237,5"),INDEX(Arkusz7!$AB$2:$AB$19,MATCH(Converter!D43,Arkusz7!$Y$2:$Y$19,-1)),"")&IF(AND(B43<>"",Z43="F1S2311"),INDEX(Arkusz7!$AB$2:$AB$19,MATCH(Converter!D43,Arkusz7!$Z$2:$Z$19,-1)),"")&IF(AND(B43<>"",Z43="F1S2511"),INDEX(Arkusz7!$AB$2:$AB$19,MATCH(Converter!D43,Arkusz7!$AA$2:$AA$19,-1)),"")&IF(AND(B43<>"",Z43="F2C2311"),INDEX(Arkusz7!$AI$2:$AI$7,MATCH(Converter!D43,Arkusz7!$AD$2:$AD$7,-1)),"")&IF(AND(B43<>"",Z43="F2C3417"),INDEX(Arkusz7!$AI$2:$AI$7,MATCH(Converter!D43,Arkusz7!$AE$2:$AE$7,-1)),"")&IF(AND(B43<>"",Z43="F2V3417"),INDEX(Arkusz7!$AI$2:$AI$7,MATCH(Converter!D43,Arkusz7!$AF$2:$AF$7,-1)),"")&IF(AND(B43<>"",Z43="F4C3417"),INDEX(Arkusz7!$AI$2:$AI$7,MATCH(Converter!D43,Arkusz7!$AG$2:$AG$7,-1)),"")&IF(AND(B43<>"",Z43="F4V3417"),INDEX(Arkusz7!$AI$2:$AI$7,MATCH(Converter!D43,Arkusz7!$AH$2:$AH$7,-1)),"") ->  | AE43: =IF(B43<>"",ROUND(ROUND(ROUND(ROUND(ROUND(ROUND(ROUND(ROUND(ROUND(ROUND(ROUND(ROUND(ROUND(VLOOKUP(AA43,NewAquilo!E:F,2,0)*NewAquilo!$B$21,0)*NewAquilo!$B$22,0)*NewAquilo!$B$23,0)*NewAquilo!$B$24,0)*NewAquilo!$B$25,0)*NewAquilo!$B$26,0)*NewAquilo!$B$27,0)*NewAquilo!$B$28,0)*NewAquilo!$B$29,0)*NewAquilo!$B$30,0)*NewAquilo!$B$31,0)*NewAquilo!$B$32,0)*NewAquilo!$B$33,0),"") ->  | AH43: =IF(B43<>"",VLOOKUP(AA43,NewAquilo!E:G,3,0),"") -> 
N44: =IF(AND(B44<>"",R44="FMS209"),INDEX(Arkusz7!$U$2:$U$24,MATCH(Converter!D44,Arkusz7!$A$2:$A$24,-1)),"")&IF(AND(B44<>"",R44="FMS2011"),INDEX(Arkusz7!$U$2:$U$24,MATCH(Converter!D44,Arkusz7!$B$2:$B$24,-1)),"")&IF(AND(B44<>"",R44="FMS2014"),INDEX(Arkusz7!$U$2:$U$24,MATCH(Converter!D44,Arkusz7!$C$2:$C$24,-1)),"")&IF(AND(B44<>"",R44="FMS2019"),INDEX(Arkusz7!$U$2:$U$24,MATCH(Converter!D44,Arkusz7!$D$2:$D$24,-1)),"")&IF(AND(B44<>"",R44="FMS259"),INDEX(Arkusz7!$U$2:$U$24,MATCH(Converter!D44,Arkusz7!$E$2:$E$24,-1)),"")&IF(AND(B44<>"",R44="FMS2511"),INDEX(Arkusz7!$U$2:$U$24,MATCH(Converter!D44,Arkusz7!$F$2:$F$24,-1)),"")&IF(AND(B44<>"",R44="FMS2514"),INDEX(Arkusz7!$U$2:$U$24,MATCH(Converter!D44,Arkusz7!$G$2:$G$24,-1)),"")&IF(AND(B44<>"",R44="FMS2519"),INDEX(Arkusz7!$U$2:$U$24,MATCH(Converter!D44,Arkusz7!$H$2:$H$24,-1)),"")&IF(AND(B44<>"",R44="FMS309"),INDEX(Arkusz7!$U$2:$U$24,MATCH(Converter!D44,Arkusz7!$I$2:$I$24,-1)),"")&IF(AND(B44<>"",R44="FMS3011"),INDEX(Arkusz7!$U$2:$U$24,MATCH(Converter!D44,Arkusz7!$J$2:$J$24,-1)),"")&IF(AND(B44<>"",R44="FMS3014"),INDEX(Arkusz7!$U$2:$U$24,MATCH(Converter!D44,Arkusz7!$K$2:$K$24,-1)),"")&IF(AND(B44<>"",R44="FMS3019"),INDEX(Arkusz7!$U$2:$U$24,MATCH(Converter!D44,Arkusz7!$L$2:$L$24,-1)),"")&IF(AND(B44<>"",R44="FMS349"),INDEX(Arkusz7!$U$2:$U$24,MATCH(Converter!D44,Arkusz7!$M$2:$M$24,-1)),"")&IF(AND(B44<>"",R44="FMS3411"),INDEX(Arkusz7!$U$2:$U$24,MATCH(Converter!D44,Arkusz7!$N$2:$N$24,-1)),"")&IF(AND(B44<>"",R44="FMS3414"),INDEX(Arkusz7!$U$2:$U$24,MATCH(Converter!D44,Arkusz7!$O$2:$O$24,-1)),"")&IF(AND(B44<>"",R44="FMS3419"),INDEX(Arkusz7!$U$2:$U$24,MATCH(Converter!D44,Arkusz7!$P$2:$P$24,-1)),"")&IF(AND(B44<>"",R44="FMS429"),INDEX(Arkusz7!$U$2:$U$24,MATCH(Converter!D44,Arkusz7!$Q$2:$Q$24,-1)),"")&IF(AND(B44<>"",R44="FMS4211"),INDEX(Arkusz7!$U$2:$U$24,MATCH(Converter!D44,Arkusz7!$R$2:$R$24,-1)),"")&IF(AND(B44<>"",R44="FMS4214"),INDEX(Arkusz7!$U$2:$U$24,MATCH(Converter!D44,Arkusz7!$S$2:$S$24,-1)),"")&IF(AND(B44<>"",R44="FMS4219"),INDEX(Arkusz7!$U$2:$U$24,MATCH(Converter!D44,Arkusz7!$T$2:$T$24,-1)),"")&IF(AND(B44<>"",R44="F1S177,5"),INDEX(Arkusz7!$AB$2:$AB$19,MATCH(Converter!D44,Arkusz7!$W$2:$W$19,-1)),"")&IF(AND(B44<>"",R44="F1S207,5"),INDEX(Arkusz7!$AB$2:$AB$19,MATCH(Converter!D44,Arkusz7!$X$2:$X$19,-1)),"")&IF(AND(B44<>"",R44="F1S237,5"),INDEX(Arkusz7!$AB$2:$AB$19,MATCH(Converter!D44,Arkusz7!$Y$2:$Y$19,-1)),"")&IF(AND(B44<>"",R44="F1S2311"),INDEX(Arkusz7!$AB$2:$AB$19,MATCH(Converter!D44,Arkusz7!$Z$2:$Z$19,-1)),"")&IF(AND(B44<>"",R44="F1S2511"),INDEX(Arkusz7!$AB$2:$AB$19,MATCH(Converter!D44,Arkusz7!$AA$2:$AA$19,-1)),"")&IF(AND(B44<>"",R44="F2C2311"),INDEX(Arkusz7!$AI$2:$AI$7,MATCH(Converter!D44,Arkusz7!$AD$2:$AD$7,-1)),"")&IF(AND(B44<>"",R44="F2C3417"),INDEX(Arkusz7!$AI$2:$AI$7,MATCH(Converter!D44,Arkusz7!$AE$2:$AE$7,-1)),"")&IF(AND(B44<>"",R44="F2V3417"),INDEX(Arkusz7!$AI$2:$AI$7,MATCH(Converter!D44,Arkusz7!$AF$2:$AF$7,-1)),"")&IF(AND(B44<>"",R44="F4C3417"),INDEX(Arkusz7!$AI$2:$AI$7,MATCH(Converter!D44,Arkusz7!$AG$2:$AG$7,-1)),"")&IF(AND(B44<>"",R44="F4V3417"),INDEX(Arkusz7!$AI$2:$AI$7,MATCH(Converter!D44,Arkusz7!$AH$2:$AH$7,-1)),"") ->  | U44: =IF(AND(B44<>"",Z44="FMS209"),INDEX(Arkusz7!$U$2:$U$24,MATCH(Converter!D44,Arkusz7!$A$2:$A$24,-1)),"")&IF(AND(B44<>"",Z44="FMS2011"),INDEX(Arkusz7!$U$2:$U$24,MATCH(Converter!D44,Arkusz7!$B$2:$B$24,-1)),"")&IF(AND(B44<>"",Z44="FMS2014"),INDEX(Arkusz7!$U$2:$U$24,MATCH(Converter!D44,Arkusz7!$C$2:$C$24,-1)),"")&IF(AND(B44<>"",Z44="FMS2019"),INDEX(Arkusz7!$U$2:$U$24,MATCH(Converter!D44,Arkusz7!$D$2:$D$24,-1)),"")&IF(AND(B44<>"",Z44="FMS259"),INDEX(Arkusz7!$U$2:$U$24,MATCH(Converter!D44,Arkusz7!$E$2:$E$24,-1)),"")&IF(AND(B44<>"",Z44="FMS2511"),INDEX(Arkusz7!$U$2:$U$24,MATCH(Converter!D44,Arkusz7!$F$2:$F$24,-1)),"")&IF(AND(B44<>"",Z44="FMS2514"),INDEX(Arkusz7!$U$2:$U$24,MATCH(Converter!D44,Arkusz7!$G$2:$G$24,-1)),"")&IF(AND(B44<>"",Z44="FMS2519"),INDEX(Arkusz7!$U$2:$U$24,MATCH(Converter!D44,Arkusz7!$H$2:$H$24,-1)),"")&IF(AND(B44<>"",Z44="FMS309"),INDEX(Arkusz7!$U$2:$U$24,MATCH(Converter!D44,Arkusz7!$I$2:$I$24,-1)),"")&IF(AND(B44<>"",Z44="FMS3011"),INDEX(Arkusz7!$U$2:$U$24,MATCH(Converter!D44,Arkusz7!$J$2:$J$24,-1)),"")&IF(AND(B44<>"",Z44="FMS3014"),INDEX(Arkusz7!$U$2:$U$24,MATCH(Converter!D44,Arkusz7!$K$2:$K$24,-1)),"")&IF(AND(B44<>"",Z44="FMS3019"),INDEX(Arkusz7!$U$2:$U$24,MATCH(Converter!D44,Arkusz7!$L$2:$L$24,-1)),"")&IF(AND(B44<>"",Z44="FMS349"),INDEX(Arkusz7!$U$2:$U$24,MATCH(Converter!D44,Arkusz7!$M$2:$M$24,-1)),"")&IF(AND(B44<>"",Z44="FMS3411"),INDEX(Arkusz7!$U$2:$U$24,MATCH(Converter!D44,Arkusz7!$N$2:$N$24,-1)),"")&IF(AND(B44<>"",Z44="FMS3414"),INDEX(Arkusz7!$U$2:$U$24,MATCH(Converter!D44,Arkusz7!$O$2:$O$24,-1)),"")&IF(AND(B44<>"",Z44="FMS3419"),INDEX(Arkusz7!$U$2:$U$24,MATCH(Converter!D44,Arkusz7!$P$2:$P$24,-1)),"")&IF(AND(B44<>"",Z44="FMS429"),INDEX(Arkusz7!$U$2:$U$24,MATCH(Converter!D44,Arkusz7!$Q$2:$Q$24,-1)),"")&IF(AND(B44<>"",Z44="FMS4211"),INDEX(Arkusz7!$U$2:$U$24,MATCH(Converter!D44,Arkusz7!$R$2:$R$24,-1)),"")&IF(AND(B44<>"",Z44="FMS4214"),INDEX(Arkusz7!$U$2:$U$24,MATCH(Converter!D44,Arkusz7!$S$2:$S$24,-1)),"")&IF(AND(B44<>"",Z44="FMS4219"),INDEX(Arkusz7!$U$2:$U$24,MATCH(Converter!D44,Arkusz7!$T$2:$T$24,-1)),"")&IF(AND(B44<>"",Z44="F1S177,5"),INDEX(Arkusz7!$AB$2:$AB$19,MATCH(Converter!D44,Arkusz7!$W$2:$W$19,-1)),"")&IF(AND(B44<>"",Z44="F1S207,5"),INDEX(Arkusz7!$AB$2:$AB$19,MATCH(Converter!D44,Arkusz7!$X$2:$X$19,-1)),"")&IF(AND(B44<>"",Z44="F1S237,5"),INDEX(Arkusz7!$AB$2:$AB$19,MATCH(Converter!D44,Arkusz7!$Y$2:$Y$19,-1)),"")&IF(AND(B44<>"",Z44="F1S2311"),INDEX(Arkusz7!$AB$2:$AB$19,MATCH(Converter!D44,Arkusz7!$Z$2:$Z$19,-1)),"")&IF(AND(B44<>"",Z44="F1S2511"),INDEX(Arkusz7!$AB$2:$AB$19,MATCH(Converter!D44,Arkusz7!$AA$2:$AA$19,-1)),"")&IF(AND(B44<>"",Z44="F2C2311"),INDEX(Arkusz7!$AI$2:$AI$7,MATCH(Converter!D44,Arkusz7!$AD$2:$AD$7,-1)),"")&IF(AND(B44<>"",Z44="F2C3417"),INDEX(Arkusz7!$AI$2:$AI$7,MATCH(Converter!D44,Arkusz7!$AE$2:$AE$7,-1)),"")&IF(AND(B44<>"",Z44="F2V3417"),INDEX(Arkusz7!$AI$2:$AI$7,MATCH(Converter!D44,Arkusz7!$AF$2:$AF$7,-1)),"")&IF(AND(B44<>"",Z44="F4C3417"),INDEX(Arkusz7!$AI$2:$AI$7,MATCH(Converter!D44,Arkusz7!$AG$2:$AG$7,-1)),"")&IF(AND(B44<>"",Z44="F4V3417"),INDEX(Arkusz7!$AI$2:$AI$7,MATCH(Converter!D44,Arkusz7!$AH$2:$AH$7,-1)),"") ->  | AE44: =IF(B44<>"",ROUND(ROUND(ROUND(ROUND(ROUND(ROUND(ROUND(ROUND(ROUND(ROUND(ROUND(ROUND(ROUND(VLOOKUP(AA44,NewAquilo!E:F,2,0)*NewAquilo!$B$21,0)*NewAquilo!$B$22,0)*NewAquilo!$B$23,0)*NewAquilo!$B$24,0)*NewAquilo!$B$25,0)*NewAquilo!$B$26,0)*NewAquilo!$B$27,0)*NewAquilo!$B$28,0)*NewAquilo!$B$29,0)*NewAquilo!$B$30,0)*NewAquilo!$B$31,0)*NewAquilo!$B$32,0)*NewAquilo!$B$33,0),"") ->  | AH44: =IF(B44<>"",VLOOKUP(AA44,NewAquilo!E:G,3,0),"") -> 
N45: =IF(AND(B45<>"",R45="FMS209"),INDEX(Arkusz7!$U$2:$U$24,MATCH(Converter!D45,Arkusz7!$A$2:$A$24,-1)),"")&IF(AND(B45<>"",R45="FMS2011"),INDEX(Arkusz7!$U$2:$U$24,MATCH(Converter!D45,Arkusz7!$B$2:$B$24,-1)),"")&IF(AND(B45<>"",R45="FMS2014"),INDEX(Arkusz7!$U$2:$U$24,MATCH(Converter!D45,Arkusz7!$C$2:$C$24,-1)),"")&IF(AND(B45<>"",R45="FMS2019"),INDEX(Arkusz7!$U$2:$U$24,MATCH(Converter!D45,Arkusz7!$D$2:$D$24,-1)),"")&IF(AND(B45<>"",R45="FMS259"),INDEX(Arkusz7!$U$2:$U$24,MATCH(Converter!D45,Arkusz7!$E$2:$E$24,-1)),"")&IF(AND(B45<>"",R45="FMS2511"),INDEX(Arkusz7!$U$2:$U$24,MATCH(Converter!D45,Arkusz7!$F$2:$F$24,-1)),"")&IF(AND(B45<>"",R45="FMS2514"),INDEX(Arkusz7!$U$2:$U$24,MATCH(Converter!D45,Arkusz7!$G$2:$G$24,-1)),"")&IF(AND(B45<>"",R45="FMS2519"),INDEX(Arkusz7!$U$2:$U$24,MATCH(Converter!D45,Arkusz7!$H$2:$H$24,-1)),"")&IF(AND(B45<>"",R45="FMS309"),INDEX(Arkusz7!$U$2:$U$24,MATCH(Converter!D45,Arkusz7!$I$2:$I$24,-1)),"")&IF(AND(B45<>"",R45="FMS3011"),INDEX(Arkusz7!$U$2:$U$24,MATCH(Converter!D45,Arkusz7!$J$2:$J$24,-1)),"")&IF(AND(B45<>"",R45="FMS3014"),INDEX(Arkusz7!$U$2:$U$24,MATCH(Converter!D45,Arkusz7!$K$2:$K$24,-1)),"")&IF(AND(B45<>"",R45="FMS3019"),INDEX(Arkusz7!$U$2:$U$24,MATCH(Converter!D45,Arkusz7!$L$2:$L$24,-1)),"")&IF(AND(B45<>"",R45="FMS349"),INDEX(Arkusz7!$U$2:$U$24,MATCH(Converter!D45,Arkusz7!$M$2:$M$24,-1)),"")&IF(AND(B45<>"",R45="FMS3411"),INDEX(Arkusz7!$U$2:$U$24,MATCH(Converter!D45,Arkusz7!$N$2:$N$24,-1)),"")&IF(AND(B45<>"",R45="FMS3414"),INDEX(Arkusz7!$U$2:$U$24,MATCH(Converter!D45,Arkusz7!$O$2:$O$24,-1)),"")&IF(AND(B45<>"",R45="FMS3419"),INDEX(Arkusz7!$U$2:$U$24,MATCH(Converter!D45,Arkusz7!$P$2:$P$24,-1)),"")&IF(AND(B45<>"",R45="FMS429"),INDEX(Arkusz7!$U$2:$U$24,MATCH(Converter!D45,Arkusz7!$Q$2:$Q$24,-1)),"")&IF(AND(B45<>"",R45="FMS4211"),INDEX(Arkusz7!$U$2:$U$24,MATCH(Converter!D45,Arkusz7!$R$2:$R$24,-1)),"")&IF(AND(B45<>"",R45="FMS4214"),INDEX(Arkusz7!$U$2:$U$24,MATCH(Converter!D45,Arkusz7!$S$2:$S$24,-1)),"")&IF(AND(B45<>"",R45="FMS4219"),INDEX(Arkusz7!$U$2:$U$24,MATCH(Converter!D45,Arkusz7!$T$2:$T$24,-1)),"")&IF(AND(B45<>"",R45="F1S177,5"),INDEX(Arkusz7!$AB$2:$AB$19,MATCH(Converter!D45,Arkusz7!$W$2:$W$19,-1)),"")&IF(AND(B45<>"",R45="F1S207,5"),INDEX(Arkusz7!$AB$2:$AB$19,MATCH(Converter!D45,Arkusz7!$X$2:$X$19,-1)),"")&IF(AND(B45<>"",R45="F1S237,5"),INDEX(Arkusz7!$AB$2:$AB$19,MATCH(Converter!D45,Arkusz7!$Y$2:$Y$19,-1)),"")&IF(AND(B45<>"",R45="F1S2311"),INDEX(Arkusz7!$AB$2:$AB$19,MATCH(Converter!D45,Arkusz7!$Z$2:$Z$19,-1)),"")&IF(AND(B45<>"",R45="F1S2511"),INDEX(Arkusz7!$AB$2:$AB$19,MATCH(Converter!D45,Arkusz7!$AA$2:$AA$19,-1)),"")&IF(AND(B45<>"",R45="F2C2311"),INDEX(Arkusz7!$AI$2:$AI$7,MATCH(Converter!D45,Arkusz7!$AD$2:$AD$7,-1)),"")&IF(AND(B45<>"",R45="F2C3417"),INDEX(Arkusz7!$AI$2:$AI$7,MATCH(Converter!D45,Arkusz7!$AE$2:$AE$7,-1)),"")&IF(AND(B45<>"",R45="F2V3417"),INDEX(Arkusz7!$AI$2:$AI$7,MATCH(Converter!D45,Arkusz7!$AF$2:$AF$7,-1)),"")&IF(AND(B45<>"",R45="F4C3417"),INDEX(Arkusz7!$AI$2:$AI$7,MATCH(Converter!D45,Arkusz7!$AG$2:$AG$7,-1)),"")&IF(AND(B45<>"",R45="F4V3417"),INDEX(Arkusz7!$AI$2:$AI$7,MATCH(Converter!D45,Arkusz7!$AH$2:$AH$7,-1)),"") ->  | U45: =IF(AND(B45<>"",Z45="FMS209"),INDEX(Arkusz7!$U$2:$U$24,MATCH(Converter!D45,Arkusz7!$A$2:$A$24,-1)),"")&IF(AND(B45<>"",Z45="FMS2011"),INDEX(Arkusz7!$U$2:$U$24,MATCH(Converter!D45,Arkusz7!$B$2:$B$24,-1)),"")&IF(AND(B45<>"",Z45="FMS2014"),INDEX(Arkusz7!$U$2:$U$24,MATCH(Converter!D45,Arkusz7!$C$2:$C$24,-1)),"")&IF(AND(B45<>"",Z45="FMS2019"),INDEX(Arkusz7!$U$2:$U$24,MATCH(Converter!D45,Arkusz7!$D$2:$D$24,-1)),"")&IF(AND(B45<>"",Z45="FMS259"),INDEX(Arkusz7!$U$2:$U$24,MATCH(Converter!D45,Arkusz7!$E$2:$E$24,-1)),"")&IF(AND(B45<>"",Z45="FMS2511"),INDEX(Arkusz7!$U$2:$U$24,MATCH(Converter!D45,Arkusz7!$F$2:$F$24,-1)),"")&IF(AND(B45<>"",Z45="FMS2514"),INDEX(Arkusz7!$U$2:$U$24,MATCH(Converter!D45,Arkusz7!$G$2:$G$24,-1)),"")&IF(AND(B45<>"",Z45="FMS2519"),INDEX(Arkusz7!$U$2:$U$24,MATCH(Converter!D45,Arkusz7!$H$2:$H$24,-1)),"")&IF(AND(B45<>"",Z45="FMS309"),INDEX(Arkusz7!$U$2:$U$24,MATCH(Converter!D45,Arkusz7!$I$2:$I$24,-1)),"")&IF(AND(B45<>"",Z45="FMS3011"),INDEX(Arkusz7!$U$2:$U$24,MATCH(Converter!D45,Arkusz7!$J$2:$J$24,-1)),"")&IF(AND(B45<>"",Z45="FMS3014"),INDEX(Arkusz7!$U$2:$U$24,MATCH(Converter!D45,Arkusz7!$K$2:$K$24,-1)),"")&IF(AND(B45<>"",Z45="FMS3019"),INDEX(Arkusz7!$U$2:$U$24,MATCH(Converter!D45,Arkusz7!$L$2:$L$24,-1)),"")&IF(AND(B45<>"",Z45="FMS349"),INDEX(Arkusz7!$U$2:$U$24,MATCH(Converter!D45,Arkusz7!$M$2:$M$24,-1)),"")&IF(AND(B45<>"",Z45="FMS3411"),INDEX(Arkusz7!$U$2:$U$24,MATCH(Converter!D45,Arkusz7!$N$2:$N$24,-1)),"")&IF(AND(B45<>"",Z45="FMS3414"),INDEX(Arkusz7!$U$2:$U$24,MATCH(Converter!D45,Arkusz7!$O$2:$O$24,-1)),"")&IF(AND(B45<>"",Z45="FMS3419"),INDEX(Arkusz7!$U$2:$U$24,MATCH(Converter!D45,Arkusz7!$P$2:$P$24,-1)),"")&IF(AND(B45<>"",Z45="FMS429"),INDEX(Arkusz7!$U$2:$U$24,MATCH(Converter!D45,Arkusz7!$Q$2:$Q$24,-1)),"")&IF(AND(B45<>"",Z45="FMS4211"),INDEX(Arkusz7!$U$2:$U$24,MATCH(Converter!D45,Arkusz7!$R$2:$R$24,-1)),"")&IF(AND(B45<>"",Z45="FMS4214"),INDEX(Arkusz7!$U$2:$U$24,MATCH(Converter!D45,Arkusz7!$S$2:$S$24,-1)),"")&IF(AND(B45<>"",Z45="FMS4219"),INDEX(Arkusz7!$U$2:$U$24,MATCH(Converter!D45,Arkusz7!$T$2:$T$24,-1)),"")&IF(AND(B45<>"",Z45="F1S177,5"),INDEX(Arkusz7!$AB$2:$AB$19,MATCH(Converter!D45,Arkusz7!$W$2:$W$19,-1)),"")&IF(AND(B45<>"",Z45="F1S207,5"),INDEX(Arkusz7!$AB$2:$AB$19,MATCH(Converter!D45,Arkusz7!$X$2:$X$19,-1)),"")&IF(AND(B45<>"",Z45="F1S237,5"),INDEX(Arkusz7!$AB$2:$AB$19,MATCH(Converter!D45,Arkusz7!$Y$2:$Y$19,-1)),"")&IF(AND(B45<>"",Z45="F1S2311"),INDEX(Arkusz7!$AB$2:$AB$19,MATCH(Converter!D45,Arkusz7!$Z$2:$Z$19,-1)),"")&IF(AND(B45<>"",Z45="F1S2511"),INDEX(Arkusz7!$AB$2:$AB$19,MATCH(Converter!D45,Arkusz7!$AA$2:$AA$19,-1)),"")&IF(AND(B45<>"",Z45="F2C2311"),INDEX(Arkusz7!$AI$2:$AI$7,MATCH(Converter!D45,Arkusz7!$AD$2:$AD$7,-1)),"")&IF(AND(B45<>"",Z45="F2C3417"),INDEX(Arkusz7!$AI$2:$AI$7,MATCH(Converter!D45,Arkusz7!$AE$2:$AE$7,-1)),"")&IF(AND(B45<>"",Z45="F2V3417"),INDEX(Arkusz7!$AI$2:$AI$7,MATCH(Converter!D45,Arkusz7!$AF$2:$AF$7,-1)),"")&IF(AND(B45<>"",Z45="F4C3417"),INDEX(Arkusz7!$AI$2:$AI$7,MATCH(Converter!D45,Arkusz7!$AG$2:$AG$7,-1)),"")&IF(AND(B45<>"",Z45="F4V3417"),INDEX(Arkusz7!$AI$2:$AI$7,MATCH(Converter!D45,Arkusz7!$AH$2:$AH$7,-1)),"") ->  | AE45: =IF(B45<>"",ROUND(ROUND(ROUND(ROUND(ROUND(ROUND(ROUND(ROUND(ROUND(ROUND(ROUND(ROUND(ROUND(VLOOKUP(AA45,NewAquilo!E:F,2,0)*NewAquilo!$B$21,0)*NewAquilo!$B$22,0)*NewAquilo!$B$23,0)*NewAquilo!$B$24,0)*NewAquilo!$B$25,0)*NewAquilo!$B$26,0)*NewAquilo!$B$27,0)*NewAquilo!$B$28,0)*NewAquilo!$B$29,0)*NewAquilo!$B$30,0)*NewAquilo!$B$31,0)*NewAquilo!$B$32,0)*NewAquilo!$B$33,0),"") ->  | AH45: =IF(B45<>"",VLOOKUP(AA45,NewAquilo!E:G,3,0),"") -> 
N46: =IF(AND(B46<>"",R46="FMS209"),INDEX(Arkusz7!$U$2:$U$24,MATCH(Converter!D46,Arkusz7!$A$2:$A$24,-1)),"")&IF(AND(B46<>"",R46="FMS2011"),INDEX(Arkusz7!$U$2:$U$24,MATCH(Converter!D46,Arkusz7!$B$2:$B$24,-1)),"")&IF(AND(B46<>"",R46="FMS2014"),INDEX(Arkusz7!$U$2:$U$24,MATCH(Converter!D46,Arkusz7!$C$2:$C$24,-1)),"")&IF(AND(B46<>"",R46="FMS2019"),INDEX(Arkusz7!$U$2:$U$24,MATCH(Converter!D46,Arkusz7!$D$2:$D$24,-1)),"")&IF(AND(B46<>"",R46="FMS259"),INDEX(Arkusz7!$U$2:$U$24,MATCH(Converter!D46,Arkusz7!$E$2:$E$24,-1)),"")&IF(AND(B46<>"",R46="FMS2511"),INDEX(Arkusz7!$U$2:$U$24,MATCH(Converter!D46,Arkusz7!$F$2:$F$24,-1)),"")&IF(AND(B46<>"",R46="FMS2514"),INDEX(Arkusz7!$U$2:$U$24,MATCH(Converter!D46,Arkusz7!$G$2:$G$24,-1)),"")&IF(AND(B46<>"",R46="FMS2519"),INDEX(Arkusz7!$U$2:$U$24,MATCH(Converter!D46,Arkusz7!$H$2:$H$24,-1)),"")&IF(AND(B46<>"",R46="FMS309"),INDEX(Arkusz7!$U$2:$U$24,MATCH(Converter!D46,Arkusz7!$I$2:$I$24,-1)),"")&IF(AND(B46<>"",R46="FMS3011"),INDEX(Arkusz7!$U$2:$U$24,MATCH(Converter!D46,Arkusz7!$J$2:$J$24,-1)),"")&IF(AND(B46<>"",R46="FMS3014"),INDEX(Arkusz7!$U$2:$U$24,MATCH(Converter!D46,Arkusz7!$K$2:$K$24,-1)),"")&IF(AND(B46<>"",R46="FMS3019"),INDEX(Arkusz7!$U$2:$U$24,MATCH(Converter!D46,Arkusz7!$L$2:$L$24,-1)),"")&IF(AND(B46<>"",R46="FMS349"),INDEX(Arkusz7!$U$2:$U$24,MATCH(Converter!D46,Arkusz7!$M$2:$M$24,-1)),"")&IF(AND(B46<>"",R46="FMS3411"),INDEX(Arkusz7!$U$2:$U$24,MATCH(Converter!D46,Arkusz7!$N$2:$N$24,-1)),"")&IF(AND(B46<>"",R46="FMS3414"),INDEX(Arkusz7!$U$2:$U$24,MATCH(Converter!D46,Arkusz7!$O$2:$O$24,-1)),"")&IF(AND(B46<>"",R46="FMS3419"),INDEX(Arkusz7!$U$2:$U$24,MATCH(Converter!D46,Arkusz7!$P$2:$P$24,-1)),"")&IF(AND(B46<>"",R46="FMS429"),INDEX(Arkusz7!$U$2:$U$24,MATCH(Converter!D46,Arkusz7!$Q$2:$Q$24,-1)),"")&IF(AND(B46<>"",R46="FMS4211"),INDEX(Arkusz7!$U$2:$U$24,MATCH(Converter!D46,Arkusz7!$R$2:$R$24,-1)),"")&IF(AND(B46<>"",R46="FMS4214"),INDEX(Arkusz7!$U$2:$U$24,MATCH(Converter!D46,Arkusz7!$S$2:$S$24,-1)),"")&IF(AND(B46<>"",R46="FMS4219"),INDEX(Arkusz7!$U$2:$U$24,MATCH(Converter!D46,Arkusz7!$T$2:$T$24,-1)),"")&IF(AND(B46<>"",R46="F1S177,5"),INDEX(Arkusz7!$AB$2:$AB$19,MATCH(Converter!D46,Arkusz7!$W$2:$W$19,-1)),"")&IF(AND(B46<>"",R46="F1S207,5"),INDEX(Arkusz7!$AB$2:$AB$19,MATCH(Converter!D46,Arkusz7!$X$2:$X$19,-1)),"")&IF(AND(B46<>"",R46="F1S237,5"),INDEX(Arkusz7!$AB$2:$AB$19,MATCH(Converter!D46,Arkusz7!$Y$2:$Y$19,-1)),"")&IF(AND(B46<>"",R46="F1S2311"),INDEX(Arkusz7!$AB$2:$AB$19,MATCH(Converter!D46,Arkusz7!$Z$2:$Z$19,-1)),"")&IF(AND(B46<>"",R46="F1S2511"),INDEX(Arkusz7!$AB$2:$AB$19,MATCH(Converter!D46,Arkusz7!$AA$2:$AA$19,-1)),"")&IF(AND(B46<>"",R46="F2C2311"),INDEX(Arkusz7!$AI$2:$AI$7,MATCH(Converter!D46,Arkusz7!$AD$2:$AD$7,-1)),"")&IF(AND(B46<>"",R46="F2C3417"),INDEX(Arkusz7!$AI$2:$AI$7,MATCH(Converter!D46,Arkusz7!$AE$2:$AE$7,-1)),"")&IF(AND(B46<>"",R46="F2V3417"),INDEX(Arkusz7!$AI$2:$AI$7,MATCH(Converter!D46,Arkusz7!$AF$2:$AF$7,-1)),"")&IF(AND(B46<>"",R46="F4C3417"),INDEX(Arkusz7!$AI$2:$AI$7,MATCH(Converter!D46,Arkusz7!$AG$2:$AG$7,-1)),"")&IF(AND(B46<>"",R46="F4V3417"),INDEX(Arkusz7!$AI$2:$AI$7,MATCH(Converter!D46,Arkusz7!$AH$2:$AH$7,-1)),"") ->  | U46: =IF(AND(B46<>"",Z46="FMS209"),INDEX(Arkusz7!$U$2:$U$24,MATCH(Converter!D46,Arkusz7!$A$2:$A$24,-1)),"")&IF(AND(B46<>"",Z46="FMS2011"),INDEX(Arkusz7!$U$2:$U$24,MATCH(Converter!D46,Arkusz7!$B$2:$B$24,-1)),"")&IF(AND(B46<>"",Z46="FMS2014"),INDEX(Arkusz7!$U$2:$U$24,MATCH(Converter!D46,Arkusz7!$C$2:$C$24,-1)),"")&IF(AND(B46<>"",Z46="FMS2019"),INDEX(Arkusz7!$U$2:$U$24,MATCH(Converter!D46,Arkusz7!$D$2:$D$24,-1)),"")&IF(AND(B46<>"",Z46="FMS259"),INDEX(Arkusz7!$U$2:$U$24,MATCH(Converter!D46,Arkusz7!$E$2:$E$24,-1)),"")&IF(AND(B46<>"",Z46="FMS2511"),INDEX(Arkusz7!$U$2:$U$24,MATCH(Converter!D46,Arkusz7!$F$2:$F$24,-1)),"")&IF(AND(B46<>"",Z46="FMS2514"),INDEX(Arkusz7!$U$2:$U$24,MATCH(Converter!D46,Arkusz7!$G$2:$G$24,-1)),"")&IF(AND(B46<>"",Z46="FMS2519"),INDEX(Arkusz7!$U$2:$U$24,MATCH(Converter!D46,Arkusz7!$H$2:$H$24,-1)),"")&IF(AND(B46<>"",Z46="FMS309"),INDEX(Arkusz7!$U$2:$U$24,MATCH(Converter!D46,Arkusz7!$I$2:$I$24,-1)),"")&IF(AND(B46<>"",Z46="FMS3011"),INDEX(Arkusz7!$U$2:$U$24,MATCH(Converter!D46,Arkusz7!$J$2:$J$24,-1)),"")&IF(AND(B46<>"",Z46="FMS3014"),INDEX(Arkusz7!$U$2:$U$24,MATCH(Converter!D46,Arkusz7!$K$2:$K$24,-1)),"")&IF(AND(B46<>"",Z46="FMS3019"),INDEX(Arkusz7!$U$2:$U$24,MATCH(Converter!D46,Arkusz7!$L$2:$L$24,-1)),"")&IF(AND(B46<>"",Z46="FMS349"),INDEX(Arkusz7!$U$2:$U$24,MATCH(Converter!D46,Arkusz7!$M$2:$M$24,-1)),"")&IF(AND(B46<>"",Z46="FMS3411"),INDEX(Arkusz7!$U$2:$U$24,MATCH(Converter!D46,Arkusz7!$N$2:$N$24,-1)),"")&IF(AND(B46<>"",Z46="FMS3414"),INDEX(Arkusz7!$U$2:$U$24,MATCH(Converter!D46,Arkusz7!$O$2:$O$24,-1)),"")&IF(AND(B46<>"",Z46="FMS3419"),INDEX(Arkusz7!$U$2:$U$24,MATCH(Converter!D46,Arkusz7!$P$2:$P$24,-1)),"")&IF(AND(B46<>"",Z46="FMS429"),INDEX(Arkusz7!$U$2:$U$24,MATCH(Converter!D46,Arkusz7!$Q$2:$Q$24,-1)),"")&IF(AND(B46<>"",Z46="FMS4211"),INDEX(Arkusz7!$U$2:$U$24,MATCH(Converter!D46,Arkusz7!$R$2:$R$24,-1)),"")&IF(AND(B46<>"",Z46="FMS4214"),INDEX(Arkusz7!$U$2:$U$24,MATCH(Converter!D46,Arkusz7!$S$2:$S$24,-1)),"")&IF(AND(B46<>"",Z46="FMS4219"),INDEX(Arkusz7!$U$2:$U$24,MATCH(Converter!D46,Arkusz7!$T$2:$T$24,-1)),"")&IF(AND(B46<>"",Z46="F1S177,5"),INDEX(Arkusz7!$AB$2:$AB$19,MATCH(Converter!D46,Arkusz7!$W$2:$W$19,-1)),"")&IF(AND(B46<>"",Z46="F1S207,5"),INDEX(Arkusz7!$AB$2:$AB$19,MATCH(Converter!D46,Arkusz7!$X$2:$X$19,-1)),"")&IF(AND(B46<>"",Z46="F1S237,5"),INDEX(Arkusz7!$AB$2:$AB$19,MATCH(Converter!D46,Arkusz7!$Y$2:$Y$19,-1)),"")&IF(AND(B46<>"",Z46="F1S2311"),INDEX(Arkusz7!$AB$2:$AB$19,MATCH(Converter!D46,Arkusz7!$Z$2:$Z$19,-1)),"")&IF(AND(B46<>"",Z46="F1S2511"),INDEX(Arkusz7!$AB$2:$AB$19,MATCH(Converter!D46,Arkusz7!$AA$2:$AA$19,-1)),"")&IF(AND(B46<>"",Z46="F2C2311"),INDEX(Arkusz7!$AI$2:$AI$7,MATCH(Converter!D46,Arkusz7!$AD$2:$AD$7,-1)),"")&IF(AND(B46<>"",Z46="F2C3417"),INDEX(Arkusz7!$AI$2:$AI$7,MATCH(Converter!D46,Arkusz7!$AE$2:$AE$7,-1)),"")&IF(AND(B46<>"",Z46="F2V3417"),INDEX(Arkusz7!$AI$2:$AI$7,MATCH(Converter!D46,Arkusz7!$AF$2:$AF$7,-1)),"")&IF(AND(B46<>"",Z46="F4C3417"),INDEX(Arkusz7!$AI$2:$AI$7,MATCH(Converter!D46,Arkusz7!$AG$2:$AG$7,-1)),"")&IF(AND(B46<>"",Z46="F4V3417"),INDEX(Arkusz7!$AI$2:$AI$7,MATCH(Converter!D46,Arkusz7!$AH$2:$AH$7,-1)),"") ->  | AE46: =IF(B46<>"",ROUND(ROUND(ROUND(ROUND(ROUND(ROUND(ROUND(ROUND(ROUND(ROUND(ROUND(ROUND(ROUND(VLOOKUP(AA46,NewAquilo!E:F,2,0)*NewAquilo!$B$21,0)*NewAquilo!$B$22,0)*NewAquilo!$B$23,0)*NewAquilo!$B$24,0)*NewAquilo!$B$25,0)*NewAquilo!$B$26,0)*NewAquilo!$B$27,0)*NewAquilo!$B$28,0)*NewAquilo!$B$29,0)*NewAquilo!$B$30,0)*NewAquilo!$B$31,0)*NewAquilo!$B$32,0)*NewAquilo!$B$33,0),"") ->  | AH46: =IF(B46<>"",VLOOKUP(AA46,NewAquilo!E:G,3,0),"") -> 
